Workbook

Sheet Cockpit
A3: Software Demonstrator
A4: von Alexander Mütze und Benedikt Decking
A7: 1. Die Rückmeldedaten in das Tabellenblatt "Rückmeldedaten" kopieren
A9: 2. Spalten definieren
G11: Spalte / Information | H11: Spaltennummer in Tabelle
G12: Auftragsnummer | H12: 1
G13: Vorgangsnummer | H13: 2
G14: Arbeitsplatz-Nr. | H14: 3
G15: Plan-Zugang (BKT) | H15: 4
G16: Plan-Abgang (BKT) | H16: 5
G17: Ist-Zugang (BKT) | H17: 6
G18: Ist-Abgang (BKT) | H18: 7
G19: Auftragszeit (Minuten) | H19: 8
G20: Rüstzeit (Minuten) | H20: 9
A22: 3. Kopieren der Arbeitsplatzdaten in das Tabellenblatt "Arbeitsplatzdaten" mit der vorgegebenen Spaltenzuordnung (max. 80 Arbeitssysteme)
A24: Optional: Externe Kapazitätstabelle über Betriebskalendertage einladen.
F26: Dateipfad | H26: Dateiname
F27: C:\Dokumente\ | H27: Kapazitätstabelle.xlsx
A29: 4. Daten Auswertung starten

Sheet Rückmeldedaten
A1: Auftragsnummer | B1: Vorgangsnummer | C1: Arbeitsplatz-Nr. | D1: Plan-Zugang | E1: Plan-Abgang | F1: Ist-Zugang | G1: Ist-Abgang | H1: Plan-Auftragszeit | I1: Rüstzeit
A2: 11 | B2: 1 | C2: 175070 | D2: 677.72 | E2: 678.7 | F2: 685.8 | G2: 686.47 | H2: 166 | I2: 0
A3: 11 | B3: 2 | C3: 175071 | D3: 685.8 | E3: 686.47 | F3: 697.45 | G3: 695.13 | H3: 220 | I3: 0
A4: 11 | B4: 3 | C4: 175073 | D4: 697.45 | E4: 695.13 | F4: 708.3 | G4: 699.92 | H4: 2 | I4: 0
A5: 11 | B5: 4 | C5: 175074 | D5: 708.3 | E5: 699.92 | F5: 709.17 | G5: 700.45 | H5: 2 | I5: 0
A6: 12 | B6: 1 | C6: 175070 | D6: 687.67 | E6: 688.22 | F6: 690.88 | G6: 695.98 | H6: 166 | I6: 0
A7: 12 | B7: 2 | C7: 175071 | D7: 690.88 | E7: 695.98 | F7: 704.53 | G7: 704.65 | H7: 220 | I7: 0
A8: 12 | B8: 3 | C8: 175073 | D8: 704.55 | E8: 704.65 | F8: 719.52 | G8: 709.43 | H8: 2 | I8: 0
A9: 12 | B9: 4 | C9: 175074 | D9: 719.52 | E9: 709.43 | F9: 720.02 | G9: 709.97 | H9: 2 | I9: 0
A10: 13 | B10: 1 | C10: 175070 | D10: 672.25 | E10: 666.67 | F10: 676.57 | G10: 675.42 | H10: 225 | I10: 0
A11: 13 | B11: 2 | C11: 175071 | D11: 676.57 | E11: 675.42 | F11: 690.8 | G11: 685.52 | H11: 306 | I11: 0
A12: 13 | B12: 3 | C12: 175073 | D12: 690.8 | E12: 685.52 | F12: 707.57 | G12: 690.32 | H12: 3 | I12: 0
A13: 13 | B13: 4 | C13: 175074 | D13: 707.57 | E13: 690.32 | F13: 709.25 | G13: 690.87 | H13: 3 | I13: 0
A14: 14 | B14: 1 | C14: 175070 | D14: 706.6 | E14: 703.62 | F14: 711.43 | G14: 710.4 | H14: 107 | I14: 0
A15: 14 | B15: 2 | C15: 175071 | D15: 711.43 | E15: 710.4 | G15: 717.63 | H15: 134 | I15: 0
A16: 14 | B16: 3 | C16: 175073 | E16: 717.63 | G16: 722.4 | H16: 1 | I16: 0
A17: 14 | B17: 4 | C17: 175074 | E17: 722.4 | G17: 722.92 | H17: 1 | I17: 0
A18: 15 | B18: 1 | C18: 175070 | D18: 712.67 | E18: 724.08 | G18: 732.83 | H18: 225 | I18: 0
A19: 15 | B19: 2 | C19: 175071 | E19: 732.83 | G19: 742.93 | H19: 306 | I19: 0
A20: 15 | B20: 3 | C20: 175073 | E20: 742.93 | G20: 747.73 | H20: 3 | I20: 0
A21: 15 | B21: 4 | C21: 175074 | E21: 747.73 | G21: 748.28 | H21: 3 | I21: 0
A22: 21 | B22: 1 | C22: 175071 | D22: 674.82 | E22: 670.52 | F22: 680.62 | G22: 678.52 | H22: 180 | I22: 0
A23: 21 | B23: 2 | C23: 175073 | D23: 680.62 | E23: 678.52 | F23: 689.8 | G23: 683.32 | H23: 3 | I23: 0
A24: 21 | B24: 3 | C24: 175074 | D24: 689.8 | E24: 683.32 | F24: 693.3 | G24: 683.87 | H24: 3 | I24: 0
A25: 22 | B25: 1 | C25: 175071 | D25: 697.58 | E25: 701.87 | F25: 710.18 | G25: 709.87 | H25: 180 | I25: 0
A26: 22 | B26: 2 | C26: 175073 | D26: 710.18 | E26: 709.87 | G26: 714.67 | H26: 3 | I26: 0
A27: 22 | B27: 3 | C27: 175074 | E27: 714.67 | G27: 715.22 | H27: 3 | I27: 0
A28: 23 | B28: 1 | C28: 175071 | D28: 696.95 | E28: 707.02 | F28: 706.53 | G28: 713.55 | H28: 92 | I28: 0
A29: 23 | B29: 2 | C29: 175073 | D29: 706.53 | E29: 713.55 | F29: 718.2 | G29: 718.32 | H29: 1 | I29: 0
A30: 23 | B30: 3 | C30: 175074 | D30: 718.2 | E30: 718.32 | F30: 719.05 | G30: 718.83 | H30: 1 | I30: 0
A31: 24 | B31: 1 | C31: 175071 | D31: 685.82 | E31: 681.23 | F31: 700.28 | G31: 688.5 | H31: 136 | I31: 0
A32: 24 | B32: 2 | C32: 175073 | D32: 700.28 | E32: 688.5 | F32: 721.07 | G32: 693.28 | H32: 2 | I32: 0
A33: 24 | B33: 3 | C33: 175074 | D33: 721.07 | E33: 693.28 | F33: 722.02 | G33: 693.82 | H33: 2 | I33: 0
A34: 26 | B34: 1 | C34: 175071 | D34: 697.6 | E34: 692.52 | F34: 711.53 | G34: 699.05 | H34: 92 | I34: 0
A35: 26 | B35: 2 | C35: 175073 | D35: 711.55 | E35: 699.05 | G35: 703.82 | H35: 1 | I35: 0
A36: 26 | B36: 3 | C36: 175074 | E36: 703.82 | G36: 704.33 | H36: 1 | I36: 0
A37: 31 | B37: 1 | C37: 175072 | D37: 691.37 | E37: 686.43 | F37: 693.77 | G37: 690.73 | H37: 108 | I37: 0
A38: 31 | B38: 2 | C38: 175070 | D38: 693.77 | E38: 690.73 | F38: 705.05 | G38: 698.93 | H38: 192 | I38: 0
A39: 31 | B39: 3 | C39: 175073 | D39: 705.05 | E39: 698.93 | F39: 719 | G39: 703.82 | H39: 8 | I39: 0
A40: 31 | B40: 4 | C40: 175074 | D40: 719 | E40: 703.82 | F40: 719.67 | G40: 704.45 | H40: 8 | I40: 0
A41: 32 | B41: 1 | C41: 175072 | D41: 688.55 | E41: 677.32 | F41: 691.57 | G41: 680.88 | H41: 64 | I41: 0
A42: 32 | B42: 2 | C42: 175070 | D42: 691.57 | E42: 680.88 | F42: 701.13 | G42: 687.88 | H42: 120 | I42: 0
A43: 32 | B43: 3 | C43: 175073 | D43: 701.13 | E43: 687.88 | F43: 720.87 | G43: 692.7 | H43: 4 | I43: 0
A44: 32 | B44: 4 | C44: 175074 | D44: 720.87 | E44: 692.7 | F44: 722.05 | G44: 693.27 | H44: 4 | I44: 0
A45: 33 | B45: 1 | C45: 175072 | D45: 673.17 | E45: 670.8 | F45: 690.18 | G45: 675.1 | H45: 108 | I45: 0
A46: 33 | B46: 2 | C46: 175070 | D46: 690.18 | E46: 675.1 | F46: 699.67 | G46: 683.3 | H46: 192 | I46: 0
A47: 33 | B47: 3 | C47: 175073 | D47: 699.67 | E47: 683.3 | F47: 709.33 | G47: 688.18 | H47: 8 | I47: 0
A48: 33 | B48: 4 | C48: 175074 | D48: 709.33 | E48: 688.18 | F48: 710.63 | G48: 688.82 | H48: 8 | I48: 0
A49: 34 | B49: 1 | C49: 175072 | D49: 710.33 | E49: 694.4 | F49: 713.37 | G49: 698.7 | H49: 108 | I49: 0
A50: 34 | B50: 2 | C50: 175070 | D50: 713.37 | E50: 698.7 | G50: 706.9 | H50: 192 | I50: 0
A51: 34 | B51: 3 | C51: 175073 | E51: 706.9 | G51: 711.78 | H51: 8 | I51: 0
A52: 34 | B52: 4 | C52: 175074 | E52: 711.78 | G52: 712.42 | H52: 8 | I52: 0
A53: 35 | B53: 1 | C53: 175072 | D53: 691.55 | E53: 689.8 | F53: 696.27 | G53: 693.37 | H53: 64 | I53: 0
A54: 35 | B54: 2 | C54: 175070 | D54: 696.27 | E54: 693.37 | F54: 706.68 | G54: 700.37 | H54: 120 | I54: 0
A55: 35 | B55: 3 | C55: 175073 | D55: 706.68 | E55: 700.37 | F55: 718.53 | G55: 705.18 | H55: 4 | I55: 0
A56: 35 | B56: 4 | C56: 175074 | D56: 718.53 | E56: 705.18 | F56: 718.98 | G56: 705.75 | H56: 4 | I56: 0
A57: 37 | B57: 1 | C57: 175072 | D57: 711.73 | E57: 701.7 | F57: 714.43 | G57: 705.27 | H57: 64 | I57: 0
A58: 37 | B58: 2 | C58: 175070 | D58: 714.43 | E58: 705.27 | G58: 712.27 | H58: 120 | I58: 0
A59: 37 | B59: 3 | C59: 175073 | E59: 712.27 | G59: 717.08 | H59: 4 | I59: 0
A60: 37 | B60: 4 | C60: 175074 | E60: 717.08 | G60: 717.65 | H60: 4 | I60: 0
A61: 38 | B61: 1 | C61: 175072 | D61: 691.15 | E61: 680.92 | F61: 695.07 | G61: 684.48 | H61: 64 | I61: 0
A62: 38 | B62: 2 | C62: 175070 | D62: 695.07 | E62: 684.48 | F62: 702.87 | G62: 691.48 | H62: 120 | I62: 0
A63: 38 | B63: 3 | C63: 175073 | D63: 702.87 | E63: 691.48 | F63: 720.22 | G63: 696.3 | H63: 4 | I63: 0
A64: 38 | B64: 4 | C64: 175074 | D64: 720.22 | E64: 696.3 | F64: 720.82 | G64: 696.87 | H64: 4 | I64: 0
A65: 51 | B65: 1 | C65: 175070 | D65: 673.6 | E65: 670.55 | F65: 679.83 | G65: 677.85 | H65: 138 | I65: 0
A66: 51 | B66: 2 | C66: 175073 | D66: 679.83 | E66: 677.85 | F66: 689.05 | G66: 682.63 | H66: 2 | I66: 0
A67: 51 | B67: 3 | C67: 175074 | D67: 689.05 | E67: 682.63 | F67: 693.47 | G67: 683.17 | H67: 2 | I67: 0
A68: 53 | B68: 1 | C68: 175070 | D68: 682.87 | E68: 686.62 | F68: 687.42 | G68: 693.17 | H68: 93 | I68: 0
A69: 53 | B69: 2 | C69: 175073 | D69: 687.42 | E69: 693.17 | F69: 708.1 | G69: 697.93 | H69: 1 | I69: 0
A70: 53 | B70: 3 | C70: 175074 | D70: 708.1 | E70: 697.93 | F70: 708.95 | G70: 698.45 | H70: 1 | I70: 0
A71: 54 | B71: 1 | C71: 175070 | D71: 709.6 | E71: 707.13 | F71: 714.8 | G71: 715.18 | H71: 183 | I71: 0
A72: 54 | B72: 2 | C72: 175073 | D72: 714.8 | E72: 715.18 | G72: 719.98 | H72: 3 | I72: 0
A73: 54 | B73: 3 | C73: 175074 | E73: 719.98 | G73: 720.53 | H73: 3 | I73: 0
A74: 55 | B74: 1 | C74: 175070 | D74: 688.02 | E74: 695.58 | F74: 694.17 | G74: 703.63 | H74: 183 | I74: 0
A75: 55 | B75: 2 | C75: 175073 | D75: 694.17 | E75: 703.63 | F75: 708.53 | G75: 708.43 | H75: 3 | I75: 0
A76: 55 | B76: 3 | C76: 175074 | D76: 708.53 | E76: 708.43 | F76: 710.5 | G76: 708.98 | H76: 3 | I76: 0
A77: 61 | B77: 1 | C77: 175070 | D77: 675.28 | E77: 672.75 | F77: 681.83 | G77: 680.05 | H77: 138 | I77: 0
A78: 61 | B78: 2 | C78: 175073 | D78: 681.83 | E78: 680.05 | F78: 706.57 | G78: 684.83 | H78: 2 | I78: 0
A79: 61 | B79: 3 | C79: 175074 | D79: 706.57 | E79: 684.83 | F79: 707.03 | G79: 685.37 | H79: 2 | I79: 0
A80: 62 | B80: 1 | C80: 175070 | D80: 702.4 | E80: 701.82 | F80: 708.28 | G80: 708.37 | H80: 93 | I80: 0
A81: 62 | B81: 2 | C81: 175073 | D81: 708.28 | E81: 708.37 | F81: 717.65 | G81: 713.13 | H81: 1 | I81: 0
A82: 62 | B82: 3 | C82: 175074 | D82: 717.65 | E82: 713.13 | F82: 717.98 | G82: 713.65 | H82: 1 | I82: 0
A83: 63 | B83: 1 | C83: 175070 | D83: 702.6 | E83: 716.22 | F83: 709.6 | G83: 722.77 | H83: 93 | I83: 0
A84: 63 | B84: 2 | C84: 175073 | D84: 709.6 | E84: 722.77 | G84: 727.53 | H84: 1 | I84: 0
A85: 63 | B85: 3 | C85: 175074 | E85: 727.53 | G85: 728.05 | H85: 1 | I85: 0
A86: 64 | B86: 1 | C86: 175070 | D86: 679.77 | E86: 683.07 | F86: 682.85 | G86: 689.62 | H86: 93 | I86: 0
A87: 64 | B87: 2 | C87: 175073 | D87: 682.85 | E87: 689.62 | F87: 707.78 | G87: 694.38 | H87: 1 | I87: 0
A88: 64 | B88: 3 | C88: 175074 | D88: 707.78 | E88: 694.38 | F88: 709.02 | G88: 694.9 | H88: 1 | I88: 0
A89: 71 | B89: 1 | C89: 175071 | D89: 699.48 | E89: 690.12 | F89: 714.02 | G89: 697.18 | H89: 124 | I89: 0
A90: 71 | B90: 2 | C90: 175072 | D90: 714.02 | E90: 697.18 | G90: 700.38 | H90: 42 | I90: 0
A91: 71 | B91: 3 | C91: 175073 | E91: 700.38 | G91: 705.17 | H91: 2 | I91: 0
A92: 71 | B92: 4 | C92: 175074 | E92: 705.17 | G92: 705.7 | H92: 2 | I92: 0
A93: 72 | B93: 1 | C93: 175071 | D93: 672.75 | E93: 667.62 | F93: 679.23 | G93: 675.95 | H93: 200 | I93: 0
A94: 72 | B94: 2 | C94: 175072 | D94: 679.23 | E94: 675.95 | F94: 687.33 | G94: 679.52 | H94: 64 | I94: 0
A95: 72 | B95: 3 | C95: 175073 | D95: 687.33 | E95: 679.52 | F95: 706.33 | G95: 684.33 | H95: 4 | I95: 0
A96: 72 | B96: 4 | C96: 175074 | D96: 706.33 | E96: 684.33 | F96: 707.1 | G96: 684.9 | H96: 4 | I96: 0
A97: 75 | B97: 1 | C97: 175071 | D97: 675.77 | E97: 673.67 | F97: 696.73 | G97: 680.73 | H97: 124 | I97: 0
A98: 75 | B98: 2 | C98: 175072 | D98: 696.73 | E98: 680.73 | F98: 707.17 | G98: 683.93 | H98: 42 | I98: 0
A99: 75 | B99: 3 | C99: 175073 | D99: 707.17 | E99: 683.93 | F99: 717.98 | G99: 688.72 | H99: 2 | I99: 0
A100: 75 | B100: 4 | C100: 175074 | D100: 717.98 | E100: 688.72 | F100: 718.32 | G100: 689.25 | H100: 2 | I100: 0
A101: 76 | B101: 1 | C101: 175071 | D101: 678.43 | E101: 682.57 | F101: 695.02 | G101: 691.53 | H101: 238 | I101: 0
A102: 76 | B102: 2 | C102: 175072 | D102: 695.02 | E102: 691.53 | F102: 706.2 | G102: 695.28 | H102: 75 | I102: 0
A103: 76 | B103: 3 | C103: 175073 | D103: 706.2 | E103: 695.28 | F103: 719.3 | G103: 700.12 | H103: 5 | I103: 0
A104: 76 | B104: 4 | C104: 175074 | D104: 719.3 | E104: 700.12 | F104: 719.73 | G104: 700.7 | H104: 5 | I104: 0
A105: 78 | B105: 1 | C105: 175071 | D105: 699.73 | E105: 693.78 | G105: 700.85 | H105: 124 | I105: 0
A106: 78 | B106: 2 | C106: 175072 | E106: 700.85 | G106: 704.05 | H106: 42 | I106: 0
A107: 78 | B107: 3 | C107: 175073 | E107: 704.05 | G107: 708.83 | H107: 2 | I107: 0
A108: 78 | B108: 4 | C108: 175074 | E108: 708.83 | G108: 709.37 | H108: 2 | I108: 0
A109: 81 | B109: 1 | C109: 175072 | D109: 674.33 | E109: 673.17 | F109: 677.92 | G109: 677.2 | H109: 92 | I109: 0
A110: 81 | B110: 2 | C110: 175073 | D110: 677.92 | E110: 677.2 | F110: 690.92 | G110: 682.15 | H110: 12 | I110: 0
A111: 81 | B111: 3 | C111: 175074 | D111: 690.92 | E111: 682.15 | F111: 693.1 | G111: 682.85 | H111: 12 | I111: 0
A112: 82 | B112: 1 | C112: 175072 | D112: 674.37 | E112: 674.6 | F112: 679.88 | G112: 678.53 | H112: 86 | I112: 0
A113: 82 | B113: 2 | C113: 175073 | D113: 679.88 | E113: 678.53 | F113: 689.5 | G113: 683.47 | H113: 11 | I113: 0
A114: 82 | B114: 3 | C114: 175074 | D114: 689.5 | E114: 683.47 | F114: 693.38 | G114: 684.15 | H114: 11 | I114: 0
A115: 83 | B115: 1 | C115: 175072 | D115: 688.93 | E115: 682.5 | F115: 699.4 | G115: 687.13 | H115: 128 | I115: 0
A116: 83 | B116: 2 | C116: 175073 | D116: 699.4 | E116: 687.13 | F116: 709.08 | G116: 692.18 | H116: 18 | I116: 0
A117: 83 | B117: 3 | C117: 175074 | D117: 709.08 | E117: 692.18 | F117: 710.75 | G117: 692.98 | H117: 18 | I117: 0
A118: 84 | B118: 1 | C118: 175072 | D118: 676.6 | E118: 678.2 | F118: 683.83 | G118: 682.53 | H118: 110 | I118: 0
A119: 84 | B119: 2 | C119: 175073 | D119: 683.83 | E119: 682.53 | F119: 707.02 | G119: 687.53 | H119: 15 | I119: 0
A120: 84 | B120: 3 | C120: 175074 | D120: 707.02 | E120: 687.53 | F120: 708.03 | G120: 688.28 | H120: 15 | I120: 0
A121: 85 | B121: 1 | C121: 175072 | D121: 698.27 | E121: 684.5 | F121: 701.8 | G121: 688.93 | H121: 116 | I121: 0
A122: 85 | B122: 2 | C122: 175073 | D122: 701.8 | E122: 688.93 | F122: 720.67 | G122: 693.95 | H122: 16 | I122: 0
A123: 85 | B123: 3 | C123: 175074 | D123: 720.67 | E123: 693.95 | F123: 721.93 | G123: 694.72 | H123: 16 | I123: 0
A124: 87 | B124: 1 | C124: 175072 | D124: 698.63 | E124: 688.2 | F124: 703.6 | G124: 692.13 | H124: 86 | I124: 0
A125: 87 | B125: 2 | C125: 175073 | D125: 703.6 | E125: 692.13 | F125: 720.02 | G125: 697.07 | H125: 11 | I125: 0
A126: 87 | B126: 3 | C126: 175074 | D126: 720.02 | E126: 697.07 | F126: 720.97 | G126: 697.75 | H126: 11 | I126: 0
A127: 88 | B127: 1 | C127: 175072 | D127: 708.23 | E127: 696.45 | F127: 709.83 | G127: 699.78 | H127: 50 | I127: 0
A128: 88 | B128: 2 | C128: 175073 | D128: 709.83 | E128: 699.78 | G128: 704.62 | H128: 5 | I128: 0
A129: 88 | B129: 3 | C129: 175074 | E129: 704.62 | G129: 705.2 | H129: 5 | I129: 0
A130: 89 | B130: 1 | C130: 175072 | D130: 705.13 | E130: 690.67 | F130: 709.23 | G130: 694.5 | H130: 80 | I130: 0
A131: 89 | B131: 2 | C131: 175073 | D131: 709.23 | E131: 694.5 | G131: 699.42 | H131: 10 | I131: 0
A132: 89 | B132: 3 | C132: 175074 | E132: 699.42 | G132: 700.08 | H132: 10 | I132: 0
A133: 91 | B133: 1 | C133: 175072 | D133: 709.83 | E133: 693.18 | F133: 711.22 | G133: 697.02 | H133: 80 | I133: 0
A134: 91 | B134: 2 | C134: 175073 | D134: 711.22 | E134: 697.02 | G134: 701.93 | H134: 10 | I134: 0
A135: 91 | B135: 3 | C135: 175074 | E135: 701.93 | G135: 702.6 | H135: 10 | I135: 0
A136: 92 | B136: 1 | C136: 175072 | D136: 671.77 | E136: 670.33 | F136: 675.07 | G136: 673.97 | H136: 68 | I136: 0
A137: 92 | B137: 2 | C137: 175073 | D137: 675.07 | E137: 673.97 | F137: 691.27 | G137: 678.85 | H137: 8 | I137: 0
A138: 92 | B138: 3 | C138: 175074 | D138: 691.27 | E138: 678.85 | F138: 692.9 | G138: 679.48 | H138: 8 | I138: 0
A139: 93 | B139: 1 | C139: 175072 | D139: 713.92 | E139: 697.98 | G139: 702.32 | H139: 110 | I139: 0
A140: 93 | B140: 2 | C140: 175073 | E140: 702.32 | G140: 707.32 | H140: 15 | I140: 0
A141: 93 | B141: 3 | C141: 175074 | E141: 707.32 | G141: 708.07 | H141: 15 | I141: 0
A142: 96 | B142: 1 | C142: 175072 | D142: 714.3 | E142: 699.62 | G142: 703.45 | H142: 80 | I142: 0
A143: 96 | B143: 2 | C143: 175073 | E143: 703.45 | G143: 708.37 | H143: 10 | I143: 0
A144: 96 | B144: 3 | C144: 175074 | E144: 708.37 | G144: 709.03 | H144: 10 | I144: 0
A145: 97 | B145: 1 | C145: 175072 | D145: 677.03 | E145: 679.87 | F145: 681.18 | G145: 683.2 | H145: 50 | I145: 0
A146: 97 | B146: 2 | C146: 175073 | D146: 681.18 | E146: 683.2 | F146: 690.4 | G146: 688.03 | H146: 5 | I146: 0
A147: 97 | B147: 3 | C147: 175074 | D147: 690.4 | E147: 688.03 | F147: 693.18 | G147: 688.62 | H147: 5 | I147: 0
... 1 more rows

Sheet machineData (hidden)
M1: TAA nach zusammenführung | R1: 175070 | S1: 175071 | T1: 175072 | U1: 175073 | V1: 175074 | W1: 1711
A2: 175070 | B2: 0.1955263158 | C2: 1 | D2: 0.1955263158 | E2: 0.552094522 | F2: 7.340966563 | G2: 0 | H2: 0 | I2: 0.1955263158 | J2: 147 | K2: 0 | L2: 7.612606535 | M2: =TAA(L2,INDIRECT("Arbeitsplatzdaten!G" &MATCH(A2,Arbeitsplatzdaten!A:A,0)),D2,B2) -> 7.612606535 | N2: 19 | O2: TRUE | Q2: 1711 | R2: 0 | S2: 4 | T2: 0 | U2: 15 | V2: 0 | W2: 0 | X2: 0
A3: 175071 | B3: -2.882666667 | C3: 1 | D3: -2.882666667 | E3: -0.3789237668 | F3: 5.087435335 | G3: 0 | H3: 0 | I3: -2.882666667 | J3: 178.4 | K3: 0 | L3: 5.868043934 | M3: =TAA(L3,INDIRECT("Arbeitsplatzdaten!G" &MATCH(A3,Arbeitsplatzdaten!A:A,0)),D3,B3) -> 5.868043934 | N3: 15 | O3: TRUE | Q3: 1711 | R3: 0 | S3: 0 | T3: 5 | U3: 10 | V3: 0 | W3: 0 | X3: 0
A4: 175072 | B4: -7.280138889 | C4: 1.041666667 | D4: -6.988933333 | E4: -0.1293891974 | F4: 8.056996127 | G4: 0 | H4: 0 | I4: -6.988933333 | J4: 79.24 | K4: 0 | L4: 8.056996127 | M4: =TAA(L4,INDIRECT("Arbeitsplatzdaten!G" &MATCH(A4,Arbeitsplatzdaten!A:A,0)),D4,B4) -> 8.056996127 | N4: 25 | O4: TRUE | Q4: 1711 | R4: 7 | S4: 0 | T4: 0 | U4: 18 | V4: 0 | W4: 0 | X4: 0
A5: 175073 | B5: -13.69433333 | C5: 1.433333333 | D5: -9.554186047 | E5: -0.727236894 | F5: 9.781935931 | G5: -0.005912495073 | H5: 0.08751596 | I5: -9.554186047 | J5: 5.488372093 | K5: 0 | L5: 7.442944886 | M5: =TAA(L5,INDIRECT("Arbeitsplatzdaten!G" &MATCH(A5,Arbeitsplatzdaten!A:A,0)),D5,B5) -> 7.442944886 | N5: 43 | O5: TRUE | Q5: 1711 | R5: 0 | S5: 0 | T5: 0 | U5: 0 | V5: 43 | W5: 0 | X5: 0
A6: 175074 | B6: -14.92689655 | C6: 1.482758621 | D6: -10.06697674 | E6: 0.03429247142 | F6: 1.234454786 | G6: -0.04000788333 | H6: 0.2468150883 | I6: -10.06697674 | J6: 5.488372093 | K6: 0 | L6: 7.442944886 | M6: =TAA(L6,INDIRECT("Arbeitsplatzdaten!G" &MATCH(A6,Arbeitsplatzdaten!A:A,0)),D6,B6) -> 7.442944886 | N6: 43 | O6: TRUE | Q6: 1711 | R6: 0 | S6: 0 | T6: 0 | U6: 0 | V6: 0 | W6: 0 | X6: 42
A7: 1711 | B7: 0.67 | C7: 1 | D7: 0.67 | E7: 0 | F7: 0 | G7: 0 | H7: 0 | I7: 0.67 | J7: 166 | K7: 0 | L7: 0 | M7: =TAA(L7,INDIRECT("Arbeitsplatzdaten!G" &MATCH(A7,Arbeitsplatzdaten!A:A,0)),D7,B7) -> 0 | N7: 1 | O7: TRUE | Q7: 1711 | R7: 0 | S7: 1 | T7: 0 | U7: 0 | V7: 0 | W7: 0 | X7: 0
M8: =TAA(L8,INDIRECT("Arbeitsplatzdaten!G" &MATCH(A8,Arbeitsplatzdaten!A:A,0)),D8,B8) ->  | R8: 12 | S8: 10 | T8: 20 | U8: 0 | V8: 0 | W8: 1 | X8: 0
M9: =TAA(L9,INDIRECT("Arbeitsplatzdaten!G" &MATCH(A9,Arbeitsplatzdaten!A:A,0)),D9,B9) -> 
M10: =TAA(L10,INDIRECT("Arbeitsplatzdaten!G" &MATCH(A10,Arbeitsplatzdaten!A:A,0)),D10,B10) -> 
M11: =TAA(L11,INDIRECT("Arbeitsplatzdaten!G" &MATCH(A11,Arbeitsplatzdaten!A:A,0)),D11,B11) -> 
M12: =TAA(L12,INDIRECT("Arbeitsplatzdaten!G" &MATCH(A12,Arbeitsplatzdaten!A:A,0)),D12,B12) -> 
M13: =TAA(L13,INDIRECT("Arbeitsplatzdaten!G" &MATCH(A13,Arbeitsplatzdaten!A:A,0)),D13,B13) -> 
M14: =TAA(L14,INDIRECT("Arbeitsplatzdaten!G" &MATCH(A14,Arbeitsplatzdaten!A:A,0)),D14,B14) -> 
M15: =TAA(L15,INDIRECT("Arbeitsplatzdaten!G" &MATCH(A15,Arbeitsplatzdaten!A:A,0)),D15,B15) -> 
M16: =TAA(L16,INDIRECT("Arbeitsplatzdaten!G" &MATCH(A16,Arbeitsplatzdaten!A:A,0)),D16,B16) -> 
M17: =TAA(L17,INDIRECT("Arbeitsplatzdaten!G" &MATCH(A17,Arbeitsplatzdaten!A:A,0)),D17,B17) -> 
M18: =TAA(L18,INDIRECT("Arbeitsplatzdaten!G" &MATCH(A18,Arbeitsplatzdaten!A:A,0)),D18,B18) -> 
M19: =TAA(L19,INDIRECT("Arbeitsplatzdaten!G" &MATCH(A19,Arbeitsplatzdaten!A:A,0)),D19,B19) -> 
M20: =TAA(L20,INDIRECT("Arbeitsplatzdaten!G" &MATCH(A20,Arbeitsplatzdaten!A:A,0)),D20,B20) -> 
M21: =TAA(L21,INDIRECT("Arbeitsplatzdaten!G" &MATCH(A21,Arbeitsplatzdaten!A:A,0)),D21,B21) -> 
M22: =TAA(L22,INDIRECT("Arbeitsplatzdaten!G" &MATCH(A22,Arbeitsplatzdaten!A:A,0)),D22,B22) -> 
M23: =TAA(L23,INDIRECT("Arbeitsplatzdaten!G" &MATCH(A23,Arbeitsplatzdaten!A:A,0)),D23,B23) -> 
M24: =TAA(L24,INDIRECT("Arbeitsplatzdaten!G" &MATCH(A24,Arbeitsplatzdaten!A:A,0)),D24,B24) -> 
M25: =TAA(L25,INDIRECT("Arbeitsplatzdaten!G" &MATCH(A25,Arbeitsplatzdaten!A:A,0)),D25,B25) -> 
M26: =TAA(L26,INDIRECT("Arbeitsplatzdaten!G" &MATCH(A26,Arbeitsplatzdaten!A:A,0)),D26,B26) -> 
M27: =TAA(L27,INDIRECT("Arbeitsplatzdaten!G" &MATCH(A27,Arbeitsplatzdaten!A:A,0)),D27,B27) -> 
M28: =TAA(L28,INDIRECT("Arbeitsplatzdaten!G" &MATCH(A28,Arbeitsplatzdaten!A:A,0)),D28,B28) -> 
M29: =TAA(L29,INDIRECT("Arbeitsplatzdaten!G" &MATCH(A29,Arbeitsplatzdaten!A:A,0)),D29,B29) -> 
M30: =TAA(L30,INDIRECT("Arbeitsplatzdaten!G" &MATCH(A30,Arbeitsplatzdaten!A:A,0)),D30,B30) -> 
M31: =TAA(L31,INDIRECT("Arbeitsplatzdaten!G" &MATCH(A31,Arbeitsplatzdaten!A:A,0)),D31,B31) -> 
M32: =TAA(L32,INDIRECT("Arbeitsplatzdaten!G" &MATCH(A32,Arbeitsplatzdaten!A:A,0)),D32,B32) -> 
M33: =TAA(L33,INDIRECT("Arbeitsplatzdaten!G" &MATCH(A33,Arbeitsplatzdaten!A:A,0)),D33,B33) -> 
M34: =TAA(L34,INDIRECT("Arbeitsplatzdaten!G" &MATCH(A34,Arbeitsplatzdaten!A:A,0)),D34,B34) -> 
M35: =TAA(L35,INDIRECT("Arbeitsplatzdaten!G" &MATCH(A35,Arbeitsplatzdaten!A:A,0)),D35,B35) -> 
M36: =TAA(L36,INDIRECT("Arbeitsplatzdaten!G" &MATCH(A36,Arbeitsplatzdaten!A:A,0)),D36,B36) -> 
M37: =TAA(L37,INDIRECT("Arbeitsplatzdaten!G" &MATCH(A37,Arbeitsplatzdaten!A:A,0)),D37,B37) -> 
M38: =TAA(L38,INDIRECT("Arbeitsplatzdaten!G" &MATCH(A38,Arbeitsplatzdaten!A:A,0)),D38,B38) -> 
M39: =TAA(L39,INDIRECT("Arbeitsplatzdaten!G" &MATCH(A39,Arbeitsplatzdaten!A:A,0)),D39,B39) -> 
M40: =TAA(L40,INDIRECT("Arbeitsplatzdaten!G" &MATCH(A40,Arbeitsplatzdaten!A:A,0)),D40,B40) -> 
M41: =TAA(L41,INDIRECT("Arbeitsplatzdaten!G" &MATCH(A41,Arbeitsplatzdaten!A:A,0)),D41,B41) -> 
M42: =TAA(L42,INDIRECT("Arbeitsplatzdaten!G" &MATCH(A42,Arbeitsplatzdaten!A:A,0)),D42,B42) -> 
M43: =TAA(L43,INDIRECT("Arbeitsplatzdaten!G" &MATCH(A43,Arbeitsplatzdaten!A:A,0)),D43,B43) -> 
M44: =TAA(L44,INDIRECT("Arbeitsplatzdaten!G" &MATCH(A44,Arbeitsplatzdaten!A:A,0)),D44,B44) -> 
M45: =TAA(L45,INDIRECT("Arbeitsplatzdaten!G" &MATCH(A45,Arbeitsplatzdaten!A:A,0)),D45,B45) -> 
M46: =TAA(L46,INDIRECT("Arbeitsplatzdaten!G" &MATCH(A46,Arbeitsplatzdaten!A:A,0)),D46,B46) -> 
M47: =TAA(L47,INDIRECT("Arbeitsplatzdaten!G" &MATCH(A47,Arbeitsplatzdaten!A:A,0)),D47,B47) -> 
M48: =TAA(L48,INDIRECT("Arbeitsplatzdaten!G" &MATCH(A48,Arbeitsplatzdaten!A:A,0)),D48,B48) -> 
M49: =TAA(L49,INDIRECT("Arbeitsplatzdaten!G" &MATCH(A49,Arbeitsplatzdaten!A:A,0)),D49,B49) -> 
M50: =TAA(L50,INDIRECT("Arbeitsplatzdaten!G" &MATCH(A50,Arbeitsplatzdaten!A:A,0)),D50,B50) -> 
M51: =TAA(L51,INDIRECT("Arbeitsplatzdaten!G" &MATCH(A51,Arbeitsplatzdaten!A:A,0)),D51,B51) -> 
M52: =TAA(L52,INDIRECT("Arbeitsplatzdaten!G" &MATCH(A52,Arbeitsplatzdaten!A:A,0)),D52,B52) -> 
M53: =TAA(L53,INDIRECT("Arbeitsplatzdaten!G" &MATCH(A53,Arbeitsplatzdaten!A:A,0)),D53,B53) -> 
M54: =TAA(L54,INDIRECT("Arbeitsplatzdaten!G" &MATCH(A54,Arbeitsplatzdaten!A:A,0)),D54,B54) -> 
M55: =TAA(L55,INDIRECT("Arbeitsplatzdaten!G" &MATCH(A55,Arbeitsplatzdaten!A:A,0)),D55,B55) -> 
M56: =TAA(L56,INDIRECT("Arbeitsplatzdaten!G" &MATCH(A56,Arbeitsplatzdaten!A:A,0)),D56,B56) -> 
M57: =TAA(L57,INDIRECT("Arbeitsplatzdaten!G" &MATCH(A57,Arbeitsplatzdaten!A:A,0)),D57,B57) -> 
M58: =TAA(L58,INDIRECT("Arbeitsplatzdaten!G" &MATCH(A58,Arbeitsplatzdaten!A:A,0)),D58,B58) -> 
M59: =TAA(L59,INDIRECT("Arbeitsplatzdaten!G" &MATCH(A59,Arbeitsplatzdaten!A:A,0)),D59,B59) -> 
M60: =TAA(L60,INDIRECT("Arbeitsplatzdaten!G" &MATCH(A60,Arbeitsplatzdaten!A:A,0)),D60,B60) -> 
M61: =TAA(L61,INDIRECT("Arbeitsplatzdaten!G" &MATCH(A61,Arbeitsplatzdaten!A:A,0)),D61,B61) -> 
M62: =TAA(L62,INDIRECT("Arbeitsplatzdaten!G" &MATCH(A62,Arbeitsplatzdaten!A:A,0)),D62,B62) -> 
M63: =TAA(L63,INDIRECT("Arbeitsplatzdaten!G" &MATCH(A63,Arbeitsplatzdaten!A:A,0)),D63,B63) -> 
M64: =TAA(L64,INDIRECT("Arbeitsplatzdaten!G" &MATCH(A64,Arbeitsplatzdaten!A:A,0)),D64,B64) -> 
M65: =TAA(L65,INDIRECT("Arbeitsplatzdaten!G" &MATCH(A65,Arbeitsplatzdaten!A:A,0)),D65,B65) -> 
M66: =TAA(L66,INDIRECT("Arbeitsplatzdaten!G" &MATCH(A66,Arbeitsplatzdaten!A:A,0)),D66,B66) -> 
M67: =TAA(L67,INDIRECT("Arbeitsplatzdaten!G" &MATCH(A67,Arbeitsplatzdaten!A:A,0)),D67,B67) -> 
M68: =TAA(L68,INDIRECT("Arbeitsplatzdaten!G" &MATCH(A68,Arbeitsplatzdaten!A:A,0)),D68,B68) -> 
M69: =TAA(L69,INDIRECT("Arbeitsplatzdaten!G" &MATCH(A69,Arbeitsplatzdaten!A:A,0)),D69,B69) -> 
M70: =TAA(L70,INDIRECT("Arbeitsplatzdaten!G" &MATCH(A70,Arbeitsplatzdaten!A:A,0)),D70,B70) -> 
M71: =TAA(L71,INDIRECT("Arbeitsplatzdaten!G" &MATCH(A71,Arbeitsplatzdaten!A:A,0)),D71,B71) -> 
M72: =TAA(L72,INDIRECT("Arbeitsplatzdaten!G" &MATCH(A72,Arbeitsplatzdaten!A:A,0)),D72,B72) -> 
M73: =TAA(L73,INDIRECT("Arbeitsplatzdaten!G" &MATCH(A73,Arbeitsplatzdaten!A:A,0)),D73,B73) -> 
M74: =TAA(L74,INDIRECT("Arbeitsplatzdaten!G" &MATCH(A74,Arbeitsplatzdaten!A:A,0)),D74,B74) -> 
M75: =TAA(L75,INDIRECT("Arbeitsplatzdaten!G" &MATCH(A75,Arbeitsplatzdaten!A:A,0)),D75,B75) -> 
M76: =TAA(L76,INDIRECT("Arbeitsplatzdaten!G" &MATCH(A76,Arbeitsplatzdaten!A:A,0)),D76,B76) -> 
M77: =TAA(L77,INDIRECT("Arbeitsplatzdaten!G" &MATCH(A77,Arbeitsplatzdaten!A:A,0)),D77,B77) -> 
M78: =TAA(L78,INDIRECT("Arbeitsplatzdaten!G" &MATCH(A78,Arbeitsplatzdaten!A:A,0)),D78,B78) -> 
M79: =TAA(L79,INDIRECT("Arbeitsplatzdaten!G" &MATCH(A79,Arbeitsplatzdaten!A:A,0)),D79,B79) -> 
M80: =TAA(L80,INDIRECT("Arbeitsplatzdaten!G" &MATCH(A80,Arbeitsplatzdaten!A:A,0)),D80,B80) -> 
M81: =TAA(L81,INDIRECT("Arbeitsplatzdaten!G" &MATCH(A81,Arbeitsplatzdaten!A:A,0)),D81,B81) -> 
M82: =TAA(L82,INDIRECT("Arbeitsplatzdaten!G" &MATCH(A82,Arbeitsplatzdaten!A:A,0)),D82,B82) -> 
M83: =TAA(L83,INDIRECT("Arbeitsplatzdaten!G" &MATCH(A83,Arbeitsplatzdaten!A:A,0)),D83,B83) -> 
M84: =TAA(L84,INDIRECT("Arbeitsplatzdaten!G" &MATCH(A84,Arbeitsplatzdaten!A:A,0)),D84,B84) -> 
M85: =TAA(L85,INDIRECT("Arbeitsplatzdaten!G" &MATCH(A85,Arbeitsplatzdaten!A:A,0)),D85,B85) -> 
M86: =TAA(L86,INDIRECT("Arbeitsplatzdaten!G" &MATCH(A86,Arbeitsplatzdaten!A:A,0)),D86,B86) -> 
M87: =TAA(L87,INDIRECT("Arbeitsplatzdaten!G" &MATCH(A87,Arbeitsplatzdaten!A:A,0)),D87,B87) -> 
M88: =TAA(L88,INDIRECT("Arbeitsplatzdaten!G" &MATCH(A88,Arbeitsplatzdaten!A:A,0)),D88,B88) -> 
M89: =TAA(L89,INDIRECT("Arbeitsplatzdaten!G" &MATCH(A89,Arbeitsplatzdaten!A:A,0)),D89,B89) -> 
M90: =TAA(L90,INDIRECT("Arbeitsplatzdaten!G" &MATCH(A90,Arbeitsplatzdaten!A:A,0)),D90,B90) -> 
M91: =TAA(L91,INDIRECT("Arbeitsplatzdaten!G" &MATCH(A91,Arbeitsplatzdaten!A:A,0)),D91,B91) -> 
M92: =TAA(L92,INDIRECT("Arbeitsplatzdaten!G" &MATCH(A92,Arbeitsplatzdaten!A:A,0)),D92,B92) -> 
M93: =TAA(L93,INDIRECT("Arbeitsplatzdaten!G" &MATCH(A93,Arbeitsplatzdaten!A:A,0)),D93,B93) -> 
M94: =TAA(L94,INDIRECT("Arbeitsplatzdaten!G" &MATCH(A94,Arbeitsplatzdaten!A:A,0)),D94,B94) -> 
M95: =TAA(L95,INDIRECT("Arbeitsplatzdaten!G" &MATCH(A95,Arbeitsplatzdaten!A:A,0)),D95,B95) -> 
M96: =TAA(L96,INDIRECT("Arbeitsplatzdaten!G" &MATCH(A96,Arbeitsplatzdaten!A:A,0)),D96,B96) -> 
M97: =TAA(L97,INDIRECT("Arbeitsplatzdaten!G" &MATCH(A97,Arbeitsplatzdaten!A:A,0)),D97,B97) -> 
M98: =TAA(L98,INDIRECT("Arbeitsplatzdaten!G" &MATCH(A98,Arbeitsplatzdaten!A:A,0)),D98,B98) -> 
M99: =TAA(L99,INDIRECT("Arbeitsplatzdaten!G" &MATCH(A99,Arbeitsplatzdaten!A:A,0)),D99,B99) -> 
M100: =TAA(L100,INDIRECT("Arbeitsplatzdaten!G" &MATCH(A100,Arbeitsplatzdaten!A:A,0)),D100,B100) -> 
M101: =TAA(L101,INDIRECT("Arbeitsplatzdaten!G" &MATCH(A101,Arbeitsplatzdaten!A:A,0)),D101,B101) -> 
M102: =TAA(L102,INDIRECT("Arbeitsplatzdaten!G" &MATCH(A102,Arbeitsplatzdaten!A:A,0)),D102,B102) -> 

Sheet Berechnung (hidden)
A1: 1 | B1: =IF(INDIRECT("TAA_"&F$2&"!A"&A1)<>"",INDIRECT("TAA_"&F$2&"!A"&A1),"") -> 0 | C1: =IF(INDIRECT("TAA_"&F$2&"!B"&A1)<>"",INDIRECT("TAA_"&F$2&"!B"&A1),"") -> 3.653061224 | E1: Arbeitsplatzbezeichnung | F1: Arbeitsplatznummer | G1: Normalverteilung neu Einzelmaschine | L1: Verteilungswerte | Q1: Verteilungswerte Eingang | V1: Berechnung der Verteilungsparameter | Y1: Untere Grenze | Z1: =ROUNDUP(MIN($B:$C),-1) -> -20 | AC1: Linie | AD1: Darstellung wahr/falsch | AF1: Neu | AJ1: Summe der Berechneten Maschinen bei Bezugsgrenze | AS1: Normalverteilung neu Einzelmaschine
A2: 2 | B2: 0 | C2: =IF(INDIRECT("TAA_"&F$2&"!B"&A2)<>"",INDIRECT("TAA_"&F$2&"!B"&A2),"") -> 3.653061224 | E2: Fräse 1 | F2: =INDIRECT("machineData!A" & MATCH(Berechnung!$E$2,Arbeitsplatzdaten!B:B,0)) -> 175070 | H2: Werte je Klasse | J2: relativ | K2: kum | M2: Werte je Klasse | O2: relativ | P2: kum | R2: Werte je Klasse | T2: relativ | U2: kum | V2: Mittelwert | W2: KW | X2: =AVERAGE(DATEN2) -> 0 | Y2: FALSE | Z2: =IF(Diagramm!Q7="",5,Diagramm!Q7) -> 5 | AB2: FALSE | AC2: Histogramm TAAra,IST | AD2: TRUE | AF2: Mittelwert | AG2: 0 | AJ2: 0.0 | AK2: 1 | AO2: FIFO | AT2: Werte je Klasse | AV2: relativ | AW2: kum
A3: 3 | B3: 0 | C3: 3.653061224 | G3: Klassen | H3: kum. | I3: relativ | J3: kum. | L3: Klassen | M3: kum. | N3: relativ | O3: kum. | Q3: Klassen | R3: kum. | S3: relativ | T3: kum. | V3: Standardabweich. | W3: KW | X3: =STDEVP(DATEN2) -> 0 | Y3: TRUE | Z3: =ROUNDUP(MAX($B:$C),-1) -> 10 | AC3: kumulierte Verteilung TAAra,IST | AD3: TRUE | AF3: Standardabweichung | AG3: =TAA(INDIRECT("machineData!F" & MATCH(Berechnung!$F$2,Arbeitsplatzdaten!A:A,0)),AG4,INDIRECT("machineData!D" & MATCH(Berechnung!$F$2,Arbeitsplatzdaten!A:A,0)),INDIRECT("machineData!B" & MATCH(Berechnung!$F$2,Arbeitsplatzdaten!A:A,0))) -> 7.340966563 | AJ3: 0.05 | AK3: 1 | AO3: Rüstoptimiert | AS3: Klassen | AT3: kum. | AU3: relativ | AV3: kum.
A4: 4 | B4: 0 | C4: -13.2244898 | G4: =Untere_Grenze -> -20 | I4: =Anzahl_Daten*K4 -> 0.06119067995 | J4: =_xlfn.NORM.DIST($G4,$AG$2,$AG$3,TRUE) -> 0.003220562103 | K4: =J4 -> 0.003220562103 | L4: =Untere_Grenze -> -20 | M4: =FREQUENCY(DATEN2,L4) -> 0 | N4: =M4 -> 0 | O4: =N4/Anzahl_Daten -> 0 | P4: =N4/Anzahl_Daten -> 0 | Q4: =Untere_Grenze -> -20 | R4: =FREQUENCY(DATEN3,Q4) -> 0 | S4: =R4 -> 0 | T4: =S4/Anzahl_Daten -> 0 | U4: =S4/Anzahl_Daten -> 0 | V4: Minimum | W4: KW | X4: =MIN(DATEN2) -> 0 | Y4: FALSE | AC4: Histogramm TAAra,NEU | AD4: TRUE | AF4: Reihenfolgeregel | AG4: =IF(AH4=1,"FIFO",IF(AH4=2,"Rüstoptimiert","FPA")) -> FIFO | AH4: 1 | AJ4: 0.1 | AK4: 1 | AO4: FPA | AS4: =Untere_Grenze -> -20 | AU4: =Anzahl_Daten*AW4 -> 0.08178112605 | AV4: =_xlfn.NORM.DIST($G4,0,INDIRECT("machineData!M" & MATCH(Berechnung!$F$2,machineData!A:A,0)),TRUE) -> 0.004304269792 | AW4: =AV4 -> 0.004304269792
A5: 5 | B5: 0 | C5: 4.469387755 | G5: =G4+Klassenbreite -> -15 | I5: 0.3284994495 | J5: 0.02051000681 | K5: =J5-J4 -> 0.01728944471 | L5: =L4+Klassenbreite -> -15 | M5: 0 | N5: =(M5-M4) -> 0 | O5: =O4+N5/Anzahl_Daten -> 0 | P5: 0 | Q5: =Q4+Klassenbreite -> -15 | R5: 2 | S5: =(R5-R4) -> 2 | T5: =T4+S5/Anzahl_Daten -> 0.1052631579 | U5: 0.1052631579 | V5: Max | W5: KW | X5: =MAX(DATEN2) -> 0 | Y5: FALSE | AC5: kumulierte Verteilung TAAra,NEU | AD5: TRUE | AJ5: 0.15 | AK5: 1 | AS5: =AS4+Klassenbreite -> -15 | AU5: 0.3817308964 | AV5: =_xlfn.NORM.DIST($G5,0,INDIRECT("machineData!M" & MATCH(Berechnung!$F$2,machineData!A:A,0)),TRUE) -> 0.0243953696 | AW5: =AV5-AV4 -> 0.02009109981
A6: 6 | B6: 0 | C6: 3.653061224 | G6: -10 | I6: 1.25503498 | J6: 0.08656447942 | K6: 0.06605447261 | L6: -10 | M6: 0 | N6: 0 | O6: 0 | P6: 0 | Q6: -10 | R6: 3 | S6: 1 | T6: 0.1578947368 | U6: 0.05263157895 | V6: Medianwert | W6: KW | X6: =MEDIAN(DATEN2) -> 0 | Y6: TRUE | AC6: Histogramm Zugang | AD6: FALSE | AJ6: 0.2 | AK6: 6 | AS6: -10 | AU6: 1.331772403 | AV6: =_xlfn.NORM.DIST($G6,0,INDIRECT("machineData!M" & MATCH(Berechnung!$F$2,machineData!A:A,0)),TRUE) -> 0.09448865399 | AW6: 0.07009328439
A7: 7 | B7: 0 | C7: 3.653061224 | G7: -5 | I7: 3.065397542 | J7: 0.2479011922 | K7: 0.1613367127 | L7: -5 | M7: 0 | N7: 0 | O7: 0 | P7: 0 | Q7: -5 | R7: 3 | S7: 0 | T7: 0.1578947368 | U7: 0 | V7: Variationskoffizient | W7: - | X7: =IF(X4>=0,X3/X2,"") ->  | Y7: FALSE | AC7: Kumuliert Zugang | AD7: FALSE | AS7: -5 | AU7: 3.062123932 | AV7: =_xlfn.NORM.DIST($G7,0,INDIRECT("machineData!M" & MATCH(Berechnung!$F$2,machineData!A:A,0)),TRUE) -> 0.2556530714 | AW7: 0.1611644174
A8: 8 | B8: 0 | C8: -16.06122449 | G8: 0 | I8: 4.789877349 | J8: 0.5 | K8: 0.2520988078 | L8: 0 | M8: 19 | N8: 19 | O8: 1 | P8: 1 | Q8: 0 | R8: 3 | S8: 0 | T8: 0.1578947368 | U8: 0 | V8: Anzahl | W8: - | X8: =COUNT(DATEN2) -> 19 | Y8: FALSE | AD8: FALSE | AS8: 0 | AU8: 4.642591643 | AV8: =_xlfn.NORM.DIST($G8,0,INDIRECT("machineData!M" & MATCH(Berechnung!$F$2,machineData!A:A,0)),TRUE) -> 0.5 | AW8: 0.2443469286
A9: 9 | B9: 0 | C9: 3.653061224 | G9: 5 | I9: 4.789877349 | J9: 0.7520988078 | K9: 0.2520988078 | L9: 5 | M9: 19 | N9: 0 | O9: 1 | P9: 0 | Q9: 5 | R9: 19 | S9: 16 | T9: 1 | U9: 0.8421052632 | Y9: FALSE | AD9: FALSE | AS9: 5 | AU9: 4.642591643 | AV9: =_xlfn.NORM.DIST($G9,0,INDIRECT("machineData!M" & MATCH(Berechnung!$F$2,machineData!A:A,0)),TRUE) -> 0.7443469286 | AW9: 0.2443469286
A10: 10 | B10: 0 | C10: -18.18367347 | G10: 10 | I10: 3.065397542 | J10: 0.9134355206 | K10: 0.1613367127 | L10: 10 | M10: 19 | N10: 0 | O10: 1 | P10: 0 | Q10: 10 | R10: 19 | S10: 0 | T10: 1 | U10: 0 | AD10: FALSE | AS10: 10 | AU10: 3.062123932 | AV10: =_xlfn.NORM.DIST($G10,0,INDIRECT("machineData!M" & MATCH(Berechnung!$F$2,machineData!A:A,0)),TRUE) -> 0.905511346 | AW10: 0.1611644174
A11: 11 | B11: 0 | C11: 2.346938776 | G11: 15 | I11: 1.25503498 | J11: 0.9794899932 | K11: 0.06605447261 | L11: 15 | M11: 19 | N11: 0 | O11: 1 | P11: 0 | Q11: 15 | R11: 19 | S11: 0 | T11: 1 | U11: 0 | AD11: FALSE | AS11: 15 | AU11: 1.331772403 | AV11: =_xlfn.NORM.DIST($G11,0,INDIRECT("machineData!M" & MATCH(Berechnung!$F$2,machineData!A:A,0)),TRUE) -> 0.9756046304 | AW11: 0.07009328439
A12: 12 | B12: 0 | C12: 3.653061224 | G12: 20 | I12: 0.3284994495 | J12: 0.9967794379 | K12: 0.01728944471 | L12: 20 | M12: 19 | N12: 0 | O12: 1 | P12: 0 | Q12: 20 | R12: 19 | S12: 0 | T12: 1 | U12: 0 | AD12: FALSE | AS12: 20 | AU12: 0.3817308964 | AV12: =_xlfn.NORM.DIST($G12,0,INDIRECT("machineData!M" & MATCH(Berechnung!$F$2,machineData!A:A,0)),TRUE) -> 0.9956957302 | AW12: 0.02009109981
A13: 13 | B13: 0 | C13: 3.653061224 | G13: 25 | I13: 0.05491765272 | J13: 0.9996698407 | K13: 0.002890402775 | L13: 25 | M13: 19 | N13: 0 | O13: 1 | P13: 0 | Q13: 25 | R13: 19 | S13: 0 | T13: 1 | U13: 0 | AD13: FALSE | AS13: 25 | AU13: 0.07205926537 | AV13: =_xlfn.NORM.DIST($G13,0,INDIRECT("machineData!M" & MATCH(Berechnung!$F$2,machineData!A:A,0)),TRUE) -> 0.9994883231 | AW13: 0.003792592914
A14: 14 | B14: 0 | C14: 3.653061224 | G14: 30 | I14: 0.005857272498 | J14: 0.9999781182 | K14: 0.0003082774999 | L14: 30 | M14: 19 | N14: 0 | O14: 1 | P14: 0 | Q14: 30 | R14: 19 | S14: 0 | T14: 1 | U14: 0 | AD14: FALSE | AS14: 30 | AU14: 0.008950464147 | AV14: =_xlfn.NORM.DIST($G14,0,INDIRECT("machineData!M" & MATCH(Berechnung!$F$2,machineData!A:A,0)),TRUE) -> 0.9999594002 | AW14: 0.0004710770604
A15: 15 | B15: 0 | C15: 3.653061224 | G15: 35 | I15: 0.0003980580044 | J15: 0.9999990686 | K15: 2.095042129e-05 | L15: 35 | M15: 19 | N15: 0 | O15: 1 | P15: 0 | Q15: 35 | R15: 19 | S15: 0 | T15: 1 | U15: 0 | AS15: 35 | AU15: 0.0007308020778 | AV15: =_xlfn.NORM.DIST($G15,0,INDIRECT("machineData!M" & MATCH(Berechnung!$F$2,machineData!A:A,0)),TRUE) -> 0.9999978634 | AW15: 3.846326725e-05
A16: 16 | B16: 0 | C16: 3.653061224 | G16: 40 | I16: 1.721517248e-05 | J16: 0.9999999747 | K16: 9.060617093e-07 | L16: 40 | M16: 19 | N16: 0 | O16: 1 | P16: 0 | Q16: 40 | R16: 19 | S16: 0 | T16: 1 | U16: 0 | AS16: 40 | AU16: 3.918395214e-05 | AV16: =_xlfn.NORM.DIST($G16,0,INDIRECT("machineData!M" & MATCH(Berechnung!$F$2,machineData!A:A,0)),TRUE) -> 0.9999999258 | AW16: 2.06231327e-06
A17: 17 | B17: 0 | C17: 3.653061224 | G17: 45 | I17: 4.732034832e-07 | J17: 0.9999999996 | K17: 2.490544648e-08 | L17: 45 | M17: 19 | N17: 0 | O17: 1 | P17: 0 | Q17: 45 | R17: 19 | S17: 0 | T17: 1 | U17: 0 | AS17: 45 | AU17: 1.378246747e-06 | AV17: =_xlfn.NORM.DIST($G17,0,INDIRECT("machineData!M" & MATCH(Berechnung!$F$2,machineData!A:A,0)),TRUE) -> 0.9999999983 | AW17: 7.253930245e-08
A18: 18 | B18: 0 | C18: 3.653061224 | G18: 50 | I18: 8.257387774e-09 | J18: 1 | K18: 4.345993565e-10 | L18: 50 | M18: 19 | N18: 0 | O18: 1 | P18: 0 | Q18: 50 | R18: 19 | S18: 0 | T18: 1 | U18: 0 | AS18: 50 | AU18: 3.17707588e-08 | AV18: =_xlfn.NORM.DIST($G18,0,INDIRECT("machineData!M" & MATCH(Berechnung!$F$2,machineData!A:A,0)),TRUE) -> 1 | AW18: 1.6721452e-09
A19: 19 | B19: 0 | C19: 3.653061224 | G19: 55 | I19: 9.137390844e-11 | J19: 1 | K19: 4.809153076e-12 | L19: 55 | M19: 19 | N19: 0 | O19: 1 | P19: 0 | Q19: 55 | R19: 19 | S19: 0 | T19: 1 | U19: 0 | AS19: 55 | AU19: 4.795205344e-10 | AV19: =_xlfn.NORM.DIST($G19,0,INDIRECT("machineData!M" & MATCH(Berechnung!$F$2,machineData!A:A,0)),TRUE) -> 1 | AW19: 2.523792286e-11
A20: 20 | G20: 60 | I20: 6.41264819e-13 | J20: 1 | K20: 3.375077995e-14 | L20: 60 | M20: 19 | N20: 0 | O20: 1 | P20: 0 | Q20: 60 | R20: 19 | S20: 0 | T20: 1 | U20: 0 | AS20: 60 | AU20: 4.733546888e-12 | AV20: =_xlfn.NORM.DIST($G20,0,INDIRECT("machineData!M" & MATCH(Berechnung!$F$2,machineData!A:A,0)),TRUE) -> 1 | AW20: 2.491340467e-13
A21: 21 | G21: 65 | I21: 0 | J21: 1 | K21: 0 | L21: 65 | M21: 19 | N21: 0 | O21: 1 | P21: 0 | Q21: 65 | R21: 19 | S21: 0 | T21: 1 | U21: 0 | AS21: 65 | AU21: 0 | AV21: =_xlfn.NORM.DIST($G21,0,INDIRECT("machineData!M" & MATCH(Berechnung!$F$2,machineData!A:A,0)),TRUE) -> 1 | AW21: 0
A22: 22 | G22: 70 | I22: 0 | J22: 1 | K22: 0 | L22: 70 | M22: 19 | N22: 0 | O22: 1 | P22: 0 | Q22: 70 | R22: 19 | S22: 0 | T22: 1 | U22: 0 | AS22: 70 | AU22: 0 | AV22: =_xlfn.NORM.DIST($G22,0,INDIRECT("machineData!M" & MATCH(Berechnung!$F$2,machineData!A:A,0)),TRUE) -> 1 | AW22: 0
A23: 23 | G23: 75 | I23: 0 | J23: 1 | K23: 0 | L23: 75 | M23: 19 | N23: 0 | O23: 1 | P23: 0 | Q23: 75 | R23: 19 | S23: 0 | T23: 1 | U23: 0 | AS23: 75 | AU23: 0 | AV23: =_xlfn.NORM.DIST($G23,0,INDIRECT("machineData!M" & MATCH(Berechnung!$F$2,machineData!A:A,0)),TRUE) -> 1 | AW23: 0
A24: 24 | G24: 80 | I24: 0 | J24: 1 | K24: 0 | L24: 80 | M24: 19 | N24: 0 | O24: 1 | P24: 0 | Q24: 80 | R24: 19 | S24: 0 | T24: 1 | U24: 0 | AS24: 80 | AU24: 0 | AV24: =_xlfn.NORM.DIST($G24,0,INDIRECT("machineData!M" & MATCH(Berechnung!$F$2,machineData!A:A,0)),TRUE) -> 1 | AW24: 0
A25: 25 | G25: 85 | I25: 0 | J25: 1 | K25: 0 | L25: 85 | M25: 19 | N25: 0 | O25: 1 | P25: 0 | Q25: 85 | R25: 19 | S25: 0 | T25: 1 | U25: 0 | AS25: 85 | AU25: 0 | AV25: =_xlfn.NORM.DIST($G25,0,INDIRECT("machineData!M" & MATCH(Berechnung!$F$2,machineData!A:A,0)),TRUE) -> 1 | AW25: 0
A26: 26 | G26: 90 | I26: 0 | J26: 1 | K26: 0 | L26: 90 | M26: 19 | N26: 0 | O26: 1 | P26: 0 | Q26: 90 | R26: 19 | S26: 0 | T26: 1 | U26: 0 | AS26: 90 | AU26: 0 | AV26: =_xlfn.NORM.DIST($G26,0,INDIRECT("machineData!M" & MATCH(Berechnung!$F$2,machineData!A:A,0)),TRUE) -> 1 | AW26: 0
A27: 27 | G27: 95 | I27: 0 | J27: 1 | K27: 0 | L27: 95 | M27: 19 | N27: 0 | O27: 1 | P27: 0 | Q27: 95 | R27: 19 | S27: 0 | T27: 1 | U27: 0 | AS27: 95 | AU27: 0 | AV27: =_xlfn.NORM.DIST($G27,0,INDIRECT("machineData!M" & MATCH(Berechnung!$F$2,machineData!A:A,0)),TRUE) -> 1 | AW27: 0
A28: 28 | G28: 100 | I28: 0 | J28: 1 | K28: 0 | L28: 100 | M28: 19 | N28: 0 | O28: 1 | P28: 0 | Q28: 100 | R28: 19 | S28: 0 | T28: 1 | U28: 0 | AS28: 100 | AU28: 0 | AV28: =_xlfn.NORM.DIST($G28,0,INDIRECT("machineData!M" & MATCH(Berechnung!$F$2,machineData!A:A,0)),TRUE) -> 1 | AW28: 0
A29: 29 | G29: 105 | I29: 0 | J29: 1 | K29: 0 | L29: 105 | M29: 19 | N29: 0 | O29: 1 | P29: 0 | Q29: 105 | R29: 19 | S29: 0 | T29: 1 | U29: 0 | AS29: 105 | AU29: 0 | AV29: =_xlfn.NORM.DIST($G29,0,INDIRECT("machineData!M" & MATCH(Berechnung!$F$2,machineData!A:A,0)),TRUE) -> 1 | AW29: 0
A30: 30 | G30: 110 | I30: 0 | J30: 1 | K30: 0 | L30: 110 | M30: 19 | N30: 0 | O30: 1 | P30: 0 | Q30: 110 | R30: 19 | S30: 0 | T30: 1 | U30: 0 | AS30: 110 | AU30: 0 | AV30: =_xlfn.NORM.DIST($G30,0,INDIRECT("machineData!M" & MATCH(Berechnung!$F$2,machineData!A:A,0)),TRUE) -> 1 | AW30: 0
A31: 31 | G31: 115 | I31: 0 | J31: 1 | K31: 0 | L31: 115 | M31: 19 | N31: 0 | O31: 1 | P31: 0 | Q31: 115 | R31: 19 | S31: 0 | T31: 1 | U31: 0 | AS31: 115 | AU31: 0 | AV31: =_xlfn.NORM.DIST($G31,0,INDIRECT("machineData!M" & MATCH(Berechnung!$F$2,machineData!A:A,0)),TRUE) -> 1 | AW31: 0
A32: 32 | G32: 120 | I32: 0 | J32: 1 | K32: 0 | L32: 120 | M32: 19 | N32: 0 | O32: 1 | P32: 0 | Q32: 120 | R32: 19 | S32: 0 | T32: 1 | U32: 0 | AS32: 120 | AU32: 0 | AV32: =_xlfn.NORM.DIST($G32,0,INDIRECT("machineData!M" & MATCH(Berechnung!$F$2,machineData!A:A,0)),TRUE) -> 1 | AW32: 0
A33: 33 | G33: 125 | I33: 0 | J33: 1 | K33: 0 | L33: 125 | M33: 19 | N33: 0 | O33: 1 | P33: 0 | Q33: 125 | R33: 19 | S33: 0 | T33: 1 | U33: 0 | AS33: 125 | AU33: 0 | AV33: =_xlfn.NORM.DIST($G33,0,INDIRECT("machineData!M" & MATCH(Berechnung!$F$2,machineData!A:A,0)),TRUE) -> 1 | AW33: 0
A34: 34 | G34: 130 | I34: 0 | J34: 1 | K34: 0 | L34: 130 | M34: 19 | N34: 0 | O34: 1 | P34: 0 | Q34: 130 | R34: 19 | S34: 0 | T34: 1 | U34: 0 | AS34: 130 | AU34: 0 | AV34: =_xlfn.NORM.DIST($G34,0,INDIRECT("machineData!M" & MATCH(Berechnung!$F$2,machineData!A:A,0)),TRUE) -> 1 | AW34: 0
A35: 35 | G35: 135 | I35: 0 | J35: 1 | K35: 0 | L35: 135 | M35: 19 | N35: 0 | O35: 1 | P35: 0 | Q35: 135 | R35: 19 | S35: 0 | T35: 1 | U35: 0 | AS35: 135 | AU35: 0 | AV35: =_xlfn.NORM.DIST($G35,0,INDIRECT("machineData!M" & MATCH(Berechnung!$F$2,machineData!A:A,0)),TRUE) -> 1 | AW35: 0
A36: 36 | G36: 140 | I36: 0 | J36: 1 | K36: 0 | L36: 140 | M36: 19 | N36: 0 | O36: 1 | P36: 0 | Q36: 140 | R36: 19 | S36: 0 | T36: 1 | U36: 0 | AS36: 140 | AU36: 0 | AV36: =_xlfn.NORM.DIST($G36,0,INDIRECT("machineData!M" & MATCH(Berechnung!$F$2,machineData!A:A,0)),TRUE) -> 1 | AW36: 0
A37: 37 | G37: 145 | I37: 0 | J37: 1 | K37: 0 | L37: 145 | M37: 19 | N37: 0 | O37: 1 | P37: 0 | Q37: 145 | R37: 19 | S37: 0 | T37: 1 | U37: 0 | AS37: 145 | AU37: 0 | AV37: =_xlfn.NORM.DIST($G37,0,INDIRECT("machineData!M" & MATCH(Berechnung!$F$2,machineData!A:A,0)),TRUE) -> 1 | AW37: 0
A38: 38 | G38: 150 | I38: 0 | J38: 1 | K38: 0 | L38: 150 | M38: 19 | N38: 0 | O38: 1 | P38: 0 | Q38: 150 | R38: 19 | S38: 0 | T38: 1 | U38: 0 | AS38: 150 | AU38: 0 | AV38: =_xlfn.NORM.DIST($G38,0,INDIRECT("machineData!M" & MATCH(Berechnung!$F$2,machineData!A:A,0)),TRUE) -> 1 | AW38: 0
A39: 39 | G39: 155 | I39: 0 | J39: 1 | K39: 0 | L39: 155 | M39: 19 | N39: 0 | O39: 1 | P39: 0 | Q39: 155 | R39: 19 | S39: 0 | T39: 1 | U39: 0 | AS39: 155 | AU39: 0 | AV39: =_xlfn.NORM.DIST($G39,0,INDIRECT("machineData!M" & MATCH(Berechnung!$F$2,machineData!A:A,0)),TRUE) -> 1 | AW39: 0
A40: 40 | G40: 160 | I40: 0 | J40: 1 | K40: 0 | L40: 160 | M40: 19 | N40: 0 | O40: 1 | P40: 0 | Q40: 160 | R40: 19 | S40: 0 | T40: 1 | U40: 0 | AS40: 160 | AU40: 0 | AV40: =_xlfn.NORM.DIST($G40,0,INDIRECT("machineData!M" & MATCH(Berechnung!$F$2,machineData!A:A,0)),TRUE) -> 1 | AW40: 0
A41: 41 | G41: 165 | I41: 0 | J41: 1 | K41: 0 | L41: 165 | M41: 19 | N41: 0 | O41: 1 | P41: 0 | Q41: 165 | R41: 19 | S41: 0 | T41: 1 | U41: 0 | AS41: 165 | AU41: 0 | AV41: =_xlfn.NORM.DIST($G41,0,INDIRECT("machineData!M" & MATCH(Berechnung!$F$2,machineData!A:A,0)),TRUE) -> 1 | AW41: 0
A42: 42 | G42: 170 | I42: 0 | J42: 1 | K42: 0 | L42: 170 | M42: 19 | N42: 0 | O42: 1 | P42: 0 | Q42: 170 | R42: 19 | S42: 0 | T42: 1 | U42: 0 | AS42: 170 | AU42: 0 | AV42: =_xlfn.NORM.DIST($G42,0,INDIRECT("machineData!M" & MATCH(Berechnung!$F$2,machineData!A:A,0)),TRUE) -> 1 | AW42: 0
A43: 43 | G43: 175 | I43: 0 | J43: 1 | K43: 0 | L43: 175 | M43: 19 | N43: 0 | O43: 1 | P43: 0 | Q43: 175 | R43: 19 | S43: 0 | T43: 1 | U43: 0 | AS43: 175 | AU43: 0 | AV43: =_xlfn.NORM.DIST($G43,0,INDIRECT("machineData!M" & MATCH(Berechnung!$F$2,machineData!A:A,0)),TRUE) -> 1 | AW43: 0
A44: 44 | G44: =G43+Klassenbreite -> 180 | I44: =Anzahl_Daten*K44 -> 0 | J44: 1 | K44: 0 | L44: =L43+Klassenbreite -> 180 | M44: 19 | N44: 0 | O44: =O43+N44/Anzahl_Daten -> 1 | P44: =N44/Anzahl_Daten -> 0 | Q44: 180 | R44: 19 | S44: 0 | T44: 1 | U44: 0 | AS44: 180 | AU44: 0 | AV44: =_xlfn.NORM.DIST($G44,0,INDIRECT("machineData!M" & MATCH(Berechnung!$F$2,machineData!A:A,0)),TRUE) -> 1 | AW44: 0
A45: 45 | G45: 185 | I45: 0 | J45: 1 | K45: 0 | L45: 185 | M45: 19 | N45: 0 | O45: 1 | P45: 0 | Q45: 185 | R45: 19 | S45: 0 | T45: 1 | U45: 0 | AS45: 185 | AU45: 0 | AV45: =_xlfn.NORM.DIST($G45,0,INDIRECT("machineData!M" & MATCH(Berechnung!$F$2,machineData!A:A,0)),TRUE) -> 1 | AW45: 0
A46: 46 | G46: 190 | I46: 0 | J46: 1 | K46: 0 | L46: 190 | M46: 19 | N46: 0 | O46: 1 | P46: 0 | Q46: 190 | R46: 19 | S46: 0 | T46: 1 | U46: 0 | AS46: 190 | AU46: 0 | AV46: =_xlfn.NORM.DIST($G46,0,INDIRECT("machineData!M" & MATCH(Berechnung!$F$2,machineData!A:A,0)),TRUE) -> 1 | AW46: 0
A47: 47 | G47: 195 | I47: 0 | J47: 1 | K47: 0 | L47: 195 | M47: 19 | N47: 0 | O47: 1 | P47: 0 | Q47: 195 | R47: 19 | S47: 0 | T47: 1 | U47: 0 | AS47: 195 | AU47: 0 | AV47: =_xlfn.NORM.DIST($G47,0,INDIRECT("machineData!M" & MATCH(Berechnung!$F$2,machineData!A:A,0)),TRUE) -> 1 | AW47: 0
A48: 48 | G48: 200 | I48: 0 | J48: 1 | K48: 0 | L48: 200 | M48: 19 | N48: 0 | O48: 1 | P48: 0 | Q48: 200 | R48: 19 | S48: 0 | T48: 1 | U48: 0 | AS48: 200 | AU48: 0 | AV48: =_xlfn.NORM.DIST($G48,0,INDIRECT("machineData!M" & MATCH(Berechnung!$F$2,machineData!A:A,0)),TRUE) -> 1 | AW48: 0
A49: 49 | G49: 205 | I49: 0 | J49: 1 | K49: 0 | L49: 205 | M49: 19 | N49: 0 | O49: 1 | P49: 0 | Q49: 205 | R49: 19 | S49: 0 | T49: 1 | U49: 0 | AS49: 205 | AU49: 0 | AV49: =_xlfn.NORM.DIST($G49,0,INDIRECT("machineData!M" & MATCH(Berechnung!$F$2,machineData!A:A,0)),TRUE) -> 1 | AW49: 0
A50: 50 | G50: 210 | I50: 0 | J50: 1 | K50: 0 | L50: 210 | M50: 19 | N50: 0 | O50: 1 | P50: 0 | Q50: 210 | R50: 19 | S50: 0 | T50: 1 | U50: 0 | AS50: 210 | AU50: 0 | AV50: =_xlfn.NORM.DIST($G50,0,INDIRECT("machineData!M" & MATCH(Berechnung!$F$2,machineData!A:A,0)),TRUE) -> 1 | AW50: 0
A51: 51 | G51: 215 | I51: 0 | J51: 1 | K51: 0 | L51: 215 | M51: 19 | N51: 0 | O51: 1 | P51: 0 | Q51: 215 | R51: 19 | S51: 0 | T51: 1 | U51: 0 | AS51: 215 | AU51: 0 | AV51: =_xlfn.NORM.DIST($G51,0,INDIRECT("machineData!M" & MATCH(Berechnung!$F$2,machineData!A:A,0)),TRUE) -> 1 | AW51: 0
A52: 52 | G52: 220 | I52: 0 | J52: 1 | K52: 0 | L52: 220 | M52: 19 | N52: 0 | O52: 1 | P52: 0 | Q52: 220 | R52: 19 | S52: 0 | T52: 1 | U52: 0 | AS52: 220 | AU52: 0 | AV52: =_xlfn.NORM.DIST($G52,0,INDIRECT("machineData!M" & MATCH(Berechnung!$F$2,machineData!A:A,0)),TRUE) -> 1 | AW52: 0
A53: 53 | G53: 225 | I53: 0 | J53: 1 | K53: 0 | L53: 225 | M53: 19 | N53: 0 | O53: 1 | P53: 0 | Q53: 225 | R53: 19 | S53: 0 | T53: 1 | U53: 0 | AS53: 225 | AU53: 0 | AV53: =_xlfn.NORM.DIST($G53,0,INDIRECT("machineData!M" & MATCH(Berechnung!$F$2,machineData!A:A,0)),TRUE) -> 1 | AW53: 0
A54: 54 | G54: 230 | I54: 0 | J54: 1 | K54: 0 | L54: 230 | M54: 19 | N54: 0 | O54: 1 | P54: 0 | Q54: 230 | R54: 19 | S54: 0 | T54: 1 | U54: 0 | AS54: 230 | AU54: 0 | AV54: =_xlfn.NORM.DIST($G54,0,INDIRECT("machineData!M" & MATCH(Berechnung!$F$2,machineData!A:A,0)),TRUE) -> 1 | AW54: 0
A55: 55 | G55: 235 | I55: 0 | J55: 1 | K55: 0 | L55: 235 | M55: 19 | N55: 0 | O55: 1 | P55: 0 | Q55: 235 | R55: 19 | S55: 0 | T55: 1 | U55: 0 | AS55: 235 | AU55: 0 | AV55: =_xlfn.NORM.DIST($G55,0,INDIRECT("machineData!M" & MATCH(Berechnung!$F$2,machineData!A:A,0)),TRUE) -> 1 | AW55: 0
A56: 56 | G56: 240 | I56: 0 | J56: 1 | K56: 0 | L56: 240 | M56: 19 | N56: 0 | O56: 1 | P56: 0 | Q56: 240 | R56: 19 | S56: 0 | T56: 1 | U56: 0 | AS56: 240 | AU56: 0 | AV56: =_xlfn.NORM.DIST($G56,0,INDIRECT("machineData!M" & MATCH(Berechnung!$F$2,machineData!A:A,0)),TRUE) -> 1 | AW56: 0
A57: 57 | G57: =G56+Klassenbreite -> 245 | I57: =Anzahl_Daten*K57 -> 0 | J57: 1 | K57: 0 | L57: =L56+Klassenbreite -> 245 | M57: 19 | N57: 0 | O57: =O56+N57/Anzahl_Daten -> 1 | P57: =N57/Anzahl_Daten -> 0 | Q57: 245 | R57: 19 | S57: 0 | T57: 1 | U57: 0 | AS57: 245 | AU57: 0 | AV57: =_xlfn.NORM.DIST($G57,0,INDIRECT("machineData!M" & MATCH(Berechnung!$F$2,machineData!A:A,0)),TRUE) -> 1 | AW57: 0
A58: 58 | G58: 250 | I58: 0 | J58: 1 | K58: 0 | L58: 250 | M58: 19 | N58: 0 | O58: 1 | P58: 0 | Q58: 250 | R58: 19 | S58: 0 | T58: 1 | U58: 0 | AS58: 250 | AU58: 0 | AV58: =_xlfn.NORM.DIST($G58,0,INDIRECT("machineData!M" & MATCH(Berechnung!$F$2,machineData!A:A,0)),TRUE) -> 1 | AW58: 0
A59: 59 | G59: 255 | I59: 0 | J59: 1 | K59: 0 | L59: 255 | M59: 19 | N59: 0 | O59: 1 | P59: 0 | Q59: 255 | R59: 19 | S59: 0 | T59: 1 | U59: 0 | AS59: 255 | AU59: 0 | AV59: =_xlfn.NORM.DIST($G59,0,INDIRECT("machineData!M" & MATCH(Berechnung!$F$2,machineData!A:A,0)),TRUE) -> 1 | AW59: 0
A60: 60 | G60: 260 | I60: 0 | J60: 1 | K60: 0 | L60: 260 | M60: 19 | N60: 0 | O60: 1 | P60: 0 | Q60: 260 | R60: 19 | S60: 0 | T60: 1 | U60: 0 | AS60: 260 | AU60: 0 | AV60: =_xlfn.NORM.DIST($G60,0,INDIRECT("machineData!M" & MATCH(Berechnung!$F$2,machineData!A:A,0)),TRUE) -> 1 | AW60: 0
A61: 61 | G61: 265 | I61: 0 | J61: 1 | K61: 0 | L61: 265 | M61: 19 | N61: 0 | O61: 1 | P61: 0 | Q61: 265 | R61: 19 | S61: 0 | T61: 1 | U61: 0 | AS61: 265 | AU61: 0 | AV61: =_xlfn.NORM.DIST($G61,0,INDIRECT("machineData!M" & MATCH(Berechnung!$F$2,machineData!A:A,0)),TRUE) -> 1 | AW61: 0
A62: 62 | G62: 270 | I62: 0 | J62: 1 | K62: 0 | L62: 270 | M62: 19 | N62: 0 | O62: 1 | P62: 0 | Q62: 270 | R62: 19 | S62: 0 | T62: 1 | U62: 0 | AS62: 270 | AU62: 0 | AV62: =_xlfn.NORM.DIST($G62,0,INDIRECT("machineData!M" & MATCH(Berechnung!$F$2,machineData!A:A,0)),TRUE) -> 1 | AW62: 0
A63: 63 | G63: 275 | I63: 0 | J63: 1 | K63: 0 | L63: 275 | M63: 19 | N63: 0 | O63: 1 | P63: 0 | Q63: 275 | R63: 19 | S63: 0 | T63: 1 | U63: 0 | AS63: 275 | AU63: 0 | AV63: =_xlfn.NORM.DIST($G63,0,INDIRECT("machineData!M" & MATCH(Berechnung!$F$2,machineData!A:A,0)),TRUE) -> 1 | AW63: 0
A64: 64 | G64: 280 | I64: 0 | J64: 1 | K64: 0 | L64: 280 | M64: 19 | N64: 0 | O64: 1 | P64: 0 | Q64: 280 | R64: 19 | S64: 0 | T64: 1 | U64: 0 | AS64: 280 | AU64: 0 | AV64: =_xlfn.NORM.DIST($G64,0,INDIRECT("machineData!M" & MATCH(Berechnung!$F$2,machineData!A:A,0)),TRUE) -> 1 | AW64: 0
A65: 65 | B65: =IF(INDIRECT("TAA_"&F$2&"!A"&A65)<>"",INDIRECT("TAA_"&F$2&"!A"&A65),"") ->  | G65: 285 | I65: 0 | J65: 1 | K65: 0 | L65: 285 | M65: 19 | N65: 0 | O65: 1 | P65: 0 | Q65: 285 | R65: 19 | S65: 0 | T65: 1 | U65: 0 | AS65: 285 | AU65: 0 | AV65: =_xlfn.NORM.DIST($G65,0,INDIRECT("machineData!M" & MATCH(Berechnung!$F$2,machineData!A:A,0)),TRUE) -> 1 | AW65: 0
A66: 66 | C66: =IF(INDIRECT("TAA_"&F$2&"!B"&A66)<>"",INDIRECT("TAA_"&F$2&"!B"&A66),"") ->  | G66: 290 | I66: 0 | J66: 1 | K66: 0 | L66: 290 | M66: 19 | N66: 0 | O66: 1 | P66: 0 | Q66: 290 | R66: 19 | S66: 0 | T66: 1 | U66: 0 | AS66: 290 | AU66: 0 | AV66: =_xlfn.NORM.DIST($G66,0,INDIRECT("machineData!M" & MATCH(Berechnung!$F$2,machineData!A:A,0)),TRUE) -> 1 | AW66: 0
A67: 67 | G67: 295 | I67: 0 | J67: 1 | K67: 0 | L67: 295 | M67: 19 | N67: 0 | O67: 1 | P67: 0 | Q67: 295 | R67: 19 | S67: 0 | T67: 1 | U67: 0 | AS67: 295 | AU67: 0 | AV67: =_xlfn.NORM.DIST($G67,0,INDIRECT("machineData!M" & MATCH(Berechnung!$F$2,machineData!A:A,0)),TRUE) -> 1 | AW67: 0
A68: 68 | G68: 300 | I68: 0 | J68: =_xlfn.NORM.DIST($G68,$AG$2,$AG$3,TRUE) -> 1 | K68: 0 | L68: 300 | M68: =FREQUENCY(DATEN2,L68) -> 19 | N68: 0 | O68: 1 | P68: 0 | Q68: 300 | R68: =FREQUENCY(DATEN3,Q68) -> 19 | S68: 0 | T68: 1 | U68: =S68/Anzahl_Daten -> 0 | AS68: 300 | AU68: =Anzahl_Daten*AW68 -> 0 | AV68: =_xlfn.NORM.DIST($G68,0,INDIRECT("machineData!M" & MATCH(Berechnung!$F$2,machineData!A:A,0)),TRUE) -> 1 | AW68: 0
A69: 69 | G69: 305 | I69: 0 | J69: 1 | K69: =J69-J68 -> 0 | L69: 305 | M69: 19 | N69: =(M69-M68) -> 0 | O69: 1 | P69: 0 | Q69: =Q68+Klassenbreite -> 305 | R69: 19 | S69: =(R69-R68) -> 0 | T69: =T68+S69/Anzahl_Daten -> 1 | U69: 0 | AS69: =AS68+Klassenbreite -> 305 | AU69: 0 | AV69: =_xlfn.NORM.DIST($G69,0,INDIRECT("machineData!M" & MATCH(Berechnung!$F$2,machineData!A:A,0)),TRUE) -> 1 | AW69: =AV69-AV68 -> 0
A70: 70 | G70: 310 | I70: 0 | J70: 1 | K70: 0 | L70: 310 | M70: 19 | N70: 0 | O70: 1 | P70: 0 | Q70: 310 | R70: 19 | S70: 0 | T70: 1 | U70: 0 | AS70: 310 | AU70: 0 | AV70: =_xlfn.NORM.DIST($G70,0,INDIRECT("machineData!M" & MATCH(Berechnung!$F$2,machineData!A:A,0)),TRUE) -> 1 | AW70: 0
A71: 71 | G71: 315 | I71: 0 | J71: 1 | K71: 0 | L71: 315 | M71: 19 | N71: 0 | O71: 1 | P71: 0 | Q71: 315 | R71: 19 | S71: 0 | T71: 1 | U71: 0 | AS71: 315 | AU71: 0 | AV71: =_xlfn.NORM.DIST($G71,0,INDIRECT("machineData!M" & MATCH(Berechnung!$F$2,machineData!A:A,0)),TRUE) -> 1 | AW71: 0
A72: 72 | G72: 320 | I72: 0 | J72: 1 | K72: 0 | L72: 320 | M72: 19 | N72: 0 | O72: 1 | P72: 0 | Q72: 320 | R72: 19 | S72: 0 | T72: 1 | U72: 0 | AS72: 320 | AU72: 0 | AV72: =_xlfn.NORM.DIST($G72,0,INDIRECT("machineData!M" & MATCH(Berechnung!$F$2,machineData!A:A,0)),TRUE) -> 1 | AW72: 0
A73: 73 | G73: 325 | I73: 0 | J73: 1 | K73: 0 | L73: 325 | M73: 19 | N73: 0 | O73: 1 | P73: 0 | Q73: 325 | R73: 19 | S73: 0 | T73: 1 | U73: 0 | AS73: 325 | AU73: 0 | AV73: =_xlfn.NORM.DIST($G73,0,INDIRECT("machineData!M" & MATCH(Berechnung!$F$2,machineData!A:A,0)),TRUE) -> 1 | AW73: 0
A74: 74 | G74: 330 | I74: 0 | J74: 1 | K74: 0 | L74: 330 | M74: 19 | N74: 0 | O74: 1 | P74: 0 | Q74: 330 | R74: 19 | S74: 0 | T74: 1 | U74: 0 | AS74: 330 | AU74: 0 | AV74: =_xlfn.NORM.DIST($G74,0,INDIRECT("machineData!M" & MATCH(Berechnung!$F$2,machineData!A:A,0)),TRUE) -> 1 | AW74: 0
A75: 75 | G75: 335 | I75: 0 | J75: 1 | K75: 0 | L75: 335 | M75: 19 | N75: 0 | O75: 1 | P75: 0 | Q75: 335 | R75: 19 | S75: 0 | T75: 1 | U75: 0 | AS75: 335 | AU75: 0 | AV75: =_xlfn.NORM.DIST($G75,0,INDIRECT("machineData!M" & MATCH(Berechnung!$F$2,machineData!A:A,0)),TRUE) -> 1 | AW75: 0
A76: 76 | G76: 340 | I76: 0 | J76: 1 | K76: 0 | L76: 340 | M76: 19 | N76: 0 | O76: 1 | P76: 0 | Q76: 340 | R76: 19 | S76: 0 | T76: 1 | U76: 0 | AS76: 340 | AU76: 0 | AV76: =_xlfn.NORM.DIST($G76,0,INDIRECT("machineData!M" & MATCH(Berechnung!$F$2,machineData!A:A,0)),TRUE) -> 1 | AW76: 0
A77: 77 | G77: 345 | I77: 0 | J77: 1 | K77: 0 | L77: 345 | M77: 19 | N77: 0 | O77: 1 | P77: 0 | Q77: 345 | R77: 19 | S77: 0 | T77: 1 | U77: 0 | AS77: 345 | AU77: 0 | AV77: =_xlfn.NORM.DIST($G77,0,INDIRECT("machineData!M" & MATCH(Berechnung!$F$2,machineData!A:A,0)),TRUE) -> 1 | AW77: 0
A78: 78 | G78: 350 | I78: 0 | J78: 1 | K78: 0 | L78: 350 | M78: 19 | N78: 0 | O78: 1 | P78: 0 | Q78: 350 | R78: 19 | S78: 0 | T78: 1 | U78: 0 | AS78: 350 | AU78: 0 | AV78: =_xlfn.NORM.DIST($G78,0,INDIRECT("machineData!M" & MATCH(Berechnung!$F$2,machineData!A:A,0)),TRUE) -> 1 | AW78: 0
A79: 79 | G79: 355 | I79: 0 | J79: 1 | K79: 0 | L79: 355 | M79: 19 | N79: 0 | O79: 1 | P79: 0 | Q79: 355 | R79: 19 | S79: 0 | T79: 1 | U79: 0 | AS79: 355 | AU79: 0 | AV79: =_xlfn.NORM.DIST($G79,0,INDIRECT("machineData!M" & MATCH(Berechnung!$F$2,machineData!A:A,0)),TRUE) -> 1 | AW79: 0
A80: 80 | G80: 360 | I80: 0 | J80: 1 | K80: 0 | L80: 360 | M80: 19 | N80: 0 | O80: 1 | P80: 0 | Q80: 360 | R80: 19 | S80: 0 | T80: 1 | U80: 0 | AS80: 360 | AU80: 0 | AV80: =_xlfn.NORM.DIST($G80,0,INDIRECT("machineData!M" & MATCH(Berechnung!$F$2,machineData!A:A,0)),TRUE) -> 1 | AW80: 0
A81: 81 | G81: 365 | I81: =Anzahl_Daten*K81 -> 0 | J81: 1 | K81: =J81-J80 -> 0 | L81: 365 | M81: =FREQUENCY(DATEN2,L81) -> 19 | N81: =(M81-M80) -> 0 | O81: =O80+N81/Anzahl_Daten -> 1 | P81: =N81/Anzahl_Daten -> 0 | Q81: 365 | R81: 19 | S81: 0 | T81: 1 | U81: 0 | AS81: 365 | AU81: 0 | AV81: =_xlfn.NORM.DIST($G81,0,INDIRECT("machineData!M" & MATCH(Berechnung!$F$2,machineData!A:A,0)),TRUE) -> 1 | AW81: 0
A82: 82 | G82: 370 | I82: 0 | J82: 1 | K82: 0 | L82: 370 | M82: 19 | N82: 0 | O82: 1 | P82: 0 | Q82: 370 | R82: 19 | S82: 0 | T82: 1 | U82: 0 | AS82: 370 | AU82: 0 | AV82: =_xlfn.NORM.DIST($G82,0,INDIRECT("machineData!M" & MATCH(Berechnung!$F$2,machineData!A:A,0)),TRUE) -> 1 | AW82: 0
A83: 83 | G83: 375 | I83: 0 | J83: 1 | K83: 0 | L83: 375 | M83: 19 | N83: 0 | O83: 1 | P83: 0 | Q83: 375 | R83: 19 | S83: 0 | T83: 1 | U83: 0 | AS83: 375 | AU83: 0 | AV83: =_xlfn.NORM.DIST($G83,0,INDIRECT("machineData!M" & MATCH(Berechnung!$F$2,machineData!A:A,0)),TRUE) -> 1 | AW83: 0
A84: 84 | G84: 380 | I84: 0 | J84: 1 | K84: 0 | L84: 380 | M84: 19 | N84: 0 | O84: 1 | P84: 0 | Q84: 380 | R84: 19 | S84: 0 | T84: 1 | U84: 0 | AS84: 380 | AU84: 0 | AV84: =_xlfn.NORM.DIST($G84,0,INDIRECT("machineData!M" & MATCH(Berechnung!$F$2,machineData!A:A,0)),TRUE) -> 1 | AW84: 0
A85: 85 | G85: 385 | I85: 0 | J85: 1 | K85: 0 | L85: 385 | M85: 19 | N85: 0 | O85: 1 | P85: 0 | Q85: 385 | R85: 19 | S85: 0 | T85: 1 | U85: 0 | AS85: 385 | AU85: 0 | AV85: =_xlfn.NORM.DIST($G85,0,INDIRECT("machineData!M" & MATCH(Berechnung!$F$2,machineData!A:A,0)),TRUE) -> 1 | AW85: 0
A86: 86 | G86: 390 | I86: 0 | J86: 1 | K86: 0 | L86: 390 | M86: 19 | N86: 0 | O86: 1 | P86: 0 | Q86: 390 | R86: 19 | S86: 0 | T86: 1 | U86: 0 | AS86: 390 | AU86: 0 | AV86: =_xlfn.NORM.DIST($G86,0,INDIRECT("machineData!M" & MATCH(Berechnung!$F$2,machineData!A:A,0)),TRUE) -> 1 | AW86: 0
A87: 87 | G87: 395 | I87: 0 | J87: 1 | K87: 0 | L87: 395 | M87: 19 | N87: 0 | O87: 1 | P87: 0 | Q87: 395 | R87: 19 | S87: 0 | T87: 1 | U87: 0 | AS87: 395 | AU87: 0 | AV87: =_xlfn.NORM.DIST($G87,0,INDIRECT("machineData!M" & MATCH(Berechnung!$F$2,machineData!A:A,0)),TRUE) -> 1 | AW87: 0
A88: 88 | G88: 400 | I88: 0 | J88: 1 | K88: 0 | L88: 400 | M88: 19 | N88: 0 | O88: 1 | P88: 0 | Q88: 400 | R88: 19 | S88: 0 | T88: 1 | U88: 0 | AS88: 400 | AU88: 0 | AV88: =_xlfn.NORM.DIST($G88,0,INDIRECT("machineData!M" & MATCH(Berechnung!$F$2,machineData!A:A,0)),TRUE) -> 1 | AW88: 0
A89: 89 | G89: 405 | I89: 0 | J89: 1 | K89: 0 | L89: 405 | M89: 19 | N89: 0 | O89: 1 | P89: 0 | Q89: 405 | R89: 19 | S89: 0 | T89: 1 | U89: 0 | AS89: 405 | AU89: 0 | AV89: =_xlfn.NORM.DIST($G89,0,INDIRECT("machineData!M" & MATCH(Berechnung!$F$2,machineData!A:A,0)),TRUE) -> 1 | AW89: 0
A90: 90 | G90: 410 | I90: 0 | J90: 1 | K90: 0 | L90: 410 | M90: 19 | N90: 0 | O90: 1 | P90: 0 | Q90: 410 | R90: 19 | S90: 0 | T90: 1 | U90: 0 | AS90: 410 | AU90: 0 | AV90: =_xlfn.NORM.DIST($G90,0,INDIRECT("machineData!M" & MATCH(Berechnung!$F$2,machineData!A:A,0)),TRUE) -> 1 | AW90: 0
A91: 91 | G91: 415 | I91: 0 | J91: 1 | K91: 0 | L91: 415 | M91: 19 | N91: 0 | O91: 1 | P91: 0 | Q91: 415 | R91: 19 | S91: 0 | T91: 1 | U91: 0 | AS91: 415 | AU91: 0 | AV91: =_xlfn.NORM.DIST($G91,0,INDIRECT("machineData!M" & MATCH(Berechnung!$F$2,machineData!A:A,0)),TRUE) -> 1 | AW91: 0
A92: 92 | G92: 420 | I92: 0 | J92: 1 | K92: 0 | L92: 420 | M92: 19 | N92: 0 | O92: 1 | P92: 0 | Q92: 420 | R92: 19 | S92: 0 | T92: 1 | U92: 0 | AS92: 420 | AU92: 0 | AV92: =_xlfn.NORM.DIST($G92,0,INDIRECT("machineData!M" & MATCH(Berechnung!$F$2,machineData!A:A,0)),TRUE) -> 1 | AW92: 0
A93: 93 | G93: 425 | I93: 0 | J93: 1 | K93: 0 | L93: 425 | M93: 19 | N93: 0 | O93: 1 | P93: 0 | Q93: 425 | R93: 19 | S93: 0 | T93: 1 | U93: 0 | AS93: 425 | AU93: 0 | AV93: =_xlfn.NORM.DIST($G93,0,INDIRECT("machineData!M" & MATCH(Berechnung!$F$2,machineData!A:A,0)),TRUE) -> 1 | AW93: 0
A94: 94 | G94: 430 | I94: 0 | J94: 1 | K94: 0 | L94: 430 | M94: 19 | N94: 0 | O94: 1 | P94: 0 | Q94: 430 | R94: 19 | S94: 0 | T94: 1 | U94: 0 | AS94: 430 | AU94: 0 | AV94: =_xlfn.NORM.DIST($G94,0,INDIRECT("machineData!M" & MATCH(Berechnung!$F$2,machineData!A:A,0)),TRUE) -> 1 | AW94: 0
A95: 95 | G95: 435 | I95: 0 | J95: 1 | K95: 0 | L95: 435 | M95: 19 | N95: 0 | O95: 1 | P95: 0 | Q95: 435 | R95: 19 | S95: 0 | T95: 1 | U95: 0 | AS95: 435 | AU95: 0 | AV95: =_xlfn.NORM.DIST($G95,0,INDIRECT("machineData!M" & MATCH(Berechnung!$F$2,machineData!A:A,0)),TRUE) -> 1 | AW95: 0
A96: 96 | G96: 440 | I96: 0 | J96: 1 | K96: 0 | L96: 440 | M96: 19 | N96: 0 | O96: 1 | P96: 0 | Q96: 440 | R96: 19 | S96: 0 | T96: 1 | U96: 0 | AS96: 440 | AU96: 0 | AV96: =_xlfn.NORM.DIST($G96,0,INDIRECT("machineData!M" & MATCH(Berechnung!$F$2,machineData!A:A,0)),TRUE) -> 1 | AW96: 0
A97: 97 | G97: 445 | I97: 0 | J97: 1 | K97: 0 | L97: 445 | M97: 19 | N97: 0 | O97: 1 | P97: 0 | Q97: 445 | R97: 19 | S97: 0 | T97: 1 | U97: 0 | AS97: 445 | AU97: 0 | AV97: =_xlfn.NORM.DIST($G97,0,INDIRECT("machineData!M" & MATCH(Berechnung!$F$2,machineData!A:A,0)),TRUE) -> 1 | AW97: 0
A98: 98 | G98: 450 | I98: 0 | J98: 1 | K98: 0 | L98: 450 | M98: 19 | N98: 0 | O98: 1 | P98: 0 | Q98: 450 | R98: 19 | S98: 0 | T98: 1 | U98: 0 | AS98: 450 | AU98: 0 | AV98: =_xlfn.NORM.DIST($G98,0,INDIRECT("machineData!M" & MATCH(Berechnung!$F$2,machineData!A:A,0)),TRUE) -> 1 | AW98: 0
A99: 99 | G99: 455 | I99: 0 | J99: 1 | K99: 0 | L99: 455 | M99: 19 | N99: 0 | O99: 1 | P99: 0 | Q99: 455 | R99: 19 | S99: 0 | T99: 1 | U99: 0 | AS99: 455 | AU99: 0 | AV99: =_xlfn.NORM.DIST($G99,0,INDIRECT("machineData!M" & MATCH(Berechnung!$F$2,machineData!A:A,0)),TRUE) -> 1 | AW99: 0
A100: 100 | G100: 460 | I100: 0 | J100: 1 | K100: 0 | L100: 460 | M100: 19 | N100: 0 | O100: 1 | P100: 0 | Q100: 460 | R100: 19 | S100: 0 | T100: 1 | U100: 0 | AS100: 460 | AU100: 0 | AV100: =_xlfn.NORM.DIST($G100,0,INDIRECT("machineData!M" & MATCH(Berechnung!$F$2,machineData!A:A,0)),TRUE) -> 1 | AW100: 0
A101: 101 | G101: 465 | I101: 0 | J101: 1 | K101: 0 | L101: 465 | M101: 19 | N101: 0 | O101: 1 | P101: 0 | Q101: 465 | R101: 19 | S101: 0 | T101: 1 | U101: 0 | AS101: 465 | AU101: 0 | AV101: =_xlfn.NORM.DIST($G101,0,INDIRECT("machineData!M" & MATCH(Berechnung!$F$2,machineData!A:A,0)),TRUE) -> 1 | AW101: 0
A102: 102 | G102: 470 | I102: 0 | J102: 1 | K102: 0 | L102: 470 | M102: 19 | N102: 0 | O102: 1 | P102: 0 | Q102: 470 | R102: 19 | S102: 0 | T102: 1 | U102: 0 | AS102: 470 | AU102: 0 | AV102: =_xlfn.NORM.DIST($G102,0,INDIRECT("machineData!M" & MATCH(Berechnung!$F$2,machineData!A:A,0)),TRUE) -> 1 | AW102: 0
A103: 103 | G103: 475 | I103: 0 | J103: 1 | K103: 0 | L103: 475 | M103: 19 | N103: 0 | O103: 1 | P103: 0 | Q103: 475 | R103: 19 | S103: 0 | T103: 1 | U103: 0 | AS103: 475 | AU103: 0 | AV103: =_xlfn.NORM.DIST($G103,0,INDIRECT("machineData!M" & MATCH(Berechnung!$F$2,machineData!A:A,0)),TRUE) -> 1 | AW103: 0
A104: 104 | G104: 480 | I104: 0 | J104: 1 | K104: 0 | L104: 480 | M104: 19 | N104: 0 | O104: 1 | P104: 0 | Q104: 480 | R104: 19 | S104: 0 | T104: 1 | U104: 0 | AS104: 480 | AU104: 0 | AV104: =_xlfn.NORM.DIST($G104,0,INDIRECT("machineData!M" & MATCH(Berechnung!$F$2,machineData!A:A,0)),TRUE) -> 1 | AW104: 0
A105: 105 | G105: 485 | I105: 0 | J105: 1 | K105: 0 | L105: 485 | M105: 19 | N105: 0 | O105: 1 | P105: 0 | Q105: 485 | R105: 19 | S105: 0 | T105: 1 | U105: 0 | AS105: 485 | AU105: 0 | AV105: =_xlfn.NORM.DIST($G105,0,INDIRECT("machineData!M" & MATCH(Berechnung!$F$2,machineData!A:A,0)),TRUE) -> 1 | AW105: 0
A106: 106 | G106: 490 | I106: 0 | J106: 1 | K106: 0 | L106: 490 | M106: 19 | N106: 0 | O106: 1 | P106: 0 | Q106: 490 | R106: 19 | S106: 0 | T106: 1 | U106: 0 | AS106: 490 | AU106: 0 | AV106: =_xlfn.NORM.DIST($G106,0,INDIRECT("machineData!M" & MATCH(Berechnung!$F$2,machineData!A:A,0)),TRUE) -> 1 | AW106: 0
A107: 107 | G107: 495 | I107: 0 | J107: 1 | K107: 0 | L107: 495 | M107: 19 | N107: 0 | O107: 1 | P107: 0 | Q107: 495 | R107: 19 | S107: 0 | T107: 1 | U107: 0 | AS107: 495 | AU107: 0 | AV107: =_xlfn.NORM.DIST($G107,0,INDIRECT("machineData!M" & MATCH(Berechnung!$F$2,machineData!A:A,0)),TRUE) -> 1 | AW107: 0
A108: 108 | G108: 500 | I108: 0 | J108: 1 | K108: 0 | L108: 500 | M108: 19 | N108: 0 | O108: 1 | P108: 0 | Q108: 500 | R108: 19 | S108: 0 | T108: 1 | U108: 0 | AS108: 500 | AU108: 0 | AV108: =_xlfn.NORM.DIST($G108,0,INDIRECT("machineData!M" & MATCH(Berechnung!$F$2,machineData!A:A,0)),TRUE) -> 1 | AW108: 0
A109: 109 | G109: 505 | I109: 0 | J109: 1 | K109: 0 | L109: 505 | M109: 19 | N109: 0 | O109: 1 | P109: 0 | Q109: 505 | R109: 19 | S109: 0 | T109: 1 | U109: 0 | AS109: 505 | AU109: 0 | AV109: =_xlfn.NORM.DIST($G109,0,INDIRECT("machineData!M" & MATCH(Berechnung!$F$2,machineData!A:A,0)),TRUE) -> 1 | AW109: 0
A110: 110 | G110: 510 | I110: 0 | J110: 1 | K110: 0 | L110: 510 | M110: 19 | N110: 0 | O110: 1 | P110: 0 | Q110: 510 | R110: 19 | S110: 0 | T110: 1 | U110: 0 | AS110: 510 | AU110: 0 | AV110: =_xlfn.NORM.DIST($G110,0,INDIRECT("machineData!M" & MATCH(Berechnung!$F$2,machineData!A:A,0)),TRUE) -> 1 | AW110: 0
A111: 111 | G111: 515 | I111: 0 | J111: 1 | K111: 0 | L111: 515 | M111: 19 | N111: 0 | O111: 1 | P111: 0 | Q111: 515 | R111: 19 | S111: 0 | T111: 1 | U111: 0 | AS111: 515 | AU111: 0 | AV111: =_xlfn.NORM.DIST($G111,0,INDIRECT("machineData!M" & MATCH(Berechnung!$F$2,machineData!A:A,0)),TRUE) -> 1 | AW111: 0
A112: 112 | G112: 520 | I112: 0 | J112: 1 | K112: 0 | L112: 520 | M112: 19 | N112: 0 | O112: 1 | P112: 0 | Q112: 520 | R112: 19 | S112: 0 | T112: 1 | U112: 0 | AS112: 520 | AU112: 0 | AV112: =_xlfn.NORM.DIST($G112,0,INDIRECT("machineData!M" & MATCH(Berechnung!$F$2,machineData!A:A,0)),TRUE) -> 1 | AW112: 0
A113: 113 | G113: 525 | I113: 0 | J113: 1 | K113: 0 | L113: 525 | M113: 19 | N113: 0 | O113: 1 | P113: 0 | Q113: 525 | R113: 19 | S113: 0 | T113: 1 | U113: 0 | AS113: 525 | AU113: 0 | AV113: =_xlfn.NORM.DIST($G113,0,INDIRECT("machineData!M" & MATCH(Berechnung!$F$2,machineData!A:A,0)),TRUE) -> 1 | AW113: 0
A114: 114 | G114: 530 | I114: =Anzahl_Daten*K114 -> 0 | J114: 1 | K114: =J114-J113 -> 0 | L114: 530 | M114: =FREQUENCY(DATEN2,L114) -> 19 | N114: =(M114-M113) -> 0 | O114: =O113+N114/Anzahl_Daten -> 1 | P114: =N114/Anzahl_Daten -> 0 | Q114: 530 | R114: 19 | S114: 0 | T114: 1 | U114: 0 | AS114: 530 | AU114: 0 | AV114: =_xlfn.NORM.DIST($G114,0,INDIRECT("machineData!M" & MATCH(Berechnung!$F$2,machineData!A:A,0)),TRUE) -> 1 | AW114: 0
A115: 115 | G115: 535 | I115: 0 | J115: 1 | K115: 0 | L115: 535 | M115: 19 | N115: 0 | O115: 1 | P115: 0 | Q115: 535 | R115: 19 | S115: 0 | T115: 1 | U115: 0 | AS115: 535 | AU115: 0 | AV115: =_xlfn.NORM.DIST($G115,0,INDIRECT("machineData!M" & MATCH(Berechnung!$F$2,machineData!A:A,0)),TRUE) -> 1 | AW115: 0
A116: 116 | G116: 540 | I116: 0 | J116: 1 | K116: 0 | L116: 540 | M116: 19 | N116: 0 | O116: 1 | P116: 0 | Q116: 540 | R116: 19 | S116: 0 | T116: 1 | U116: 0 | AS116: 540 | AU116: 0 | AV116: =_xlfn.NORM.DIST($G116,0,INDIRECT("machineData!M" & MATCH(Berechnung!$F$2,machineData!A:A,0)),TRUE) -> 1 | AW116: 0
A117: 117 | G117: 545 | I117: 0 | J117: 1 | K117: 0 | L117: 545 | M117: 19 | N117: 0 | O117: 1 | P117: 0 | Q117: 545 | R117: 19 | S117: 0 | T117: 1 | U117: 0 | AS117: 545 | AU117: 0 | AV117: =_xlfn.NORM.DIST($G117,0,INDIRECT("machineData!M" & MATCH(Berechnung!$F$2,machineData!A:A,0)),TRUE) -> 1 | AW117: 0
A118: 118 | G118: 550 | I118: 0 | J118: 1 | K118: 0 | L118: 550 | M118: 19 | N118: 0 | O118: 1 | P118: 0 | Q118: 550 | R118: 19 | S118: 0 | T118: 1 | U118: 0 | AS118: 550 | AU118: 0 | AV118: =_xlfn.NORM.DIST($G118,0,INDIRECT("machineData!M" & MATCH(Berechnung!$F$2,machineData!A:A,0)),TRUE) -> 1 | AW118: 0
A119: 119 | G119: 555 | I119: 0 | J119: 1 | K119: 0 | L119: 555 | M119: 19 | N119: 0 | O119: 1 | P119: 0 | Q119: 555 | R119: 19 | S119: 0 | T119: 1 | U119: 0 | AS119: 555 | AU119: 0 | AV119: =_xlfn.NORM.DIST($G119,0,INDIRECT("machineData!M" & MATCH(Berechnung!$F$2,machineData!A:A,0)),TRUE) -> 1 | AW119: 0
A120: 120 | G120: 560 | I120: 0 | J120: 1 | K120: 0 | L120: 560 | M120: 19 | N120: 0 | O120: 1 | P120: 0 | Q120: 560 | R120: 19 | S120: 0 | T120: 1 | U120: 0 | AS120: 560 | AU120: 0 | AV120: =_xlfn.NORM.DIST($G120,0,INDIRECT("machineData!M" & MATCH(Berechnung!$F$2,machineData!A:A,0)),TRUE) -> 1 | AW120: 0
A121: 121 | G121: =G120+Klassenbreite -> 565 | I121: 0 | J121: 1 | K121: 0 | L121: =L120+Klassenbreite -> 565 | M121: 19 | N121: 0 | O121: 1 | P121: 0 | Q121: 565 | R121: 19 | S121: 0 | T121: 1 | U121: 0 | AS121: 565 | AU121: 0 | AV121: =_xlfn.NORM.DIST($G121,0,INDIRECT("machineData!M" & MATCH(Berechnung!$F$2,machineData!A:A,0)),TRUE) -> 1 | AW121: 0
A122: 122 | G122: 570 | I122: 0 | J122: 1 | K122: 0 | L122: 570 | M122: 19 | N122: 0 | O122: 1 | P122: 0 | Q122: 570 | R122: 19 | S122: 0 | T122: 1 | U122: 0 | AS122: 570 | AU122: 0 | AV122: =_xlfn.NORM.DIST($G122,0,INDIRECT("machineData!M" & MATCH(Berechnung!$F$2,machineData!A:A,0)),TRUE) -> 1 | AW122: 0
A123: 123 | G123: 575 | I123: 0 | J123: 1 | K123: 0 | L123: 575 | M123: 19 | N123: 0 | O123: 1 | P123: 0 | Q123: 575 | R123: 19 | S123: 0 | T123: 1 | U123: 0 | AS123: 575 | AU123: 0 | AV123: =_xlfn.NORM.DIST($G123,0,INDIRECT("machineData!M" & MATCH(Berechnung!$F$2,machineData!A:A,0)),TRUE) -> 1 | AW123: 0
A124: 124 | G124: 580 | I124: 0 | J124: 1 | K124: 0 | L124: 580 | M124: 19 | N124: 0 | O124: 1 | P124: 0 | Q124: 580 | R124: 19 | S124: 0 | T124: 1 | U124: 0 | AS124: 580 | AU124: 0 | AV124: =_xlfn.NORM.DIST($G124,0,INDIRECT("machineData!M" & MATCH(Berechnung!$F$2,machineData!A:A,0)),TRUE) -> 1 | AW124: 0
A125: 125 | G125: 585 | I125: =Anzahl_Daten*K125 -> 0 | J125: 1 | K125: =J125-J124 -> 0 | L125: 585 | M125: =FREQUENCY(DATEN2,L125) -> 19 | N125: =(M125-M124) -> 0 | O125: =O124+N125/Anzahl_Daten -> 1 | P125: =N125/Anzahl_Daten -> 0 | Q125: 585 | R125: 19 | S125: 0 | T125: 1 | U125: 0 | AS125: 585 | AU125: 0 | AV125: =_xlfn.NORM.DIST($G125,0,INDIRECT("machineData!M" & MATCH(Berechnung!$F$2,machineData!A:A,0)),TRUE) -> 1 | AW125: 0
A126: 126 | G126: 590 | I126: 0 | J126: 1 | K126: 0 | L126: 590 | M126: 19 | N126: 0 | O126: 1 | P126: 0 | Q126: 590 | R126: 19 | S126: 0 | T126: 1 | U126: 0 | AS126: 590 | AU126: 0 | AV126: =_xlfn.NORM.DIST($G126,0,INDIRECT("machineData!M" & MATCH(Berechnung!$F$2,machineData!A:A,0)),TRUE) -> 1 | AW126: 0
A127: 127 | G127: 595 | I127: 0 | J127: 1 | K127: 0 | L127: 595 | M127: 19 | N127: 0 | O127: 1 | P127: 0 | Q127: 595 | R127: 19 | S127: 0 | T127: 1 | U127: 0 | AS127: 595 | AU127: 0 | AV127: =_xlfn.NORM.DIST($G127,0,INDIRECT("machineData!M" & MATCH(Berechnung!$F$2,machineData!A:A,0)),TRUE) -> 1 | AW127: 0
A128: 128 | G128: 600 | I128: 0 | J128: 1 | K128: 0 | L128: 600 | M128: 19 | N128: 0 | O128: 1 | P128: 0 | Q128: 600 | R128: 19 | S128: 0 | T128: 1 | U128: 0 | AS128: 600 | AU128: 0 | AV128: =_xlfn.NORM.DIST($G128,0,INDIRECT("machineData!M" & MATCH(Berechnung!$F$2,machineData!A:A,0)),TRUE) -> 1 | AW128: 0
A129: 129 | B129: =IF(INDIRECT("TAA_"&F$2&"!A"&A129)<>"",INDIRECT("TAA_"&F$2&"!A"&A129),"") ->  | G129: 605 | I129: 0 | J129: 1 | K129: 0 | L129: 605 | M129: 19 | N129: 0 | O129: 1 | P129: 0 | Q129: 605 | R129: 19 | S129: 0 | T129: 1 | U129: 0 | AS129: 605 | AU129: 0 | AV129: =_xlfn.NORM.DIST($G129,0,INDIRECT("machineData!M" & MATCH(Berechnung!$F$2,machineData!A:A,0)),TRUE) -> 1 | AW129: 0
A130: 130 | C130: =IF(INDIRECT("TAA_"&F$2&"!B"&A130)<>"",INDIRECT("TAA_"&F$2&"!B"&A130),"") ->  | G130: 610 | I130: 0 | J130: 1 | K130: 0 | L130: 610 | M130: 19 | N130: 0 | O130: 1 | P130: 0 | Q130: 610 | R130: 19 | S130: 0 | T130: 1 | U130: 0 | AS130: 610 | AU130: 0 | AV130: =_xlfn.NORM.DIST($G130,0,INDIRECT("machineData!M" & MATCH(Berechnung!$F$2,machineData!A:A,0)),TRUE) -> 1 | AW130: 0
A131: 131 | G131: 615 | I131: 0 | J131: 1 | K131: 0 | L131: 615 | M131: 19 | N131: 0 | O131: 1 | P131: 0 | Q131: 615 | R131: 19 | S131: 0 | T131: 1 | U131: 0 | AS131: 615 | AU131: 0 | AV131: =_xlfn.NORM.DIST($G131,0,INDIRECT("machineData!M" & MATCH(Berechnung!$F$2,machineData!A:A,0)),TRUE) -> 1 | AW131: 0
A132: 132 | G132: 620 | I132: 0 | J132: =_xlfn.NORM.DIST($G132,$AG$2,$AG$3,TRUE) -> 1 | K132: 0 | L132: 620 | M132: 19 | N132: 0 | O132: 1 | P132: 0 | Q132: 620 | R132: =FREQUENCY(DATEN3,Q132) -> 19 | S132: 0 | T132: 1 | U132: =S132/Anzahl_Daten -> 0 | AS132: 620 | AU132: =Anzahl_Daten*AW132 -> 0 | AV132: =_xlfn.NORM.DIST($G132,0,INDIRECT("machineData!M" & MATCH(Berechnung!$F$2,machineData!A:A,0)),TRUE) -> 1 | AW132: 0
A133: 133 | G133: 625 | I133: 0 | J133: 1 | K133: 0 | L133: 625 | M133: 19 | N133: 0 | O133: 1 | P133: 0 | Q133: =Q132+Klassenbreite -> 625 | R133: 19 | S133: =(R133-R132) -> 0 | T133: =T132+S133/Anzahl_Daten -> 1 | U133: 0 | AS133: =AS132+Klassenbreite -> 625 | AU133: 0 | AV133: =_xlfn.NORM.DIST($G133,0,INDIRECT("machineData!M" & MATCH(Berechnung!$F$2,machineData!A:A,0)),TRUE) -> 1 | AW133: =AV133-AV132 -> 0
A134: 134 | G134: 630 | I134: 0 | J134: 1 | K134: 0 | L134: 630 | M134: 19 | N134: 0 | O134: 1 | P134: 0 | Q134: 630 | R134: 19 | S134: 0 | T134: 1 | U134: 0 | AS134: 630 | AU134: 0 | AV134: =_xlfn.NORM.DIST($G134,0,INDIRECT("machineData!M" & MATCH(Berechnung!$F$2,machineData!A:A,0)),TRUE) -> 1 | AW134: 0
A135: 135 | G135: 635 | I135: 0 | J135: 1 | K135: 0 | L135: 635 | M135: 19 | N135: 0 | O135: 1 | P135: 0 | Q135: 635 | R135: 19 | S135: 0 | T135: 1 | U135: 0 | AS135: 635 | AU135: 0 | AV135: =_xlfn.NORM.DIST($G135,0,INDIRECT("machineData!M" & MATCH(Berechnung!$F$2,machineData!A:A,0)),TRUE) -> 1 | AW135: 0
A136: 136 | G136: 640 | I136: 0 | J136: 1 | K136: 0 | L136: 640 | M136: 19 | N136: 0 | O136: 1 | P136: 0 | Q136: 640 | R136: 19 | S136: 0 | T136: 1 | U136: 0 | AS136: 640 | AU136: 0 | AV136: =_xlfn.NORM.DIST($G136,0,INDIRECT("machineData!M" & MATCH(Berechnung!$F$2,machineData!A:A,0)),TRUE) -> 1 | AW136: 0
A137: 137 | G137: 645 | I137: 0 | J137: 1 | K137: 0 | L137: 645 | M137: 19 | N137: 0 | O137: 1 | P137: 0 | Q137: 645 | R137: 19 | S137: 0 | T137: 1 | U137: 0 | AS137: 645 | AU137: 0 | AV137: =_xlfn.NORM.DIST($G137,0,INDIRECT("machineData!M" & MATCH(Berechnung!$F$2,machineData!A:A,0)),TRUE) -> 1 | AW137: 0
A138: 138 | G138: 650 | I138: 0 | J138: 1 | K138: 0 | L138: 650 | M138: 19 | N138: 0 | O138: 1 | P138: 0 | Q138: 650 | R138: 19 | S138: 0 | T138: 1 | U138: 0 | AS138: 650 | AU138: 0 | AV138: =_xlfn.NORM.DIST($G138,0,INDIRECT("machineData!M" & MATCH(Berechnung!$F$2,machineData!A:A,0)),TRUE) -> 1 | AW138: 0
A139: 139 | G139: 655 | I139: 0 | J139: 1 | K139: 0 | L139: 655 | M139: 19 | N139: 0 | O139: 1 | P139: 0 | Q139: 655 | R139: 19 | S139: 0 | T139: 1 | U139: 0 | AS139: 655 | AU139: 0 | AV139: =_xlfn.NORM.DIST($G139,0,INDIRECT("machineData!M" & MATCH(Berechnung!$F$2,machineData!A:A,0)),TRUE) -> 1 | AW139: 0
A140: 140 | G140: 660 | I140: 0 | J140: 1 | K140: 0 | L140: 660 | M140: 19 | N140: 0 | O140: 1 | P140: 0 | Q140: 660 | R140: 19 | S140: 0 | T140: 1 | U140: 0 | AS140: 660 | AU140: 0 | AV140: =_xlfn.NORM.DIST($G140,0,INDIRECT("machineData!M" & MATCH(Berechnung!$F$2,machineData!A:A,0)),TRUE) -> 1 | AW140: 0
A141: 141 | G141: 665 | I141: 0 | J141: 1 | K141: 0 | L141: 665 | M141: 19 | N141: 0 | O141: 1 | P141: 0 | Q141: 665 | R141: 19 | S141: 0 | T141: 1 | U141: 0 | AS141: 665 | AU141: 0 | AV141: =_xlfn.NORM.DIST($G141,0,INDIRECT("machineData!M" & MATCH(Berechnung!$F$2,machineData!A:A,0)),TRUE) -> 1 | AW141: 0
A142: 142 | G142: 670 | I142: 0 | J142: 1 | K142: 0 | L142: 670 | M142: 19 | N142: 0 | O142: 1 | P142: 0 | Q142: 670 | R142: 19 | S142: 0 | T142: 1 | U142: 0 | AS142: 670 | AU142: 0 | AV142: =_xlfn.NORM.DIST($G142,0,INDIRECT("machineData!M" & MATCH(Berechnung!$F$2,machineData!A:A,0)),TRUE) -> 1 | AW142: 0
A143: 143 | G143: 675 | I143: 0 | J143: 1 | K143: 0 | L143: 675 | M143: 19 | N143: 0 | O143: 1 | P143: 0 | Q143: 675 | R143: 19 | S143: 0 | T143: 1 | U143: 0 | AS143: 675 | AU143: 0 | AV143: =_xlfn.NORM.DIST($G143,0,INDIRECT("machineData!M" & MATCH(Berechnung!$F$2,machineData!A:A,0)),TRUE) -> 1 | AW143: 0
A144: 144 | G144: 680 | I144: 0 | J144: 1 | K144: 0 | L144: 680 | M144: 19 | N144: 0 | O144: 1 | P144: 0 | Q144: 680 | R144: 19 | S144: 0 | T144: 1 | U144: 0 | AS144: 680 | AU144: 0 | AV144: =_xlfn.NORM.DIST($G144,0,INDIRECT("machineData!M" & MATCH(Berechnung!$F$2,machineData!A:A,0)),TRUE) -> 1 | AW144: 0
A145: 145 | G145: 685 | I145: 0 | J145: 1 | K145: 0 | L145: 685 | M145: 19 | N145: 0 | O145: 1 | P145: 0 | Q145: 685 | R145: 19 | S145: 0 | T145: 1 | U145: 0 | AS145: 685 | AU145: 0 | AV145: =_xlfn.NORM.DIST($G145,0,INDIRECT("machineData!M" & MATCH(Berechnung!$F$2,machineData!A:A,0)),TRUE) -> 1 | AW145: 0
A146: 146 | G146: 690 | I146: 0 | J146: 1 | K146: 0 | L146: 690 | M146: 19 | N146: 0 | O146: 1 | P146: 0 | Q146: 690 | R146: 19 | S146: 0 | T146: 1 | U146: 0 | AS146: 690 | AU146: 0 | AV146: =_xlfn.NORM.DIST($G146,0,INDIRECT("machineData!M" & MATCH(Berechnung!$F$2,machineData!A:A,0)),TRUE) -> 1 | AW146: 0
A147: 147 | G147: 695 | I147: 0 | J147: 1 | K147: 0 | L147: 695 | M147: 19 | N147: 0 | O147: 1 | P147: 0 | Q147: 695 | R147: 19 | S147: 0 | T147: 1 | U147: 0 | AS147: 695 | AU147: 0 | AV147: =_xlfn.NORM.DIST($G147,0,INDIRECT("machineData!M" & MATCH(Berechnung!$F$2,machineData!A:A,0)),TRUE) -> 1 | AW147: 0
A148: 148 | G148: 700 | I148: 0 | J148: 1 | K148: 0 | L148: 700 | M148: 19 | N148: 0 | O148: 1 | P148: 0 | Q148: 700 | R148: 19 | S148: 0 | T148: 1 | U148: 0 | AS148: 700 | AU148: 0 | AV148: =_xlfn.NORM.DIST($G148,0,INDIRECT("machineData!M" & MATCH(Berechnung!$F$2,machineData!A:A,0)),TRUE) -> 1 | AW148: 0
A149: 149 | G149: 705 | I149: 0 | J149: 1 | K149: 0 | L149: 705 | M149: 19 | N149: 0 | O149: 1 | P149: 0 | Q149: 705 | R149: 19 | S149: 0 | T149: 1 | U149: 0 | AS149: 705 | AU149: 0 | AV149: =_xlfn.NORM.DIST($G149,0,INDIRECT("machineData!M" & MATCH(Berechnung!$F$2,machineData!A:A,0)),TRUE) -> 1 | AW149: 0
A150: 150 | G150: 710 | I150: 0 | J150: 1 | K150: 0 | L150: 710 | M150: 19 | N150: 0 | O150: 1 | P150: 0 | Q150: 710 | R150: 19 | S150: 0 | T150: 1 | U150: 0 | AS150: 710 | AU150: 0 | AV150: =_xlfn.NORM.DIST($G150,0,INDIRECT("machineData!M" & MATCH(Berechnung!$F$2,machineData!A:A,0)),TRUE) -> 1 | AW150: 0
A151: 151 | G151: 715 | I151: 0 | J151: 1 | K151: 0 | L151: 715 | M151: 19 | N151: 0 | O151: 1 | P151: 0 | Q151: 715 | R151: 19 | S151: 0 | T151: 1 | U151: 0 | AS151: 715 | AU151: 0 | AV151: =_xlfn.NORM.DIST($G151,0,INDIRECT("machineData!M" & MATCH(Berechnung!$F$2,machineData!A:A,0)),TRUE) -> 1 | AW151: 0
A152: 152 | G152: 720 | I152: 0 | J152: 1 | K152: 0 | L152: 720 | M152: 19 | N152: 0 | O152: 1 | P152: 0 | Q152: 720 | R152: 19 | S152: 0 | T152: 1 | U152: 0 | AS152: 720 | AU152: 0 | AV152: =_xlfn.NORM.DIST($G152,0,INDIRECT("machineData!M" & MATCH(Berechnung!$F$2,machineData!A:A,0)),TRUE) -> 1 | AW152: 0
A153: 153 | G153: 725 | I153: 0 | J153: 1 | K153: 0 | L153: 725 | M153: 19 | N153: 0 | O153: 1 | P153: 0 | Q153: 725 | R153: 19 | S153: 0 | T153: 1 | U153: 0 | AS153: 725 | AU153: 0 | AV153: =_xlfn.NORM.DIST($G153,0,INDIRECT("machineData!M" & MATCH(Berechnung!$F$2,machineData!A:A,0)),TRUE) -> 1 | AW153: 0
A154: 154 | G154: 730 | I154: 0 | J154: 1 | K154: 0 | L154: 730 | M154: 19 | N154: 0 | O154: 1 | P154: 0 | Q154: 730 | R154: 19 | S154: 0 | T154: 1 | U154: 0 | AS154: 730 | AU154: 0 | AV154: =_xlfn.NORM.DIST($G154,0,INDIRECT("machineData!M" & MATCH(Berechnung!$F$2,machineData!A:A,0)),TRUE) -> 1 | AW154: 0
A155: 155 | G155: 735 | I155: 0 | J155: 1 | K155: 0 | L155: 735 | M155: 19 | N155: 0 | O155: 1 | P155: 0 | Q155: 735 | R155: 19 | S155: 0 | T155: 1 | U155: 0 | AS155: 735 | AU155: 0 | AV155: =_xlfn.NORM.DIST($G155,0,INDIRECT("machineData!M" & MATCH(Berechnung!$F$2,machineData!A:A,0)),TRUE) -> 1 | AW155: 0
A156: 156 | G156: 740 | I156: 0 | J156: 1 | K156: 0 | L156: 740 | M156: 19 | N156: 0 | O156: 1 | P156: 0 | Q156: 740 | R156: 19 | S156: 0 | T156: 1 | U156: 0 | AS156: 740 | AU156: 0 | AV156: =_xlfn.NORM.DIST($G156,0,INDIRECT("machineData!M" & MATCH(Berechnung!$F$2,machineData!A:A,0)),TRUE) -> 1 | AW156: 0
A157: 157 | G157: 745 | I157: 0 | J157: 1 | K157: 0 | L157: 745 | M157: 19 | N157: 0 | O157: 1 | P157: 0 | Q157: 745 | R157: 19 | S157: 0 | T157: 1 | U157: 0 | AS157: 745 | AU157: 0 | AV157: =_xlfn.NORM.DIST($G157,0,INDIRECT("machineData!M" & MATCH(Berechnung!$F$2,machineData!A:A,0)),TRUE) -> 1 | AW157: 0
A158: 158 | G158: 750 | I158: 0 | J158: 1 | K158: 0 | L158: 750 | M158: 19 | N158: 0 | O158: 1 | P158: 0 | Q158: 750 | R158: 19 | S158: 0 | T158: 1 | U158: 0 | AS158: 750 | AU158: 0 | AV158: =_xlfn.NORM.DIST($G158,0,INDIRECT("machineData!M" & MATCH(Berechnung!$F$2,machineData!A:A,0)),TRUE) -> 1 | AW158: 0
A159: 159 | G159: 755 | I159: 0 | J159: 1 | K159: 0 | L159: 755 | M159: 19 | N159: 0 | O159: 1 | P159: 0 | Q159: 755 | R159: 19 | S159: 0 | T159: 1 | U159: 0 | AS159: 755 | AU159: 0 | AV159: =_xlfn.NORM.DIST($G159,0,INDIRECT("machineData!M" & MATCH(Berechnung!$F$2,machineData!A:A,0)),TRUE) -> 1 | AW159: 0
A160: 160 | G160: 760 | I160: 0 | J160: 1 | K160: 0 | L160: 760 | M160: 19 | N160: 0 | O160: 1 | P160: 0 | Q160: 760 | R160: 19 | S160: 0 | T160: 1 | U160: 0 | AS160: 760 | AU160: 0 | AV160: =_xlfn.NORM.DIST($G160,0,INDIRECT("machineData!M" & MATCH(Berechnung!$F$2,machineData!A:A,0)),TRUE) -> 1 | AW160: 0
A161: 161 | G161: 765 | I161: 0 | J161: 1 | K161: 0 | L161: 765 | M161: 19 | N161: 0 | O161: 1 | P161: 0 | Q161: 765 | R161: 19 | S161: 0 | T161: 1 | U161: 0 | AS161: 765 | AU161: 0 | AV161: =_xlfn.NORM.DIST($G161,0,INDIRECT("machineData!M" & MATCH(Berechnung!$F$2,machineData!A:A,0)),TRUE) -> 1 | AW161: 0
A162: 162 | G162: 770 | I162: 0 | J162: 1 | K162: 0 | L162: 770 | M162: 19 | N162: 0 | O162: 1 | P162: 0 | Q162: 770 | R162: 19 | S162: 0 | T162: 1 | U162: 0 | AS162: 770 | AU162: 0 | AV162: =_xlfn.NORM.DIST($G162,0,INDIRECT("machineData!M" & MATCH(Berechnung!$F$2,machineData!A:A,0)),TRUE) -> 1 | AW162: 0
A163: 163 | G163: 775 | I163: 0 | J163: 1 | K163: 0 | L163: 775 | M163: 19 | N163: 0 | O163: 1 | P163: 0 | Q163: 775 | R163: 19 | S163: 0 | T163: 1 | U163: 0 | AS163: 775 | AU163: 0 | AV163: =_xlfn.NORM.DIST($G163,0,INDIRECT("machineData!M" & MATCH(Berechnung!$F$2,machineData!A:A,0)),TRUE) -> 1 | AW163: 0
A164: 164 | G164: 780 | I164: 0 | J164: 1 | K164: 0 | L164: 780 | M164: 19 | N164: 0 | O164: 1 | P164: 0 | Q164: 780 | R164: 19 | S164: 0 | T164: 1 | U164: 0 | AS164: 780 | AU164: 0 | AV164: =_xlfn.NORM.DIST($G164,0,INDIRECT("machineData!M" & MATCH(Berechnung!$F$2,machineData!A:A,0)),TRUE) -> 1 | AW164: 0
A165: 165 | G165: 785 | I165: =Anzahl_Daten*K165 -> 0 | J165: 1 | K165: =J165-J164 -> 0 | L165: 785 | M165: =FREQUENCY(DATEN2,L165) -> 19 | N165: =(M165-M164) -> 0 | O165: =O164+N165/Anzahl_Daten -> 1 | P165: =N165/Anzahl_Daten -> 0 | Q165: 785 | R165: 19 | S165: 0 | T165: 1 | U165: 0 | AS165: 785 | AU165: 0 | AV165: =_xlfn.NORM.DIST($G165,0,INDIRECT("machineData!M" & MATCH(Berechnung!$F$2,machineData!A:A,0)),TRUE) -> 1 | AW165: 0
A166: 166 | G166: 790 | I166: 0 | J166: 1 | K166: 0 | L166: 790 | M166: 19 | N166: 0 | O166: 1 | P166: 0 | Q166: 790 | R166: 19 | S166: 0 | T166: 1 | U166: 0 | AS166: 790 | AU166: 0 | AV166: =_xlfn.NORM.DIST($G166,0,INDIRECT("machineData!M" & MATCH(Berechnung!$F$2,machineData!A:A,0)),TRUE) -> 1 | AW166: 0
A167: 167 | G167: 795 | I167: 0 | J167: 1 | K167: 0 | L167: 795 | M167: 19 | N167: 0 | O167: 1 | P167: 0 | Q167: 795 | R167: 19 | S167: 0 | T167: 1 | U167: 0 | AS167: 795 | AU167: 0 | AV167: =_xlfn.NORM.DIST($G167,0,INDIRECT("machineData!M" & MATCH(Berechnung!$F$2,machineData!A:A,0)),TRUE) -> 1 | AW167: 0
A168: 168 | G168: 800 | I168: 0 | J168: 1 | K168: 0 | L168: 800 | M168: 19 | N168: 0 | O168: 1 | P168: 0 | Q168: 800 | R168: 19 | S168: 0 | T168: 1 | U168: 0 | AS168: 800 | AU168: 0 | AV168: =_xlfn.NORM.DIST($G168,0,INDIRECT("machineData!M" & MATCH(Berechnung!$F$2,machineData!A:A,0)),TRUE) -> 1 | AW168: 0
A169: 169 | G169: 805 | I169: 0 | J169: 1 | K169: 0 | L169: 805 | M169: 19 | N169: 0 | O169: 1 | P169: 0 | Q169: 805 | R169: 19 | S169: 0 | T169: 1 | U169: 0 | AS169: 805 | AU169: 0 | AV169: =_xlfn.NORM.DIST($G169,0,INDIRECT("machineData!M" & MATCH(Berechnung!$F$2,machineData!A:A,0)),TRUE) -> 1 | AW169: 0
A170: 170 | G170: 810 | I170: 0 | J170: 1 | K170: 0 | L170: 810 | M170: 19 | N170: 0 | O170: 1 | P170: 0 | Q170: 810 | R170: 19 | S170: 0 | T170: 1 | U170: 0 | AS170: 810 | AU170: 0 | AV170: =_xlfn.NORM.DIST($G170,0,INDIRECT("machineData!M" & MATCH(Berechnung!$F$2,machineData!A:A,0)),TRUE) -> 1 | AW170: 0
A171: 171 | G171: 815 | I171: 0 | J171: 1 | K171: 0 | L171: 815 | M171: 19 | N171: 0 | O171: 1 | P171: 0 | Q171: 815 | R171: 19 | S171: 0 | T171: 1 | U171: 0 | AS171: 815 | AU171: 0 | AV171: =_xlfn.NORM.DIST($G171,0,INDIRECT("machineData!M" & MATCH(Berechnung!$F$2,machineData!A:A,0)),TRUE) -> 1 | AW171: 0
A172: 172 | G172: 820 | I172: 0 | J172: 1 | K172: 0 | L172: 820 | M172: 19 | N172: 0 | O172: 1 | P172: 0 | Q172: 820 | R172: 19 | S172: 0 | T172: 1 | U172: 0 | AS172: 820 | AU172: 0 | AV172: =_xlfn.NORM.DIST($G172,0,INDIRECT("machineData!M" & MATCH(Berechnung!$F$2,machineData!A:A,0)),TRUE) -> 1 | AW172: 0
A173: 173 | G173: 825 | I173: 0 | J173: 1 | K173: 0 | L173: 825 | M173: 19 | N173: 0 | O173: 1 | P173: 0 | Q173: 825 | R173: 19 | S173: 0 | T173: 1 | U173: 0 | AS173: 825 | AU173: 0 | AV173: =_xlfn.NORM.DIST($G173,0,INDIRECT("machineData!M" & MATCH(Berechnung!$F$2,machineData!A:A,0)),TRUE) -> 1 | AW173: 0
A174: 174 | G174: 830 | I174: 0 | J174: 1 | K174: 0 | L174: 830 | M174: 19 | N174: 0 | O174: 1 | P174: 0 | Q174: 830 | R174: 19 | S174: 0 | T174: 1 | U174: 0 | AS174: 830 | AU174: 0 | AV174: =_xlfn.NORM.DIST($G174,0,INDIRECT("machineData!M" & MATCH(Berechnung!$F$2,machineData!A:A,0)),TRUE) -> 1 | AW174: 0
A175: 175 | G175: 835 | I175: 0 | J175: 1 | K175: 0 | L175: 835 | M175: 19 | N175: 0 | O175: 1 | P175: 0 | Q175: 835 | R175: 19 | S175: 0 | T175: 1 | U175: 0 | AS175: 835 | AU175: 0 | AV175: =_xlfn.NORM.DIST($G175,0,INDIRECT("machineData!M" & MATCH(Berechnung!$F$2,machineData!A:A,0)),TRUE) -> 1 | AW175: 0
A176: 176 | G176: 840 | I176: 0 | J176: 1 | K176: 0 | L176: 840 | M176: 19 | N176: 0 | O176: 1 | P176: 0 | Q176: 840 | R176: 19 | S176: 0 | T176: 1 | U176: 0 | AS176: 840 | AU176: 0 | AV176: =_xlfn.NORM.DIST($G176,0,INDIRECT("machineData!M" & MATCH(Berechnung!$F$2,machineData!A:A,0)),TRUE) -> 1 | AW176: 0
A177: 177 | G177: 845 | I177: 0 | J177: 1 | K177: 0 | L177: 845 | M177: 19 | N177: 0 | O177: 1 | P177: 0 | Q177: 845 | R177: 19 | S177: 0 | T177: 1 | U177: 0 | AS177: 845 | AU177: 0 | AV177: =_xlfn.NORM.DIST($G177,0,INDIRECT("machineData!M" & MATCH(Berechnung!$F$2,machineData!A:A,0)),TRUE) -> 1 | AW177: 0
A178: 178 | G178: 850 | I178: 0 | J178: 1 | K178: 0 | L178: 850 | M178: 19 | N178: 0 | O178: 1 | P178: 0 | Q178: 850 | R178: 19 | S178: 0 | T178: 1 | U178: 0 | AS178: 850 | AU178: 0 | AV178: =_xlfn.NORM.DIST($G178,0,INDIRECT("machineData!M" & MATCH(Berechnung!$F$2,machineData!A:A,0)),TRUE) -> 1 | AW178: 0
A179: 179 | G179: 855 | I179: 0 | J179: 1 | K179: 0 | L179: 855 | M179: 19 | N179: 0 | O179: 1 | P179: 0 | Q179: 855 | R179: 19 | S179: 0 | T179: 1 | U179: 0 | AS179: 855 | AU179: 0 | AV179: =_xlfn.NORM.DIST($G179,0,INDIRECT("machineData!M" & MATCH(Berechnung!$F$2,machineData!A:A,0)),TRUE) -> 1 | AW179: 0
A180: 180 | G180: 860 | I180: 0 | J180: 1 | K180: 0 | L180: 860 | M180: 19 | N180: 0 | O180: 1 | P180: 0 | Q180: 860 | R180: 19 | S180: 0 | T180: 1 | U180: 0 | AS180: 860 | AU180: 0 | AV180: =_xlfn.NORM.DIST($G180,0,INDIRECT("machineData!M" & MATCH(Berechnung!$F$2,machineData!A:A,0)),TRUE) -> 1 | AW180: 0
A181: 181 | G181: 865 | I181: 0 | J181: 1 | K181: 0 | L181: 865 | M181: 19 | N181: 0 | O181: 1 | P181: 0 | Q181: 865 | R181: 19 | S181: 0 | T181: 1 | U181: 0 | AS181: 865 | AU181: 0 | AV181: =_xlfn.NORM.DIST($G181,0,INDIRECT("machineData!M" & MATCH(Berechnung!$F$2,machineData!A:A,0)),TRUE) -> 1 | AW181: 0
A182: 182 | G182: 870 | I182: 0 | J182: 1 | K182: 0 | L182: 870 | M182: 19 | N182: 0 | O182: 1 | P182: 0 | Q182: 870 | R182: 19 | S182: 0 | T182: 1 | U182: 0 | AS182: 870 | AU182: 0 | AV182: =_xlfn.NORM.DIST($G182,0,INDIRECT("machineData!M" & MATCH(Berechnung!$F$2,machineData!A:A,0)),TRUE) -> 1 | AW182: 0
A183: 183 | G183: 875 | I183: 0 | J183: 1 | K183: 0 | L183: 875 | M183: 19 | N183: 0 | O183: 1 | P183: 0 | Q183: 875 | R183: 19 | S183: 0 | T183: 1 | U183: 0 | AS183: 875 | AU183: 0 | AV183: =_xlfn.NORM.DIST($G183,0,INDIRECT("machineData!M" & MATCH(Berechnung!$F$2,machineData!A:A,0)),TRUE) -> 1 | AW183: 0
A184: 184 | G184: 880 | I184: 0 | J184: 1 | K184: 0 | L184: 880 | M184: 19 | N184: 0 | O184: 1 | P184: 0 | Q184: 880 | R184: 19 | S184: 0 | T184: 1 | U184: 0 | AS184: 880 | AU184: 0 | AV184: =_xlfn.NORM.DIST($G184,0,INDIRECT("machineData!M" & MATCH(Berechnung!$F$2,machineData!A:A,0)),TRUE) -> 1 | AW184: 0
A185: 185 | G185: =G184+Klassenbreite -> 885 | I185: 0 | J185: 1 | K185: 0 | L185: =L184+Klassenbreite -> 885 | M185: 19 | N185: 0 | O185: 1 | P185: 0 | Q185: 885 | R185: 19 | S185: 0 | T185: 1 | U185: 0 | AS185: 885 | AU185: 0 | AV185: =_xlfn.NORM.DIST($G185,0,INDIRECT("machineData!M" & MATCH(Berechnung!$F$2,machineData!A:A,0)),TRUE) -> 1 | AW185: 0
A186: 186 | G186: 890 | I186: 0 | J186: 1 | K186: 0 | L186: 890 | M186: 19 | N186: 0 | O186: 1 | P186: 0 | Q186: 890 | R186: 19 | S186: 0 | T186: 1 | U186: 0 | AS186: 890 | AU186: 0 | AV186: =_xlfn.NORM.DIST($G186,0,INDIRECT("machineData!M" & MATCH(Berechnung!$F$2,machineData!A:A,0)),TRUE) -> 1 | AW186: 0
A187: 187 | G187: 895 | I187: 0 | J187: 1 | K187: 0 | L187: 895 | M187: 19 | N187: 0 | O187: 1 | P187: 0 | Q187: 895 | R187: 19 | S187: 0 | T187: 1 | U187: 0 | AS187: 895 | AU187: 0 | AV187: =_xlfn.NORM.DIST($G187,0,INDIRECT("machineData!M" & MATCH(Berechnung!$F$2,machineData!A:A,0)),TRUE) -> 1 | AW187: 0
A188: 188 | G188: 900 | I188: 0 | J188: 1 | K188: 0 | L188: 900 | M188: 19 | N188: 0 | O188: 1 | P188: 0 | Q188: 900 | R188: 19 | S188: 0 | T188: 1 | U188: 0 | AS188: 900 | AU188: 0 | AV188: =_xlfn.NORM.DIST($G188,0,INDIRECT("machineData!M" & MATCH(Berechnung!$F$2,machineData!A:A,0)),TRUE) -> 1 | AW188: 0
A189: 189 | G189: 905 | I189: 0 | J189: 1 | K189: 0 | L189: 905 | M189: 19 | N189: 0 | O189: 1 | P189: 0 | Q189: 905 | R189: 19 | S189: 0 | T189: 1 | U189: 0 | AS189: 905 | AU189: 0 | AV189: =_xlfn.NORM.DIST($G189,0,INDIRECT("machineData!M" & MATCH(Berechnung!$F$2,machineData!A:A,0)),TRUE) -> 1 | AW189: 0
A190: 190 | G190: 910 | I190: 0 | J190: 1 | K190: 0 | L190: 910 | M190: 19 | N190: 0 | O190: 1 | P190: 0 | Q190: 910 | R190: 19 | S190: 0 | T190: 1 | U190: 0 | AS190: 910 | AU190: 0 | AV190: =_xlfn.NORM.DIST($G190,0,INDIRECT("machineData!M" & MATCH(Berechnung!$F$2,machineData!A:A,0)),TRUE) -> 1 | AW190: 0
A191: 191 | G191: 915 | I191: 0 | J191: 1 | K191: 0 | L191: 915 | M191: 19 | N191: 0 | O191: 1 | P191: 0 | Q191: 915 | R191: 19 | S191: 0 | T191: 1 | U191: 0 | AS191: 915 | AU191: 0 | AV191: =_xlfn.NORM.DIST($G191,0,INDIRECT("machineData!M" & MATCH(Berechnung!$F$2,machineData!A:A,0)),TRUE) -> 1 | AW191: 0
A192: 192 | G192: 920 | I192: 0 | J192: 1 | K192: 0 | L192: 920 | M192: 19 | N192: 0 | O192: 1 | P192: 0 | Q192: 920 | R192: 19 | S192: 0 | T192: 1 | U192: 0 | AS192: 920 | AU192: 0 | AV192: =_xlfn.NORM.DIST($G192,0,INDIRECT("machineData!M" & MATCH(Berechnung!$F$2,machineData!A:A,0)),TRUE) -> 1 | AW192: 0
A193: 193 | B193: =IF(INDIRECT("TAA_"&F$2&"!A"&A193)<>"",INDIRECT("TAA_"&F$2&"!A"&A193),"") ->  | G193: 925 | I193: 0 | J193: 1 | K193: 0 | L193: 925 | M193: 19 | N193: 0 | O193: 1 | P193: 0 | Q193: 925 | R193: 19 | S193: 0 | T193: 1 | U193: 0 | AS193: 925 | AU193: 0 | AV193: =_xlfn.NORM.DIST($G193,0,INDIRECT("machineData!M" & MATCH(Berechnung!$F$2,machineData!A:A,0)),TRUE) -> 1 | AW193: 0
A194: 194 | C194: =IF(INDIRECT("TAA_"&F$2&"!B"&A194)<>"",INDIRECT("TAA_"&F$2&"!B"&A194),"") ->  | G194: 930 | I194: 0 | J194: 1 | K194: 0 | L194: 930 | M194: 19 | N194: 0 | O194: 1 | P194: 0 | Q194: 930 | R194: 19 | S194: 0 | T194: 1 | U194: 0 | AS194: 930 | AU194: 0 | AV194: =_xlfn.NORM.DIST($G194,0,INDIRECT("machineData!M" & MATCH(Berechnung!$F$2,machineData!A:A,0)),TRUE) -> 1 | AW194: 0
A195: 195 | G195: 935 | I195: 0 | J195: 1 | K195: 0 | L195: 935 | M195: 19 | N195: 0 | O195: 1 | P195: 0 | Q195: 935 | R195: 19 | S195: 0 | T195: 1 | U195: 0 | AS195: 935 | AU195: 0 | AV195: =_xlfn.NORM.DIST($G195,0,INDIRECT("machineData!M" & MATCH(Berechnung!$F$2,machineData!A:A,0)),TRUE) -> 1 | AW195: 0
A196: 196 | G196: 940 | I196: 0 | J196: =_xlfn.NORM.DIST($G196,$AG$2,$AG$3,TRUE) -> 1 | K196: 0 | L196: 940 | M196: 19 | N196: 0 | O196: 1 | P196: 0 | Q196: 940 | R196: =FREQUENCY(DATEN3,Q196) -> 19 | S196: 0 | T196: 1 | U196: =S196/Anzahl_Daten -> 0 | AS196: 940 | AU196: =Anzahl_Daten*AW196 -> 0 | AV196: =_xlfn.NORM.DIST($G196,0,INDIRECT("machineData!M" & MATCH(Berechnung!$F$2,machineData!A:A,0)),TRUE) -> 1 | AW196: 0
A197: 197 | G197: 945 | I197: 0 | J197: 1 | K197: 0 | L197: 945 | M197: 19 | N197: 0 | O197: 1 | P197: 0 | Q197: =Q196+Klassenbreite -> 945 | R197: 19 | S197: =(R197-R196) -> 0 | T197: =T196+S197/Anzahl_Daten -> 1 | U197: 0 | AS197: =AS196+Klassenbreite -> 945 | AU197: 0 | AV197: =_xlfn.NORM.DIST($G197,0,INDIRECT("machineData!M" & MATCH(Berechnung!$F$2,machineData!A:A,0)),TRUE) -> 1 | AW197: =AV197-AV196 -> 0
A198: 198 | G198: 950 | I198: 0 | J198: 1 | K198: 0 | L198: 950 | M198: 19 | N198: 0 | O198: 1 | P198: 0 | Q198: 950 | R198: 19 | S198: 0 | T198: 1 | U198: 0 | AS198: 950 | AU198: 0 | AV198: =_xlfn.NORM.DIST($G198,0,INDIRECT("machineData!M" & MATCH(Berechnung!$F$2,machineData!A:A,0)),TRUE) -> 1 | AW198: 0
A199: 199 | G199: 955 | I199: 0 | J199: 1 | K199: 0 | L199: 955 | M199: 19 | N199: 0 | O199: 1 | P199: 0 | Q199: 955 | R199: 19 | S199: 0 | T199: 1 | U199: 0 | AS199: 955 | AU199: 0 | AV199: =_xlfn.NORM.DIST($G199,0,INDIRECT("machineData!M" & MATCH(Berechnung!$F$2,machineData!A:A,0)),TRUE) -> 1 | AW199: 0
A200: 200 | G200: 960 | I200: 0 | J200: 1 | K200: 0 | L200: 960 | M200: 19 | N200: 0 | O200: 1 | P200: 0 | Q200: 960 | R200: 19 | S200: 0 | T200: 1 | U200: 0 | AS200: 960 | AU200: 0 | AV200: =_xlfn.NORM.DIST($G200,0,INDIRECT("machineData!M" & MATCH(Berechnung!$F$2,machineData!A:A,0)),TRUE) -> 1 | AW200: 0
... 2172 more rows

Sheet Berechnung Verkettet (hidden)
A1: Verteilungswerte Zugang nach Zusammenführung | F1: Verteilungswerte Abgang nach Zusammenführung | K1: Verteilungswerte Abgang Gesamtsystem | P1: Verteilungswerte Abgang Geasmtsystem nach Strategie | U1: Verteilungswerte Zugang IST | Z1: Verteilungswerte nur FIFO | AE1: Verteilungswerte nur FPA | AJ1: Verteilungswerte nur Rüst | AQ1: Abgang Ist | AR1: Abgang Strat | AS1: Zugang Ist | AT1: FIFO | AU1: FPA | AV1: Rüst
B2: Werte je Klasse | D2: relativ | E2: kum | G2: Werte je Klasse | I2: relativ | J2: kum | L2: Werte je Klasse | N2: relativ | O2: kum | Q2: Werte je Klasse | S2: relativ | T2: kum | V2: Werte je Klasse | X2: relativ | Y2: kum | AA2: Werte je Klasse | AC2: relativ | AD2: kum | AF2: Werte je Klasse | AH2: relativ | AI2: kum | AK2: Werte je Klasse | AM2: relativ | AN2: kum | AQ2: 0.2468150883 | AR2: 7.442944886 | AS2: 7.243718454 | AT2: 7.442944886 | AU2: 0 | AV2: 16.23353423
A3: Klassen | B3: kum. | C3: relativ | D3: kum. | F3: Klassen | G3: kum. | H3: relativ | I3: kum. | K3: Klassen | L3: kum. | M3: relativ | N3: kum. | P3: Klassen | Q3: kum. | R3: relativ | S3: kum. | U3: Klassen | V3: kum. | W3: relativ | X3: kum. | Z3: Klassen | AA3: kum. | AB3: relativ | AC3: kum. | AE3: Klassen | AF3: kum. | AG3: relativ | AH3: kum. | AJ3: Klassen | AK3: kum. | AL3: relativ | AM3: kum.
A4: -95 | C4: =Anzahl_Daten*E4 -> 9.199260577e-35 | D4: =_xlfn.NORM.DIST($F4,Berechnung!$AG$2,INDIRECT("machineData!L" & MATCH(Berechnung!$F$2,Arbeitsplatzdaten!A:A,0)),TRUE) -> 4.841716093e-36 | E4: =D4 -> 4.841716093e-36 | F4: -95 | H4: =Anzahl_Daten*J4 -> 9.199260577e-35 | I4: =_xlfn.NORM.DIST($F4,Berechnung!$AG$2,INDIRECT("machineData!M" & MATCH(Berechnung!$F$2,Arbeitsplatzdaten!A:A,0)),TRUE) -> 4.841716093e-36 | J4: =I4 -> 4.841716093e-36 | K4: -95 | M4: =100*O4 -> 0 | N4: =_xlfn.NORM.DIST($F4,0,$AQ$2,TRUE) -> 0 | O4: =N4 -> 0 | P4: -95 | R4: =100*T4 -> 1.3063061e-35 | S4: =_xlfn.NORM.DIST($F4,0,$AR$2,TRUE) -> 1.3063061e-37 | T4: =S4 -> 1.3063061e-37 | U4: -95 | W4: =100*Y4 -> 1.354279349e-37 | X4: =_xlfn.NORM.DIST($F4,0,$AS$2,TRUE) -> 1.354279349e-39 | Y4: =X4 -> 1.354279349e-39 | Z4: -95 | AB4: =100*AD4 -> 1.3063061e-35 | AC4: =_xlfn.NORM.DIST($F4,0,$AT$2,TRUE) -> 1.3063061e-37 | AD4: =AC4 -> 1.3063061e-37 | AE4: -95 | AG4: =100*AI4 ->  | AH4: =_xlfn.NORM.DIST($F4,0,$AU$2,TRUE) ->  | AI4: =AH4 ->  | AJ4: -95 | AL4: =100*AN4 -> 2.427261937e-07 | AM4: =_xlfn.NORM.DIST($F4,0,$AV$2,TRUE) -> 2.427261937e-09 | AN4: =AM4 -> 2.427261937e-09
A5: =A4+Klassenbreite -> -90 | C5: 2.836552311e-31 | D5: =_xlfn.NORM.DIST($F5,Berechnung!$AG$2,INDIRECT("machineData!L" & MATCH(Berechnung!$F$2,Arbeitsplatzdaten!A:A,0)),TRUE) -> 1.493406441e-32 | E5: =D5-D4 -> 1.492922269e-32 | F5: =F4+Klassenbreite -> -90 | H5: 2.836552311e-31 | I5: =_xlfn.NORM.DIST($F5,Berechnung!$AG$2,INDIRECT("machineData!M" & MATCH(Berechnung!$F$2,Arbeitsplatzdaten!A:A,0)),TRUE) -> 1.493406441e-32 | J5: =I5-I4 -> 1.492922269e-32 | K5: =K4+Klassenbreite -> -90 | M5: =100*O5 -> 0 | N5: 0 | O5: =N5-N4 -> 0 | P5: =P4+Klassenbreite -> -90 | R5: =100*T5 -> 5.8204328e-32 | S5: 5.821739106e-34 | T5: =S5-S4 -> 5.8204328e-34 | U5: =U4+Klassenbreite -> -90 | W5: =100*Y5 -> 9.61295872e-34 | X5: 9.614312999e-36 | Y5: =X5-X4 -> 9.61295872e-36 | Z5: =Z4+Klassenbreite -> -90 | AB5: =100*AD5 -> 5.8204328e-32 | AC5: =_xlfn.NORM.DIST($F5,0,$AT$2,TRUE) -> 5.821739106e-34 | AD5: =AC5-AC4 -> 5.8204328e-34 | AE5: =AE4+Klassenbreite -> -90 | AG5: =100*AI5 ->  | AH5: =_xlfn.NORM.DIST($F5,0,$AU$2,TRUE) ->  | AI5: =AH5-AH4 ->  | AJ5: =AJ4+Klassenbreite -> -90 | AL5: =100*AN5 -> 1.234798863e-06 | AM5: =_xlfn.NORM.DIST($F5,0,$AV$2,TRUE) -> 1.477525057e-08 | AN5: =AM5-AM4 -> 1.234798863e-08
A6: -85 | C6: 5.699416255e-28 | D6: =_xlfn.NORM.DIST($F6,Berechnung!$AG$2,INDIRECT("machineData!L" & MATCH(Berechnung!$F$2,Arbeitsplatzdaten!A:A,0)),TRUE) -> 3.001186172e-29 | E6: 2.999692766e-29 | F6: -85 | H6: 5.699416255e-28 | I6: =_xlfn.NORM.DIST($F6,Berechnung!$AG$2,INDIRECT("machineData!M" & MATCH(Berechnung!$F$2,Arbeitsplatzdaten!A:A,0)),TRUE) -> 3.001186172e-29 | J6: 2.999692766e-29 | K6: -85 | M6: 0 | N6: 0 | O6: 0 | P6: -85 | R6: 1.656562105e-28 | S6: 1.657144279e-30 | T6: 1.656562105e-30 | U6: -85 | W6: 4.250141778e-30 | X6: 4.25110321e-32 | Y6: 4.250141778e-32 | Z6: -85 | AB6: 1.656562105e-28 | AC6: 1.657144279e-30 | AD6: 1.656562105e-30 | AE6: -85 | AJ6: -85 | AL6: 6.723848501e-06 | AM6: 8.201373558e-08 | AN6: 6.723848501e-08
A7: -80 | C7: 7.463030599e-25 | D7: =_xlfn.NORM.DIST($F7,Berechnung!$AG$2,INDIRECT("machineData!L" & MATCH(Berechnung!$F$2,Arbeitsplatzdaten!A:A,0)),TRUE) -> 3.930912028e-26 | E7: 3.927910841e-26 | F7: -80 | H7: 7.463030599e-25 | I7: =_xlfn.NORM.DIST($F7,Berechnung!$AG$2,INDIRECT("machineData!M" & MATCH(Berechnung!$F$2,Arbeitsplatzdaten!A:A,0)),TRUE) -> 3.930912028e-26 | J7: 3.927910841e-26 | K7: -80 | M7: 0 | N7: 0 | O7: 0 | P7: -80 | R7: 3.012164221e-25 | S7: 3.013821365e-27 | T7: 3.012164221e-27 | U7: -80 | W7: 1.170715049e-26 | X7: 1.171140159e-28 | Y7: 1.170715049e-28 | Z7: -80 | AB7: 3.012164221e-25 | AC7: 3.013821365e-27 | AD7: 3.012164221e-27 | AE7: -80 | AJ7: -80 | AL7: 3.332146829e-05 | AM7: 4.152284185e-07 | AN7: 3.332146829e-07
A8: -75 | C8: 6.370892515e-22 | D8: =_xlfn.NORM.DIST($F8,Berechnung!$AG$2,INDIRECT("machineData!L" & MATCH(Berechnung!$F$2,Arbeitsplatzdaten!A:A,0)),TRUE) -> 3.357032236e-23 | E8: 3.353101324e-23 | F8: -75 | H8: 6.370892515e-22 | I8: =_xlfn.NORM.DIST($F8,Berechnung!$AG$2,INDIRECT("machineData!M" & MATCH(Berechnung!$F$2,Arbeitsplatzdaten!A:A,0)),TRUE) -> 3.357032236e-23 | J8: 3.353101324e-23 | K8: -75 | M8: 0 | N8: 0 | O8: 0 | P8: -75 | R8: 3.500479945e-22 | S8: 3.503493766e-24 | T8: 3.500479945e-24 | U8: -75 | W8: 2.009855485e-23 | X8: 2.011026625e-25 | Y8: 2.009855485e-25 | Z8: -75 | AB8: 3.500479945e-22 | AC8: 3.503493766e-24 | AD8: 3.500479945e-24 | AE8: -75 | AJ8: -75 | AL8: 0.0001502861292 | AM8: 1.918089711e-06 | AN8: 1.502861292e-06
A9: -70 | C9: 3.547015425e-19 | D9: =_xlfn.NORM.DIST($F9,Berechnung!$AG$2,INDIRECT("machineData!L" & MATCH(Berechnung!$F$2,Arbeitsplatzdaten!A:A,0)),TRUE) -> 1.870207256e-20 | E9: 1.866850224e-20 | F9: -70 | H9: 3.547015425e-19 | I9: =_xlfn.NORM.DIST($F9,Berechnung!$AG$2,INDIRECT("machineData!M" & MATCH(Berechnung!$F$2,Arbeitsplatzdaten!A:A,0)),TRUE) -> 1.870207256e-20 | J9: 1.866850224e-20 | K9: -70 | M9: 0 | N9: 0 | O9: 0 | P9: -70 | R9: 2.600988669e-19 | S9: 2.604492162e-21 | T9: 2.600988669e-21 | U9: -70 | W9: 2.151468854e-20 | X9: 2.153479881e-22 | Y9: 2.151468854e-22 | Z9: -70 | AB9: 2.600988669e-19 | AC9: 2.604492162e-21 | AD9: 2.600988669e-21 | AE9: -70 | AJ9: -70 | AL9: 0.0006168877118 | AM9: 8.086966828e-06 | AN9: 6.168877118e-06
A10: -65 | C10: 1.288566597e-16 | D10: =_xlfn.NORM.DIST($F10,Berechnung!$AG$2,INDIRECT("machineData!L" & MATCH(Berechnung!$F$2,Arbeitsplatzdaten!A:A,0)),TRUE) -> 6.800631528e-18 | E10: 6.781929456e-18 | F10: -65 | H10: 1.288566597e-16 | I10: =_xlfn.NORM.DIST($F10,Berechnung!$AG$2,INDIRECT("machineData!M" & MATCH(Berechnung!$F$2,Arbeitsplatzdaten!A:A,0)),TRUE) -> 6.800631528e-18 | J10: 6.781929456e-18 | K10: -65 | M10: 0 | N10: 0 | O10: 0 | P10: -65 | R10: 1.236298156e-16 | S10: 1.238902648e-18 | T10: 1.236298156e-18 | U10: -65 | W10: 1.436757569e-17 | X10: 1.438911049e-19 | Y10: 1.436757569e-19 | Z10: -65 | AB10: 1.236298156e-16 | AC10: 1.238902648e-18 | AD10: 1.236298156e-18 | AE10: -65 | AJ10: -65 | AL10: 0.002304567951 | AM10: 3.113264634e-05 | AN10: 2.304567951e-05
A11: -60 | C11: 3.0560736e-14 | D11: =_xlfn.NORM.DIST($F11,Berechnung!$AG$2,INDIRECT("machineData!L" & MATCH(Berechnung!$F$2,Arbeitsplatzdaten!A:A,0)),TRUE) -> 1.615260421e-15 | E11: 1.608459789e-15 | F11: -60 | H11: 3.0560736e-14 | I11: =_xlfn.NORM.DIST($F11,Berechnung!$AG$2,INDIRECT("machineData!M" & MATCH(Berechnung!$F$2,Arbeitsplatzdaten!A:A,0)),TRUE) -> 1.615260421e-15 | J11: 1.608459789e-15 | K11: -60 | M11: 0 | N11: 0 | O11: 0 | P11: -60 | R11: 3.761195352e-14 | S11: 3.773584378e-16 | T11: 3.761195352e-16 | U11: -60 | W11: 5.989181913e-15 | X11: 6.003571023e-17 | Y11: 5.989181913e-17 | Z11: -60 | AB11: 3.761195352e-14 | AC11: 3.773584378e-16 | AD11: 3.761195352e-16 | AE11: -60 | AJ11: -60 | AL11: 0.007835606945 | AM11: 0.0001094887158 | AN11: 7.835606945e-05
A12: -55 | C12: 4.734760005e-12 | D12: =_xlfn.NORM.DIST($F12,Berechnung!$AG$2,INDIRECT("machineData!L" & MATCH(Berechnung!$F$2,Arbeitsplatzdaten!A:A,0)),TRUE) -> 2.508131554e-13 | E12: 2.49197895e-13 | F12: -55 | H12: 4.734760005e-12 | I12: =_xlfn.NORM.DIST($F12,Berechnung!$AG$2,INDIRECT("machineData!M" & MATCH(Berechnung!$F$2,Arbeitsplatzdaten!A:A,0)),TRUE) -> 2.508131554e-13 | J12: 2.49197895e-13 | K12: -55 | M12: 0 | N12: 0 | O12: 0 | P12: -55 | R12: 7.328691759e-12 | S12: 7.366427603e-14 | T12: 7.328691759e-14 | U12: -55 | W12: 1.559500256e-12 | X12: 1.565503827e-14 | Y12: 1.559500256e-14 | Z12: -55 | AB12: 7.328691759e-12 | AC12: 7.366427603e-14 | AD12: 7.328691759e-14 | AE12: -55 | AJ12: -55 | AL12: 0.02424704664 | AM12: 0.0003519591821 | AN12: 0.0002424704664
A13: -50 | C13: 4.795211983e-10 | D13: =_xlfn.NORM.DIST($F13,Berechnung!$AG$2,INDIRECT("machineData!L" & MATCH(Berechnung!$F$2,Arbeitsplatzdaten!A:A,0)),TRUE) -> 2.548877096e-11 | E13: 2.523795781e-11 | F13: -50 | H13: 4.795211983e-10 | I13: =_xlfn.NORM.DIST($F13,Berechnung!$AG$2,INDIRECT("machineData!M" & MATCH(Berechnung!$F$2,Arbeitsplatzdaten!A:A,0)),TRUE) -> 2.548877096e-11 | J13: 2.523795781e-11 | K13: -50 | M13: 0 | N13: 0 | O13: 0 | P13: -50 | R13: 9.152598699e-10 | S13: 9.226262975e-12 | T13: 9.152598699e-12 | U13: -50 | W13: 2.538526542e-10 | X13: 2.55418158e-12 | Y13: 2.538526542e-12 | Z13: -50 | AB13: 9.152598699e-10 | AC13: 9.226262975e-12 | AD13: 9.152598699e-12 | AE13: -50 | AJ13: -50 | AL13: 0.06828908355 | AM13: 0.001034850018 | AN13: 0.0006828908355
A14: -45 | C14: 3.177075822e-08 | D14: =_xlfn.NORM.DIST($F14,Berechnung!$AG$2,INDIRECT("machineData!L" & MATCH(Berechnung!$F$2,Arbeitsplatzdaten!A:A,0)),TRUE) -> 1.697633941e-09 | E14: 1.67214517e-09 | F14: -45 | H14: 3.177075822e-08 | I14: =_xlfn.NORM.DIST($F14,Berechnung!$AG$2,INDIRECT("machineData!M" & MATCH(Berechnung!$F$2,Arbeitsplatzdaten!A:A,0)),TRUE) -> 1.697633941e-09 | J14: 1.67214517e-09 | K14: -45 | M14: 0 | N14: 0 | O14: 0 | P14: -45 | R14: 7.33231924e-08 | S14: 7.424581869e-10 | T14: 7.33231924e-10 | U14: -45 | W14: 2.585538151e-08 | X14: 2.611079967e-10 | Y14: 2.585538151e-10 | Z14: -45 | AB14: 7.33231924e-08 | AC14: 7.424581869e-10 | AD14: 7.33231924e-10 | AE14: -45 | AJ14: -45 | AL14: 0.1750462804 | AM14: 0.002785312822 | AN14: 0.001750462804
A15: -40 | C15: 1.378246746e-06 | D15: =_xlfn.NORM.DIST($F15,Berechnung!$AG$2,INDIRECT("machineData!L" & MATCH(Berechnung!$F$2,Arbeitsplatzdaten!A:A,0)),TRUE) -> 7.423693636e-08 | E15: 7.253930242e-08 | F15: -40 | H15: 1.378246746e-06 | I15: =_xlfn.NORM.DIST($F15,Berechnung!$AG$2,INDIRECT("machineData!M" & MATCH(Berechnung!$F$2,Arbeitsplatzdaten!A:A,0)),TRUE) -> 7.423693636e-08 | J15: 7.253930242e-08 | K15: -40 | M15: 0 | N15: 0 | O15: 0 | P15: -40 | R15: 3.771565996e-06 | S15: 3.845811814e-08 | T15: 3.771565996e-08 | U15: -40 | W15: 1.649455782e-06 | X15: 1.675566582e-08 | Y15: 1.649455782e-08 | Z15: -40 | AB15: 3.771565996e-06 | AC15: 3.845811814e-08 | AD15: 3.771565996e-08 | AE15: -40 | AJ15: -40 | AL15: 0.4083817832 | AM15: 0.006869130654 | AN15: 0.004083817832
A16: -35 | C16: 3.918395214e-05 | D16: =_xlfn.NORM.DIST($F16,Berechnung!$AG$2,INDIRECT("machineData!L" & MATCH(Berechnung!$F$2,Arbeitsplatzdaten!A:A,0)),TRUE) -> 2.136550207e-06 | E16: 2.06231327e-06 | F16: -35 | H16: 3.918395214e-05 | I16: =_xlfn.NORM.DIST($F16,Berechnung!$AG$2,INDIRECT("machineData!M" & MATCH(Berechnung!$F$2,Arbeitsplatzdaten!A:A,0)),TRUE) -> 2.136550207e-06 | J16: 2.06231327e-06 | K16: -35 | M16: 0 | N16: 0 | O16: 0 | P16: -35 | R16: 0.0001246897238 | S16: 1.285355356e-06 | T16: 1.246897238e-06 | U16: -35 | W16: 6.598583406e-05 | X16: 6.766140064e-07 | Y16: 6.598583406e-07 | Z16: -35 | AB16: 0.0001246897238 | AC16: 1.285355356e-06 | AD16: 1.246897238e-06 | AE16: -35 | AJ16: -35 | AL16: 0.8671498953 | AM16: 0.01554062961 | AN16: 0.008671498953
A17: -30 | C17: 0.0007308020778 | D17: =_xlfn.NORM.DIST($F17,Berechnung!$AG$2,INDIRECT("machineData!L" & MATCH(Berechnung!$F$2,Arbeitsplatzdaten!A:A,0)),TRUE) -> 4.059981746e-05 | E17: 3.846326725e-05 | F17: -30 | H17: 0.0007308020778 | I17: =_xlfn.NORM.DIST($F17,Berechnung!$AG$2,INDIRECT("machineData!M" & MATCH(Berechnung!$F$2,Arbeitsplatzdaten!A:A,0)),TRUE) -> 4.059981746e-05 | J17: 3.846326725e-05 | K17: -30 | M17: 0 | N17: 0 | O17: 0 | P17: -30 | R17: 0.002652455628 | S17: 2.780991163e-05 | T17: 2.652455628e-05 | U17: -30 | W17: 0.001657402547 | X17: 1.725063947e-05 | Y17: 1.657402547e-05 | Z17: -30 | AB17: 0.002652455628 | AC17: 2.780991163e-05 | AD17: 2.652455628e-05 | AE17: -30 | AJ17: -30 | AL17: 1.675863149 | AM17: 0.0322992611 | AN17: 0.01675863149
A18: -25 | C18: 0.008950464147 | D18: =_xlfn.NORM.DIST($F18,Berechnung!$AG$2,INDIRECT("machineData!L" & MATCH(Berechnung!$F$2,Arbeitsplatzdaten!A:A,0)),TRUE) -> 0.0005116768778 | E18: 0.0004710770604 | F18: -25 | H18: 0.008950464147 | I18: =_xlfn.NORM.DIST($F18,Berechnung!$AG$2,INDIRECT("machineData!M" & MATCH(Berechnung!$F$2,Arbeitsplatzdaten!A:A,0)),TRUE) -> 0.0005116768778 | J18: 0.0004710770604 | K18: -25 | M18: 0 | N18: 0 | O18: 0 | P18: -25 | R18: 0.03634774484 | S18: 0.00039128736 | T18: 0.0003634774484 | U18: -25 | W18: 0.02617309277 | X18: 0.0002789815671 | Y18: 0.0002617309277 | Z18: -25 | AB18: 0.03634774484 | AC18: 0.00039128736 | AD18: 0.0003634774484 | AE18: -25 | AJ18: -25 | AL18: 2.947823323 | AM18: 0.06177749433 | AN18: 0.02947823323
A19: -20 | C19: 0.07205926537 | D19: =_xlfn.NORM.DIST($F19,Berechnung!$AG$2,INDIRECT("machineData!L" & MATCH(Berechnung!$F$2,Arbeitsplatzdaten!A:A,0)),TRUE) -> 0.004304269792 | E19: 0.003792592914 | F19: -20 | H19: 0.07205926537 | I19: =_xlfn.NORM.DIST($F19,Berechnung!$AG$2,INDIRECT("machineData!M" & MATCH(Berechnung!$F$2,Arbeitsplatzdaten!A:A,0)),TRUE) -> 0.004304269792 | J19: 0.003792592914 | K19: -20 | M19: 0 | N19: 0 | O19: 0 | P19: -20 | R19: 0.3212390163 | S19: 0.003603677523 | T19: 0.003212390163 | U19: -20 | W19: 0.2602138566 | X19: 0.002881120133 | Y19: 0.002602138566 | Z19: -20 | AB19: 0.3212390163 | AC19: 0.003603677523 | AD19: 0.003212390163 | AE19: -20 | AJ19: -20 | AL19: 4.719375915 | AM19: 0.1089712535 | AN19: 0.04719375915
A20: -15 | C20: 0.3817308964 | D20: =_xlfn.NORM.DIST($F20,Berechnung!$AG$2,INDIRECT("machineData!L" & MATCH(Berechnung!$F$2,Arbeitsplatzdaten!A:A,0)),TRUE) -> 0.0243953696 | E20: 0.02009109981 | F20: -15 | H20: 0.3817308964 | I20: =_xlfn.NORM.DIST($F20,Berechnung!$AG$2,INDIRECT("machineData!M" & MATCH(Berechnung!$F$2,Arbeitsplatzdaten!A:A,0)),TRUE) -> 0.0243953696 | J20: 0.02009109981 | K20: -15 | M20: 0 | N20: 0 | O20: 0 | P20: -15 | R20: 1.833129474 | S20: 0.02193497226 | T20: 0.01833129474 | U20: -15 | W20: 1.630951052 | X20: 0.01919063066 | Y20: 0.01630951052 | Z20: -15 | AB20: 1.833129474 | AC20: 0.02193497226 | AD20: 0.01833129474 | AE20: -15 | AJ20: -15 | AL20: 6.876846672 | AM20: 0.1777397202 | AN20: 0.06876846672
A21: -10 | C21: 1.331772403 | D21: =_xlfn.NORM.DIST($F21,Berechnung!$AG$2,INDIRECT("machineData!L" & MATCH(Berechnung!$F$2,Arbeitsplatzdaten!A:A,0)),TRUE) -> 0.09448865399 | E21: 0.07009328439 | F21: -10 | H21: 1.331772403 | I21: =_xlfn.NORM.DIST($F21,Berechnung!$AG$2,INDIRECT("machineData!M" & MATCH(Berechnung!$F$2,Arbeitsplatzdaten!A:A,0)),TRUE) -> 0.09448865399 | J21: 0.07009328439 | K21: -10 | M21: 0 | N21: 0 | O21: 0 | P21: -10 | R21: 6.761131886 | S21: 0.08954629113 | T21: 0.06761131886 | U21: -10 | W21: 6.45247529 | X21: 0.08371538355 | Y21: 0.0645247529 | Z21: -10 | AB21: 6.761131886 | AC21: 0.08954629113 | AD21: 0.06761131886 | AE21: -10 | AJ21: -10 | AL21: 9.12046345 | AM21: 0.2689443547 | AN21: 0.0912046345
A22: -5 | C22: 3.062123932 | D22: =_xlfn.NORM.DIST($F22,Berechnung!$AG$2,INDIRECT("machineData!L" & MATCH(Berechnung!$F$2,Arbeitsplatzdaten!A:A,0)),TRUE) -> 0.2556530714 | E22: 0.1611644174 | F22: -5 | H22: 3.062123932 | I22: =_xlfn.NORM.DIST($F22,Berechnung!$AG$2,INDIRECT("machineData!M" & MATCH(Berechnung!$F$2,Arbeitsplatzdaten!A:A,0)),TRUE) -> 0.2556530714 | J22: 0.1611644174 | K22: -5 | M22: 1.5074362e-89 | N22: 1.5074362e-91 | O22: 1.5074362e-91 | P22: -5 | R22: 16.13165106 | S22: 0.2508628017 | T22: 0.1613165106 | U22: -5 | W22: 16.13020961 | X22: 0.2450174797 | Y22: 0.1613020961 | Z22: -5 | AB22: 16.13165106 | AC22: 0.2508628017 | AD22: 0.1613165106 | AE22: -5 | AJ22: -5 | AL22: 11.00951367 | AM22: 0.3790394914 | AN22: 0.1100951367
A23: 0 | C23: 4.642591643 | D23: =_xlfn.NORM.DIST($F23,Berechnung!$AG$2,INDIRECT("machineData!L" & MATCH(Berechnung!$F$2,Arbeitsplatzdaten!A:A,0)),TRUE) -> 0.5 | E23: 0.2443469286 | F23: 0 | H23: 4.642591643 | I23: =_xlfn.NORM.DIST($F23,Berechnung!$AG$2,INDIRECT("machineData!M" & MATCH(Berechnung!$F$2,Arbeitsplatzdaten!A:A,0)),TRUE) -> 0.5 | J23: 0.2443469286 | K23: 0 | M23: 50 | N23: 0.5 | O23: 0.5 | P23: 0 | R23: 24.91371983 | S23: 0.5 | T23: 0.2491371983 | U23: 0 | W23: 25.49825203 | X23: 0.5 | Y23: 0.2549825203 | Z23: 0 | AB23: 24.91371983 | AC23: 0.5 | AD23: 0.2491371983 | AE23: 0 | AJ23: 0 | AL23: 12.09605086 | AM23: 0.5 | AN23: 0.1209605086
A24: 5 | C24: 4.642591643 | D24: =_xlfn.NORM.DIST($F24,Berechnung!$AG$2,INDIRECT("machineData!L" & MATCH(Berechnung!$F$2,Arbeitsplatzdaten!A:A,0)),TRUE) -> 0.7443469286 | E24: 0.2443469286 | F24: 5 | H24: 4.642591643 | I24: =_xlfn.NORM.DIST($F24,Berechnung!$AG$2,INDIRECT("machineData!M" & MATCH(Berechnung!$F$2,Arbeitsplatzdaten!A:A,0)),TRUE) -> 0.7443469286 | J24: 0.2443469286 | K24: 5 | M24: 50 | N24: 1 | O24: 0.5 | P24: 5 | R24: 24.91371983 | S24: 0.7491371983 | T24: 0.2491371983 | U24: 5 | W24: 25.49825203 | X24: 0.7549825203 | Y24: 0.2549825203 | Z24: 5 | AB24: 24.91371983 | AC24: 0.7491371983 | AD24: 0.2491371983 | AE24: 5 | AJ24: 5 | AL24: 12.09605086 | AM24: 0.6209605086 | AN24: 0.1209605086
A25: 10 | C25: 3.062123932 | D25: =_xlfn.NORM.DIST($F25,Berechnung!$AG$2,INDIRECT("machineData!L" & MATCH(Berechnung!$F$2,Arbeitsplatzdaten!A:A,0)),TRUE) -> 0.905511346 | E25: 0.1611644174 | F25: 10 | H25: 3.062123932 | I25: =_xlfn.NORM.DIST($F25,Berechnung!$AG$2,INDIRECT("machineData!M" & MATCH(Berechnung!$F$2,Arbeitsplatzdaten!A:A,0)),TRUE) -> 0.905511346 | J25: 0.1611644174 | K25: 10 | M25: 0 | N25: 1 | O25: 0 | P25: 10 | R25: 16.13165106 | S25: 0.9104537089 | T25: 0.1613165106 | U25: 10 | W25: 16.13020961 | X25: 0.9162846164 | Y25: 0.1613020961 | Z25: 10 | AB25: 16.13165106 | AC25: 0.9104537089 | AD25: 0.1613165106 | AE25: 10 | AJ25: 10 | AL25: 11.00951367 | AM25: 0.7310556453 | AN25: 0.1100951367
A26: 15 | C26: 1.331772403 | D26: =_xlfn.NORM.DIST($F26,Berechnung!$AG$2,INDIRECT("machineData!L" & MATCH(Berechnung!$F$2,Arbeitsplatzdaten!A:A,0)),TRUE) -> 0.9756046304 | E26: 0.07009328439 | F26: 15 | H26: 1.331772403 | I26: =_xlfn.NORM.DIST($F26,Berechnung!$AG$2,INDIRECT("machineData!M" & MATCH(Berechnung!$F$2,Arbeitsplatzdaten!A:A,0)),TRUE) -> 0.9756046304 | J26: 0.07009328439 | K26: 15 | M26: 0 | N26: 1 | O26: 0 | P26: 15 | R26: 6.761131886 | S26: 0.9780650277 | T26: 0.06761131886 | U26: 15 | W26: 6.45247529 | X26: 0.9808093693 | Y26: 0.0645247529 | Z26: 15 | AB26: 6.761131886 | AC26: 0.9780650277 | AD26: 0.06761131886 | AE26: 15 | AJ26: 15 | AL26: 9.12046345 | AM26: 0.8222602798 | AN26: 0.0912046345
A27: 20 | C27: 0.3817308964 | D27: =_xlfn.NORM.DIST($F27,Berechnung!$AG$2,INDIRECT("machineData!L" & MATCH(Berechnung!$F$2,Arbeitsplatzdaten!A:A,0)),TRUE) -> 0.9956957302 | E27: 0.02009109981 | F27: 20 | H27: 0.3817308964 | I27: =_xlfn.NORM.DIST($F27,Berechnung!$AG$2,INDIRECT("machineData!M" & MATCH(Berechnung!$F$2,Arbeitsplatzdaten!A:A,0)),TRUE) -> 0.9956957302 | J27: 0.02009109981 | K27: 20 | M27: 0 | N27: 1 | O27: 0 | P27: 20 | R27: 1.833129474 | S27: 0.9963963225 | T27: 0.01833129474 | U27: 20 | W27: 1.630951052 | X27: 0.9971188799 | Y27: 0.01630951052 | Z27: 20 | AB27: 1.833129474 | AC27: 0.9963963225 | AD27: 0.01833129474 | AE27: 20 | AJ27: 20 | AL27: 6.876846672 | AM27: 0.8910287465 | AN27: 0.06876846672
A28: 25 | C28: 0.07205926537 | D28: =_xlfn.NORM.DIST($F28,Berechnung!$AG$2,INDIRECT("machineData!L" & MATCH(Berechnung!$F$2,Arbeitsplatzdaten!A:A,0)),TRUE) -> 0.9994883231 | E28: 0.003792592914 | F28: 25 | H28: 0.07205926537 | I28: =_xlfn.NORM.DIST($F28,Berechnung!$AG$2,INDIRECT("machineData!M" & MATCH(Berechnung!$F$2,Arbeitsplatzdaten!A:A,0)),TRUE) -> 0.9994883231 | J28: 0.003792592914 | K28: 25 | M28: 0 | N28: 1 | O28: 0 | P28: 25 | R28: 0.3212390163 | S28: 0.9996087126 | T28: 0.003212390163 | U28: 25 | W28: 0.2602138566 | X28: 0.9997210184 | Y28: 0.002602138566 | Z28: 25 | AB28: 0.3212390163 | AC28: 0.9996087126 | AD28: 0.003212390163 | AE28: 25 | AJ28: 25 | AL28: 4.719375915 | AM28: 0.9382225057 | AN28: 0.04719375915
A29: 30 | C29: 0.008950464147 | D29: =_xlfn.NORM.DIST($F29,Berechnung!$AG$2,INDIRECT("machineData!L" & MATCH(Berechnung!$F$2,Arbeitsplatzdaten!A:A,0)),TRUE) -> 0.9999594002 | E29: 0.0004710770604 | F29: 30 | H29: 0.008950464147 | I29: =_xlfn.NORM.DIST($F29,Berechnung!$AG$2,INDIRECT("machineData!M" & MATCH(Berechnung!$F$2,Arbeitsplatzdaten!A:A,0)),TRUE) -> 0.9999594002 | J29: 0.0004710770604 | K29: 30 | M29: 0 | N29: 1 | O29: 0 | P29: 30 | R29: 0.03634774484 | S29: 0.9999721901 | T29: 0.0003634774484 | U29: 30 | W29: 0.02617309277 | X29: 0.9999827494 | Y29: 0.0002617309277 | Z29: 30 | AB29: 0.03634774484 | AC29: 0.9999721901 | AD29: 0.0003634774484 | AE29: 30 | AJ29: 30 | AL29: 2.947823323 | AM29: 0.9677007389 | AN29: 0.02947823323
A30: 35 | C30: 0.0007308020778 | D30: =_xlfn.NORM.DIST($F30,Berechnung!$AG$2,INDIRECT("machineData!L" & MATCH(Berechnung!$F$2,Arbeitsplatzdaten!A:A,0)),TRUE) -> 0.9999978634 | E30: 3.846326725e-05 | F30: 35 | H30: 0.0007308020778 | I30: =_xlfn.NORM.DIST($F30,Berechnung!$AG$2,INDIRECT("machineData!M" & MATCH(Berechnung!$F$2,Arbeitsplatzdaten!A:A,0)),TRUE) -> 0.9999978634 | J30: 3.846326725e-05 | K30: 35 | M30: 0 | N30: 1 | O30: 0 | P30: 35 | R30: 0.002652455628 | S30: 0.9999987146 | T30: 2.652455628e-05 | U30: 35 | W30: 0.001657402547 | X30: 0.9999993234 | Y30: 1.657402547e-05 | Z30: 35 | AB30: 0.002652455628 | AC30: 0.9999987146 | AD30: 2.652455628e-05 | AE30: 35 | AJ30: 35 | AL30: 1.675863149 | AM30: 0.9844593704 | AN30: 0.01675863149
A31: 40 | C31: 3.918395214e-05 | D31: =_xlfn.NORM.DIST($F31,Berechnung!$AG$2,INDIRECT("machineData!L" & MATCH(Berechnung!$F$2,Arbeitsplatzdaten!A:A,0)),TRUE) -> 0.9999999258 | E31: 2.06231327e-06 | F31: 40 | H31: 3.918395214e-05 | I31: =_xlfn.NORM.DIST($F31,Berechnung!$AG$2,INDIRECT("machineData!M" & MATCH(Berechnung!$F$2,Arbeitsplatzdaten!A:A,0)),TRUE) -> 0.9999999258 | J31: 2.06231327e-06 | K31: 40 | M31: 0 | N31: 1 | O31: 0 | P31: 40 | R31: 0.0001246897238 | S31: 0.9999999615 | T31: 1.246897238e-06 | U31: 40 | W31: 6.598583405e-05 | X31: 0.9999999832 | Y31: 6.598583405e-07 | Z31: 40 | AB31: 0.0001246897238 | AC31: 0.9999999615 | AD31: 1.246897238e-06 | AE31: 40 | AJ31: 40 | AL31: 0.8671498953 | AM31: 0.9931308693 | AN31: 0.008671498953
A32: 45 | C32: 1.378246747e-06 | D32: =_xlfn.NORM.DIST($F32,Berechnung!$AG$2,INDIRECT("machineData!L" & MATCH(Berechnung!$F$2,Arbeitsplatzdaten!A:A,0)),TRUE) -> 0.9999999983 | E32: 7.253930245e-08 | F32: 45 | H32: 1.378246747e-06 | I32: =_xlfn.NORM.DIST($F32,Berechnung!$AG$2,INDIRECT("machineData!M" & MATCH(Berechnung!$F$2,Arbeitsplatzdaten!A:A,0)),TRUE) -> 0.9999999983 | J32: 7.253930245e-08 | K32: 45 | M32: 0 | N32: 1 | O32: 0 | P32: 45 | R32: 3.771565993e-06 | S32: 0.9999999993 | T32: 3.771565993e-08 | U32: 45 | W32: 1.649455783e-06 | X32: 0.9999999997 | Y32: 1.649455783e-08 | Z32: 45 | AB32: 3.771565993e-06 | AC32: 0.9999999993 | AD32: 3.771565993e-08 | AE32: 45 | AJ32: 45 | AL32: 0.4083817832 | AM32: 0.9972146872 | AN32: 0.004083817832
A33: 50 | C33: 3.17707588e-08 | D33: =_xlfn.NORM.DIST($F33,Berechnung!$AG$2,INDIRECT("machineData!L" & MATCH(Berechnung!$F$2,Arbeitsplatzdaten!A:A,0)),TRUE) -> 1 | E33: 1.6721452e-09 | F33: 50 | H33: 3.17707588e-08 | I33: =_xlfn.NORM.DIST($F33,Berechnung!$AG$2,INDIRECT("machineData!M" & MATCH(Berechnung!$F$2,Arbeitsplatzdaten!A:A,0)),TRUE) -> 1 | J33: 1.6721452e-09 | K33: 50 | M33: 0 | N33: 1 | O33: 0 | P33: 50 | R33: 7.332319196e-08 | S33: 1 | T33: 7.332319196e-10 | U33: 50 | W33: 2.58553845e-08 | X33: 1 | Y33: 2.58553845e-10 | Z33: 50 | AB33: 7.332319196e-08 | AC33: 1 | AD33: 7.332319196e-10 | AE33: 50 | AJ33: 50 | AL33: 0.1750462804 | AM33: 0.99896515 | AN33: 0.001750462804
A34: 55 | C34: 4.795205344e-10 | D34: =_xlfn.NORM.DIST($F34,Berechnung!$AG$2,INDIRECT("machineData!L" & MATCH(Berechnung!$F$2,Arbeitsplatzdaten!A:A,0)),TRUE) -> 1 | E34: 2.523792286e-11 | F34: 55 | H34: 4.795205344e-10 | I34: =_xlfn.NORM.DIST($F34,Berechnung!$AG$2,INDIRECT("machineData!M" & MATCH(Berechnung!$F$2,Arbeitsplatzdaten!A:A,0)),TRUE) -> 1 | J34: 2.523792286e-11 | K34: 55 | M34: 0 | N34: 1 | O34: 0 | P34: 55 | R34: 9.152567593e-10 | S34: 1 | T34: 9.152567593e-12 | U34: 55 | W34: 2.538524946e-10 | X34: 1 | Y34: 2.538524946e-12 | Z34: 55 | AB34: 9.152567593e-10 | AC34: 1 | AD34: 9.152567593e-12 | AE34: 55 | AJ34: 55 | AL34: 0.06828908355 | AM34: 0.9996480408 | AN34: 0.0006828908355
A35: 60 | C35: 4.733546888e-12 | D35: =_xlfn.NORM.DIST($F35,Berechnung!$AG$2,INDIRECT("machineData!L" & MATCH(Berechnung!$F$2,Arbeitsplatzdaten!A:A,0)),TRUE) -> 1 | E35: 2.491340467e-13 | F35: 60 | H35: 4.733546888e-12 | I35: =_xlfn.NORM.DIST($F35,Berechnung!$AG$2,INDIRECT("machineData!M" & MATCH(Berechnung!$F$2,Arbeitsplatzdaten!A:A,0)),TRUE) -> 1 | J35: 2.491340467e-13 | K35: 60 | M35: 0 | N35: 1 | O35: 0 | P35: 60 | R35: 7.338574193e-12 | S35: 1 | T35: 7.338574193e-14 | U35: 60 | W35: 1.554312234e-12 | X35: 1 | Y35: 1.554312234e-14 | Z35: 60 | AB35: 7.338574193e-12 | AC35: 1 | AD35: 7.338574193e-14 | AE35: 60 | AJ35: 60 | AL35: 0.02424704664 | AM35: 0.9998905113 | AN35: 0.0002424704664
A36: 65 | C36: 0 | D36: =_xlfn.NORM.DIST($F36,Berechnung!$AG$2,INDIRECT("machineData!L" & MATCH(Berechnung!$F$2,Arbeitsplatzdaten!A:A,0)),TRUE) -> 1 | E36: 0 | F36: 65 | H36: 0 | I36: =_xlfn.NORM.DIST($F36,Berechnung!$AG$2,INDIRECT("machineData!M" & MATCH(Berechnung!$F$2,Arbeitsplatzdaten!A:A,0)),TRUE) -> 1 | J36: 0 | K36: 65 | M36: 0 | N36: 1 | O36: 0 | P36: 65 | R36: 0 | S36: 1 | T36: 0 | U36: 65 | W36: 0 | X36: 1 | Y36: 0 | Z36: 65 | AB36: 0 | AC36: 1 | AD36: 0 | AE36: 65 | AJ36: 65 | AL36: 0.007835606945 | AM36: 0.9999688674 | AN36: 7.835606945e-05
A37: 70 | C37: 0 | D37: =_xlfn.NORM.DIST($F37,Berechnung!$AG$2,INDIRECT("machineData!L" & MATCH(Berechnung!$F$2,Arbeitsplatzdaten!A:A,0)),TRUE) -> 1 | E37: 0 | F37: 70 | H37: 0 | I37: =_xlfn.NORM.DIST($F37,Berechnung!$AG$2,INDIRECT("machineData!M" & MATCH(Berechnung!$F$2,Arbeitsplatzdaten!A:A,0)),TRUE) -> 1 | J37: 0 | K37: 70 | M37: 0 | N37: 1 | O37: 0 | P37: 70 | R37: 0 | S37: 1 | T37: 0 | U37: 70 | W37: 0 | X37: 1 | Y37: 0 | Z37: 70 | AB37: 0 | AC37: 1 | AD37: 0 | AE37: 70 | AJ37: 70 | AL37: 0.002304567951 | AM37: 0.999991913 | AN37: 2.304567951e-05
A38: 75 | C38: 0 | D38: =_xlfn.NORM.DIST($F38,Berechnung!$AG$2,INDIRECT("machineData!L" & MATCH(Berechnung!$F$2,Arbeitsplatzdaten!A:A,0)),TRUE) -> 1 | E38: 0 | F38: 75 | H38: 0 | I38: =_xlfn.NORM.DIST($F38,Berechnung!$AG$2,INDIRECT("machineData!M" & MATCH(Berechnung!$F$2,Arbeitsplatzdaten!A:A,0)),TRUE) -> 1 | J38: 0 | K38: 75 | M38: 0 | N38: 1 | O38: 0 | P38: 75 | R38: 0 | S38: 1 | T38: 0 | U38: 75 | W38: 0 | X38: 1 | Y38: 0 | Z38: 75 | AB38: 0 | AC38: 1 | AD38: 0 | AE38: 75 | AJ38: 75 | AL38: 0.0006168877118 | AM38: 0.9999980819 | AN38: 6.168877118e-06
A39: 80 | C39: 0 | D39: =_xlfn.NORM.DIST($F39,Berechnung!$AG$2,INDIRECT("machineData!L" & MATCH(Berechnung!$F$2,Arbeitsplatzdaten!A:A,0)),TRUE) -> 1 | E39: 0 | F39: 80 | H39: 0 | I39: =_xlfn.NORM.DIST($F39,Berechnung!$AG$2,INDIRECT("machineData!M" & MATCH(Berechnung!$F$2,Arbeitsplatzdaten!A:A,0)),TRUE) -> 1 | J39: 0 | K39: 80 | M39: 0 | N39: 1 | O39: 0 | P39: 80 | R39: 0 | S39: 1 | T39: 0 | U39: 80 | W39: 0 | X39: 1 | Y39: 0 | Z39: 80 | AB39: 0 | AC39: 1 | AD39: 0 | AE39: 80 | AJ39: 80 | AL39: 0.0001502861292 | AM39: 0.9999995848 | AN39: 1.502861292e-06
A40: 85 | C40: 0 | D40: =_xlfn.NORM.DIST($F40,Berechnung!$AG$2,INDIRECT("machineData!L" & MATCH(Berechnung!$F$2,Arbeitsplatzdaten!A:A,0)),TRUE) -> 1 | E40: 0 | F40: 85 | H40: 0 | I40: =_xlfn.NORM.DIST($F40,Berechnung!$AG$2,INDIRECT("machineData!M" & MATCH(Berechnung!$F$2,Arbeitsplatzdaten!A:A,0)),TRUE) -> 1 | J40: 0 | K40: 85 | M40: 0 | N40: 1 | O40: 0 | P40: 85 | R40: 0 | S40: 1 | T40: 0 | U40: 85 | W40: 0 | X40: 1 | Y40: 0 | Z40: 85 | AB40: 0 | AC40: 1 | AD40: 0 | AE40: 85 | AJ40: 85 | AL40: 3.332146828e-05 | AM40: 0.999999918 | AN40: 3.332146828e-07
A41: 90 | C41: 0 | D41: =_xlfn.NORM.DIST($F41,Berechnung!$AG$2,INDIRECT("machineData!L" & MATCH(Berechnung!$F$2,Arbeitsplatzdaten!A:A,0)),TRUE) -> 1 | E41: 0 | F41: 90 | H41: 0 | I41: =_xlfn.NORM.DIST($F41,Berechnung!$AG$2,INDIRECT("machineData!M" & MATCH(Berechnung!$F$2,Arbeitsplatzdaten!A:A,0)),TRUE) -> 1 | J41: 0 | K41: 90 | M41: 0 | N41: 1 | O41: 0 | P41: 90 | R41: 0 | S41: 1 | T41: 0 | U41: 90 | W41: 0 | X41: 1 | Y41: 0 | Z41: 90 | AB41: 0 | AC41: 1 | AD41: 0 | AE41: 90 | AJ41: 90 | AL41: 6.7238485e-06 | AM41: 0.9999999852 | AN41: 6.7238485e-08
A42: 95 | C42: 0 | D42: =_xlfn.NORM.DIST($F42,Berechnung!$AG$2,INDIRECT("machineData!L" & MATCH(Berechnung!$F$2,Arbeitsplatzdaten!A:A,0)),TRUE) -> 1 | E42: 0 | F42: 95 | H42: 0 | I42: =_xlfn.NORM.DIST($F42,Berechnung!$AG$2,INDIRECT("machineData!M" & MATCH(Berechnung!$F$2,Arbeitsplatzdaten!A:A,0)),TRUE) -> 1 | J42: 0 | K42: 95 | M42: 0 | N42: 1 | O42: 0 | P42: 95 | R42: 0 | S42: 1 | T42: 0 | U42: 95 | W42: 0 | X42: 1 | Y42: 0 | Z42: 95 | AB42: 0 | AC42: 1 | AD42: 0 | AE42: 95 | AJ42: 95 | AL42: 1.234798863e-06 | AM42: 0.9999999976 | AN42: 1.234798863e-08
A43: 100 | C43: 0 | D43: =_xlfn.NORM.DIST($F43,Berechnung!$AG$2,INDIRECT("machineData!L" & MATCH(Berechnung!$F$2,Arbeitsplatzdaten!A:A,0)),TRUE) -> 1 | E43: 0 | F43: 100 | H43: 0 | I43: =_xlfn.NORM.DIST($F43,Berechnung!$AG$2,INDIRECT("machineData!M" & MATCH(Berechnung!$F$2,Arbeitsplatzdaten!A:A,0)),TRUE) -> 1 | J43: 0 | K43: 100 | M43: 0 | N43: 1 | O43: 0 | P43: 100 | R43: 0 | S43: 1 | T43: 0 | U43: 100 | W43: 0 | X43: 1 | Y43: 0 | Z43: 100 | AB43: 0 | AC43: 1 | AD43: 0 | AE43: 100 | AJ43: 100 | AL43: 2.063739402e-07 | AM43: 0.9999999996 | AN43: 2.063739402e-09
A44: 105 | C44: =Anzahl_Daten*E44 -> 0 | D44: =_xlfn.NORM.DIST($F44,Berechnung!$AG$2,INDIRECT("machineData!L" & MATCH(Berechnung!$F$2,Arbeitsplatzdaten!A:A,0)),TRUE) -> 1 | E44: =D44-D43 -> 0 | F44: 105 | H44: =Anzahl_Daten*J44 -> 0 | I44: =_xlfn.NORM.DIST($F44,Berechnung!$AG$2,INDIRECT("machineData!M" & MATCH(Berechnung!$F$2,Arbeitsplatzdaten!A:A,0)),TRUE) -> 1 | J44: =I44-I43 -> 0 | K44: 105 | M44: 0 | N44: 1 | O44: =N44-N43 -> 0 | P44: 105 | R44: 0 | S44: 1 | T44: =S44-S43 -> 0 | U44: 105 | W44: 0 | X44: 1 | Y44: 0 | Z44: 105 | AB44: 0 | AC44: 1 | AD44: 0 | AE44: 105 | AJ44: 105 | AL44: 3.138986848e-08 | AM44: 1 | AN44: 3.138986848e-10
A45: 110 | C45: 0 | D45: =_xlfn.NORM.DIST($F45,Berechnung!$AG$2,INDIRECT("machineData!L" & MATCH(Berechnung!$F$2,Arbeitsplatzdaten!A:A,0)),TRUE) -> 1 | E45: 0 | F45: 110 | H45: 0 | I45: =_xlfn.NORM.DIST($F45,Berechnung!$AG$2,INDIRECT("machineData!M" & MATCH(Berechnung!$F$2,Arbeitsplatzdaten!A:A,0)),TRUE) -> 1 | J45: 0 | K45: 110 | M45: 0 | N45: 1 | O45: 0 | P45: 110 | R45: 0 | S45: 1 | T45: 0 | U45: 110 | W45: 0 | X45: 1 | Y45: 0 | Z45: 110 | AB45: 0 | AC45: 1 | AD45: 0 | AE45: 110 | AJ45: 110 | AL45: 4.345057647e-09 | AM45: 1 | AN45: 4.345057647e-11
A46: 115 | C46: 0 | D46: =_xlfn.NORM.DIST($F46,Berechnung!$AG$2,INDIRECT("machineData!L" & MATCH(Berechnung!$F$2,Arbeitsplatzdaten!A:A,0)),TRUE) -> 1 | E46: 0 | F46: 115 | H46: 0 | I46: =_xlfn.NORM.DIST($F46,Berechnung!$AG$2,INDIRECT("machineData!M" & MATCH(Berechnung!$F$2,Arbeitsplatzdaten!A:A,0)),TRUE) -> 1 | J46: 0 | K46: 115 | M46: 0 | N46: 1 | O46: 0 | P46: 115 | R46: 0 | S46: 1 | T46: 0 | U46: 115 | W46: 0 | X46: 1 | Y46: 0 | Z46: 115 | AB46: 0 | AC46: 1 | AD46: 0 | AE46: 115 | AJ46: 115 | AL46: 5.473510534e-10 | AM46: 1 | AN46: 5.473510534e-12
A47: 120 | C47: 0 | D47: =_xlfn.NORM.DIST($F47,Berechnung!$AG$2,INDIRECT("machineData!L" & MATCH(Berechnung!$F$2,Arbeitsplatzdaten!A:A,0)),TRUE) -> 1 | E47: 0 | F47: 120 | H47: 0 | I47: =_xlfn.NORM.DIST($F47,Berechnung!$AG$2,INDIRECT("machineData!M" & MATCH(Berechnung!$F$2,Arbeitsplatzdaten!A:A,0)),TRUE) -> 1 | J47: 0 | K47: 120 | M47: 0 | N47: 1 | O47: 0 | P47: 120 | R47: 0 | S47: 1 | T47: 0 | U47: 120 | W47: 0 | X47: 1 | Y47: 0 | Z47: 120 | AB47: 0 | AC47: 1 | AD47: 0 | AE47: 120 | AJ47: 120 | AL47: 6.274980535e-11 | AM47: 1 | AN47: 6.274980535e-13
A48: 125 | C48: 0 | D48: =_xlfn.NORM.DIST($F48,Berechnung!$AG$2,INDIRECT("machineData!L" & MATCH(Berechnung!$F$2,Arbeitsplatzdaten!A:A,0)),TRUE) -> 1 | E48: 0 | F48: 125 | H48: 0 | I48: =_xlfn.NORM.DIST($F48,Berechnung!$AG$2,INDIRECT("machineData!M" & MATCH(Berechnung!$F$2,Arbeitsplatzdaten!A:A,0)),TRUE) -> 1 | J48: 0 | K48: 125 | M48: 0 | N48: 1 | O48: 0 | P48: 125 | R48: 0 | S48: 1 | T48: 0 | U48: 125 | W48: 0 | X48: 1 | Y48: 0 | Z48: 125 | AB48: 0 | AC48: 1 | AD48: 0 | AE48: 125 | AJ48: 125 | AL48: 6.550315845e-12 | AM48: 1 | AN48: 6.550315845e-14
A49: 130 | C49: 0 | D49: =_xlfn.NORM.DIST($F49,Berechnung!$AG$2,INDIRECT("machineData!L" & MATCH(Berechnung!$F$2,Arbeitsplatzdaten!A:A,0)),TRUE) -> 1 | E49: 0 | F49: 130 | H49: 0 | I49: =_xlfn.NORM.DIST($F49,Berechnung!$AG$2,INDIRECT("machineData!M" & MATCH(Berechnung!$F$2,Arbeitsplatzdaten!A:A,0)),TRUE) -> 1 | J49: 0 | K49: 130 | M49: 0 | N49: 1 | O49: 0 | P49: 130 | R49: 0 | S49: 1 | T49: 0 | U49: 130 | W49: 0 | X49: 1 | Y49: 0 | Z49: 130 | AB49: 0 | AC49: 1 | AD49: 0 | AE49: 130 | AJ49: 130 | AL49: 6.217248938e-13 | AM49: 1 | AN49: 6.217248938e-15
A50: 135 | C50: 0 | D50: =_xlfn.NORM.DIST($F50,Berechnung!$AG$2,INDIRECT("machineData!L" & MATCH(Berechnung!$F$2,Arbeitsplatzdaten!A:A,0)),TRUE) -> 1 | E50: 0 | F50: 135 | H50: 0 | I50: =_xlfn.NORM.DIST($F50,Berechnung!$AG$2,INDIRECT("machineData!M" & MATCH(Berechnung!$F$2,Arbeitsplatzdaten!A:A,0)),TRUE) -> 1 | J50: 0 | K50: 135 | M50: 0 | N50: 1 | O50: 0 | P50: 135 | R50: 0 | S50: 1 | T50: 0 | U50: 135 | W50: 0 | X50: 1 | Y50: 0 | Z50: 135 | AB50: 0 | AC50: 1 | AD50: 0 | AE50: 135 | AJ50: 135 | AL50: 0 | AM50: 1 | AN50: 0
A51: 140 | C51: 0 | D51: =_xlfn.NORM.DIST($F51,Berechnung!$AG$2,INDIRECT("machineData!L" & MATCH(Berechnung!$F$2,Arbeitsplatzdaten!A:A,0)),TRUE) -> 1 | E51: 0 | F51: 140 | H51: 0 | I51: =_xlfn.NORM.DIST($F51,Berechnung!$AG$2,INDIRECT("machineData!M" & MATCH(Berechnung!$F$2,Arbeitsplatzdaten!A:A,0)),TRUE) -> 1 | J51: 0 | K51: 140 | M51: 0 | N51: 1 | O51: 0 | P51: 140 | R51: 0 | S51: 1 | T51: 0 | U51: 140 | W51: 0 | X51: 1 | Y51: 0 | Z51: 140 | AB51: 0 | AC51: 1 | AD51: 0 | AE51: 140 | AJ51: 140 | AL51: 0 | AM51: 1 | AN51: 0
A52: 145 | C52: 0 | D52: =_xlfn.NORM.DIST($F52,Berechnung!$AG$2,INDIRECT("machineData!L" & MATCH(Berechnung!$F$2,Arbeitsplatzdaten!A:A,0)),TRUE) -> 1 | E52: 0 | F52: 145 | H52: 0 | I52: =_xlfn.NORM.DIST($F52,Berechnung!$AG$2,INDIRECT("machineData!M" & MATCH(Berechnung!$F$2,Arbeitsplatzdaten!A:A,0)),TRUE) -> 1 | J52: 0 | K52: 145 | M52: 0 | N52: 1 | O52: 0 | P52: 145 | R52: 0 | S52: 1 | T52: 0 | U52: 145 | W52: 0 | X52: 1 | Y52: 0 | Z52: 145 | AB52: 0 | AC52: 1 | AD52: 0 | AE52: 145 | AJ52: 145 | AL52: 0 | AM52: 1 | AN52: 0
A53: 150 | C53: 0 | D53: =_xlfn.NORM.DIST($F53,Berechnung!$AG$2,INDIRECT("machineData!L" & MATCH(Berechnung!$F$2,Arbeitsplatzdaten!A:A,0)),TRUE) -> 1 | E53: 0 | F53: 150 | H53: 0 | I53: =_xlfn.NORM.DIST($F53,Berechnung!$AG$2,INDIRECT("machineData!M" & MATCH(Berechnung!$F$2,Arbeitsplatzdaten!A:A,0)),TRUE) -> 1 | J53: 0 | K53: 150 | M53: 0 | N53: 1 | O53: 0 | P53: 150 | R53: 0 | S53: 1 | T53: 0 | U53: 150 | W53: 0 | X53: 1 | Y53: 0 | Z53: 150 | AB53: 0 | AC53: 1 | AD53: 0 | AE53: 150 | AJ53: 150 | AL53: 0 | AM53: 1 | AN53: 0
A54: 155 | C54: 0 | D54: =_xlfn.NORM.DIST($F54,Berechnung!$AG$2,INDIRECT("machineData!L" & MATCH(Berechnung!$F$2,Arbeitsplatzdaten!A:A,0)),TRUE) -> 1 | E54: 0 | F54: 155 | H54: 0 | I54: =_xlfn.NORM.DIST($F54,Berechnung!$AG$2,INDIRECT("machineData!M" & MATCH(Berechnung!$F$2,Arbeitsplatzdaten!A:A,0)),TRUE) -> 1 | J54: 0 | K54: 155 | M54: 0 | N54: 1 | O54: 0 | P54: 155 | R54: 0 | S54: 1 | T54: 0 | U54: 155 | W54: 0 | X54: 1 | Y54: 0 | Z54: 155 | AB54: 0 | AC54: 1 | AD54: 0 | AE54: 155 | AJ54: 155 | AL54: 0 | AM54: 1 | AN54: 0
A55: 160 | C55: 0 | D55: =_xlfn.NORM.DIST($F55,Berechnung!$AG$2,INDIRECT("machineData!L" & MATCH(Berechnung!$F$2,Arbeitsplatzdaten!A:A,0)),TRUE) -> 1 | E55: 0 | F55: 160 | H55: 0 | I55: =_xlfn.NORM.DIST($F55,Berechnung!$AG$2,INDIRECT("machineData!M" & MATCH(Berechnung!$F$2,Arbeitsplatzdaten!A:A,0)),TRUE) -> 1 | J55: 0 | K55: 160 | M55: 0 | N55: 1 | O55: 0 | P55: 160 | R55: 0 | S55: 1 | T55: 0 | U55: 160 | W55: 0 | X55: 1 | Y55: 0 | Z55: 160 | AB55: 0 | AC55: 1 | AD55: 0 | AE55: 160 | AJ55: 160 | AL55: 0 | AM55: 1 | AN55: 0
A56: 165 | C56: 0 | D56: =_xlfn.NORM.DIST($F56,Berechnung!$AG$2,INDIRECT("machineData!L" & MATCH(Berechnung!$F$2,Arbeitsplatzdaten!A:A,0)),TRUE) -> 1 | E56: 0 | F56: 165 | H56: 0 | I56: =_xlfn.NORM.DIST($F56,Berechnung!$AG$2,INDIRECT("machineData!M" & MATCH(Berechnung!$F$2,Arbeitsplatzdaten!A:A,0)),TRUE) -> 1 | J56: 0 | K56: 165 | M56: 0 | N56: 1 | O56: 0 | P56: 165 | R56: 0 | S56: 1 | T56: 0 | U56: 165 | W56: 0 | X56: 1 | Y56: 0 | Z56: 165 | AB56: 0 | AC56: 1 | AD56: 0 | AE56: 165 | AJ56: 165 | AL56: 0 | AM56: 1 | AN56: 0
A57: 170 | C57: 0 | D57: =_xlfn.NORM.DIST($F57,Berechnung!$AG$2,INDIRECT("machineData!L" & MATCH(Berechnung!$F$2,Arbeitsplatzdaten!A:A,0)),TRUE) -> 1 | E57: 0 | F57: 170 | H57: 0 | I57: =_xlfn.NORM.DIST($F57,Berechnung!$AG$2,INDIRECT("machineData!M" & MATCH(Berechnung!$F$2,Arbeitsplatzdaten!A:A,0)),TRUE) -> 1 | J57: 0 | K57: 170 | M57: 0 | N57: 1 | O57: 0 | P57: 170 | R57: 0 | S57: 1 | T57: 0 | U57: 170 | W57: 0 | X57: 1 | Y57: 0 | Z57: 170 | AB57: 0 | AC57: 1 | AD57: 0 | AE57: 170 | AJ57: 170 | AL57: 0 | AM57: 1 | AN57: 0
A58: 175 | C58: 0 | D58: =_xlfn.NORM.DIST($F58,Berechnung!$AG$2,INDIRECT("machineData!L" & MATCH(Berechnung!$F$2,Arbeitsplatzdaten!A:A,0)),TRUE) -> 1 | E58: 0 | F58: 175 | H58: 0 | I58: =_xlfn.NORM.DIST($F58,Berechnung!$AG$2,INDIRECT("machineData!M" & MATCH(Berechnung!$F$2,Arbeitsplatzdaten!A:A,0)),TRUE) -> 1 | J58: 0 | K58: 175 | M58: 0 | N58: 1 | O58: 0 | P58: 175 | R58: 0 | S58: 1 | T58: 0 | U58: 175 | W58: 0 | X58: 1 | Y58: 0 | Z58: 175 | AB58: 0 | AC58: 1 | AD58: 0 | AE58: 175 | AJ58: 175 | AL58: 0 | AM58: 1 | AN58: 0
A59: 180 | C59: 0 | D59: =_xlfn.NORM.DIST($F59,Berechnung!$AG$2,INDIRECT("machineData!L" & MATCH(Berechnung!$F$2,Arbeitsplatzdaten!A:A,0)),TRUE) -> 1 | E59: 0 | F59: 180 | H59: 0 | I59: =_xlfn.NORM.DIST($F59,Berechnung!$AG$2,INDIRECT("machineData!M" & MATCH(Berechnung!$F$2,Arbeitsplatzdaten!A:A,0)),TRUE) -> 1 | J59: 0 | K59: 180 | M59: 0 | N59: 1 | O59: 0 | P59: 180 | R59: 0 | S59: 1 | T59: 0 | U59: 180 | W59: 0 | X59: 1 | Y59: 0 | Z59: 180 | AB59: 0 | AC59: 1 | AD59: 0 | AE59: 180 | AJ59: 180 | AL59: 0 | AM59: 1 | AN59: 0
A60: 185 | C60: 0 | D60: =_xlfn.NORM.DIST($F60,Berechnung!$AG$2,INDIRECT("machineData!L" & MATCH(Berechnung!$F$2,Arbeitsplatzdaten!A:A,0)),TRUE) -> 1 | E60: 0 | F60: 185 | H60: 0 | I60: =_xlfn.NORM.DIST($F60,Berechnung!$AG$2,INDIRECT("machineData!M" & MATCH(Berechnung!$F$2,Arbeitsplatzdaten!A:A,0)),TRUE) -> 1 | J60: 0 | K60: 185 | M60: 0 | N60: 1 | O60: 0 | P60: 185 | R60: 0 | S60: 1 | T60: 0 | U60: 185 | W60: 0 | X60: 1 | Y60: 0 | Z60: 185 | AB60: 0 | AC60: 1 | AD60: 0 | AE60: 185 | AJ60: 185 | AL60: 0 | AM60: 1 | AN60: 0
A61: 190 | C61: 0 | D61: =_xlfn.NORM.DIST($F61,Berechnung!$AG$2,INDIRECT("machineData!L" & MATCH(Berechnung!$F$2,Arbeitsplatzdaten!A:A,0)),TRUE) -> 1 | E61: 0 | F61: 190 | H61: 0 | I61: =_xlfn.NORM.DIST($F61,Berechnung!$AG$2,INDIRECT("machineData!M" & MATCH(Berechnung!$F$2,Arbeitsplatzdaten!A:A,0)),TRUE) -> 1 | J61: 0 | K61: 190 | M61: 0 | N61: 1 | O61: 0 | P61: 190 | R61: 0 | S61: 1 | T61: 0 | U61: 190 | W61: 0 | X61: 1 | Y61: 0 | Z61: 190 | AB61: 0 | AC61: 1 | AD61: 0 | AE61: 190 | AJ61: 190 | AL61: 0 | AM61: 1 | AN61: 0
A62: 195 | C62: 0 | D62: =_xlfn.NORM.DIST($F62,Berechnung!$AG$2,INDIRECT("machineData!L" & MATCH(Berechnung!$F$2,Arbeitsplatzdaten!A:A,0)),TRUE) -> 1 | E62: 0 | F62: 195 | H62: 0 | I62: =_xlfn.NORM.DIST($F62,Berechnung!$AG$2,INDIRECT("machineData!M" & MATCH(Berechnung!$F$2,Arbeitsplatzdaten!A:A,0)),TRUE) -> 1 | J62: 0 | K62: 195 | M62: 0 | N62: 1 | O62: 0 | P62: 195 | R62: 0 | S62: 1 | T62: 0 | U62: 195 | W62: 0 | X62: 1 | Y62: 0 | Z62: 195 | AB62: 0 | AC62: 1 | AD62: 0 | AE62: 195 | AJ62: 195 | AL62: 0 | AM62: 1 | AN62: 0
A63: 200 | C63: 0 | D63: =_xlfn.NORM.DIST($F63,Berechnung!$AG$2,INDIRECT("machineData!L" & MATCH(Berechnung!$F$2,Arbeitsplatzdaten!A:A,0)),TRUE) -> 1 | E63: 0 | F63: 200 | H63: 0 | I63: =_xlfn.NORM.DIST($F63,Berechnung!$AG$2,INDIRECT("machineData!M" & MATCH(Berechnung!$F$2,Arbeitsplatzdaten!A:A,0)),TRUE) -> 1 | J63: 0 | K63: 200 | M63: 0 | N63: 1 | O63: 0 | P63: 200 | R63: 0 | S63: 1 | T63: 0 | U63: 200 | W63: 0 | X63: 1 | Y63: 0 | Z63: 200 | AB63: 0 | AC63: 1 | AD63: 0 | AE63: 200 | AJ63: 200 | AL63: 0 | AM63: 1 | AN63: 0
A64: 205 | C64: 0 | D64: =_xlfn.NORM.DIST($F64,Berechnung!$AG$2,INDIRECT("machineData!L" & MATCH(Berechnung!$F$2,Arbeitsplatzdaten!A:A,0)),TRUE) -> 1 | E64: 0 | F64: 205 | H64: 0 | I64: =_xlfn.NORM.DIST($F64,Berechnung!$AG$2,INDIRECT("machineData!M" & MATCH(Berechnung!$F$2,Arbeitsplatzdaten!A:A,0)),TRUE) -> 1 | J64: 0 | K64: 205 | M64: 0 | N64: 1 | O64: 0 | P64: 205 | R64: 0 | S64: 1 | T64: 0 | U64: 205 | W64: 0 | X64: 1 | Y64: 0 | Z64: 205 | AB64: 0 | AC64: 1 | AD64: 0 | AE64: 205 | AJ64: 205 | AL64: 0 | AM64: 1 | AN64: 0
A65: 210 | C65: 0 | D65: =_xlfn.NORM.DIST($F65,Berechnung!$AG$2,INDIRECT("machineData!L" & MATCH(Berechnung!$F$2,Arbeitsplatzdaten!A:A,0)),TRUE) -> 1 | E65: 0 | F65: 210 | H65: 0 | I65: =_xlfn.NORM.DIST($F65,Berechnung!$AG$2,INDIRECT("machineData!M" & MATCH(Berechnung!$F$2,Arbeitsplatzdaten!A:A,0)),TRUE) -> 1 | J65: 0 | K65: 210 | M65: 0 | N65: 1 | O65: 0 | P65: 210 | R65: 0 | S65: 1 | T65: 0 | U65: 210 | W65: 0 | X65: 1 | Y65: 0 | Z65: 210 | AB65: 0 | AC65: 1 | AD65: 0 | AE65: 210 | AJ65: 210 | AL65: 0 | AM65: 1 | AN65: 0
A66: 215 | C66: 0 | D66: =_xlfn.NORM.DIST($F66,Berechnung!$AG$2,INDIRECT("machineData!L" & MATCH(Berechnung!$F$2,Arbeitsplatzdaten!A:A,0)),TRUE) -> 1 | E66: 0 | F66: 215 | H66: 0 | I66: =_xlfn.NORM.DIST($F66,Berechnung!$AG$2,INDIRECT("machineData!M" & MATCH(Berechnung!$F$2,Arbeitsplatzdaten!A:A,0)),TRUE) -> 1 | J66: 0 | K66: 215 | M66: 0 | N66: 1 | O66: 0 | P66: 215 | R66: 0 | S66: 1 | T66: 0 | U66: 215 | W66: 0 | X66: 1 | Y66: 0 | Z66: 215 | AB66: 0 | AC66: 1 | AD66: 0 | AE66: 215 | AJ66: 215 | AL66: 0 | AM66: 1 | AN66: 0
A67: 220 | C67: 0 | D67: =_xlfn.NORM.DIST($F67,Berechnung!$AG$2,INDIRECT("machineData!L" & MATCH(Berechnung!$F$2,Arbeitsplatzdaten!A:A,0)),TRUE) -> 1 | E67: 0 | F67: 220 | H67: 0 | I67: =_xlfn.NORM.DIST($F67,Berechnung!$AG$2,INDIRECT("machineData!M" & MATCH(Berechnung!$F$2,Arbeitsplatzdaten!A:A,0)),TRUE) -> 1 | J67: 0 | K67: 220 | M67: 0 | N67: 1 | O67: 0 | P67: 220 | R67: 0 | S67: 1 | T67: 0 | U67: 220 | W67: 0 | X67: 1 | Y67: 0 | Z67: 220 | AB67: 0 | AC67: 1 | AD67: 0 | AE67: 220 | AJ67: 220 | AL67: 0 | AM67: 1 | AN67: 0
A68: 225 | C68: 0 | D68: =_xlfn.NORM.DIST($F68,Berechnung!$AG$2,INDIRECT("machineData!L" & MATCH(Berechnung!$F$2,Arbeitsplatzdaten!A:A,0)),TRUE) -> 1 | E68: 0 | F68: 225 | H68: 0 | I68: =_xlfn.NORM.DIST($F68,Berechnung!$AG$2,INDIRECT("machineData!M" & MATCH(Berechnung!$F$2,Arbeitsplatzdaten!A:A,0)),TRUE) -> 1 | J68: 0 | K68: 225 | M68: 0 | N68: =_xlfn.NORM.DIST($F68,0,$AQ$2,TRUE) -> 1 | O68: 0 | P68: 225 | R68: 0 | S68: =_xlfn.NORM.DIST($F68,0,$AR$2,TRUE) -> 1 | T68: 0 | U68: 225 | W68: 0 | X68: =_xlfn.NORM.DIST($F68,0,$AS$2,TRUE) -> 1 | Y68: 0 | Z68: 225 | AB68: 0 | AC68: 1 | AD68: 0 | AE68: 225 | AJ68: 225 | AL68: 0 | AM68: 1 | AN68: 0
A69: =A68+Klassenbreite -> 230 | C69: 0 | D69: =_xlfn.NORM.DIST($F69,Berechnung!$AG$2,INDIRECT("machineData!L" & MATCH(Berechnung!$F$2,Arbeitsplatzdaten!A:A,0)),TRUE) -> 1 | E69: 0 | F69: =F68+Klassenbreite -> 230 | H69: 0 | I69: =_xlfn.NORM.DIST($F69,Berechnung!$AG$2,INDIRECT("machineData!M" & MATCH(Berechnung!$F$2,Arbeitsplatzdaten!A:A,0)),TRUE) -> 1 | J69: 0 | K69: =K68+Klassenbreite -> 230 | M69: =100*O69 -> 0 | N69: 1 | O69: 0 | P69: =P68+Klassenbreite -> 230 | R69: =100*T69 -> 0 | S69: 1 | T69: 0 | U69: =U68+Klassenbreite -> 230 | W69: =100*Y69 -> 0 | X69: 1 | Y69: =X69-X68 -> 0 | Z69: =Z68+Klassenbreite -> 230 | AB69: =100*AD69 -> 0 | AC69: =_xlfn.NORM.DIST($F69,0,$AT$2,TRUE) -> 1 | AD69: =AC69-AC68 -> 0 | AE69: =AE68+Klassenbreite -> 230 | AG69: =100*AI69 ->  | AH69: =_xlfn.NORM.DIST($F69,0,$AU$2,TRUE) ->  | AI69: =AH69-AH68 ->  | AJ69: =AJ68+Klassenbreite -> 230 | AL69: =100*AN69 -> 0 | AM69: =_xlfn.NORM.DIST($F69,0,$AV$2,TRUE) -> 1 | AN69: =AM69-AM68 -> 0
A70: 235 | C70: 0 | D70: =_xlfn.NORM.DIST($F70,Berechnung!$AG$2,INDIRECT("machineData!L" & MATCH(Berechnung!$F$2,Arbeitsplatzdaten!A:A,0)),TRUE) -> 1 | E70: 0 | F70: 235 | H70: 0 | I70: =_xlfn.NORM.DIST($F70,Berechnung!$AG$2,INDIRECT("machineData!M" & MATCH(Berechnung!$F$2,Arbeitsplatzdaten!A:A,0)),TRUE) -> 1 | J70: 0 | K70: 235 | M70: 0 | N70: 1 | O70: 0 | P70: 235 | R70: 0 | S70: 1 | T70: 0 | U70: 235 | W70: 0 | X70: 1 | Y70: 0 | Z70: 235 | AB70: 0 | AC70: 1 | AD70: 0 | AE70: 235 | AJ70: 235 | AL70: 0 | AM70: 1 | AN70: 0
A71: 240 | C71: 0 | D71: =_xlfn.NORM.DIST($F71,Berechnung!$AG$2,INDIRECT("machineData!L" & MATCH(Berechnung!$F$2,Arbeitsplatzdaten!A:A,0)),TRUE) -> 1 | E71: 0 | F71: 240 | H71: 0 | I71: =_xlfn.NORM.DIST($F71,Berechnung!$AG$2,INDIRECT("machineData!M" & MATCH(Berechnung!$F$2,Arbeitsplatzdaten!A:A,0)),TRUE) -> 1 | J71: 0 | K71: 240 | M71: 0 | N71: 1 | O71: 0 | P71: 240 | R71: 0 | S71: 1 | T71: 0 | U71: 240 | W71: 0 | X71: 1 | Y71: 0 | Z71: 240 | AB71: 0 | AC71: 1 | AD71: 0 | AE71: 240 | AJ71: 240 | AL71: 0 | AM71: 1 | AN71: 0
A72: 245 | C72: 0 | D72: =_xlfn.NORM.DIST($F72,Berechnung!$AG$2,INDIRECT("machineData!L" & MATCH(Berechnung!$F$2,Arbeitsplatzdaten!A:A,0)),TRUE) -> 1 | E72: 0 | F72: 245 | H72: 0 | I72: =_xlfn.NORM.DIST($F72,Berechnung!$AG$2,INDIRECT("machineData!M" & MATCH(Berechnung!$F$2,Arbeitsplatzdaten!A:A,0)),TRUE) -> 1 | J72: 0 | K72: 245 | M72: 0 | N72: 1 | O72: 0 | P72: 245 | R72: 0 | S72: 1 | T72: 0 | U72: 245 | W72: 0 | X72: 1 | Y72: 0 | Z72: 245 | AB72: 0 | AC72: 1 | AD72: 0 | AE72: 245 | AJ72: 245 | AL72: 0 | AM72: 1 | AN72: 0
A73: 250 | C73: 0 | D73: =_xlfn.NORM.DIST($F73,Berechnung!$AG$2,INDIRECT("machineData!L" & MATCH(Berechnung!$F$2,Arbeitsplatzdaten!A:A,0)),TRUE) -> 1 | E73: 0 | F73: 250 | H73: 0 | I73: =_xlfn.NORM.DIST($F73,Berechnung!$AG$2,INDIRECT("machineData!M" & MATCH(Berechnung!$F$2,Arbeitsplatzdaten!A:A,0)),TRUE) -> 1 | J73: 0 | K73: 250 | M73: 0 | N73: 1 | O73: 0 | P73: 250 | R73: 0 | S73: 1 | T73: 0 | U73: 250 | W73: 0 | X73: 1 | Y73: 0 | Z73: 250 | AB73: 0 | AC73: 1 | AD73: 0 | AE73: 250 | AJ73: 250 | AL73: 0 | AM73: 1 | AN73: 0
A74: 255 | C74: 0 | D74: =_xlfn.NORM.DIST($F74,Berechnung!$AG$2,INDIRECT("machineData!L" & MATCH(Berechnung!$F$2,Arbeitsplatzdaten!A:A,0)),TRUE) -> 1 | E74: 0 | F74: 255 | H74: 0 | I74: =_xlfn.NORM.DIST($F74,Berechnung!$AG$2,INDIRECT("machineData!M" & MATCH(Berechnung!$F$2,Arbeitsplatzdaten!A:A,0)),TRUE) -> 1 | J74: 0 | K74: 255 | M74: 0 | N74: 1 | O74: 0 | P74: 255 | R74: 0 | S74: 1 | T74: 0 | U74: 255 | W74: 0 | X74: 1 | Y74: 0 | Z74: 255 | AB74: 0 | AC74: 1 | AD74: 0 | AE74: 255 | AJ74: 255 | AL74: 0 | AM74: 1 | AN74: 0
A75: 260 | C75: 0 | D75: =_xlfn.NORM.DIST($F75,Berechnung!$AG$2,INDIRECT("machineData!L" & MATCH(Berechnung!$F$2,Arbeitsplatzdaten!A:A,0)),TRUE) -> 1 | E75: 0 | F75: 260 | H75: 0 | I75: =_xlfn.NORM.DIST($F75,Berechnung!$AG$2,INDIRECT("machineData!M" & MATCH(Berechnung!$F$2,Arbeitsplatzdaten!A:A,0)),TRUE) -> 1 | J75: 0 | K75: 260 | M75: 0 | N75: 1 | O75: 0 | P75: 260 | R75: 0 | S75: 1 | T75: 0 | U75: 260 | W75: 0 | X75: 1 | Y75: 0 | Z75: 260 | AB75: 0 | AC75: 1 | AD75: 0 | AE75: 260 | AJ75: 260 | AL75: 0 | AM75: 1 | AN75: 0
A76: 265 | C76: 0 | D76: =_xlfn.NORM.DIST($F76,Berechnung!$AG$2,INDIRECT("machineData!L" & MATCH(Berechnung!$F$2,Arbeitsplatzdaten!A:A,0)),TRUE) -> 1 | E76: 0 | F76: 265 | H76: 0 | I76: =_xlfn.NORM.DIST($F76,Berechnung!$AG$2,INDIRECT("machineData!M" & MATCH(Berechnung!$F$2,Arbeitsplatzdaten!A:A,0)),TRUE) -> 1 | J76: 0 | K76: 265 | M76: 0 | N76: 1 | O76: 0 | P76: 265 | R76: 0 | S76: 1 | T76: 0 | U76: 265 | W76: 0 | X76: 1 | Y76: 0 | Z76: 265 | AB76: 0 | AC76: 1 | AD76: 0 | AE76: 265 | AJ76: 265 | AL76: 0 | AM76: 1 | AN76: 0
A77: 270 | C77: 0 | D77: =_xlfn.NORM.DIST($F77,Berechnung!$AG$2,INDIRECT("machineData!L" & MATCH(Berechnung!$F$2,Arbeitsplatzdaten!A:A,0)),TRUE) -> 1 | E77: 0 | F77: 270 | H77: 0 | I77: =_xlfn.NORM.DIST($F77,Berechnung!$AG$2,INDIRECT("machineData!M" & MATCH(Berechnung!$F$2,Arbeitsplatzdaten!A:A,0)),TRUE) -> 1 | J77: 0 | K77: 270 | M77: 0 | N77: 1 | O77: 0 | P77: 270 | R77: 0 | S77: 1 | T77: 0 | U77: 270 | W77: 0 | X77: 1 | Y77: 0 | Z77: 270 | AB77: 0 | AC77: 1 | AD77: 0 | AE77: 270 | AJ77: 270 | AL77: 0 | AM77: 1 | AN77: 0
A78: 275 | C78: 0 | D78: =_xlfn.NORM.DIST($F78,Berechnung!$AG$2,INDIRECT("machineData!L" & MATCH(Berechnung!$F$2,Arbeitsplatzdaten!A:A,0)),TRUE) -> 1 | E78: 0 | F78: 275 | H78: 0 | I78: =_xlfn.NORM.DIST($F78,Berechnung!$AG$2,INDIRECT("machineData!M" & MATCH(Berechnung!$F$2,Arbeitsplatzdaten!A:A,0)),TRUE) -> 1 | J78: 0 | K78: 275 | M78: 0 | N78: 1 | O78: 0 | P78: 275 | R78: 0 | S78: 1 | T78: 0 | U78: 275 | W78: 0 | X78: 1 | Y78: 0 | Z78: 275 | AB78: 0 | AC78: 1 | AD78: 0 | AE78: 275 | AJ78: 275 | AL78: 0 | AM78: 1 | AN78: 0
A79: 280 | C79: 0 | D79: =_xlfn.NORM.DIST($F79,Berechnung!$AG$2,INDIRECT("machineData!L" & MATCH(Berechnung!$F$2,Arbeitsplatzdaten!A:A,0)),TRUE) -> 1 | E79: 0 | F79: 280 | H79: 0 | I79: =_xlfn.NORM.DIST($F79,Berechnung!$AG$2,INDIRECT("machineData!M" & MATCH(Berechnung!$F$2,Arbeitsplatzdaten!A:A,0)),TRUE) -> 1 | J79: 0 | K79: 280 | M79: 0 | N79: 1 | O79: 0 | P79: 280 | R79: 0 | S79: 1 | T79: 0 | U79: 280 | W79: 0 | X79: 1 | Y79: 0 | Z79: 280 | AB79: 0 | AC79: 1 | AD79: 0 | AE79: 280 | AJ79: 280 | AL79: 0 | AM79: 1 | AN79: 0
A80: 285 | C80: 0 | D80: =_xlfn.NORM.DIST($F80,Berechnung!$AG$2,INDIRECT("machineData!L" & MATCH(Berechnung!$F$2,Arbeitsplatzdaten!A:A,0)),TRUE) -> 1 | E80: 0 | F80: 285 | H80: 0 | I80: =_xlfn.NORM.DIST($F80,Berechnung!$AG$2,INDIRECT("machineData!M" & MATCH(Berechnung!$F$2,Arbeitsplatzdaten!A:A,0)),TRUE) -> 1 | J80: 0 | K80: 285 | M80: 0 | N80: 1 | O80: 0 | P80: 285 | R80: 0 | S80: 1 | T80: 0 | U80: 285 | W80: 0 | X80: 1 | Y80: 0 | Z80: 285 | AB80: 0 | AC80: 1 | AD80: 0 | AE80: 285 | AJ80: 285 | AL80: 0 | AM80: 1 | AN80: 0
A81: 290 | C81: 0 | D81: =_xlfn.NORM.DIST($F81,Berechnung!$AG$2,INDIRECT("machineData!L" & MATCH(Berechnung!$F$2,Arbeitsplatzdaten!A:A,0)),TRUE) -> 1 | E81: 0 | F81: 290 | H81: 0 | I81: =_xlfn.NORM.DIST($F81,Berechnung!$AG$2,INDIRECT("machineData!M" & MATCH(Berechnung!$F$2,Arbeitsplatzdaten!A:A,0)),TRUE) -> 1 | J81: 0 | K81: 290 | M81: 0 | N81: 1 | O81: 0 | P81: 290 | R81: 0 | S81: 1 | T81: 0 | U81: 290 | W81: 0 | X81: 1 | Y81: 0 | Z81: 290 | AB81: 0 | AC81: 1 | AD81: 0 | AE81: 290 | AJ81: 290 | AL81: 0 | AM81: 1 | AN81: 0
A82: 295 | C82: 0 | D82: =_xlfn.NORM.DIST($F82,Berechnung!$AG$2,INDIRECT("machineData!L" & MATCH(Berechnung!$F$2,Arbeitsplatzdaten!A:A,0)),TRUE) -> 1 | E82: 0 | F82: 295 | H82: 0 | I82: =_xlfn.NORM.DIST($F82,Berechnung!$AG$2,INDIRECT("machineData!M" & MATCH(Berechnung!$F$2,Arbeitsplatzdaten!A:A,0)),TRUE) -> 1 | J82: 0 | K82: 295 | M82: 0 | N82: 1 | O82: 0 | P82: 295 | R82: 0 | S82: 1 | T82: 0 | U82: 295 | W82: 0 | X82: 1 | Y82: 0 | Z82: 295 | AB82: 0 | AC82: 1 | AD82: 0 | AE82: 295 | AJ82: 295 | AL82: 0 | AM82: 1 | AN82: 0
A83: 300 | C83: 0 | D83: =_xlfn.NORM.DIST($F83,Berechnung!$AG$2,INDIRECT("machineData!L" & MATCH(Berechnung!$F$2,Arbeitsplatzdaten!A:A,0)),TRUE) -> 1 | E83: 0 | F83: 300 | H83: 0 | I83: =_xlfn.NORM.DIST($F83,Berechnung!$AG$2,INDIRECT("machineData!M" & MATCH(Berechnung!$F$2,Arbeitsplatzdaten!A:A,0)),TRUE) -> 1 | J83: 0 | K83: 300 | M83: 0 | N83: 1 | O83: 0 | P83: 300 | R83: 0 | S83: 1 | T83: 0 | U83: 300 | W83: 0 | X83: 1 | Y83: 0 | Z83: 300 | AB83: 0 | AC83: 1 | AD83: 0 | AE83: 300 | AJ83: 300 | AL83: 0 | AM83: 1 | AN83: 0
A84: 305 | C84: 0 | D84: =_xlfn.NORM.DIST($F84,Berechnung!$AG$2,INDIRECT("machineData!L" & MATCH(Berechnung!$F$2,Arbeitsplatzdaten!A:A,0)),TRUE) -> 1 | E84: 0 | F84: 305 | H84: 0 | I84: =_xlfn.NORM.DIST($F84,Berechnung!$AG$2,INDIRECT("machineData!M" & MATCH(Berechnung!$F$2,Arbeitsplatzdaten!A:A,0)),TRUE) -> 1 | J84: 0 | K84: 305 | M84: 0 | N84: 1 | O84: 0 | P84: 305 | R84: 0 | S84: 1 | T84: 0 | U84: 305 | W84: 0 | X84: 1 | Y84: 0 | Z84: 305 | AB84: 0 | AC84: 1 | AD84: 0 | AE84: 305 | AJ84: 305 | AL84: 0 | AM84: 1 | AN84: 0
A85: 310 | C85: =Anzahl_Daten*E85 -> 0 | D85: =_xlfn.NORM.DIST($F85,Berechnung!$AG$2,INDIRECT("machineData!L" & MATCH(Berechnung!$F$2,Arbeitsplatzdaten!A:A,0)),TRUE) -> 1 | E85: =D85-D84 -> 0 | F85: 310 | H85: =Anzahl_Daten*J85 -> 0 | I85: =_xlfn.NORM.DIST($F85,Berechnung!$AG$2,INDIRECT("machineData!M" & MATCH(Berechnung!$F$2,Arbeitsplatzdaten!A:A,0)),TRUE) -> 1 | J85: =I85-I84 -> 0 | K85: 310 | M85: 0 | N85: 1 | O85: =N85-N84 -> 0 | P85: 310 | R85: 0 | S85: 1 | T85: =S85-S84 -> 0 | U85: 310 | W85: 0 | X85: 1 | Y85: 0 | Z85: 310 | AB85: 0 | AC85: 1 | AD85: 0 | AE85: 310 | AJ85: 310 | AL85: 0 | AM85: 1 | AN85: 0
A86: 315 | C86: 0 | D86: =_xlfn.NORM.DIST($F86,Berechnung!$AG$2,INDIRECT("machineData!L" & MATCH(Berechnung!$F$2,Arbeitsplatzdaten!A:A,0)),TRUE) -> 1 | E86: 0 | F86: 315 | H86: 0 | I86: =_xlfn.NORM.DIST($F86,Berechnung!$AG$2,INDIRECT("machineData!M" & MATCH(Berechnung!$F$2,Arbeitsplatzdaten!A:A,0)),TRUE) -> 1 | J86: 0 | K86: 315 | M86: 0 | N86: 1 | O86: 0 | P86: 315 | R86: 0 | S86: 1 | T86: 0 | U86: 315 | W86: 0 | X86: 1 | Y86: 0 | Z86: 315 | AB86: 0 | AC86: 1 | AD86: 0 | AE86: 315 | AJ86: 315 | AL86: 0 | AM86: 1 | AN86: 0
A87: 320 | C87: 0 | D87: =_xlfn.NORM.DIST($F87,Berechnung!$AG$2,INDIRECT("machineData!L" & MATCH(Berechnung!$F$2,Arbeitsplatzdaten!A:A,0)),TRUE) -> 1 | E87: 0 | F87: 320 | H87: 0 | I87: =_xlfn.NORM.DIST($F87,Berechnung!$AG$2,INDIRECT("machineData!M" & MATCH(Berechnung!$F$2,Arbeitsplatzdaten!A:A,0)),TRUE) -> 1 | J87: 0 | K87: 320 | M87: 0 | N87: 1 | O87: 0 | P87: 320 | R87: 0 | S87: 1 | T87: 0 | U87: 320 | W87: 0 | X87: 1 | Y87: 0 | Z87: 320 | AB87: 0 | AC87: 1 | AD87: 0 | AE87: 320 | AJ87: 320 | AL87: 0 | AM87: 1 | AN87: 0
A88: 325 | C88: 0 | D88: =_xlfn.NORM.DIST($F88,Berechnung!$AG$2,INDIRECT("machineData!L" & MATCH(Berechnung!$F$2,Arbeitsplatzdaten!A:A,0)),TRUE) -> 1 | E88: 0 | F88: 325 | H88: 0 | I88: =_xlfn.NORM.DIST($F88,Berechnung!$AG$2,INDIRECT("machineData!M" & MATCH(Berechnung!$F$2,Arbeitsplatzdaten!A:A,0)),TRUE) -> 1 | J88: 0 | K88: 325 | M88: 0 | N88: 1 | O88: 0 | P88: 325 | R88: 0 | S88: 1 | T88: 0 | U88: 325 | W88: 0 | X88: 1 | Y88: 0 | Z88: 325 | AB88: 0 | AC88: 1 | AD88: 0 | AE88: 325 | AJ88: 325 | AL88: 0 | AM88: 1 | AN88: 0
A89: 330 | C89: 0 | D89: =_xlfn.NORM.DIST($F89,Berechnung!$AG$2,INDIRECT("machineData!L" & MATCH(Berechnung!$F$2,Arbeitsplatzdaten!A:A,0)),TRUE) -> 1 | E89: 0 | F89: 330 | H89: 0 | I89: =_xlfn.NORM.DIST($F89,Berechnung!$AG$2,INDIRECT("machineData!M" & MATCH(Berechnung!$F$2,Arbeitsplatzdaten!A:A,0)),TRUE) -> 1 | J89: 0 | K89: 330 | M89: 0 | N89: 1 | O89: 0 | P89: 330 | R89: 0 | S89: 1 | T89: 0 | U89: 330 | W89: 0 | X89: 1 | Y89: 0 | Z89: 330 | AB89: 0 | AC89: 1 | AD89: 0 | AE89: 330 | AJ89: 330 | AL89: 0 | AM89: 1 | AN89: 0
A90: 335 | C90: 0 | D90: =_xlfn.NORM.DIST($F90,Berechnung!$AG$2,INDIRECT("machineData!L" & MATCH(Berechnung!$F$2,Arbeitsplatzdaten!A:A,0)),TRUE) -> 1 | E90: 0 | F90: 335 | H90: 0 | I90: =_xlfn.NORM.DIST($F90,Berechnung!$AG$2,INDIRECT("machineData!M" & MATCH(Berechnung!$F$2,Arbeitsplatzdaten!A:A,0)),TRUE) -> 1 | J90: 0 | K90: 335 | M90: 0 | N90: 1 | O90: 0 | P90: 335 | R90: 0 | S90: 1 | T90: 0 | U90: 335 | W90: 0 | X90: 1 | Y90: 0 | Z90: 335 | AB90: 0 | AC90: 1 | AD90: 0 | AE90: 335 | AJ90: 335 | AL90: 0 | AM90: 1 | AN90: 0
A91: 340 | C91: 0 | D91: =_xlfn.NORM.DIST($F91,Berechnung!$AG$2,INDIRECT("machineData!L" & MATCH(Berechnung!$F$2,Arbeitsplatzdaten!A:A,0)),TRUE) -> 1 | E91: 0 | F91: 340 | H91: 0 | I91: =_xlfn.NORM.DIST($F91,Berechnung!$AG$2,INDIRECT("machineData!M" & MATCH(Berechnung!$F$2,Arbeitsplatzdaten!A:A,0)),TRUE) -> 1 | J91: 0 | K91: 340 | M91: 0 | N91: 1 | O91: 0 | P91: 340 | R91: 0 | S91: 1 | T91: 0 | U91: 340 | W91: 0 | X91: 1 | Y91: 0 | Z91: 340 | AB91: 0 | AC91: 1 | AD91: 0 | AE91: 340 | AJ91: 340 | AL91: 0 | AM91: 1 | AN91: 0
A92: 345 | C92: 0 | D92: =_xlfn.NORM.DIST($F92,Berechnung!$AG$2,INDIRECT("machineData!L" & MATCH(Berechnung!$F$2,Arbeitsplatzdaten!A:A,0)),TRUE) -> 1 | E92: 0 | F92: 345 | H92: 0 | I92: =_xlfn.NORM.DIST($F92,Berechnung!$AG$2,INDIRECT("machineData!M" & MATCH(Berechnung!$F$2,Arbeitsplatzdaten!A:A,0)),TRUE) -> 1 | J92: 0 | K92: 345 | M92: 0 | N92: 1 | O92: 0 | P92: 345 | R92: 0 | S92: 1 | T92: 0 | U92: 345 | W92: 0 | X92: 1 | Y92: 0 | Z92: 345 | AB92: 0 | AC92: 1 | AD92: 0 | AE92: 345 | AJ92: 345 | AL92: 0 | AM92: 1 | AN92: 0
A93: 350 | C93: 0 | D93: =_xlfn.NORM.DIST($F93,Berechnung!$AG$2,INDIRECT("machineData!L" & MATCH(Berechnung!$F$2,Arbeitsplatzdaten!A:A,0)),TRUE) -> 1 | E93: 0 | F93: 350 | H93: 0 | I93: =_xlfn.NORM.DIST($F93,Berechnung!$AG$2,INDIRECT("machineData!M" & MATCH(Berechnung!$F$2,Arbeitsplatzdaten!A:A,0)),TRUE) -> 1 | J93: 0 | K93: 350 | M93: 0 | N93: 1 | O93: 0 | P93: 350 | R93: 0 | S93: 1 | T93: 0 | U93: 350 | W93: 0 | X93: 1 | Y93: 0 | Z93: 350 | AB93: 0 | AC93: 1 | AD93: 0 | AE93: 350 | AJ93: 350 | AL93: 0 | AM93: 1 | AN93: 0
A94: 355 | C94: 0 | D94: =_xlfn.NORM.DIST($F94,Berechnung!$AG$2,INDIRECT("machineData!L" & MATCH(Berechnung!$F$2,Arbeitsplatzdaten!A:A,0)),TRUE) -> 1 | E94: 0 | F94: 355 | H94: 0 | I94: =_xlfn.NORM.DIST($F94,Berechnung!$AG$2,INDIRECT("machineData!M" & MATCH(Berechnung!$F$2,Arbeitsplatzdaten!A:A,0)),TRUE) -> 1 | J94: 0 | K94: 355 | M94: 0 | N94: 1 | O94: 0 | P94: 355 | R94: 0 | S94: 1 | T94: 0 | U94: 355 | W94: 0 | X94: 1 | Y94: 0 | Z94: 355 | AB94: 0 | AC94: 1 | AD94: 0 | AE94: 355 | AJ94: 355 | AL94: 0 | AM94: 1 | AN94: 0
A95: 360 | C95: 0 | D95: =_xlfn.NORM.DIST($F95,Berechnung!$AG$2,INDIRECT("machineData!L" & MATCH(Berechnung!$F$2,Arbeitsplatzdaten!A:A,0)),TRUE) -> 1 | E95: 0 | F95: 360 | H95: 0 | I95: =_xlfn.NORM.DIST($F95,Berechnung!$AG$2,INDIRECT("machineData!M" & MATCH(Berechnung!$F$2,Arbeitsplatzdaten!A:A,0)),TRUE) -> 1 | J95: 0 | K95: 360 | M95: 0 | N95: 1 | O95: 0 | P95: 360 | R95: 0 | S95: 1 | T95: 0 | U95: 360 | W95: 0 | X95: 1 | Y95: 0 | Z95: 360 | AB95: 0 | AC95: 1 | AD95: 0 | AE95: 360 | AJ95: 360 | AL95: 0 | AM95: 1 | AN95: 0
A96: 365 | C96: 0 | D96: =_xlfn.NORM.DIST($F96,Berechnung!$AG$2,INDIRECT("machineData!L" & MATCH(Berechnung!$F$2,Arbeitsplatzdaten!A:A,0)),TRUE) -> 1 | E96: 0 | F96: 365 | H96: 0 | I96: =_xlfn.NORM.DIST($F96,Berechnung!$AG$2,INDIRECT("machineData!M" & MATCH(Berechnung!$F$2,Arbeitsplatzdaten!A:A,0)),TRUE) -> 1 | J96: 0 | K96: 365 | M96: 0 | N96: 1 | O96: 0 | P96: 365 | R96: 0 | S96: 1 | T96: 0 | U96: 365 | W96: 0 | X96: 1 | Y96: 0 | Z96: 365 | AB96: 0 | AC96: 1 | AD96: 0 | AE96: 365 | AJ96: 365 | AL96: 0 | AM96: 1 | AN96: 0
A97: 370 | C97: 0 | D97: =_xlfn.NORM.DIST($F97,Berechnung!$AG$2,INDIRECT("machineData!L" & MATCH(Berechnung!$F$2,Arbeitsplatzdaten!A:A,0)),TRUE) -> 1 | E97: 0 | F97: 370 | H97: 0 | I97: =_xlfn.NORM.DIST($F97,Berechnung!$AG$2,INDIRECT("machineData!M" & MATCH(Berechnung!$F$2,Arbeitsplatzdaten!A:A,0)),TRUE) -> 1 | J97: 0 | K97: 370 | M97: 0 | N97: 1 | O97: 0 | P97: 370 | R97: 0 | S97: 1 | T97: 0 | U97: 370 | W97: 0 | X97: 1 | Y97: 0 | Z97: 370 | AB97: 0 | AC97: 1 | AD97: 0 | AE97: 370 | AJ97: 370 | AL97: 0 | AM97: 1 | AN97: 0
A98: 375 | C98: 0 | D98: =_xlfn.NORM.DIST($F98,Berechnung!$AG$2,INDIRECT("machineData!L" & MATCH(Berechnung!$F$2,Arbeitsplatzdaten!A:A,0)),TRUE) -> 1 | E98: 0 | F98: 375 | H98: 0 | I98: =_xlfn.NORM.DIST($F98,Berechnung!$AG$2,INDIRECT("machineData!M" & MATCH(Berechnung!$F$2,Arbeitsplatzdaten!A:A,0)),TRUE) -> 1 | J98: 0 | K98: 375 | M98: 0 | N98: 1 | O98: 0 | P98: 375 | R98: 0 | S98: 1 | T98: 0 | U98: 375 | W98: 0 | X98: 1 | Y98: 0 | Z98: 375 | AB98: 0 | AC98: 1 | AD98: 0 | AE98: 375 | AJ98: 375 | AL98: 0 | AM98: 1 | AN98: 0
A99: 380 | C99: 0 | D99: =_xlfn.NORM.DIST($F99,Berechnung!$AG$2,INDIRECT("machineData!L" & MATCH(Berechnung!$F$2,Arbeitsplatzdaten!A:A,0)),TRUE) -> 1 | E99: 0 | F99: 380 | H99: 0 | I99: =_xlfn.NORM.DIST($F99,Berechnung!$AG$2,INDIRECT("machineData!M" & MATCH(Berechnung!$F$2,Arbeitsplatzdaten!A:A,0)),TRUE) -> 1 | J99: 0 | K99: 380 | M99: 0 | N99: 1 | O99: 0 | P99: 380 | R99: 0 | S99: 1 | T99: 0 | U99: 380 | W99: 0 | X99: 1 | Y99: 0 | Z99: 380 | AB99: 0 | AC99: 1 | AD99: 0 | AE99: 380 | AJ99: 380 | AL99: 0 | AM99: 1 | AN99: 0
A100: 385 | C100: 0 | D100: =_xlfn.NORM.DIST($F100,Berechnung!$AG$2,INDIRECT("machineData!L" & MATCH(Berechnung!$F$2,Arbeitsplatzdaten!A:A,0)),TRUE) -> 1 | E100: 0 | F100: 385 | H100: 0 | I100: =_xlfn.NORM.DIST($F100,Berechnung!$AG$2,INDIRECT("machineData!M" & MATCH(Berechnung!$F$2,Arbeitsplatzdaten!A:A,0)),TRUE) -> 1 | J100: 0 | K100: 385 | M100: 0 | N100: 1 | O100: 0 | P100: 385 | R100: 0 | S100: 1 | T100: 0 | U100: 385 | W100: 0 | X100: 1 | Y100: 0 | Z100: 385 | AB100: 0 | AC100: 1 | AD100: 0 | AE100: 385 | AJ100: 385 | AL100: 0 | AM100: 1 | AN100: 0
A101: 390 | C101: 0 | D101: =_xlfn.NORM.DIST($F101,Berechnung!$AG$2,INDIRECT("machineData!L" & MATCH(Berechnung!$F$2,Arbeitsplatzdaten!A:A,0)),TRUE) -> 1 | E101: 0 | F101: 390 | H101: 0 | I101: =_xlfn.NORM.DIST($F101,Berechnung!$AG$2,INDIRECT("machineData!M" & MATCH(Berechnung!$F$2,Arbeitsplatzdaten!A:A,0)),TRUE) -> 1 | J101: 0 | K101: 390 | M101: 0 | N101: 1 | O101: 0 | P101: 390 | R101: 0 | S101: 1 | T101: 0 | U101: 390 | W101: 0 | X101: 1 | Y101: 0 | Z101: 390 | AB101: 0 | AC101: 1 | AD101: 0 | AE101: 390 | AJ101: 390 | AL101: 0 | AM101: 1 | AN101: 0
A102: 395 | C102: 0 | D102: =_xlfn.NORM.DIST($F102,Berechnung!$AG$2,INDIRECT("machineData!L" & MATCH(Berechnung!$F$2,Arbeitsplatzdaten!A:A,0)),TRUE) -> 1 | E102: 0 | F102: 395 | H102: 0 | I102: =_xlfn.NORM.DIST($F102,Berechnung!$AG$2,INDIRECT("machineData!M" & MATCH(Berechnung!$F$2,Arbeitsplatzdaten!A:A,0)),TRUE) -> 1 | J102: 0 | K102: 395 | M102: 0 | N102: 1 | O102: 0 | P102: 395 | R102: 0 | S102: 1 | T102: 0 | U102: 395 | W102: 0 | X102: 1 | Y102: 0 | Z102: 395 | AB102: 0 | AC102: 1 | AD102: 0 | AE102: 395 | AJ102: 395 | AL102: 0 | AM102: 1 | AN102: 0
A103: 400 | C103: 0 | D103: =_xlfn.NORM.DIST($F103,Berechnung!$AG$2,INDIRECT("machineData!L" & MATCH(Berechnung!$F$2,Arbeitsplatzdaten!A:A,0)),TRUE) -> 1 | E103: 0 | F103: 400 | H103: 0 | I103: =_xlfn.NORM.DIST($F103,Berechnung!$AG$2,INDIRECT("machineData!M" & MATCH(Berechnung!$F$2,Arbeitsplatzdaten!A:A,0)),TRUE) -> 1 | J103: 0 | K103: 400 | M103: 0 | N103: 1 | O103: 0 | P103: 400 | R103: 0 | S103: 1 | T103: 0 | U103: 400 | W103: 0 | X103: 1 | Y103: 0 | Z103: 400 | AB103: 0 | AC103: 1 | AD103: 0 | AE103: 400 | AJ103: 400 | AL103: 0 | AM103: 1 | AN103: 0
A104: 405 | C104: 0 | D104: =_xlfn.NORM.DIST($F104,Berechnung!$AG$2,INDIRECT("machineData!L" & MATCH(Berechnung!$F$2,Arbeitsplatzdaten!A:A,0)),TRUE) -> 1 | E104: 0 | F104: 405 | H104: 0 | I104: =_xlfn.NORM.DIST($F104,Berechnung!$AG$2,INDIRECT("machineData!M" & MATCH(Berechnung!$F$2,Arbeitsplatzdaten!A:A,0)),TRUE) -> 1 | J104: 0 | K104: 405 | M104: 0 | N104: 1 | O104: 0 | P104: 405 | R104: 0 | S104: 1 | T104: 0 | U104: 405 | W104: 0 | X104: 1 | Y104: 0 | Z104: 405 | AB104: 0 | AC104: 1 | AD104: 0 | AE104: 405 | AJ104: 405 | AL104: 0 | AM104: 1 | AN104: 0
A105: 410 | C105: 0 | D105: =_xlfn.NORM.DIST($F105,Berechnung!$AG$2,INDIRECT("machineData!L" & MATCH(Berechnung!$F$2,Arbeitsplatzdaten!A:A,0)),TRUE) -> 1 | E105: 0 | F105: 410 | H105: 0 | I105: =_xlfn.NORM.DIST($F105,Berechnung!$AG$2,INDIRECT("machineData!M" & MATCH(Berechnung!$F$2,Arbeitsplatzdaten!A:A,0)),TRUE) -> 1 | J105: 0 | K105: 410 | M105: 0 | N105: 1 | O105: 0 | P105: 410 | R105: 0 | S105: 1 | T105: 0 | U105: 410 | W105: 0 | X105: 1 | Y105: 0 | Z105: 410 | AB105: 0 | AC105: 1 | AD105: 0 | AE105: 410 | AJ105: 410 | AL105: 0 | AM105: 1 | AN105: 0
A106: 415 | C106: 0 | D106: =_xlfn.NORM.DIST($F106,Berechnung!$AG$2,INDIRECT("machineData!L" & MATCH(Berechnung!$F$2,Arbeitsplatzdaten!A:A,0)),TRUE) -> 1 | E106: 0 | F106: 415 | H106: 0 | I106: =_xlfn.NORM.DIST($F106,Berechnung!$AG$2,INDIRECT("machineData!M" & MATCH(Berechnung!$F$2,Arbeitsplatzdaten!A:A,0)),TRUE) -> 1 | J106: 0 | K106: 415 | M106: 0 | N106: 1 | O106: 0 | P106: 415 | R106: 0 | S106: 1 | T106: 0 | U106: 415 | W106: 0 | X106: 1 | Y106: 0 | Z106: 415 | AB106: 0 | AC106: 1 | AD106: 0 | AE106: 415 | AJ106: 415 | AL106: 0 | AM106: 1 | AN106: 0
A107: 420 | C107: 0 | D107: =_xlfn.NORM.DIST($F107,Berechnung!$AG$2,INDIRECT("machineData!L" & MATCH(Berechnung!$F$2,Arbeitsplatzdaten!A:A,0)),TRUE) -> 1 | E107: 0 | F107: 420 | H107: 0 | I107: =_xlfn.NORM.DIST($F107,Berechnung!$AG$2,INDIRECT("machineData!M" & MATCH(Berechnung!$F$2,Arbeitsplatzdaten!A:A,0)),TRUE) -> 1 | J107: 0 | K107: 420 | M107: 0 | N107: 1 | O107: 0 | P107: 420 | R107: 0 | S107: 1 | T107: 0 | U107: 420 | W107: 0 | X107: 1 | Y107: 0 | Z107: 420 | AB107: 0 | AC107: 1 | AD107: 0 | AE107: 420 | AJ107: 420 | AL107: 0 | AM107: 1 | AN107: 0
A108: 425 | C108: 0 | D108: =_xlfn.NORM.DIST($F108,Berechnung!$AG$2,INDIRECT("machineData!L" & MATCH(Berechnung!$F$2,Arbeitsplatzdaten!A:A,0)),TRUE) -> 1 | E108: 0 | F108: 425 | H108: 0 | I108: =_xlfn.NORM.DIST($F108,Berechnung!$AG$2,INDIRECT("machineData!M" & MATCH(Berechnung!$F$2,Arbeitsplatzdaten!A:A,0)),TRUE) -> 1 | J108: 0 | K108: 425 | M108: 0 | N108: 1 | O108: 0 | P108: 425 | R108: 0 | S108: 1 | T108: 0 | U108: 425 | W108: 0 | X108: 1 | Y108: 0 | Z108: 425 | AB108: 0 | AC108: 1 | AD108: 0 | AE108: 425 | AJ108: 425 | AL108: 0 | AM108: 1 | AN108: 0
A109: 430 | C109: 0 | D109: =_xlfn.NORM.DIST($F109,Berechnung!$AG$2,INDIRECT("machineData!L" & MATCH(Berechnung!$F$2,Arbeitsplatzdaten!A:A,0)),TRUE) -> 1 | E109: 0 | F109: 430 | H109: 0 | I109: =_xlfn.NORM.DIST($F109,Berechnung!$AG$2,INDIRECT("machineData!M" & MATCH(Berechnung!$F$2,Arbeitsplatzdaten!A:A,0)),TRUE) -> 1 | J109: 0 | K109: 430 | M109: 0 | N109: 1 | O109: 0 | P109: 430 | R109: 0 | S109: 1 | T109: 0 | U109: 430 | W109: 0 | X109: 1 | Y109: 0 | Z109: 430 | AB109: 0 | AC109: 1 | AD109: 0 | AE109: 430 | AJ109: 430 | AL109: 0 | AM109: 1 | AN109: 0
A110: 435 | C110: 0 | D110: =_xlfn.NORM.DIST($F110,Berechnung!$AG$2,INDIRECT("machineData!L" & MATCH(Berechnung!$F$2,Arbeitsplatzdaten!A:A,0)),TRUE) -> 1 | E110: 0 | F110: 435 | H110: 0 | I110: =_xlfn.NORM.DIST($F110,Berechnung!$AG$2,INDIRECT("machineData!M" & MATCH(Berechnung!$F$2,Arbeitsplatzdaten!A:A,0)),TRUE) -> 1 | J110: 0 | K110: 435 | M110: 0 | N110: 1 | O110: 0 | P110: 435 | R110: 0 | S110: 1 | T110: 0 | U110: 435 | W110: 0 | X110: 1 | Y110: 0 | Z110: 435 | AB110: 0 | AC110: 1 | AD110: 0 | AE110: 435 | AJ110: 435 | AL110: 0 | AM110: 1 | AN110: 0
A111: 440 | C111: 0 | D111: =_xlfn.NORM.DIST($F111,Berechnung!$AG$2,INDIRECT("machineData!L" & MATCH(Berechnung!$F$2,Arbeitsplatzdaten!A:A,0)),TRUE) -> 1 | E111: 0 | F111: 440 | H111: 0 | I111: =_xlfn.NORM.DIST($F111,Berechnung!$AG$2,INDIRECT("machineData!M" & MATCH(Berechnung!$F$2,Arbeitsplatzdaten!A:A,0)),TRUE) -> 1 | J111: 0 | K111: 440 | M111: 0 | N111: 1 | O111: 0 | P111: 440 | R111: 0 | S111: 1 | T111: 0 | U111: 440 | W111: 0 | X111: 1 | Y111: 0 | Z111: 440 | AB111: 0 | AC111: 1 | AD111: 0 | AE111: 440 | AJ111: 440 | AL111: 0 | AM111: 1 | AN111: 0
A112: 445 | C112: 0 | D112: =_xlfn.NORM.DIST($F112,Berechnung!$AG$2,INDIRECT("machineData!L" & MATCH(Berechnung!$F$2,Arbeitsplatzdaten!A:A,0)),TRUE) -> 1 | E112: 0 | F112: 445 | H112: 0 | I112: =_xlfn.NORM.DIST($F112,Berechnung!$AG$2,INDIRECT("machineData!M" & MATCH(Berechnung!$F$2,Arbeitsplatzdaten!A:A,0)),TRUE) -> 1 | J112: 0 | K112: 445 | M112: 0 | N112: 1 | O112: 0 | P112: 445 | R112: 0 | S112: 1 | T112: 0 | U112: 445 | W112: 0 | X112: 1 | Y112: 0 | Z112: 445 | AB112: 0 | AC112: 1 | AD112: 0 | AE112: 445 | AJ112: 445 | AL112: 0 | AM112: 1 | AN112: 0
A113: 450 | C113: 0 | D113: =_xlfn.NORM.DIST($F113,Berechnung!$AG$2,INDIRECT("machineData!L" & MATCH(Berechnung!$F$2,Arbeitsplatzdaten!A:A,0)),TRUE) -> 1 | E113: 0 | F113: 450 | H113: 0 | I113: =_xlfn.NORM.DIST($F113,Berechnung!$AG$2,INDIRECT("machineData!M" & MATCH(Berechnung!$F$2,Arbeitsplatzdaten!A:A,0)),TRUE) -> 1 | J113: 0 | K113: 450 | M113: 0 | N113: 1 | O113: 0 | P113: 450 | R113: 0 | S113: 1 | T113: 0 | U113: 450 | W113: 0 | X113: 1 | Y113: 0 | Z113: 450 | AB113: 0 | AC113: 1 | AD113: 0 | AE113: 450 | AJ113: 450 | AL113: 0 | AM113: 1 | AN113: 0
A114: 455 | C114: 0 | D114: =_xlfn.NORM.DIST($F114,Berechnung!$AG$2,INDIRECT("machineData!L" & MATCH(Berechnung!$F$2,Arbeitsplatzdaten!A:A,0)),TRUE) -> 1 | E114: 0 | F114: 455 | H114: 0 | I114: =_xlfn.NORM.DIST($F114,Berechnung!$AG$2,INDIRECT("machineData!M" & MATCH(Berechnung!$F$2,Arbeitsplatzdaten!A:A,0)),TRUE) -> 1 | J114: 0 | K114: 455 | M114: 0 | N114: 1 | O114: 0 | P114: 455 | R114: 0 | S114: 1 | T114: 0 | U114: 455 | W114: 0 | X114: 1 | Y114: 0 | Z114: 455 | AB114: 0 | AC114: 1 | AD114: 0 | AE114: 455 | AJ114: 455 | AL114: 0 | AM114: 1 | AN114: 0
A115: 460 | C115: 0 | D115: =_xlfn.NORM.DIST($F115,Berechnung!$AG$2,INDIRECT("machineData!L" & MATCH(Berechnung!$F$2,Arbeitsplatzdaten!A:A,0)),TRUE) -> 1 | E115: 0 | F115: 460 | H115: 0 | I115: =_xlfn.NORM.DIST($F115,Berechnung!$AG$2,INDIRECT("machineData!M" & MATCH(Berechnung!$F$2,Arbeitsplatzdaten!A:A,0)),TRUE) -> 1 | J115: 0 | K115: 460 | M115: 0 | N115: 1 | O115: 0 | P115: 460 | R115: 0 | S115: 1 | T115: 0 | U115: 460 | W115: 0 | X115: 1 | Y115: 0 | Z115: 460 | AB115: 0 | AC115: 1 | AD115: 0 | AE115: 460 | AJ115: 460 | AL115: 0 | AM115: 1 | AN115: 0
A116: 465 | C116: 0 | D116: =_xlfn.NORM.DIST($F116,Berechnung!$AG$2,INDIRECT("machineData!L" & MATCH(Berechnung!$F$2,Arbeitsplatzdaten!A:A,0)),TRUE) -> 1 | E116: 0 | F116: 465 | H116: 0 | I116: =_xlfn.NORM.DIST($F116,Berechnung!$AG$2,INDIRECT("machineData!M" & MATCH(Berechnung!$F$2,Arbeitsplatzdaten!A:A,0)),TRUE) -> 1 | J116: 0 | K116: 465 | M116: 0 | N116: 1 | O116: 0 | P116: 465 | R116: 0 | S116: 1 | T116: 0 | U116: 465 | W116: 0 | X116: 1 | Y116: 0 | Z116: 465 | AB116: 0 | AC116: 1 | AD116: 0 | AE116: 465 | AJ116: 465 | AL116: 0 | AM116: 1 | AN116: 0
A117: 470 | C117: 0 | D117: =_xlfn.NORM.DIST($F117,Berechnung!$AG$2,INDIRECT("machineData!L" & MATCH(Berechnung!$F$2,Arbeitsplatzdaten!A:A,0)),TRUE) -> 1 | E117: 0 | F117: 470 | H117: 0 | I117: =_xlfn.NORM.DIST($F117,Berechnung!$AG$2,INDIRECT("machineData!M" & MATCH(Berechnung!$F$2,Arbeitsplatzdaten!A:A,0)),TRUE) -> 1 | J117: 0 | K117: 470 | M117: 0 | N117: 1 | O117: 0 | P117: 470 | R117: 0 | S117: 1 | T117: 0 | U117: 470 | W117: 0 | X117: 1 | Y117: 0 | Z117: 470 | AB117: 0 | AC117: 1 | AD117: 0 | AE117: 470 | AJ117: 470 | AL117: 0 | AM117: 1 | AN117: 0
A118: 475 | C118: 0 | D118: =_xlfn.NORM.DIST($F118,Berechnung!$AG$2,INDIRECT("machineData!L" & MATCH(Berechnung!$F$2,Arbeitsplatzdaten!A:A,0)),TRUE) -> 1 | E118: 0 | F118: 475 | H118: 0 | I118: =_xlfn.NORM.DIST($F118,Berechnung!$AG$2,INDIRECT("machineData!M" & MATCH(Berechnung!$F$2,Arbeitsplatzdaten!A:A,0)),TRUE) -> 1 | J118: 0 | K118: 475 | M118: 0 | N118: 1 | O118: 0 | P118: 475 | R118: 0 | S118: 1 | T118: 0 | U118: 475 | W118: 0 | X118: 1 | Y118: 0 | Z118: 475 | AB118: 0 | AC118: 1 | AD118: 0 | AE118: 475 | AJ118: 475 | AL118: 0 | AM118: 1 | AN118: 0
A119: 480 | C119: 0 | D119: =_xlfn.NORM.DIST($F119,Berechnung!$AG$2,INDIRECT("machineData!L" & MATCH(Berechnung!$F$2,Arbeitsplatzdaten!A:A,0)),TRUE) -> 1 | E119: 0 | F119: 480 | H119: 0 | I119: =_xlfn.NORM.DIST($F119,Berechnung!$AG$2,INDIRECT("machineData!M" & MATCH(Berechnung!$F$2,Arbeitsplatzdaten!A:A,0)),TRUE) -> 1 | J119: 0 | K119: 480 | M119: 0 | N119: 1 | O119: 0 | P119: 480 | R119: 0 | S119: 1 | T119: 0 | U119: 480 | W119: 0 | X119: 1 | Y119: 0 | Z119: 480 | AB119: 0 | AC119: 1 | AD119: 0 | AE119: 480 | AJ119: 480 | AL119: 0 | AM119: 1 | AN119: 0
A120: 485 | C120: 0 | D120: =_xlfn.NORM.DIST($F120,Berechnung!$AG$2,INDIRECT("machineData!L" & MATCH(Berechnung!$F$2,Arbeitsplatzdaten!A:A,0)),TRUE) -> 1 | E120: 0 | F120: 485 | H120: 0 | I120: =_xlfn.NORM.DIST($F120,Berechnung!$AG$2,INDIRECT("machineData!M" & MATCH(Berechnung!$F$2,Arbeitsplatzdaten!A:A,0)),TRUE) -> 1 | J120: 0 | K120: 485 | M120: 0 | N120: 1 | O120: 0 | P120: 485 | R120: 0 | S120: 1 | T120: 0 | U120: 485 | W120: 0 | X120: 1 | Y120: 0 | Z120: 485 | AB120: 0 | AC120: 1 | AD120: 0 | AE120: 485 | AJ120: 485 | AL120: 0 | AM120: 1 | AN120: 0
A121: 490 | C121: 0 | D121: =_xlfn.NORM.DIST($F121,Berechnung!$AG$2,INDIRECT("machineData!L" & MATCH(Berechnung!$F$2,Arbeitsplatzdaten!A:A,0)),TRUE) -> 1 | E121: 0 | F121: 490 | H121: 0 | I121: =_xlfn.NORM.DIST($F121,Berechnung!$AG$2,INDIRECT("machineData!M" & MATCH(Berechnung!$F$2,Arbeitsplatzdaten!A:A,0)),TRUE) -> 1 | J121: 0 | K121: 490 | M121: 0 | N121: 1 | O121: 0 | P121: 490 | R121: 0 | S121: 1 | T121: 0 | U121: 490 | W121: 0 | X121: 1 | Y121: 0 | Z121: 490 | AB121: 0 | AC121: 1 | AD121: 0 | AE121: 490 | AJ121: 490 | AL121: 0 | AM121: 1 | AN121: 0
A122: 495 | C122: 0 | D122: =_xlfn.NORM.DIST($F122,Berechnung!$AG$2,INDIRECT("machineData!L" & MATCH(Berechnung!$F$2,Arbeitsplatzdaten!A:A,0)),TRUE) -> 1 | E122: 0 | F122: 495 | H122: 0 | I122: =_xlfn.NORM.DIST($F122,Berechnung!$AG$2,INDIRECT("machineData!M" & MATCH(Berechnung!$F$2,Arbeitsplatzdaten!A:A,0)),TRUE) -> 1 | J122: 0 | K122: 495 | M122: 0 | N122: 1 | O122: 0 | P122: 495 | R122: 0 | S122: 1 | T122: 0 | U122: 495 | W122: 0 | X122: 1 | Y122: 0 | Z122: 495 | AB122: 0 | AC122: 1 | AD122: 0 | AE122: 495 | AJ122: 495 | AL122: 0 | AM122: 1 | AN122: 0
A123: 500 | C123: 0 | D123: =_xlfn.NORM.DIST($F123,Berechnung!$AG$2,INDIRECT("machineData!L" & MATCH(Berechnung!$F$2,Arbeitsplatzdaten!A:A,0)),TRUE) -> 1 | E123: 0 | F123: 500 | H123: 0 | I123: =_xlfn.NORM.DIST($F123,Berechnung!$AG$2,INDIRECT("machineData!M" & MATCH(Berechnung!$F$2,Arbeitsplatzdaten!A:A,0)),TRUE) -> 1 | J123: 0 | K123: 500 | M123: 0 | N123: 1 | O123: 0 | P123: 500 | R123: 0 | S123: 1 | T123: 0 | U123: 500 | W123: 0 | X123: 1 | Y123: 0 | Z123: 500 | AB123: 0 | AC123: 1 | AD123: 0 | AE123: 500 | AJ123: 500 | AL123: 0 | AM123: 1 | AN123: 0
A124: 505 | C124: 0 | D124: =_xlfn.NORM.DIST($F124,Berechnung!$AG$2,INDIRECT("machineData!L" & MATCH(Berechnung!$F$2,Arbeitsplatzdaten!A:A,0)),TRUE) -> 1 | E124: 0 | F124: 505 | H124: 0 | I124: =_xlfn.NORM.DIST($F124,Berechnung!$AG$2,INDIRECT("machineData!M" & MATCH(Berechnung!$F$2,Arbeitsplatzdaten!A:A,0)),TRUE) -> 1 | J124: 0 | K124: 505 | M124: 0 | N124: 1 | O124: 0 | P124: 505 | R124: 0 | S124: 1 | T124: 0 | U124: 505 | W124: 0 | X124: 1 | Y124: 0 | Z124: 505 | AB124: 0 | AC124: 1 | AD124: 0 | AE124: 505 | AJ124: 505 | AL124: 0 | AM124: 1 | AN124: 0
A125: 510 | C125: 0 | D125: =_xlfn.NORM.DIST($F125,Berechnung!$AG$2,INDIRECT("machineData!L" & MATCH(Berechnung!$F$2,Arbeitsplatzdaten!A:A,0)),TRUE) -> 1 | E125: 0 | F125: 510 | H125: 0 | I125: =_xlfn.NORM.DIST($F125,Berechnung!$AG$2,INDIRECT("machineData!M" & MATCH(Berechnung!$F$2,Arbeitsplatzdaten!A:A,0)),TRUE) -> 1 | J125: 0 | K125: 510 | M125: 0 | N125: 1 | O125: 0 | P125: 510 | R125: 0 | S125: 1 | T125: 0 | U125: 510 | W125: 0 | X125: 1 | Y125: 0 | Z125: 510 | AB125: 0 | AC125: 1 | AD125: 0 | AE125: 510 | AJ125: 510 | AL125: 0 | AM125: 1 | AN125: 0
A126: 515 | C126: 0 | D126: =_xlfn.NORM.DIST($F126,Berechnung!$AG$2,INDIRECT("machineData!L" & MATCH(Berechnung!$F$2,Arbeitsplatzdaten!A:A,0)),TRUE) -> 1 | E126: 0 | F126: 515 | H126: 0 | I126: =_xlfn.NORM.DIST($F126,Berechnung!$AG$2,INDIRECT("machineData!M" & MATCH(Berechnung!$F$2,Arbeitsplatzdaten!A:A,0)),TRUE) -> 1 | J126: 0 | K126: 515 | M126: 0 | N126: 1 | O126: 0 | P126: 515 | R126: 0 | S126: 1 | T126: 0 | U126: 515 | W126: 0 | X126: 1 | Y126: 0 | Z126: 515 | AB126: 0 | AC126: 1 | AD126: 0 | AE126: 515 | AJ126: 515 | AL126: 0 | AM126: 1 | AN126: 0
A127: 520 | C127: 0 | D127: =_xlfn.NORM.DIST($F127,Berechnung!$AG$2,INDIRECT("machineData!L" & MATCH(Berechnung!$F$2,Arbeitsplatzdaten!A:A,0)),TRUE) -> 1 | E127: 0 | F127: 520 | H127: 0 | I127: =_xlfn.NORM.DIST($F127,Berechnung!$AG$2,INDIRECT("machineData!M" & MATCH(Berechnung!$F$2,Arbeitsplatzdaten!A:A,0)),TRUE) -> 1 | J127: 0 | K127: 520 | M127: 0 | N127: 1 | O127: 0 | P127: 520 | R127: 0 | S127: 1 | T127: 0 | U127: 520 | W127: 0 | X127: 1 | Y127: 0 | Z127: 520 | AB127: 0 | AC127: 1 | AD127: 0 | AE127: 520 | AJ127: 520 | AL127: 0 | AM127: 1 | AN127: 0
A128: 525 | C128: 0 | D128: =_xlfn.NORM.DIST($F128,Berechnung!$AG$2,INDIRECT("machineData!L" & MATCH(Berechnung!$F$2,Arbeitsplatzdaten!A:A,0)),TRUE) -> 1 | E128: 0 | F128: 525 | H128: 0 | I128: =_xlfn.NORM.DIST($F128,Berechnung!$AG$2,INDIRECT("machineData!M" & MATCH(Berechnung!$F$2,Arbeitsplatzdaten!A:A,0)),TRUE) -> 1 | J128: 0 | K128: 525 | M128: 0 | N128: 1 | O128: 0 | P128: 525 | R128: 0 | S128: 1 | T128: 0 | U128: 525 | W128: 0 | X128: 1 | Y128: 0 | Z128: 525 | AB128: 0 | AC128: 1 | AD128: 0 | AE128: 525 | AJ128: 525 | AL128: 0 | AM128: 1 | AN128: 0
A129: 530 | C129: 0 | D129: =_xlfn.NORM.DIST($F129,Berechnung!$AG$2,INDIRECT("machineData!L" & MATCH(Berechnung!$F$2,Arbeitsplatzdaten!A:A,0)),TRUE) -> 1 | E129: 0 | F129: 530 | H129: 0 | I129: =_xlfn.NORM.DIST($F129,Berechnung!$AG$2,INDIRECT("machineData!M" & MATCH(Berechnung!$F$2,Arbeitsplatzdaten!A:A,0)),TRUE) -> 1 | J129: 0 | K129: 530 | M129: 0 | N129: 1 | O129: 0 | P129: 530 | R129: 0 | S129: 1 | T129: 0 | U129: 530 | W129: 0 | X129: 1 | Y129: 0 | Z129: 530 | AB129: 0 | AC129: 1 | AD129: 0 | AE129: 530 | AJ129: 530 | AL129: 0 | AM129: 1 | AN129: 0
A130: 535 | C130: 0 | D130: =_xlfn.NORM.DIST($F130,Berechnung!$AG$2,INDIRECT("machineData!L" & MATCH(Berechnung!$F$2,Arbeitsplatzdaten!A:A,0)),TRUE) -> 1 | E130: 0 | F130: 535 | H130: 0 | I130: =_xlfn.NORM.DIST($F130,Berechnung!$AG$2,INDIRECT("machineData!M" & MATCH(Berechnung!$F$2,Arbeitsplatzdaten!A:A,0)),TRUE) -> 1 | J130: 0 | K130: 535 | M130: 0 | N130: 1 | O130: 0 | P130: 535 | R130: 0 | S130: 1 | T130: 0 | U130: 535 | W130: 0 | X130: 1 | Y130: 0 | Z130: 535 | AB130: 0 | AC130: 1 | AD130: 0 | AE130: 535 | AJ130: 535 | AL130: 0 | AM130: 1 | AN130: 0
A131: 540 | C131: 0 | D131: =_xlfn.NORM.DIST($F131,Berechnung!$AG$2,INDIRECT("machineData!L" & MATCH(Berechnung!$F$2,Arbeitsplatzdaten!A:A,0)),TRUE) -> 1 | E131: 0 | F131: 540 | H131: 0 | I131: =_xlfn.NORM.DIST($F131,Berechnung!$AG$2,INDIRECT("machineData!M" & MATCH(Berechnung!$F$2,Arbeitsplatzdaten!A:A,0)),TRUE) -> 1 | J131: 0 | K131: 540 | M131: 0 | N131: 1 | O131: 0 | P131: 540 | R131: 0 | S131: 1 | T131: 0 | U131: 540 | W131: 0 | X131: 1 | Y131: 0 | Z131: 540 | AB131: 0 | AC131: 1 | AD131: 0 | AE131: 540 | AJ131: 540 | AL131: 0 | AM131: 1 | AN131: 0
A132: 545 | C132: 0 | D132: =_xlfn.NORM.DIST($F132,Berechnung!$AG$2,INDIRECT("machineData!L" & MATCH(Berechnung!$F$2,Arbeitsplatzdaten!A:A,0)),TRUE) -> 1 | E132: 0 | F132: 545 | H132: 0 | I132: =_xlfn.NORM.DIST($F132,Berechnung!$AG$2,INDIRECT("machineData!M" & MATCH(Berechnung!$F$2,Arbeitsplatzdaten!A:A,0)),TRUE) -> 1 | J132: 0 | K132: 545 | M132: 0 | N132: =_xlfn.NORM.DIST($F132,0,$AQ$2,TRUE) -> 1 | O132: 0 | P132: 545 | R132: 0 | S132: =_xlfn.NORM.DIST($F132,0,$AR$2,TRUE) -> 1 | T132: 0 | U132: 545 | W132: 0 | X132: =_xlfn.NORM.DIST($F132,0,$AS$2,TRUE) -> 1 | Y132: 0 | Z132: 545 | AB132: 0 | AC132: 1 | AD132: 0 | AE132: 545 | AJ132: 545 | AL132: 0 | AM132: 1 | AN132: 0
A133: =A132+Klassenbreite -> 550 | C133: 0 | D133: =_xlfn.NORM.DIST($F133,Berechnung!$AG$2,INDIRECT("machineData!L" & MATCH(Berechnung!$F$2,Arbeitsplatzdaten!A:A,0)),TRUE) -> 1 | E133: 0 | F133: =F132+Klassenbreite -> 550 | H133: 0 | I133: =_xlfn.NORM.DIST($F133,Berechnung!$AG$2,INDIRECT("machineData!M" & MATCH(Berechnung!$F$2,Arbeitsplatzdaten!A:A,0)),TRUE) -> 1 | J133: 0 | K133: =K132+Klassenbreite -> 550 | M133: =100*O133 -> 0 | N133: 1 | O133: 0 | P133: =P132+Klassenbreite -> 550 | R133: =100*T133 -> 0 | S133: 1 | T133: 0 | U133: =U132+Klassenbreite -> 550 | W133: =100*Y133 -> 0 | X133: 1 | Y133: =X133-X132 -> 0 | Z133: =Z132+Klassenbreite -> 550 | AB133: =100*AD133 -> 0 | AC133: =_xlfn.NORM.DIST($F133,0,$AT$2,TRUE) -> 1 | AD133: =AC133-AC132 -> 0 | AE133: =AE132+Klassenbreite -> 550 | AG133: =100*AI133 ->  | AH133: =_xlfn.NORM.DIST($F133,0,$AU$2,TRUE) ->  | AI133: =AH133-AH132 ->  | AJ133: =AJ132+Klassenbreite -> 550 | AL133: =100*AN133 -> 0 | AM133: =_xlfn.NORM.DIST($F133,0,$AV$2,TRUE) -> 1 | AN133: =AM133-AM132 -> 0
A134: 555 | C134: 0 | D134: =_xlfn.NORM.DIST($F134,Berechnung!$AG$2,INDIRECT("machineData!L" & MATCH(Berechnung!$F$2,Arbeitsplatzdaten!A:A,0)),TRUE) -> 1 | E134: 0 | F134: 555 | H134: 0 | I134: =_xlfn.NORM.DIST($F134,Berechnung!$AG$2,INDIRECT("machineData!M" & MATCH(Berechnung!$F$2,Arbeitsplatzdaten!A:A,0)),TRUE) -> 1 | J134: 0 | K134: 555 | M134: 0 | N134: 1 | O134: 0 | P134: 555 | R134: 0 | S134: 1 | T134: 0 | U134: 555 | W134: 0 | X134: 1 | Y134: 0 | Z134: 555 | AB134: 0 | AC134: 1 | AD134: 0 | AE134: 555 | AJ134: 555 | AL134: 0 | AM134: 1 | AN134: 0
A135: 560 | C135: 0 | D135: =_xlfn.NORM.DIST($F135,Berechnung!$AG$2,INDIRECT("machineData!L" & MATCH(Berechnung!$F$2,Arbeitsplatzdaten!A:A,0)),TRUE) -> 1 | E135: 0 | F135: 560 | H135: 0 | I135: =_xlfn.NORM.DIST($F135,Berechnung!$AG$2,INDIRECT("machineData!M" & MATCH(Berechnung!$F$2,Arbeitsplatzdaten!A:A,0)),TRUE) -> 1 | J135: 0 | K135: 560 | M135: 0 | N135: 1 | O135: 0 | P135: 560 | R135: 0 | S135: 1 | T135: 0 | U135: 560 | W135: 0 | X135: 1 | Y135: 0 | Z135: 560 | AB135: 0 | AC135: 1 | AD135: 0 | AE135: 560 | AJ135: 560 | AL135: 0 | AM135: 1 | AN135: 0
A136: 565 | C136: 0 | D136: =_xlfn.NORM.DIST($F136,Berechnung!$AG$2,INDIRECT("machineData!L" & MATCH(Berechnung!$F$2,Arbeitsplatzdaten!A:A,0)),TRUE) -> 1 | E136: 0 | F136: 565 | H136: 0 | I136: =_xlfn.NORM.DIST($F136,Berechnung!$AG$2,INDIRECT("machineData!M" & MATCH(Berechnung!$F$2,Arbeitsplatzdaten!A:A,0)),TRUE) -> 1 | J136: 0 | K136: 565 | M136: 0 | N136: 1 | O136: 0 | P136: 565 | R136: 0 | S136: 1 | T136: 0 | U136: 565 | W136: 0 | X136: 1 | Y136: 0 | Z136: 565 | AB136: 0 | AC136: 1 | AD136: 0 | AE136: 565 | AJ136: 565 | AL136: 0 | AM136: 1 | AN136: 0
A137: 570 | C137: 0 | D137: =_xlfn.NORM.DIST($F137,Berechnung!$AG$2,INDIRECT("machineData!L" & MATCH(Berechnung!$F$2,Arbeitsplatzdaten!A:A,0)),TRUE) -> 1 | E137: 0 | F137: 570 | H137: 0 | I137: =_xlfn.NORM.DIST($F137,Berechnung!$AG$2,INDIRECT("machineData!M" & MATCH(Berechnung!$F$2,Arbeitsplatzdaten!A:A,0)),TRUE) -> 1 | J137: 0 | K137: 570 | M137: 0 | N137: 1 | O137: 0 | P137: 570 | R137: 0 | S137: 1 | T137: 0 | U137: 570 | W137: 0 | X137: 1 | Y137: 0 | Z137: 570 | AB137: 0 | AC137: 1 | AD137: 0 | AE137: 570 | AJ137: 570 | AL137: 0 | AM137: 1 | AN137: 0
A138: 575 | C138: 0 | D138: =_xlfn.NORM.DIST($F138,Berechnung!$AG$2,INDIRECT("machineData!L" & MATCH(Berechnung!$F$2,Arbeitsplatzdaten!A:A,0)),TRUE) -> 1 | E138: 0 | F138: 575 | H138: 0 | I138: =_xlfn.NORM.DIST($F138,Berechnung!$AG$2,INDIRECT("machineData!M" & MATCH(Berechnung!$F$2,Arbeitsplatzdaten!A:A,0)),TRUE) -> 1 | J138: 0 | K138: 575 | M138: 0 | N138: 1 | O138: 0 | P138: 575 | R138: 0 | S138: 1 | T138: 0 | U138: 575 | W138: 0 | X138: 1 | Y138: 0 | Z138: 575 | AB138: 0 | AC138: 1 | AD138: 0 | AE138: 575 | AJ138: 575 | AL138: 0 | AM138: 1 | AN138: 0
A139: 580 | C139: 0 | D139: =_xlfn.NORM.DIST($F139,Berechnung!$AG$2,INDIRECT("machineData!L" & MATCH(Berechnung!$F$2,Arbeitsplatzdaten!A:A,0)),TRUE) -> 1 | E139: 0 | F139: 580 | H139: 0 | I139: =_xlfn.NORM.DIST($F139,Berechnung!$AG$2,INDIRECT("machineData!M" & MATCH(Berechnung!$F$2,Arbeitsplatzdaten!A:A,0)),TRUE) -> 1 | J139: 0 | K139: 580 | M139: 0 | N139: 1 | O139: 0 | P139: 580 | R139: 0 | S139: 1 | T139: 0 | U139: 580 | W139: 0 | X139: 1 | Y139: 0 | Z139: 580 | AB139: 0 | AC139: 1 | AD139: 0 | AE139: 580 | AJ139: 580 | AL139: 0 | AM139: 1 | AN139: 0
A140: 585 | C140: 0 | D140: =_xlfn.NORM.DIST($F140,Berechnung!$AG$2,INDIRECT("machineData!L" & MATCH(Berechnung!$F$2,Arbeitsplatzdaten!A:A,0)),TRUE) -> 1 | E140: 0 | F140: 585 | H140: 0 | I140: =_xlfn.NORM.DIST($F140,Berechnung!$AG$2,INDIRECT("machineData!M" & MATCH(Berechnung!$F$2,Arbeitsplatzdaten!A:A,0)),TRUE) -> 1 | J140: 0 | K140: 585 | M140: 0 | N140: 1 | O140: 0 | P140: 585 | R140: 0 | S140: 1 | T140: 0 | U140: 585 | W140: 0 | X140: 1 | Y140: 0 | Z140: 585 | AB140: 0 | AC140: 1 | AD140: 0 | AE140: 585 | AJ140: 585 | AL140: 0 | AM140: 1 | AN140: 0
A141: 590 | C141: 0 | D141: =_xlfn.NORM.DIST($F141,Berechnung!$AG$2,INDIRECT("machineData!L" & MATCH(Berechnung!$F$2,Arbeitsplatzdaten!A:A,0)),TRUE) -> 1 | E141: 0 | F141: 590 | H141: 0 | I141: =_xlfn.NORM.DIST($F141,Berechnung!$AG$2,INDIRECT("machineData!M" & MATCH(Berechnung!$F$2,Arbeitsplatzdaten!A:A,0)),TRUE) -> 1 | J141: 0 | K141: 590 | M141: 0 | N141: 1 | O141: 0 | P141: 590 | R141: 0 | S141: 1 | T141: 0 | U141: 590 | W141: 0 | X141: 1 | Y141: 0 | Z141: 590 | AB141: 0 | AC141: 1 | AD141: 0 | AE141: 590 | AJ141: 590 | AL141: 0 | AM141: 1 | AN141: 0
A142: 595 | C142: 0 | D142: =_xlfn.NORM.DIST($F142,Berechnung!$AG$2,INDIRECT("machineData!L" & MATCH(Berechnung!$F$2,Arbeitsplatzdaten!A:A,0)),TRUE) -> 1 | E142: 0 | F142: 595 | H142: 0 | I142: =_xlfn.NORM.DIST($F142,Berechnung!$AG$2,INDIRECT("machineData!M" & MATCH(Berechnung!$F$2,Arbeitsplatzdaten!A:A,0)),TRUE) -> 1 | J142: 0 | K142: 595 | M142: 0 | N142: 1 | O142: 0 | P142: 595 | R142: 0 | S142: 1 | T142: 0 | U142: 595 | W142: 0 | X142: 1 | Y142: 0 | Z142: 595 | AB142: 0 | AC142: 1 | AD142: 0 | AE142: 595 | AJ142: 595 | AL142: 0 | AM142: 1 | AN142: 0
A143: 600 | C143: 0 | D143: =_xlfn.NORM.DIST($F143,Berechnung!$AG$2,INDIRECT("machineData!L" & MATCH(Berechnung!$F$2,Arbeitsplatzdaten!A:A,0)),TRUE) -> 1 | E143: 0 | F143: 600 | H143: 0 | I143: =_xlfn.NORM.DIST($F143,Berechnung!$AG$2,INDIRECT("machineData!M" & MATCH(Berechnung!$F$2,Arbeitsplatzdaten!A:A,0)),TRUE) -> 1 | J143: 0 | K143: 600 | M143: 0 | N143: 1 | O143: 0 | P143: 600 | R143: 0 | S143: 1 | T143: 0 | U143: 600 | W143: 0 | X143: 1 | Y143: 0 | Z143: 600 | AB143: 0 | AC143: 1 | AD143: 0 | AE143: 600 | AJ143: 600 | AL143: 0 | AM143: 1 | AN143: 0
A144: 605 | C144: 0 | D144: =_xlfn.NORM.DIST($F144,Berechnung!$AG$2,INDIRECT("machineData!L" & MATCH(Berechnung!$F$2,Arbeitsplatzdaten!A:A,0)),TRUE) -> 1 | E144: 0 | F144: 605 | H144: 0 | I144: =_xlfn.NORM.DIST($F144,Berechnung!$AG$2,INDIRECT("machineData!M" & MATCH(Berechnung!$F$2,Arbeitsplatzdaten!A:A,0)),TRUE) -> 1 | J144: 0 | K144: 605 | M144: 0 | N144: 1 | O144: 0 | P144: 605 | R144: 0 | S144: 1 | T144: 0 | U144: 605 | W144: 0 | X144: 1 | Y144: 0 | Z144: 605 | AB144: 0 | AC144: 1 | AD144: 0 | AE144: 605 | AJ144: 605 | AL144: 0 | AM144: 1 | AN144: 0
A145: 610 | C145: 0 | D145: =_xlfn.NORM.DIST($F145,Berechnung!$AG$2,INDIRECT("machineData!L" & MATCH(Berechnung!$F$2,Arbeitsplatzdaten!A:A,0)),TRUE) -> 1 | E145: 0 | F145: 610 | H145: 0 | I145: =_xlfn.NORM.DIST($F145,Berechnung!$AG$2,INDIRECT("machineData!M" & MATCH(Berechnung!$F$2,Arbeitsplatzdaten!A:A,0)),TRUE) -> 1 | J145: 0 | K145: 610 | M145: 0 | N145: 1 | O145: 0 | P145: 610 | R145: 0 | S145: 1 | T145: 0 | U145: 610 | W145: 0 | X145: 1 | Y145: 0 | Z145: 610 | AB145: 0 | AC145: 1 | AD145: 0 | AE145: 610 | AJ145: 610 | AL145: 0 | AM145: 1 | AN145: 0
A146: 615 | C146: 0 | D146: =_xlfn.NORM.DIST($F146,Berechnung!$AG$2,INDIRECT("machineData!L" & MATCH(Berechnung!$F$2,Arbeitsplatzdaten!A:A,0)),TRUE) -> 1 | E146: 0 | F146: 615 | H146: 0 | I146: =_xlfn.NORM.DIST($F146,Berechnung!$AG$2,INDIRECT("machineData!M" & MATCH(Berechnung!$F$2,Arbeitsplatzdaten!A:A,0)),TRUE) -> 1 | J146: 0 | K146: 615 | M146: 0 | N146: 1 | O146: 0 | P146: 615 | R146: 0 | S146: 1 | T146: 0 | U146: 615 | W146: 0 | X146: 1 | Y146: 0 | Z146: 615 | AB146: 0 | AC146: 1 | AD146: 0 | AE146: 615 | AJ146: 615 | AL146: 0 | AM146: 1 | AN146: 0
A147: 620 | C147: 0 | D147: =_xlfn.NORM.DIST($F147,Berechnung!$AG$2,INDIRECT("machineData!L" & MATCH(Berechnung!$F$2,Arbeitsplatzdaten!A:A,0)),TRUE) -> 1 | E147: 0 | F147: 620 | H147: 0 | I147: =_xlfn.NORM.DIST($F147,Berechnung!$AG$2,INDIRECT("machineData!M" & MATCH(Berechnung!$F$2,Arbeitsplatzdaten!A:A,0)),TRUE) -> 1 | J147: 0 | K147: 620 | M147: 0 | N147: 1 | O147: 0 | P147: 620 | R147: 0 | S147: 1 | T147: 0 | U147: 620 | W147: 0 | X147: 1 | Y147: 0 | Z147: 620 | AB147: 0 | AC147: 1 | AD147: 0 | AE147: 620 | AJ147: 620 | AL147: 0 | AM147: 1 | AN147: 0
A148: 625 | C148: 0 | D148: =_xlfn.NORM.DIST($F148,Berechnung!$AG$2,INDIRECT("machineData!L" & MATCH(Berechnung!$F$2,Arbeitsplatzdaten!A:A,0)),TRUE) -> 1 | E148: 0 | F148: 625 | H148: 0 | I148: =_xlfn.NORM.DIST($F148,Berechnung!$AG$2,INDIRECT("machineData!M" & MATCH(Berechnung!$F$2,Arbeitsplatzdaten!A:A,0)),TRUE) -> 1 | J148: 0 | K148: 625 | M148: 0 | N148: 1 | O148: 0 | P148: 625 | R148: 0 | S148: 1 | T148: 0 | U148: 625 | W148: 0 | X148: 1 | Y148: 0 | Z148: 625 | AB148: 0 | AC148: 1 | AD148: 0 | AE148: 625 | AJ148: 625 | AL148: 0 | AM148: 1 | AN148: 0
A149: 630 | C149: =Anzahl_Daten*E149 -> 0 | D149: =_xlfn.NORM.DIST($F149,Berechnung!$AG$2,INDIRECT("machineData!L" & MATCH(Berechnung!$F$2,Arbeitsplatzdaten!A:A,0)),TRUE) -> 1 | E149: =D149-D148 -> 0 | F149: 630 | H149: =Anzahl_Daten*J149 -> 0 | I149: =_xlfn.NORM.DIST($F149,Berechnung!$AG$2,INDIRECT("machineData!M" & MATCH(Berechnung!$F$2,Arbeitsplatzdaten!A:A,0)),TRUE) -> 1 | J149: =I149-I148 -> 0 | K149: 630 | M149: 0 | N149: 1 | O149: =N149-N148 -> 0 | P149: 630 | R149: 0 | S149: 1 | T149: =S149-S148 -> 0 | U149: 630 | W149: 0 | X149: 1 | Y149: 0 | Z149: 630 | AB149: 0 | AC149: 1 | AD149: 0 | AE149: 630 | AJ149: 630 | AL149: 0 | AM149: 1 | AN149: 0
A150: 635 | C150: 0 | D150: =_xlfn.NORM.DIST($F150,Berechnung!$AG$2,INDIRECT("machineData!L" & MATCH(Berechnung!$F$2,Arbeitsplatzdaten!A:A,0)),TRUE) -> 1 | E150: 0 | F150: 635 | H150: 0 | I150: =_xlfn.NORM.DIST($F150,Berechnung!$AG$2,INDIRECT("machineData!M" & MATCH(Berechnung!$F$2,Arbeitsplatzdaten!A:A,0)),TRUE) -> 1 | J150: 0 | K150: 635 | M150: 0 | N150: 1 | O150: 0 | P150: 635 | R150: 0 | S150: 1 | T150: 0 | U150: 635 | W150: 0 | X150: 1 | Y150: 0 | Z150: 635 | AB150: 0 | AC150: 1 | AD150: 0 | AE150: 635 | AJ150: 635 | AL150: 0 | AM150: 1 | AN150: 0
A151: 640 | C151: 0 | D151: =_xlfn.NORM.DIST($F151,Berechnung!$AG$2,INDIRECT("machineData!L" & MATCH(Berechnung!$F$2,Arbeitsplatzdaten!A:A,0)),TRUE) -> 1 | E151: 0 | F151: 640 | H151: 0 | I151: =_xlfn.NORM.DIST($F151,Berechnung!$AG$2,INDIRECT("machineData!M" & MATCH(Berechnung!$F$2,Arbeitsplatzdaten!A:A,0)),TRUE) -> 1 | J151: 0 | K151: 640 | M151: 0 | N151: 1 | O151: 0 | P151: 640 | R151: 0 | S151: 1 | T151: 0 | U151: 640 | W151: 0 | X151: 1 | Y151: 0 | Z151: 640 | AB151: 0 | AC151: 1 | AD151: 0 | AE151: 640 | AJ151: 640 | AL151: 0 | AM151: 1 | AN151: 0
A152: 645 | C152: 0 | D152: =_xlfn.NORM.DIST($F152,Berechnung!$AG$2,INDIRECT("machineData!L" & MATCH(Berechnung!$F$2,Arbeitsplatzdaten!A:A,0)),TRUE) -> 1 | E152: 0 | F152: 645 | H152: 0 | I152: =_xlfn.NORM.DIST($F152,Berechnung!$AG$2,INDIRECT("machineData!M" & MATCH(Berechnung!$F$2,Arbeitsplatzdaten!A:A,0)),TRUE) -> 1 | J152: 0 | K152: 645 | M152: 0 | N152: 1 | O152: 0 | P152: 645 | R152: 0 | S152: 1 | T152: 0 | U152: 645 | W152: 0 | X152: 1 | Y152: 0 | Z152: 645 | AB152: 0 | AC152: 1 | AD152: 0 | AE152: 645 | AJ152: 645 | AL152: 0 | AM152: 1 | AN152: 0
A153: 650 | C153: 0 | D153: =_xlfn.NORM.DIST($F153,Berechnung!$AG$2,INDIRECT("machineData!L" & MATCH(Berechnung!$F$2,Arbeitsplatzdaten!A:A,0)),TRUE) -> 1 | E153: 0 | F153: 650 | H153: 0 | I153: =_xlfn.NORM.DIST($F153,Berechnung!$AG$2,INDIRECT("machineData!M" & MATCH(Berechnung!$F$2,Arbeitsplatzdaten!A:A,0)),TRUE) -> 1 | J153: 0 | K153: 650 | M153: 0 | N153: 1 | O153: 0 | P153: 650 | R153: 0 | S153: 1 | T153: 0 | U153: 650 | W153: 0 | X153: 1 | Y153: 0 | Z153: 650 | AB153: 0 | AC153: 1 | AD153: 0 | AE153: 650 | AJ153: 650 | AL153: 0 | AM153: 1 | AN153: 0
A154: 655 | C154: 0 | D154: =_xlfn.NORM.DIST($F154,Berechnung!$AG$2,INDIRECT("machineData!L" & MATCH(Berechnung!$F$2,Arbeitsplatzdaten!A:A,0)),TRUE) -> 1 | E154: 0 | F154: 655 | H154: 0 | I154: =_xlfn.NORM.DIST($F154,Berechnung!$AG$2,INDIRECT("machineData!M" & MATCH(Berechnung!$F$2,Arbeitsplatzdaten!A:A,0)),TRUE) -> 1 | J154: 0 | K154: 655 | M154: 0 | N154: 1 | O154: 0 | P154: 655 | R154: 0 | S154: 1 | T154: 0 | U154: 655 | W154: 0 | X154: 1 | Y154: 0 | Z154: 655 | AB154: 0 | AC154: 1 | AD154: 0 | AE154: 655 | AJ154: 655 | AL154: 0 | AM154: 1 | AN154: 0
A155: 660 | C155: 0 | D155: =_xlfn.NORM.DIST($F155,Berechnung!$AG$2,INDIRECT("machineData!L" & MATCH(Berechnung!$F$2,Arbeitsplatzdaten!A:A,0)),TRUE) -> 1 | E155: 0 | F155: 660 | H155: 0 | I155: =_xlfn.NORM.DIST($F155,Berechnung!$AG$2,INDIRECT("machineData!M" & MATCH(Berechnung!$F$2,Arbeitsplatzdaten!A:A,0)),TRUE) -> 1 | J155: 0 | K155: 660 | M155: 0 | N155: 1 | O155: 0 | P155: 660 | R155: 0 | S155: 1 | T155: 0 | U155: 660 | W155: 0 | X155: 1 | Y155: 0 | Z155: 660 | AB155: 0 | AC155: 1 | AD155: 0 | AE155: 660 | AJ155: 660 | AL155: 0 | AM155: 1 | AN155: 0
A156: 665 | C156: 0 | D156: =_xlfn.NORM.DIST($F156,Berechnung!$AG$2,INDIRECT("machineData!L" & MATCH(Berechnung!$F$2,Arbeitsplatzdaten!A:A,0)),TRUE) -> 1 | E156: 0 | F156: 665 | H156: 0 | I156: =_xlfn.NORM.DIST($F156,Berechnung!$AG$2,INDIRECT("machineData!M" & MATCH(Berechnung!$F$2,Arbeitsplatzdaten!A:A,0)),TRUE) -> 1 | J156: 0 | K156: 665 | M156: 0 | N156: 1 | O156: 0 | P156: 665 | R156: 0 | S156: 1 | T156: 0 | U156: 665 | W156: 0 | X156: 1 | Y156: 0 | Z156: 665 | AB156: 0 | AC156: 1 | AD156: 0 | AE156: 665 | AJ156: 665 | AL156: 0 | AM156: 1 | AN156: 0
A157: 670 | C157: 0 | D157: =_xlfn.NORM.DIST($F157,Berechnung!$AG$2,INDIRECT("machineData!L" & MATCH(Berechnung!$F$2,Arbeitsplatzdaten!A:A,0)),TRUE) -> 1 | E157: 0 | F157: 670 | H157: 0 | I157: =_xlfn.NORM.DIST($F157,Berechnung!$AG$2,INDIRECT("machineData!M" & MATCH(Berechnung!$F$2,Arbeitsplatzdaten!A:A,0)),TRUE) -> 1 | J157: 0 | K157: 670 | M157: 0 | N157: 1 | O157: 0 | P157: 670 | R157: 0 | S157: 1 | T157: 0 | U157: 670 | W157: 0 | X157: 1 | Y157: 0 | Z157: 670 | AB157: 0 | AC157: 1 | AD157: 0 | AE157: 670 | AJ157: 670 | AL157: 0 | AM157: 1 | AN157: 0
A158: 675 | C158: 0 | D158: =_xlfn.NORM.DIST($F158,Berechnung!$AG$2,INDIRECT("machineData!L" & MATCH(Berechnung!$F$2,Arbeitsplatzdaten!A:A,0)),TRUE) -> 1 | E158: 0 | F158: 675 | H158: 0 | I158: =_xlfn.NORM.DIST($F158,Berechnung!$AG$2,INDIRECT("machineData!M" & MATCH(Berechnung!$F$2,Arbeitsplatzdaten!A:A,0)),TRUE) -> 1 | J158: 0 | K158: 675 | M158: 0 | N158: 1 | O158: 0 | P158: 675 | R158: 0 | S158: 1 | T158: 0 | U158: 675 | W158: 0 | X158: 1 | Y158: 0 | Z158: 675 | AB158: 0 | AC158: 1 | AD158: 0 | AE158: 675 | AJ158: 675 | AL158: 0 | AM158: 1 | AN158: 0
A159: 680 | C159: 0 | D159: =_xlfn.NORM.DIST($F159,Berechnung!$AG$2,INDIRECT("machineData!L" & MATCH(Berechnung!$F$2,Arbeitsplatzdaten!A:A,0)),TRUE) -> 1 | E159: 0 | F159: 680 | H159: 0 | I159: =_xlfn.NORM.DIST($F159,Berechnung!$AG$2,INDIRECT("machineData!M" & MATCH(Berechnung!$F$2,Arbeitsplatzdaten!A:A,0)),TRUE) -> 1 | J159: 0 | K159: 680 | M159: 0 | N159: 1 | O159: 0 | P159: 680 | R159: 0 | S159: 1 | T159: 0 | U159: 680 | W159: 0 | X159: 1 | Y159: 0 | Z159: 680 | AB159: 0 | AC159: 1 | AD159: 0 | AE159: 680 | AJ159: 680 | AL159: 0 | AM159: 1 | AN159: 0
A160: 685 | C160: 0 | D160: =_xlfn.NORM.DIST($F160,Berechnung!$AG$2,INDIRECT("machineData!L" & MATCH(Berechnung!$F$2,Arbeitsplatzdaten!A:A,0)),TRUE) -> 1 | E160: 0 | F160: 685 | H160: 0 | I160: =_xlfn.NORM.DIST($F160,Berechnung!$AG$2,INDIRECT("machineData!M" & MATCH(Berechnung!$F$2,Arbeitsplatzdaten!A:A,0)),TRUE) -> 1 | J160: 0 | K160: 685 | M160: 0 | N160: 1 | O160: 0 | P160: 685 | R160: 0 | S160: 1 | T160: 0 | U160: 685 | W160: 0 | X160: 1 | Y160: 0 | Z160: 685 | AB160: 0 | AC160: 1 | AD160: 0 | AE160: 685 | AJ160: 685 | AL160: 0 | AM160: 1 | AN160: 0
A161: 690 | C161: 0 | D161: =_xlfn.NORM.DIST($F161,Berechnung!$AG$2,INDIRECT("machineData!L" & MATCH(Berechnung!$F$2,Arbeitsplatzdaten!A:A,0)),TRUE) -> 1 | E161: 0 | F161: 690 | H161: 0 | I161: =_xlfn.NORM.DIST($F161,Berechnung!$AG$2,INDIRECT("machineData!M" & MATCH(Berechnung!$F$2,Arbeitsplatzdaten!A:A,0)),TRUE) -> 1 | J161: 0 | K161: 690 | M161: 0 | N161: 1 | O161: 0 | P161: 690 | R161: 0 | S161: 1 | T161: 0 | U161: 690 | W161: 0 | X161: 1 | Y161: 0 | Z161: 690 | AB161: 0 | AC161: 1 | AD161: 0 | AE161: 690 | AJ161: 690 | AL161: 0 | AM161: 1 | AN161: 0
A162: 695 | C162: 0 | D162: =_xlfn.NORM.DIST($F162,Berechnung!$AG$2,INDIRECT("machineData!L" & MATCH(Berechnung!$F$2,Arbeitsplatzdaten!A:A,0)),TRUE) -> 1 | E162: 0 | F162: 695 | H162: 0 | I162: =_xlfn.NORM.DIST($F162,Berechnung!$AG$2,INDIRECT("machineData!M" & MATCH(Berechnung!$F$2,Arbeitsplatzdaten!A:A,0)),TRUE) -> 1 | J162: 0 | K162: 695 | M162: 0 | N162: 1 | O162: 0 | P162: 695 | R162: 0 | S162: 1 | T162: 0 | U162: 695 | W162: 0 | X162: 1 | Y162: 0 | Z162: 695 | AB162: 0 | AC162: 1 | AD162: 0 | AE162: 695 | AJ162: 695 | AL162: 0 | AM162: 1 | AN162: 0
A163: 700 | C163: 0 | D163: =_xlfn.NORM.DIST($F163,Berechnung!$AG$2,INDIRECT("machineData!L" & MATCH(Berechnung!$F$2,Arbeitsplatzdaten!A:A,0)),TRUE) -> 1 | E163: 0 | F163: 700 | H163: 0 | I163: =_xlfn.NORM.DIST($F163,Berechnung!$AG$2,INDIRECT("machineData!M" & MATCH(Berechnung!$F$2,Arbeitsplatzdaten!A:A,0)),TRUE) -> 1 | J163: 0 | K163: 700 | M163: 0 | N163: 1 | O163: 0 | P163: 700 | R163: 0 | S163: 1 | T163: 0 | U163: 700 | W163: 0 | X163: 1 | Y163: 0 | Z163: 700 | AB163: 0 | AC163: 1 | AD163: 0 | AE163: 700 | AJ163: 700 | AL163: 0 | AM163: 1 | AN163: 0
A164: 705 | C164: 0 | D164: =_xlfn.NORM.DIST($F164,Berechnung!$AG$2,INDIRECT("machineData!L" & MATCH(Berechnung!$F$2,Arbeitsplatzdaten!A:A,0)),TRUE) -> 1 | E164: 0 | F164: 705 | H164: 0 | I164: =_xlfn.NORM.DIST($F164,Berechnung!$AG$2,INDIRECT("machineData!M" & MATCH(Berechnung!$F$2,Arbeitsplatzdaten!A:A,0)),TRUE) -> 1 | J164: 0 | K164: 705 | M164: 0 | N164: 1 | O164: 0 | P164: 705 | R164: 0 | S164: 1 | T164: 0 | U164: 705 | W164: 0 | X164: 1 | Y164: 0 | Z164: 705 | AB164: 0 | AC164: 1 | AD164: 0 | AE164: 705 | AJ164: 705 | AL164: 0 | AM164: 1 | AN164: 0
A165: 710 | C165: 0 | D165: =_xlfn.NORM.DIST($F165,Berechnung!$AG$2,INDIRECT("machineData!L" & MATCH(Berechnung!$F$2,Arbeitsplatzdaten!A:A,0)),TRUE) -> 1 | E165: 0 | F165: 710 | H165: 0 | I165: =_xlfn.NORM.DIST($F165,Berechnung!$AG$2,INDIRECT("machineData!M" & MATCH(Berechnung!$F$2,Arbeitsplatzdaten!A:A,0)),TRUE) -> 1 | J165: 0 | K165: 710 | M165: 0 | N165: 1 | O165: 0 | P165: 710 | R165: 0 | S165: 1 | T165: 0 | U165: 710 | W165: 0 | X165: 1 | Y165: 0 | Z165: 710 | AB165: 0 | AC165: 1 | AD165: 0 | AE165: 710 | AJ165: 710 | AL165: 0 | AM165: 1 | AN165: 0
A166: 715 | C166: 0 | D166: =_xlfn.NORM.DIST($F166,Berechnung!$AG$2,INDIRECT("machineData!L" & MATCH(Berechnung!$F$2,Arbeitsplatzdaten!A:A,0)),TRUE) -> 1 | E166: 0 | F166: 715 | H166: 0 | I166: =_xlfn.NORM.DIST($F166,Berechnung!$AG$2,INDIRECT("machineData!M" & MATCH(Berechnung!$F$2,Arbeitsplatzdaten!A:A,0)),TRUE) -> 1 | J166: 0 | K166: 715 | M166: 0 | N166: 1 | O166: 0 | P166: 715 | R166: 0 | S166: 1 | T166: 0 | U166: 715 | W166: 0 | X166: 1 | Y166: 0 | Z166: 715 | AB166: 0 | AC166: 1 | AD166: 0 | AE166: 715 | AJ166: 715 | AL166: 0 | AM166: 1 | AN166: 0
A167: 720 | C167: 0 | D167: =_xlfn.NORM.DIST($F167,Berechnung!$AG$2,INDIRECT("machineData!L" & MATCH(Berechnung!$F$2,Arbeitsplatzdaten!A:A,0)),TRUE) -> 1 | E167: 0 | F167: 720 | H167: 0 | I167: =_xlfn.NORM.DIST($F167,Berechnung!$AG$2,INDIRECT("machineData!M" & MATCH(Berechnung!$F$2,Arbeitsplatzdaten!A:A,0)),TRUE) -> 1 | J167: 0 | K167: 720 | M167: 0 | N167: 1 | O167: 0 | P167: 720 | R167: 0 | S167: 1 | T167: 0 | U167: 720 | W167: 0 | X167: 1 | Y167: 0 | Z167: 720 | AB167: 0 | AC167: 1 | AD167: 0 | AE167: 720 | AJ167: 720 | AL167: 0 | AM167: 1 | AN167: 0
A168: 725 | C168: 0 | D168: =_xlfn.NORM.DIST($F168,Berechnung!$AG$2,INDIRECT("machineData!L" & MATCH(Berechnung!$F$2,Arbeitsplatzdaten!A:A,0)),TRUE) -> 1 | E168: 0 | F168: 725 | H168: 0 | I168: =_xlfn.NORM.DIST($F168,Berechnung!$AG$2,INDIRECT("machineData!M" & MATCH(Berechnung!$F$2,Arbeitsplatzdaten!A:A,0)),TRUE) -> 1 | J168: 0 | K168: 725 | M168: 0 | N168: 1 | O168: 0 | P168: 725 | R168: 0 | S168: 1 | T168: 0 | U168: 725 | W168: 0 | X168: 1 | Y168: 0 | Z168: 725 | AB168: 0 | AC168: 1 | AD168: 0 | AE168: 725 | AJ168: 725 | AL168: 0 | AM168: 1 | AN168: 0
A169: 730 | C169: 0 | D169: =_xlfn.NORM.DIST($F169,Berechnung!$AG$2,INDIRECT("machineData!L" & MATCH(Berechnung!$F$2,Arbeitsplatzdaten!A:A,0)),TRUE) -> 1 | E169: 0 | F169: 730 | H169: 0 | I169: =_xlfn.NORM.DIST($F169,Berechnung!$AG$2,INDIRECT("machineData!M" & MATCH(Berechnung!$F$2,Arbeitsplatzdaten!A:A,0)),TRUE) -> 1 | J169: 0 | K169: 730 | M169: 0 | N169: 1 | O169: 0 | P169: 730 | R169: 0 | S169: 1 | T169: 0 | U169: 730 | W169: 0 | X169: 1 | Y169: 0 | Z169: 730 | AB169: 0 | AC169: 1 | AD169: 0 | AE169: 730 | AJ169: 730 | AL169: 0 | AM169: 1 | AN169: 0
A170: 735 | C170: 0 | D170: =_xlfn.NORM.DIST($F170,Berechnung!$AG$2,INDIRECT("machineData!L" & MATCH(Berechnung!$F$2,Arbeitsplatzdaten!A:A,0)),TRUE) -> 1 | E170: 0 | F170: 735 | H170: 0 | I170: =_xlfn.NORM.DIST($F170,Berechnung!$AG$2,INDIRECT("machineData!M" & MATCH(Berechnung!$F$2,Arbeitsplatzdaten!A:A,0)),TRUE) -> 1 | J170: 0 | K170: 735 | M170: 0 | N170: 1 | O170: 0 | P170: 735 | R170: 0 | S170: 1 | T170: 0 | U170: 735 | W170: 0 | X170: 1 | Y170: 0 | Z170: 735 | AB170: 0 | AC170: 1 | AD170: 0 | AE170: 735 | AJ170: 735 | AL170: 0 | AM170: 1 | AN170: 0
A171: 740 | C171: 0 | D171: =_xlfn.NORM.DIST($F171,Berechnung!$AG$2,INDIRECT("machineData!L" & MATCH(Berechnung!$F$2,Arbeitsplatzdaten!A:A,0)),TRUE) -> 1 | E171: 0 | F171: 740 | H171: 0 | I171: =_xlfn.NORM.DIST($F171,Berechnung!$AG$2,INDIRECT("machineData!M" & MATCH(Berechnung!$F$2,Arbeitsplatzdaten!A:A,0)),TRUE) -> 1 | J171: 0 | K171: 740 | M171: 0 | N171: 1 | O171: 0 | P171: 740 | R171: 0 | S171: 1 | T171: 0 | U171: 740 | W171: 0 | X171: 1 | Y171: 0 | Z171: 740 | AB171: 0 | AC171: 1 | AD171: 0 | AE171: 740 | AJ171: 740 | AL171: 0 | AM171: 1 | AN171: 0
A172: 745 | C172: 0 | D172: =_xlfn.NORM.DIST($F172,Berechnung!$AG$2,INDIRECT("machineData!L" & MATCH(Berechnung!$F$2,Arbeitsplatzdaten!A:A,0)),TRUE) -> 1 | E172: 0 | F172: 745 | H172: 0 | I172: =_xlfn.NORM.DIST($F172,Berechnung!$AG$2,INDIRECT("machineData!M" & MATCH(Berechnung!$F$2,Arbeitsplatzdaten!A:A,0)),TRUE) -> 1 | J172: 0 | K172: 745 | M172: 0 | N172: 1 | O172: 0 | P172: 745 | R172: 0 | S172: 1 | T172: 0 | U172: 745 | W172: 0 | X172: 1 | Y172: 0 | Z172: 745 | AB172: 0 | AC172: 1 | AD172: 0 | AE172: 745 | AJ172: 745 | AL172: 0 | AM172: 1 | AN172: 0
A173: 750 | C173: 0 | D173: =_xlfn.NORM.DIST($F173,Berechnung!$AG$2,INDIRECT("machineData!L" & MATCH(Berechnung!$F$2,Arbeitsplatzdaten!A:A,0)),TRUE) -> 1 | E173: 0 | F173: 750 | H173: 0 | I173: =_xlfn.NORM.DIST($F173,Berechnung!$AG$2,INDIRECT("machineData!M" & MATCH(Berechnung!$F$2,Arbeitsplatzdaten!A:A,0)),TRUE) -> 1 | J173: 0 | K173: 750 | M173: 0 | N173: 1 | O173: 0 | P173: 750 | R173: 0 | S173: 1 | T173: 0 | U173: 750 | W173: 0 | X173: 1 | Y173: 0 | Z173: 750 | AB173: 0 | AC173: 1 | AD173: 0 | AE173: 750 | AJ173: 750 | AL173: 0 | AM173: 1 | AN173: 0
A174: 755 | C174: 0 | D174: =_xlfn.NORM.DIST($F174,Berechnung!$AG$2,INDIRECT("machineData!L" & MATCH(Berechnung!$F$2,Arbeitsplatzdaten!A:A,0)),TRUE) -> 1 | E174: 0 | F174: 755 | H174: 0 | I174: =_xlfn.NORM.DIST($F174,Berechnung!$AG$2,INDIRECT("machineData!M" & MATCH(Berechnung!$F$2,Arbeitsplatzdaten!A:A,0)),TRUE) -> 1 | J174: 0 | K174: 755 | M174: 0 | N174: 1 | O174: 0 | P174: 755 | R174: 0 | S174: 1 | T174: 0 | U174: 755 | W174: 0 | X174: 1 | Y174: 0 | Z174: 755 | AB174: 0 | AC174: 1 | AD174: 0 | AE174: 755 | AJ174: 755 | AL174: 0 | AM174: 1 | AN174: 0
A175: 760 | C175: 0 | D175: =_xlfn.NORM.DIST($F175,Berechnung!$AG$2,INDIRECT("machineData!L" & MATCH(Berechnung!$F$2,Arbeitsplatzdaten!A:A,0)),TRUE) -> 1 | E175: 0 | F175: 760 | H175: 0 | I175: =_xlfn.NORM.DIST($F175,Berechnung!$AG$2,INDIRECT("machineData!M" & MATCH(Berechnung!$F$2,Arbeitsplatzdaten!A:A,0)),TRUE) -> 1 | J175: 0 | K175: 760 | M175: 0 | N175: 1 | O175: 0 | P175: 760 | R175: 0 | S175: 1 | T175: 0 | U175: 760 | W175: 0 | X175: 1 | Y175: 0 | Z175: 760 | AB175: 0 | AC175: 1 | AD175: 0 | AE175: 760 | AJ175: 760 | AL175: 0 | AM175: 1 | AN175: 0
A176: 765 | C176: 0 | D176: =_xlfn.NORM.DIST($F176,Berechnung!$AG$2,INDIRECT("machineData!L" & MATCH(Berechnung!$F$2,Arbeitsplatzdaten!A:A,0)),TRUE) -> 1 | E176: 0 | F176: 765 | H176: 0 | I176: =_xlfn.NORM.DIST($F176,Berechnung!$AG$2,INDIRECT("machineData!M" & MATCH(Berechnung!$F$2,Arbeitsplatzdaten!A:A,0)),TRUE) -> 1 | J176: 0 | K176: 765 | M176: 0 | N176: 1 | O176: 0 | P176: 765 | R176: 0 | S176: 1 | T176: 0 | U176: 765 | W176: 0 | X176: 1 | Y176: 0 | Z176: 765 | AB176: 0 | AC176: 1 | AD176: 0 | AE176: 765 | AJ176: 765 | AL176: 0 | AM176: 1 | AN176: 0
A177: 770 | C177: 0 | D177: =_xlfn.NORM.DIST($F177,Berechnung!$AG$2,INDIRECT("machineData!L" & MATCH(Berechnung!$F$2,Arbeitsplatzdaten!A:A,0)),TRUE) -> 1 | E177: 0 | F177: 770 | H177: 0 | I177: =_xlfn.NORM.DIST($F177,Berechnung!$AG$2,INDIRECT("machineData!M" & MATCH(Berechnung!$F$2,Arbeitsplatzdaten!A:A,0)),TRUE) -> 1 | J177: 0 | K177: 770 | M177: 0 | N177: 1 | O177: 0 | P177: 770 | R177: 0 | S177: 1 | T177: 0 | U177: 770 | W177: 0 | X177: 1 | Y177: 0 | Z177: 770 | AB177: 0 | AC177: 1 | AD177: 0 | AE177: 770 | AJ177: 770 | AL177: 0 | AM177: 1 | AN177: 0
A178: 775 | C178: 0 | D178: =_xlfn.NORM.DIST($F178,Berechnung!$AG$2,INDIRECT("machineData!L" & MATCH(Berechnung!$F$2,Arbeitsplatzdaten!A:A,0)),TRUE) -> 1 | E178: 0 | F178: 775 | H178: 0 | I178: =_xlfn.NORM.DIST($F178,Berechnung!$AG$2,INDIRECT("machineData!M" & MATCH(Berechnung!$F$2,Arbeitsplatzdaten!A:A,0)),TRUE) -> 1 | J178: 0 | K178: 775 | M178: 0 | N178: 1 | O178: 0 | P178: 775 | R178: 0 | S178: 1 | T178: 0 | U178: 775 | W178: 0 | X178: 1 | Y178: 0 | Z178: 775 | AB178: 0 | AC178: 1 | AD178: 0 | AE178: 775 | AJ178: 775 | AL178: 0 | AM178: 1 | AN178: 0
A179: 780 | C179: 0 | D179: =_xlfn.NORM.DIST($F179,Berechnung!$AG$2,INDIRECT("machineData!L" & MATCH(Berechnung!$F$2,Arbeitsplatzdaten!A:A,0)),TRUE) -> 1 | E179: 0 | F179: 780 | H179: 0 | I179: =_xlfn.NORM.DIST($F179,Berechnung!$AG$2,INDIRECT("machineData!M" & MATCH(Berechnung!$F$2,Arbeitsplatzdaten!A:A,0)),TRUE) -> 1 | J179: 0 | K179: 780 | M179: 0 | N179: 1 | O179: 0 | P179: 780 | R179: 0 | S179: 1 | T179: 0 | U179: 780 | W179: 0 | X179: 1 | Y179: 0 | Z179: 780 | AB179: 0 | AC179: 1 | AD179: 0 | AE179: 780 | AJ179: 780 | AL179: 0 | AM179: 1 | AN179: 0
A180: 785 | C180: 0 | D180: =_xlfn.NORM.DIST($F180,Berechnung!$AG$2,INDIRECT("machineData!L" & MATCH(Berechnung!$F$2,Arbeitsplatzdaten!A:A,0)),TRUE) -> 1 | E180: 0 | F180: 785 | H180: 0 | I180: =_xlfn.NORM.DIST($F180,Berechnung!$AG$2,INDIRECT("machineData!M" & MATCH(Berechnung!$F$2,Arbeitsplatzdaten!A:A,0)),TRUE) -> 1 | J180: 0 | K180: 785 | M180: 0 | N180: 1 | O180: 0 | P180: 785 | R180: 0 | S180: 1 | T180: 0 | U180: 785 | W180: 0 | X180: 1 | Y180: 0 | Z180: 785 | AB180: 0 | AC180: 1 | AD180: 0 | AE180: 785 | AJ180: 785 | AL180: 0 | AM180: 1 | AN180: 0
A181: 790 | C181: 0 | D181: =_xlfn.NORM.DIST($F181,Berechnung!$AG$2,INDIRECT("machineData!L" & MATCH(Berechnung!$F$2,Arbeitsplatzdaten!A:A,0)),TRUE) -> 1 | E181: 0 | F181: 790 | H181: 0 | I181: =_xlfn.NORM.DIST($F181,Berechnung!$AG$2,INDIRECT("machineData!M" & MATCH(Berechnung!$F$2,Arbeitsplatzdaten!A:A,0)),TRUE) -> 1 | J181: 0 | K181: 790 | M181: 0 | N181: 1 | O181: 0 | P181: 790 | R181: 0 | S181: 1 | T181: 0 | U181: 790 | W181: 0 | X181: 1 | Y181: 0 | Z181: 790 | AB181: 0 | AC181: 1 | AD181: 0 | AE181: 790 | AJ181: 790 | AL181: 0 | AM181: 1 | AN181: 0
A182: 795 | C182: 0 | D182: =_xlfn.NORM.DIST($F182,Berechnung!$AG$2,INDIRECT("machineData!L" & MATCH(Berechnung!$F$2,Arbeitsplatzdaten!A:A,0)),TRUE) -> 1 | E182: 0 | F182: 795 | H182: 0 | I182: =_xlfn.NORM.DIST($F182,Berechnung!$AG$2,INDIRECT("machineData!M" & MATCH(Berechnung!$F$2,Arbeitsplatzdaten!A:A,0)),TRUE) -> 1 | J182: 0 | K182: 795 | M182: 0 | N182: 1 | O182: 0 | P182: 795 | R182: 0 | S182: 1 | T182: 0 | U182: 795 | W182: 0 | X182: 1 | Y182: 0 | Z182: 795 | AB182: 0 | AC182: 1 | AD182: 0 | AE182: 795 | AJ182: 795 | AL182: 0 | AM182: 1 | AN182: 0
A183: 800 | C183: 0 | D183: =_xlfn.NORM.DIST($F183,Berechnung!$AG$2,INDIRECT("machineData!L" & MATCH(Berechnung!$F$2,Arbeitsplatzdaten!A:A,0)),TRUE) -> 1 | E183: 0 | F183: 800 | H183: 0 | I183: =_xlfn.NORM.DIST($F183,Berechnung!$AG$2,INDIRECT("machineData!M" & MATCH(Berechnung!$F$2,Arbeitsplatzdaten!A:A,0)),TRUE) -> 1 | J183: 0 | K183: 800 | M183: 0 | N183: 1 | O183: 0 | P183: 800 | R183: 0 | S183: 1 | T183: 0 | U183: 800 | W183: 0 | X183: 1 | Y183: 0 | Z183: 800 | AB183: 0 | AC183: 1 | AD183: 0 | AE183: 800 | AJ183: 800 | AL183: 0 | AM183: 1 | AN183: 0
A184: 805 | C184: 0 | D184: =_xlfn.NORM.DIST($F184,Berechnung!$AG$2,INDIRECT("machineData!L" & MATCH(Berechnung!$F$2,Arbeitsplatzdaten!A:A,0)),TRUE) -> 1 | E184: 0 | F184: 805 | H184: 0 | I184: =_xlfn.NORM.DIST($F184,Berechnung!$AG$2,INDIRECT("machineData!M" & MATCH(Berechnung!$F$2,Arbeitsplatzdaten!A:A,0)),TRUE) -> 1 | J184: 0 | K184: 805 | M184: 0 | N184: 1 | O184: 0 | P184: 805 | R184: 0 | S184: 1 | T184: 0 | U184: 805 | W184: 0 | X184: 1 | Y184: 0 | Z184: 805 | AB184: 0 | AC184: 1 | AD184: 0 | AE184: 805 | AJ184: 805 | AL184: 0 | AM184: 1 | AN184: 0
A185: 810 | C185: 0 | D185: =_xlfn.NORM.DIST($F185,Berechnung!$AG$2,INDIRECT("machineData!L" & MATCH(Berechnung!$F$2,Arbeitsplatzdaten!A:A,0)),TRUE) -> 1 | E185: 0 | F185: 810 | H185: 0 | I185: =_xlfn.NORM.DIST($F185,Berechnung!$AG$2,INDIRECT("machineData!M" & MATCH(Berechnung!$F$2,Arbeitsplatzdaten!A:A,0)),TRUE) -> 1 | J185: 0 | K185: 810 | M185: 0 | N185: 1 | O185: 0 | P185: 810 | R185: 0 | S185: 1 | T185: 0 | U185: 810 | W185: 0 | X185: 1 | Y185: 0 | Z185: 810 | AB185: 0 | AC185: 1 | AD185: 0 | AE185: 810 | AJ185: 810 | AL185: 0 | AM185: 1 | AN185: 0
A186: 815 | C186: 0 | D186: =_xlfn.NORM.DIST($F186,Berechnung!$AG$2,INDIRECT("machineData!L" & MATCH(Berechnung!$F$2,Arbeitsplatzdaten!A:A,0)),TRUE) -> 1 | E186: 0 | F186: 815 | H186: 0 | I186: =_xlfn.NORM.DIST($F186,Berechnung!$AG$2,INDIRECT("machineData!M" & MATCH(Berechnung!$F$2,Arbeitsplatzdaten!A:A,0)),TRUE) -> 1 | J186: 0 | K186: 815 | M186: 0 | N186: 1 | O186: 0 | P186: 815 | R186: 0 | S186: 1 | T186: 0 | U186: 815 | W186: 0 | X186: 1 | Y186: 0 | Z186: 815 | AB186: 0 | AC186: 1 | AD186: 0 | AE186: 815 | AJ186: 815 | AL186: 0 | AM186: 1 | AN186: 0
A187: 820 | C187: 0 | D187: =_xlfn.NORM.DIST($F187,Berechnung!$AG$2,INDIRECT("machineData!L" & MATCH(Berechnung!$F$2,Arbeitsplatzdaten!A:A,0)),TRUE) -> 1 | E187: 0 | F187: 820 | H187: 0 | I187: =_xlfn.NORM.DIST($F187,Berechnung!$AG$2,INDIRECT("machineData!M" & MATCH(Berechnung!$F$2,Arbeitsplatzdaten!A:A,0)),TRUE) -> 1 | J187: 0 | K187: 820 | M187: 0 | N187: 1 | O187: 0 | P187: 820 | R187: 0 | S187: 1 | T187: 0 | U187: 820 | W187: 0 | X187: 1 | Y187: 0 | Z187: 820 | AB187: 0 | AC187: 1 | AD187: 0 | AE187: 820 | AJ187: 820 | AL187: 0 | AM187: 1 | AN187: 0
A188: 825 | C188: 0 | D188: =_xlfn.NORM.DIST($F188,Berechnung!$AG$2,INDIRECT("machineData!L" & MATCH(Berechnung!$F$2,Arbeitsplatzdaten!A:A,0)),TRUE) -> 1 | E188: 0 | F188: 825 | H188: 0 | I188: =_xlfn.NORM.DIST($F188,Berechnung!$AG$2,INDIRECT("machineData!M" & MATCH(Berechnung!$F$2,Arbeitsplatzdaten!A:A,0)),TRUE) -> 1 | J188: 0 | K188: 825 | M188: 0 | N188: 1 | O188: 0 | P188: 825 | R188: 0 | S188: 1 | T188: 0 | U188: 825 | W188: 0 | X188: 1 | Y188: 0 | Z188: 825 | AB188: 0 | AC188: 1 | AD188: 0 | AE188: 825 | AJ188: 825 | AL188: 0 | AM188: 1 | AN188: 0
A189: 830 | C189: 0 | D189: =_xlfn.NORM.DIST($F189,Berechnung!$AG$2,INDIRECT("machineData!L" & MATCH(Berechnung!$F$2,Arbeitsplatzdaten!A:A,0)),TRUE) -> 1 | E189: 0 | F189: 830 | H189: 0 | I189: =_xlfn.NORM.DIST($F189,Berechnung!$AG$2,INDIRECT("machineData!M" & MATCH(Berechnung!$F$2,Arbeitsplatzdaten!A:A,0)),TRUE) -> 1 | J189: 0 | K189: 830 | M189: 0 | N189: 1 | O189: 0 | P189: 830 | R189: 0 | S189: 1 | T189: 0 | U189: 830 | W189: 0 | X189: 1 | Y189: 0 | Z189: 830 | AB189: 0 | AC189: 1 | AD189: 0 | AE189: 830 | AJ189: 830 | AL189: 0 | AM189: 1 | AN189: 0
A190: 835 | C190: 0 | D190: =_xlfn.NORM.DIST($F190,Berechnung!$AG$2,INDIRECT("machineData!L" & MATCH(Berechnung!$F$2,Arbeitsplatzdaten!A:A,0)),TRUE) -> 1 | E190: 0 | F190: 835 | H190: 0 | I190: =_xlfn.NORM.DIST($F190,Berechnung!$AG$2,INDIRECT("machineData!M" & MATCH(Berechnung!$F$2,Arbeitsplatzdaten!A:A,0)),TRUE) -> 1 | J190: 0 | K190: 835 | M190: 0 | N190: 1 | O190: 0 | P190: 835 | R190: 0 | S190: 1 | T190: 0 | U190: 835 | W190: 0 | X190: 1 | Y190: 0 | Z190: 835 | AB190: 0 | AC190: 1 | AD190: 0 | AE190: 835 | AJ190: 835 | AL190: 0 | AM190: 1 | AN190: 0
A191: 840 | C191: 0 | D191: =_xlfn.NORM.DIST($F191,Berechnung!$AG$2,INDIRECT("machineData!L" & MATCH(Berechnung!$F$2,Arbeitsplatzdaten!A:A,0)),TRUE) -> 1 | E191: 0 | F191: 840 | H191: 0 | I191: =_xlfn.NORM.DIST($F191,Berechnung!$AG$2,INDIRECT("machineData!M" & MATCH(Berechnung!$F$2,Arbeitsplatzdaten!A:A,0)),TRUE) -> 1 | J191: 0 | K191: 840 | M191: 0 | N191: 1 | O191: 0 | P191: 840 | R191: 0 | S191: 1 | T191: 0 | U191: 840 | W191: 0 | X191: 1 | Y191: 0 | Z191: 840 | AB191: 0 | AC191: 1 | AD191: 0 | AE191: 840 | AJ191: 840 | AL191: 0 | AM191: 1 | AN191: 0
A192: 845 | C192: 0 | D192: =_xlfn.NORM.DIST($F192,Berechnung!$AG$2,INDIRECT("machineData!L" & MATCH(Berechnung!$F$2,Arbeitsplatzdaten!A:A,0)),TRUE) -> 1 | E192: 0 | F192: 845 | H192: 0 | I192: =_xlfn.NORM.DIST($F192,Berechnung!$AG$2,INDIRECT("machineData!M" & MATCH(Berechnung!$F$2,Arbeitsplatzdaten!A:A,0)),TRUE) -> 1 | J192: 0 | K192: 845 | M192: 0 | N192: 1 | O192: 0 | P192: 845 | R192: 0 | S192: 1 | T192: 0 | U192: 845 | W192: 0 | X192: 1 | Y192: 0 | Z192: 845 | AB192: 0 | AC192: 1 | AD192: 0 | AE192: 845 | AJ192: 845 | AL192: 0 | AM192: 1 | AN192: 0
A193: 850 | C193: 0 | D193: =_xlfn.NORM.DIST($F193,Berechnung!$AG$2,INDIRECT("machineData!L" & MATCH(Berechnung!$F$2,Arbeitsplatzdaten!A:A,0)),TRUE) -> 1 | E193: 0 | F193: 850 | H193: 0 | I193: =_xlfn.NORM.DIST($F193,Berechnung!$AG$2,INDIRECT("machineData!M" & MATCH(Berechnung!$F$2,Arbeitsplatzdaten!A:A,0)),TRUE) -> 1 | J193: 0 | K193: 850 | M193: 0 | N193: 1 | O193: 0 | P193: 850 | R193: 0 | S193: 1 | T193: 0 | U193: 850 | W193: 0 | X193: 1 | Y193: 0 | Z193: 850 | AB193: 0 | AC193: 1 | AD193: 0 | AE193: 850 | AJ193: 850 | AL193: 0 | AM193: 1 | AN193: 0
A194: 855 | C194: 0 | D194: =_xlfn.NORM.DIST($F194,Berechnung!$AG$2,INDIRECT("machineData!L" & MATCH(Berechnung!$F$2,Arbeitsplatzdaten!A:A,0)),TRUE) -> 1 | E194: 0 | F194: 855 | H194: 0 | I194: =_xlfn.NORM.DIST($F194,Berechnung!$AG$2,INDIRECT("machineData!M" & MATCH(Berechnung!$F$2,Arbeitsplatzdaten!A:A,0)),TRUE) -> 1 | J194: 0 | K194: 855 | M194: 0 | N194: 1 | O194: 0 | P194: 855 | R194: 0 | S194: 1 | T194: 0 | U194: 855 | W194: 0 | X194: 1 | Y194: 0 | Z194: 855 | AB194: 0 | AC194: 1 | AD194: 0 | AE194: 855 | AJ194: 855 | AL194: 0 | AM194: 1 | AN194: 0
A195: 860 | C195: 0 | D195: =_xlfn.NORM.DIST($F195,Berechnung!$AG$2,INDIRECT("machineData!L" & MATCH(Berechnung!$F$2,Arbeitsplatzdaten!A:A,0)),TRUE) -> 1 | E195: 0 | F195: 860 | H195: 0 | I195: =_xlfn.NORM.DIST($F195,Berechnung!$AG$2,INDIRECT("machineData!M" & MATCH(Berechnung!$F$2,Arbeitsplatzdaten!A:A,0)),TRUE) -> 1 | J195: 0 | K195: 860 | M195: 0 | N195: 1 | O195: 0 | P195: 860 | R195: 0 | S195: 1 | T195: 0 | U195: 860 | W195: 0 | X195: 1 | Y195: 0 | Z195: 860 | AB195: 0 | AC195: 1 | AD195: 0 | AE195: 860 | AJ195: 860 | AL195: 0 | AM195: 1 | AN195: 0
A196: 865 | C196: 0 | D196: =_xlfn.NORM.DIST($F196,Berechnung!$AG$2,INDIRECT("machineData!L" & MATCH(Berechnung!$F$2,Arbeitsplatzdaten!A:A,0)),TRUE) -> 1 | E196: 0 | F196: 865 | H196: 0 | I196: =_xlfn.NORM.DIST($F196,Berechnung!$AG$2,INDIRECT("machineData!M" & MATCH(Berechnung!$F$2,Arbeitsplatzdaten!A:A,0)),TRUE) -> 1 | J196: 0 | K196: 865 | M196: 0 | N196: =_xlfn.NORM.DIST($F196,0,$AQ$2,TRUE) -> 1 | O196: 0 | P196: 865 | R196: 0 | S196: =_xlfn.NORM.DIST($F196,0,$AR$2,TRUE) -> 1 | T196: 0 | U196: 865 | W196: 0 | X196: =_xlfn.NORM.DIST($F196,0,$AS$2,TRUE) -> 1 | Y196: 0 | Z196: 865 | AB196: 0 | AC196: 1 | AD196: 0 | AE196: 865 | AJ196: 865 | AL196: 0 | AM196: 1 | AN196: 0
A197: =A196+Klassenbreite -> 870 | C197: 0 | D197: =_xlfn.NORM.DIST($F197,Berechnung!$AG$2,INDIRECT("machineData!L" & MATCH(Berechnung!$F$2,Arbeitsplatzdaten!A:A,0)),TRUE) -> 1 | E197: 0 | F197: =F196+Klassenbreite -> 870 | H197: 0 | I197: =_xlfn.NORM.DIST($F197,Berechnung!$AG$2,INDIRECT("machineData!M" & MATCH(Berechnung!$F$2,Arbeitsplatzdaten!A:A,0)),TRUE) -> 1 | J197: 0 | K197: =K196+Klassenbreite -> 870 | M197: =100*O197 -> 0 | N197: 1 | O197: 0 | P197: =P196+Klassenbreite -> 870 | R197: =100*T197 -> 0 | S197: 1 | T197: 0 | U197: =U196+Klassenbreite -> 870 | W197: =100*Y197 -> 0 | X197: 1 | Y197: =X197-X196 -> 0 | Z197: =Z196+Klassenbreite -> 870 | AB197: =100*AD197 -> 0 | AC197: =_xlfn.NORM.DIST($F197,0,$AT$2,TRUE) -> 1 | AD197: =AC197-AC196 -> 0 | AE197: =AE196+Klassenbreite -> 870 | AG197: =100*AI197 ->  | AH197: =_xlfn.NORM.DIST($F197,0,$AU$2,TRUE) ->  | AI197: =AH197-AH196 ->  | AJ197: =AJ196+Klassenbreite -> 870 | AL197: =100*AN197 -> 0 | AM197: =_xlfn.NORM.DIST($F197,0,$AV$2,TRUE) -> 1 | AN197: =AM197-AM196 -> 0
A198: 875 | C198: 0 | D198: =_xlfn.NORM.DIST($F198,Berechnung!$AG$2,INDIRECT("machineData!L" & MATCH(Berechnung!$F$2,Arbeitsplatzdaten!A:A,0)),TRUE) -> 1 | E198: 0 | F198: 875 | H198: 0 | I198: =_xlfn.NORM.DIST($F198,Berechnung!$AG$2,INDIRECT("machineData!M" & MATCH(Berechnung!$F$2,Arbeitsplatzdaten!A:A,0)),TRUE) -> 1 | J198: 0 | K198: 875 | M198: 0 | N198: 1 | O198: 0 | P198: 875 | R198: 0 | S198: 1 | T198: 0 | U198: 875 | W198: 0 | X198: 1 | Y198: 0 | Z198: 875 | AB198: 0 | AC198: 1 | AD198: 0 | AE198: 875 | AJ198: 875 | AL198: 0 | AM198: 1 | AN198: 0
A199: 880 | C199: 0 | D199: =_xlfn.NORM.DIST($F199,Berechnung!$AG$2,INDIRECT("machineData!L" & MATCH(Berechnung!$F$2,Arbeitsplatzdaten!A:A,0)),TRUE) -> 1 | E199: 0 | F199: 880 | H199: 0 | I199: =_xlfn.NORM.DIST($F199,Berechnung!$AG$2,INDIRECT("machineData!M" & MATCH(Berechnung!$F$2,Arbeitsplatzdaten!A:A,0)),TRUE) -> 1 | J199: 0 | K199: 880 | M199: 0 | N199: 1 | O199: 0 | P199: 880 | R199: 0 | S199: 1 | T199: 0 | U199: 880 | W199: 0 | X199: 1 | Y199: 0 | Z199: 880 | AB199: 0 | AC199: 1 | AD199: 0 | AE199: 880 | AJ199: 880 | AL199: 0 | AM199: 1 | AN199: 0
A200: 885 | C200: 0 | D200: =_xlfn.NORM.DIST($F200,Berechnung!$AG$2,INDIRECT("machineData!L" & MATCH(Berechnung!$F$2,Arbeitsplatzdaten!A:A,0)),TRUE) -> 1 | E200: 0 | F200: 885 | H200: 0 | I200: =_xlfn.NORM.DIST($F200,Berechnung!$AG$2,INDIRECT("machineData!M" & MATCH(Berechnung!$F$2,Arbeitsplatzdaten!A:A,0)),TRUE) -> 1 | J200: 0 | K200: 885 | M200: 0 | N200: 1 | O200: 0 | P200: 885 | R200: 0 | S200: 1 | T200: 0 | U200: 885 | W200: 0 | X200: 1 | Y200: 0 | Z200: 885 | AB200: 0 | AC200: 1 | AD200: 0 | AE200: 885 | AJ200: 885 | AL200: 0 | AM200: 1 | AN200: 0
... 93 more rows

Sheet TAA_178070 (hidden)

Sheet TAA_178071 (hidden)

Sheet TAA_178072 (hidden)

Sheet TAA_175006 (hidden)

Sheet TAA_175010 (hidden)

Sheet TAA_175022 (hidden)
A1: 5.689198519 | B1: 0.8039917153
A2: -6.56210381 | B2: -7.44011381
A3: 11.95267683 | B3: 9.114458461
A4: 17.71844599 | B4: 11.3018264
A5: 15.40090797 | B5: 11.48304358
A6: 13.56831733 | B6: 7.889328229
A7: 17.71844599 | B7: -16.27891797
A8: 16.26105149 | B8: 14.57904977
A9: 13.94861817 | B9: 11.61321367
A10: 13.69338271 | B10: 9.341618025
A11: 20.02066989 | B11: 11.43710119
A12: 10.94960146 | B12: 8.402351514
A13: 17.57296178 | B13: 13.54789849
A14: 17.42747756 | B14: 13.3896525
A15: 10.57440532 | B15: 9.002154857
A16: 22.00384945 | B16: 6.802025147
A17: 13.30287245 | B17: 8.5044457
A18: 11.08742861 | B18: 6.888805205
A19: 14.99253122 | B19: 9.665767066
A20: 17.71844599 | B20: 15.76334233
A21: 13.73932509 | B21: 9.824013055
A22: 18.75214963 | B22: -19.91602335
A23: 7.024080002 | B23: 8.037364798
A24: 9.670871776 | B24: 6.888805205
A25: 17.76949309 | B25: 13.95117053
A26: -2.269043285 | B26: -6.087365844
A27: 18.63729367 | B27: 12.14665579
A28: 7.123621833 | B28: 0.1301700872
A29: -107.9722588 | B29: -112.147911
A30: 22.45816858 | B30: 15.41111739
A31: 8.417665642 | B31: 4.257327559
A32: 17.06759556 | B32: 14.6505157
A33: 15.08186364 | B33: 14.25490073
A34: 24.10698969 | B34: 10.73009896
A35: 6.378334275 | B35: 6.143517647
A36: 16.34527919 | B36: 14.05836942
A37: 20.31674303 | B37: 5.242536455
A38: 18.93591916 | B38: 14.74750518
A39: 18.08853742 | B39: 14.76537166
A40: 16.72047532 | B40: 13.73422038
A41: 17.03186259 | B41: 10.36000753
A42: 20.55411201 | B42: 10.49528233
A43: 23.34128329 | B43: 14.29318605
A44: 21.33002782 | B44: 14.18853951
A45: 18.06046152 | B45: 13.83886692
A46: 21.16157242 | B46: 12.13134166
A47: 5.260402937 | B47: 4.106738635
A48: 20.00535576 | B48: 16.88637838
A49: 8.210924915 | B49: 5.291031193
A50: 17.20542271 | B50: 11.52643361
A51: -26.419423 | B51: -28.95135882
A52: -4.844369129 | B52: -18.71386431
A53: 11.14358041 | B53: 7.256344275
A54: 17.10077617 | B54: 16.03133957
A55: 20.4086278 | B55: 6.830101048
A56: -43.27517312 | B56: 12.35850122
A57: 20.08703111 | B57: -48.37988242
A58: -4.989853344 | B58: -8.108830729
A59: 17.03441495 | B59: 11.49835771
A60: 21.48827381 | B60: 13.56321262
A61: 16.96294902 | B61: 11.42689178
A62: 21.48827381 | B62: 13.70614448
A63: 17.10588088 | B63: 11.56982364
A64: 21.7026716 | B64: 13.63467855
A65: 0.1327224419 | B65: 7.810205234
A66: 8.083307182 | B66: 7.810205234
A67: 17.5602 | B67: 15.26052846
A68: 18.78022553 | B68: 15.52086864
A69: 21.61078684 | B69: 6.294106571
A70: 15.01550242 | B70: 11.22780811
A71: 20.60260675 | B71: 3.938283228
A72: 20.96248875 | B72: 16.8174648
A73: -31.59049352 | B73: -38.89788489
A74: -3.124082094 | B74: -2.417079855
A75: -29.22446076 | B75: 3.466097617
A76: 12.67244085 | B76: -34.58951024
A77: 14.487165 | B77: 12.16962698
A78: 18.68578841 | B78: 14.29318605
A79: -2.950521977 | B79: -8.484026862
A80: -15.54383983 | B80: -23.02223896
A81: -12.16707462 | B81: -17.79246428
A82: -6.572313228 | B82: -6.613150903
A83: 21.590368 | B83: 16.93232076
A84: -7.483503839 | B84: -4.188413984
A85: 1.286386744 | B85: 8.634615787
A86: 19.49233248 | B86: 15.47747861
A87: -94.05682127 | B87: -101.5428775
A88: 22.46072094 | B88: 16.13343375
A89: 17.75673131 | B89: 12.63926024
A90: 13.32073893 | B90: 10.12774326
A91: -23.94619134 | B91: 14.98997887
A92: 18.93591916 | B92: 14.97466474
A93: 18.85169146 | B93: 9.464131049
A94: 20.67407268 | B94: 1.809619448
A95: 9.326303898 | B95: 6.585075002
A96: -16.26870855 | B96: -21.7256428
A97: -12.68520262 | B97: 20.32695245
A98: -47.29768405 | B98: -50.22778719
A99: -56.65206385 | B99: -61.94819975
A100: -24.83185841 | B100: -28.71143748
A101: -32.80541434 | B101: -36.12602774
A102: -55.18701228 | B102: -57.93589824
A103: -67.68589301 | B103: -72.22397958
A104: 13.18801649 | B104: 12.89960041
A105: 12.55758489 | B105: 13.25182535
A106: 11.3860541 | B106: 6.549342036
A107: 21.53932091 | B107: 17.86393021
A108: 1.740705873 | B108: -4.507458315
A109: -1.306805582 | B109: -4.004644449
A110: -53.34421222 | B110: 15.16098663
A111: 13.71124919 | B111: 9.622377037
A112: -28.68080922 | B112: -35.03361995
A113: -7.506475031 | B113: -8.274733781
A114: 19.40300006 | B114: 14.00732233
A115: 8.65248227 | B115: 5.599866106
A116: 11.84547794 | B116: 6.549342036
A117: 20.50561727 | B117: 16.2151091
A118: 9.374798636 | B118: 10.87303082
A119: 0.1123036047 | B119: -2.294566832
A120: 8.64737756 | B120: 5.594761397
A121: 15.19416724 | B121: 17.73120777
A122: 15.31668027 | B122: 17.73120777
A123: 13.62702149 | B123: 9.701500031
A124: 16.87616896 | B124: 11.00064855
A125: 6.52381849 | B125: 7.348229042
A126: 17.82564489 | B126: 15.32944204
A127: 5.604970815 | B127: 0.3267013954
A128: 5.403334798 | B128: 3.019435553
A129: 11.0312768 | B129: 10.50549175
A130: 12.41975774 | B130: 9.933764305
A131: 12.49632838 | B131: 8.994497793
A132: 12.00882864 | B132: 6.888805205
A133: 1.248101425 | B133: 6.403857821
A134: 11.42689178 | B134: 6.646331513
A135: -1.230234942 | B135: -5.630494362
A136: 20.20699178 | B136: 16.38101216
A137: -12.57800372 | B137: -15.18906253
A138: -67.91305257 | B138: 16.38611686
A139: 5.658570263 | B139: 0.740182849
A140: 9.704052386 | B140: 7.03428942
A141: 5.436515408 | B141: 3.514592355
A142: 17.32793573 | B142: 13.30032009
A143: 12.83579154 | B143: 8.17008724
A144: 12.55758489 | B144: 7.25379192
A145: 11.34011172 | B145: 6.549342036
A146: 8.956212473 | B146: 2.909684303
A147: -64.36527961 | B147: 6.541684972
A148: 6.089918199 | B148: 1.689658779
A149: 8.529969246 | B149: 2.373689826
A150: -62.67051612 | B150: 6.541684972
A151: 23.27747442 | B151: 16.98336785
A152: 21.38873198 | B152: 10.33958869
A153: -8.836251804 | B153: -8.106278374
A154: 12.55758489 | B154: 9.127220235
A155: 15.50810686 | B155: 10.45954936
A156: 20.41883721 | B156: 11.94757212
A157: 22.20038076 | B157: 14.66582983
A158: 18.14724157 | B158: 13.77505806
A159: 10.11242913 | B159: 4.193518693
A160: -20.38310425 | B160: -22.72871817
A161: -36.25364547 | B161: 0.7325257851
A162: 22.38159794 | B162: 18.49946652
A163: 11.1384757 | B163: 12.82302977
A164: 13.33605306 | B164: 4.645285466
A165: 13.12420762 | B165: 8.093516601
A166: 13.58363146 | B166: 7.863804682
A167: 12.40699596 | B167: 6.835205757
A168: 11.21249399 | B168: 7.394171426
A169: 23.91556309 | B169: 4.122052763
A170: 4.864787966 | B170: 1.952551309
A171: 5.05876692 | B171: 4.476830059
A172: 6.973032909 | B172: 3.287432791
A173: 9.341618025 | B173: 4.61465721
A174: 13.97669407 | B174: 12.20535994
A175: 15.36262265 | B175: 12.82302977
A176: 18.47649532 | B176: 15.09462541
A177: -2.164396745 | B177: -5.066423984
A178: 5.765769158 | B178: 2.34306157
A179: 3.22617628 | B179: -1.225130233
A180: 4.900520931 | B180: 0.5436515408
A181: 12.25385468 | B181: 5.451829536
A182: 4.849473838 | B182: 2.685077094
A183: 10.82198372 | B183: 5.456934245
A184: -14.58160213 | B184: -18.94102387
A185: 10.30640808 | B185: 2.626372937
A186: 19.53827486 | B186: 12.90470512
A187: 18.53264713 | B187: 12.96085692
A188: -37.75953472 | B188: -42.58603736
A189: 13.81844808 | B189: 8.782652357
A190: 14.27787192 | B190: 8.552940438
A191: -0.3930626164 | B191: -1.955103663
A192: 11.90673445 | B192: 9.017468985
A193: 11.08742861 | B193: 7.169564217
A194: 20.35247599 | B194: 14.30850018
A195: 10.61779535 | B195: 1.526308082
A196: 20.32695245 | B196: 20.23506768
A197: -115.1188519 | B197: -118.5032741
A198: 9.257390322 | B198: 2.702943576
A199: 9.683633549 | B199: 2.437498692
A200: 3.514592355 | B200: -0.2297119187
... 103 more rows

Sheet TAA_175030 (hidden)
A1: 5.420673735 | B1: 2.615975916
A2: 4.967741168 | B2: 2.615975916
A3: 3.532002999 | B3: 7.239662538
A4: 2.48096717 | B4: 3.84992682
A5: 10.2621164 | B5: 9.61029998
A6: -34.67692381 | B6: -31.560109
A7: -38.792513 | B7: -35.26341342
A8: -7.958257476 | B8: -9.170432775
A9: -5.269696212 | B9: 8.023584288
A10: -6.837539714 | B10: -0.8158593034
A11: -25.9390997 | B11: -3.031164102
A12: 4.8908007 | B12: -1.742048335
A13: 1.609943003 | B13: 4.854508026
A14: 8.477968562 | B14: -11.2666976
A15: -6.217660848 | B15: -1.064101191
A16: 4.311569628 | B16: 5.128880639
A17: 4.83853925 | B17: 8.537488547
A18: 81.99676341 | B18: 82.86198075
A19: -0.5777793643 | B19: -26.18008306
A20: 8.723307036 | B20: 6.766406073
A21: 3.129880175 | B21: 0.3295374766
A22: 5.472935185 | B22: -58.00585442
A23: 4.818215352 | B23: 7.081426481
A24: 5.06645724 | B24: 5.467128357
A25: -28.28215471 | B25: -25.07097895
A26: 6.889801164 | B26: -2.482418877
A27: -2.261759421 | B27: -0.1727531265
A28: 0.02467901807 | B28: 6.357024715
A29: 4.697723676 | B29: 2.881638287
A30: 9.55803853 | B30: 10.72375921
A31: -16.10088173 | B31: -14.21946953
A32: -23.08359214 | B32: -13.46458192
A33: 4.726757815 | B33: 7.556134652
A34: 5.350991801 | B34: 4.498839824
A35: 2.695819798 | B35: 6.19298183
A36: 4.494484704 | B36: 4.379799855
A37: -6.560263687 | B37: -2.98470948
A38: 2.75679149 | B38: 6.100072585
A39: 3.533454706 | B39: 5.305988886
A40: 6.267018884 | B40: 5.593426861
A41: 3.501517153 | B41: 2.390961339
A42: 4.7862778 | B42: 0.3426028392
A43: 3.079070432 | B43: 6.86802556
A44: 2.620331037 | B44: 4.967741168
A45: 10.99087329 | B45: 5.269696212
A46: 7.277406918 | B46: 8.946869906
A47: -15.65230429 | B47: -9.071716703
A48: 3.022453861 | B48: 4.313021335
A49: 1.61139471 | B49: 4.385606683
A50: -13.6271731 | B50: -10.22582372
A51: -15.87731886 | B51: -13.02616642
A52: -12.40628756 | B52: -12.03465058
A53: -10.13291448 | B53: -5.269696212
A54: 9.013648425 | B54: -8.133914016
A55: -16.18217732 | B55: -14.01913397
A56: -25.28002475 | B56: -22.24160211
A57: 2.568069587 | B57: 4.188174538
A58: 5.979580909 | B58: 7.500969788
A59: 6.670593415 | B59: 6.602363189
A60: 4.299955973 | B60: -19.66482228
A61: 4.927093373 | B61: 4.061876034
A62: -1.427027928 | B62: 2.70453004
A63: 25.0187175 | B63: 3.250371851
A64: 2.77566368 | B64: 2.63775152
A65: 4.803698283 | B65: 6.914480182
A66: 9.896286248 | B66: 5.994097978
A67: 9.544973167 | B67: 9.061554754
A68: -26.37170837 | B68: -18.06794464
A69: -0.2075940932 | B69: 0.4485774462
A70: 4.944513857 | B70: 7.863896524
A71: 4.506098359 | B71: 7.453063459
A72: -2.952771927 | B72: 0.5168076726
A73: 0.2569521294 | B73: 3.077618725
A74: 6.393317388 | B74: 2.719047109
A75: 2.930996323 | B75: 3.831054629
A76: 26.0015231 | B76: 4.96193434
A77: 1.837860993 | B77: 6.042004308
A78: 9.041230857 | B78: 0.4645462226
A79: 10.01532622 | B79: 9.372220041
A80: -20.46035769 | B80: -18.31763824
A81: 5.533906877 | B81: 4.918383132
A82: 8.382155904 | B82: 8.768309951
A83: 9.833862849 | B83: 11.4118683
A84: -25.541332 | B84: -24.96790776
A85: 4.59610419 | B85: 4.616428087
A86: -47.73647949 | B86: -40.98604219
A87: 7.518390271 | B87: 2.065778984
A88: 6.252501815 | B88: 1.984483395
A89: 6.252501815 | B89: 1.984483395
A90: -12.06223301 | B90: 3.90218827
A91: 1.579457157 | B91: 5.130332346
A92: 4.533680791 | B92: 9.941289163
A93: -2.319827699 | B93: -7.538714168
A94: 7.615654637 | B94: 6.213305727
A95: 5.156463071 | B95: 6.513809065
A96: 2.782922215 | B96: 4.718047573
A97: 4.803698283 | B97: 5.110008448
A98: 6.460095908 | B98: 4.256404764
A99: -17.54678185 | B99: -12.07675008
A100: 5.818441438 | B100: 1.859636597
A101: -0.08129558895 | B101: 2.007710706
A102: 3.308440129 | B102: 7.919061388
A103: 2.30531063 | B103: 4.243339402
A104: 2.218208213 | B104: 3.889122907
A105: 3.275050869 | B105: 3.860088768
A106: 3.475386428 | B106: 6.809957282
A107: 5.409060079 | B107: 6.760599246
A108: 7.457418579 | B108: 5.642784897
A109: -16.3447685 | B109: -11.47138828
A110: 4.56271493 | B110: 3.234403075
A111: 2.697271505 | B111: 5.362605457
A112: 3.794761956 | B112: 5.798117541
A113: 4.240435988 | B113: 4.964837754
A114: 10.37970466 | B114: 5.400349838
A115: 1.154107022 | B115: 2.917930961
A116: 5.057746998 | B116: 4.114137484
A117: 7.42402932 | B117: 7.988743322
A118: 3.443448875 | B118: -1.319601614
A119: 0.3643784433 | B119: 3.774438059
A120: 4.533680791 | B120: 10.02258475
A121: -0.159687764 | B121: 4.359475958
A122: 8.990421114 | B122: 6.676400243
A123: -73.00634229 | B123: -68.40588298
A124: 5.131784053 | B124: 4.826925594
A125: 5.205821107 | B125: 5.795214127
A126: 6.496388581 | B126: 6.027487238
A127: 5.278406454 | B127: 5.876509716
A128: 0.2584038363 | B128: 3.950094599
A129: -2.534680327 | B129: -1.090231916
A130: -5.76037316 | B130: -2.621782744
A131: 2.550649103 | B131: 6.12184819
A132: 8.675400707 | B132: 8.173110104
A133: 7.140946465 | B133: 10.21566178
A134: -0.8913480646 | B134: 2.107878485
A135: 8.075845738 | B135: 10.44793489
A136: 3.862992182 | B136: -1.589619105
A137: -3.709111246 | B137: -6.071038446
A138: -3.92106046 | B138: -7.524197099
A139: 4.488677876 | B139: 2.412736944
A140: 5.243565487 | B140: 4.198336487
A141: -23.92703388 | B141: -21.01781316
A142: -13.76653696 | B142: -18.66895132
A143: 1.842216114 | B143: 6.05506967
A144: 7.611299516 | B144: 7.348540559
A145: 9.980485251 | B145: 6.08845893
A146: 6.956579683 | B146: 8.72621045
A147: -6.550101738 | B147: 5.096943086
A148: -1.435738169 | B148: 4.799343162
A149: 5.287116696 | B149: 3.822344388
A150: 0.6155237449 | B150: 6.27863254
A151: -58.61121622 | B151: -56.19267245
A152: -5.08097431 | B152: -3.248920144
A153: 7.772438987 | B153: 10.65843239
A154: 7.682433156 | B154: 11.19991909
A155: 7.447256631 | B155: 9.679981913
A156: 1.444448411 | B156: 5.075167482
A157: 9.768536037 | B157: 10.05742572
A158: 7.682433156 | B158: 9.40125418
A159: 3.794761956 | B159: 5.877961423
A160: 7.479194184 | B160: 6.804150454
A161: -51.02459572 | B161: -49.92710527
A162: -14.6520782 | B162: -9.375123455
A163: 5.287116696 | B163: 5.571651257
A164: 0.1959804377 | B164: -1.130879711
A165: 6.105879413 | B165: 8.537488547
A166: 2.800342698 | B166: 10.82537869
A167: 8.794440676 | B167: 6.666238294
A168: 2.960030462 | B168: 10.21566178
A169: 4.513356894 | B169: 9.973226716
A170: -10.93861183 | B170: 5.295826937
A171: -11.42638537 | B171: -3.8876712
A172: 5.773438523 | B172: 6.059424791
A173: 5.542617118 | B173: 8.022132581
A174: 7.829055558 | B174: 11.2245981
A175: 4.432061305 | B175: -2.469353514
A176: 5.796665834 | B176: 2.496935946
A177: 4.940158736 | B177: 5.48454884
A178: 1.604136175 | B178: 7.874058473
A179: 1.000226086 | B179: 1.262985043
A180: 6.365734956 | B180: 5.343733267
A181: 2.318375992 | B181: 3.896381442
A182: 4.119944312 | B182: 4.723854401
A183: 1.273146991 | B183: -57.31919704
A184: 6.310570092 | B184: 5.053391878
A185: -18.26973191 | B185: 1.454610359
A186: 4.915479718 | B186: -7.103202085
A187: 5.967967253 | B187: -5.58471662
A188: 5.287116696 | B188: 2.897607063
A189: 0.04064779448 | B189: 4.644010519
A190: 5.403253251 | B190: 2.149977986
A191: -0.506645724 | B191: 4.671592951
A192: 2.785825629 | B192: 4.308666214
A193: 4.927093373 | B193: 5.454062995
A194: 4.008162877 | B194: 5.031616273
A195: 3.752662454 | B195: 5.456966408
A196: 0.5197110865 | B196: 3.793310249
A197: -1.309439665 | B197: 0.4819667059
A198: 6.310570092 | B198: 7.210628399
A199: 4.902414355 | B199: 5.67472245
A200: -0.7810183367 | B200: 6.339604231
... 1105 more rows

Sheet TAA_175050 (hidden)
A1: 7.859676578 | B1: 3.576630151
A2: 5.524047992 | B2: 5.804068858
A3: 2.227438706 | B3: 3.194783516
A4: 9.851643192 | B4: 7.159624413
A5: 5.123109025 | B5: 6.90505999
A6: 6.650495566 | B6: 6.084089724
A7: 6.103182055 | B7: 6.306833594
A8: -3.220239958 | B8: 9.227960355
A9: 4.009389671 | B9: 4.270318206
A10: -1.393740219 | B10: -2.361085029
A11: 8.381533646 | B11: 6.745957225
A12: 10.06165884 | B12: 8.42608242
A13: 5.123109025 | B13: 6.90505999
A14: 6.103182055 | B14: 6.084089724
A15: 5.212206573 | B15: 4.594887846
A16: 7.439645279 | B16: 6.924152321
A17: 5.352217006 | B17: 4.64580073
A18: -48.41178925 | B18: -51.00834637
A19: 8.597913406 | B19: 5.823161189
A20: 7.726030256 | B20: 6.26228482
A21: 5.543140323 | B21: 4.976734481
A22: 3.423891497 | B22: 1.0818988
A23: 7.153260303 | B23: -0.5982263954
A24: 7.089619197 | B24: 7.656025039
A25: 5.810432968 | B25: 5.377673448
A26: 6.917788211 | B26: 6.625039124
A27: 5.594053208 | B27: 4.887636933
A28: 6.185915493 | B28: 6.185915493
A29: 8.31152843 | B29: 11.52540428
A30: 7.439645279 | B30: 6.605946792
A31: 5.950443401 | B31: 5.244027126
A32: 7.694209703 | B32: 7.197809077
A33: 6.058633281 | B33: 5.212206573
A34: 5.002190923 | B34: 2.787480438
A35: 9.030672926 | B35: 6.185915493
A36: -5.218570683 | B36: -6.115910276
A37: -18.86322379 | B37: -13.54919144
A38: 4.722170057 | B38: 4.722170057
A39: 8.387897757 | B39: 7.586019823
A40: 8.597913406 | B40: 11.14992175
A41: 8.254251435 | B41: 7.904225352
A42: -12.10453834 | B42: -15.22295253
A43: 8.483359416 | B43: 9.221596244
A44: 7.967866458 | B44: 6.185915493
A45: 8.241523213 | B45: 6.459572248
A46: 8.737923839 | B46: 5.50495566
A47: 7.153260303 | B47: 3.143870631
A48: 7.796035472 | B48: 8.502451748
A49: 6.306833594 | B49: 7.44600939
A50: 18.55774648 | B50: 15.34387063
A51: 7.872404799 | B51: 4.435785081
A52: 7.395096505 | B52: -4.308502869
A53: 8.235159103 | B53: 7.363275952
A54: 6.815962441 | B54: 1.979238393
A55: 8.241523213 | B55: 3.652999478
A56: 8.661554512 | B56: 5.918622848
A57: 0.7955138237 | B57: 4.435785081
A58: 0.9864371414 | B58: 6.574126239
A59: 3.283881064 | B59: 5.963171622
A60: 5.002190923 | B60: 6.80323422
A61: 7.426917058 | B61: 1.883776734
A62: 6.701408451 | B62: 7.032342201
A63: 13.20552947 | B63: -12.02816901
A64: -19.11778821 | B64: -22.2362024
A65: -2.227438706 | B65: 5.002190923
A66: 6.90505999 | B66: 2.221074596
A67: -8.795200835 | B67: -3.143870631
A68: 11.61450183 | B68: 8.298800209
A69: 9.552529995 | B69: 9.304329682
A70: 8.10151278 | B70: 6.879603547
A71: 5.002190923 | B71: 4.7476265
A72: -1.781950965 | B72: -2.80657277
A73: -3.907563902 | B73: -0.9227960355
A74: -1.667396974 | B74: 0.07636932707
A75: 8.890662493 | B75: 6.561398018
A76: 8.890662493 | B76: 6.777777778
A77: -30.31862285 | B77: -27.83661972
A78: 8.349713093 | B78: 9.17704747
A79: 7.293270736 | B79: -0.5791340636
A80: 8.10151278 | B80: 7.56056338
A81: 9.756181534 | B81: 7.853312467
A82: 11.88815858 | B82: 11.16901408
A83: -53.80855503 | B83: -55.8896192
A84: 6.68868023 | B84: 6.039540949
A85: 4.543974961 | B85: 5.594053208
A86: 10.06165884 | B86: 11.14992175
A87: 9.71163276 | B87: 10.16984872
A88: -28.93761085 | B88: 4.881272822
A89: 3.646635368 | B89: 1.661032864
A90: 7.210537298 | B90: 2.208346375
A91: -26.15013041 | B91: 6.141366719
A92: -45.05153886 | B92: 7.942410016
A93: 7.293270736 | B93: 7.051434533
A94: 8.381533646 | B94: 6.663223787
A95: -2.424726135 | B95: -3.799374022
A96: -14.10286907 | B96: 8.362441315
A97: -4.403964528 | B97: -5.441314554
A98: 5.50495566 | B98: 5.237663015
A99: 8.381533646 | B99: 6.936880543
A100: 7.955138237 | B100: 7.293270736
A101: -17.22128326 | B101: -18.94595722
A102: -17.22128326 | B102: -18.94595722
A103: -4.734898279 | B103: 3.442983829
A104: -16.49577465 | B104: -19.20052165
A105: 6.135002608 | B105: 3.926656234
A106: 4.467605634 | B106: 7.095983307
A107: -29.18581116 | B107: -32.46969223
A108: -55.74324465 | B108: -44.14147105
A109: 8.610641628 | B109: 8.85247783
A110: -7.509650496 | B110: -8.368805425
A111: -0.5282211789 | B111: -1.743766302
A112: 6.58685446 | B112: 10.46259781
A113: 3.277516954 | B113: 3.201147626
A114: 6.026812728 | B114: 9.361606677
A115: 6.618675013 | B115: 6.485028691
A116: 8.731559729 | B116: 8.362441315
A117: 7.22962963 | B117: 9.921648409
A118: 5.084924361 | B118: 5.530412102
A119: 6.313197705 | B119: 7.369640063
A120: -20.77882107 | B120: -7.509650496
A121: -18.90777256 | B121: -19.31507564
A122: -19.17506521 | B122: -0.6873239437
A123: -18.90777256 | B123: -19.31507564
A124: -7.834220136 | B124: -11.88179447
A125: 8.050599896 | B125: 7.528742827
A126: -7.87876891 | B126: -11.25811163
A127: 5.352217006 | B127: 8.114241002
A128: -24.99186228 | B128: -24.87730829
A129: 6.249556599 | B129: 5.269483568
A130: -2.622013563 | B130: -8.757016171
A131: 2.844757433 | B131: 6.949608764
A132: 8.922483046 | B132: 10.20803339
A133: 9.138862806 | B133: 7.369640063
A134: 8.922483046 | B134: 10.56442358
A135: 8.801564945 | B135: 5.651330203
A136: 0.3372978612 | B136: -0.4836724048
A137: 10.48805425 | B137: -2.825665102
A138: 16.98581116 | B138: 16.38122066
A139: 3.02295253 | B139: 4.957642149
A140: 9.686176317 | B140: 6.726864893
A141: -2.768388106 | B141: -2.131977047
A142: 0.08273343766 | B142: 0.8336984872
A143: -11.9008868 | B143: -10.18257694
A144: -8.114241002 | B144: -66.63860198
A145: 6.567762128 | B145: 5.530412102
A146: -1.07553469 | B146: -11.98998435
A147: 6.567762128 | B147: 5.530412102
A148: -22.21074596 | B148: -27.98299426
A149: -1.6228482 | B149: -0.356390193
A150: 0.7318727178 | B150: -2.742931664
A151: 7.388732394 | B151: 6.523213354
A152: -11.44267084 | B152: -9.590714658
A153: -0.7891497131 | B153: -1.972874283
A154: -0.03182055295 | B154: -1.425560772
A155: 1.654668753 | B155: 2.965675535
A156: 13.23098592 | B156: 6.103182055
A157: 0.248200313 | B157: 6.625039124
A158: 7.796035472 | B158: 6.625039124
A159: 7.23599374 | B159: 6.338654147
A160: 6.249556599 | B160: 6.077725613
A161: -3.56390193 | B161: 7.605112154
A162: 9.737089202 | B162: 8.165153886
A163: 10.76171101 | B163: 5.689514867
A164: 7.172352634 | B164: 5.708607199
A165: 7.172352634 | B165: -1.196452791
A166: 9.647991654 | B166: 9.119770475
A167: -0.9991653625 | B167: -12.34637454
A168: 10.30985915 | B168: 8.165153886
A169: -14.03286385 | B169: -10.90808555
A170: -13.2818988 | B170: -10.90808555
A171: -7.687845592 | B171: -11.55086072
A172: 3.67209181 | B172: -7.204173187
A173: -28.29483568 | B173: -25.02368284
A174: -22.07073552 | B174: -21.94981742
A175: -103.0731351 | B175: -102.436724
A176: -109.6154408 | B176: -109.3354199
A177: 7.503286385 | B177: 8.165153886
A178: 10.92081377 | B178: 11.63359416
A179: -30.5286385 | B179: -31.10140845
A180: 9.431611894 | B180: 8.712467397
A181: 15.71298905 | B181: 11.18174231
A182: -39.57840376 | B182: -37.75190402
A183: -7.999687011 | B183: -5.714971309
A184: 8.343348983 | B184: 10.08075117
A185: 0.6236828378 | B185: 0.8336984872
A186: -7.503286385 | B186: -11.69087115
A187: 2.011058946 | B187: -1.285550339
A188: -8.006051122 | B188: -6.720500782
A189: 8.52790819 | B189: 7.223265519
A190: -4.830359937 | B190: -2.335628586
A191: 10.11893584 | B191: 8.088784559
A192: 8.381533646 | B192: -11.88179447
A193: 8.400625978 | B193: 8.897026604
A194: 12.27000522 | B194: 9.705268649
A195: -114.7830986 | B195: -114.3567032
A196: -119.5498174 | B196: -117.6914971
A197: -7.318727178 | B197: -11.25811163
A198: -7.134167971 | B198: -0.8018779343
A199: 16.54032342 | B199: 10.19530516
A200: 12.60093897 | B200: 6.714136672
... 86 more rows

Sheet TAA_175080 (hidden)

Sheet TAA_175088 (hidden)

Sheet TAA_175090 (hidden)

Sheet TAA_175091 (hidden)

Sheet TAA_175092 (hidden)

Sheet TAA_175093 (hidden)

Sheet TAA_175094 (hidden)

Sheet TAA_178000 (hidden)

Sheet TAA_178001 (hidden)

Sheet TAA_178002 (hidden)

Sheet TAA_178003 (hidden)

Sheet TAA_178005 (hidden)

Sheet TAA_178006 (hidden)

Sheet TAA_178007 (hidden)

Sheet TAA_178009 (hidden)

Sheet TAA_178010 (hidden)

Sheet TAA_178020 (hidden)

Sheet TAA_178030 (hidden)

Sheet TAA_178040 (hidden)

Sheet TAA_178080 (hidden)

Sheet TAA_178088 (hidden)

Sheet TAA_178090 (hidden)

Sheet TAA_178091 (hidden)

Sheet TAA_178092 (hidden)

Sheet TAA_178093 (hidden)

Sheet TAA_178094 (hidden)

Sheet TAA_178810 (hidden)
A1: 4.910264523 | B1: 5.352908914
A2: 4.910264523 | B2: 4.935999662
A3: 69.90693161 | B3: 3.180863182
A4: 5.764671139 | B4: -15.93519808
A5: 1.564696452 | B5: 2.156604649
A6: 3.546302156 | B6: 3.963211408
A7: 3.180863182 | B7: 1.909547315
A8: 4.786735856 | B8: 3.505125933
A9: 4.071298992 | B9: 4.745559634
A10: 6.181580391 | B10: 8.533772096
A11: 5.018352107 | B11: 5.651436527
A12: -21.02046154 | B12: -47.393832
A13: 6.294815002 | B13: 4.946293718
A14: -8.744800236 | B14: -7.61245412
A15: -8.744800236 | B15: -7.61245412
A16: 1.564696452 | B16: 0.9727882547
A17: 6.994810783 | B17: -17.29401342
A18: -9.938910686 | B18: -9.594059824
A19: 2.202927899 | B19: 2.841159347
A20: 6.454372864 | B20: 4.328650382
A21: 2.85660043 | B21: 2.938952875
A22: 3.65438974 | B22: 4.42644391
A23: 5.121292663 | B23: 7.828629287
A24: -19.77488082 | B24: -18.68371092
A25: 3.206598321 | B25: 3.772771379
A26: -1.19411045 | B26: -2.367632789
A27: -24.7520567 | B27: -22.34839472
A28: 2.352191706 | B28: 3.000717209
A29: 2.938952875 | B29: 2.455132262
A30: 3.016158292 | B30: 4.411002827
A31: 4.925705607 | B31: 5.36320297
A32: 6.016875501 | B32: 6.824958866
A33: -47.34750875 | B33: -31.31451715
A34: 4.133063325 | B34: 5.795553305
A35: 5.183056997 | B35: 5.87790575
A36: 2.347044678 | B36: 1.677931064
A37: -0.5713200861 | B37: 1.080875839
A38: -0.8235244484 | B38: 2.259545205
A39: 5.224233219 | B39: 6.027169557
A40: 5.733788972 | B40: 6.016875501
A41: 23.02780239 | B41: 23.95426739
A42: -0.0102940556 | B42: 2.784542041
A43: 3.716154073 | B43: 4.344091465
A44: 2.85660043 | B44: 1.508079146
A45: 3.18601021 | B45: 1.61616673
A46: -1.585284563 | B46: 4.411002827
A47: 2.614690124 | B47: 3.587478378
A48: 2.604396068 | B48: 3.628654601
A49: 5.893346834 | B49: 5.87790575
A50: 2.846306375 | B50: 5.440408387
A51: 4.750706662 | B51: 5.285997553
A52: 5.116145636 | B52: 4.421296882
A53: 1.060287727 | B53: 1.209551534
A54: 3.263215627 | B54: 1.127199089
A55: 2.892629625 | B55: 3.901447074
A56: 3.808800574 | B56: 3.628654601
A57: -3.206598321 | B57: -0.6176433363
A58: 3.618360545 | B58: 1.770577564
A59: 3.937476269 | B59: 4.982322913
A60: 3.572037295 | B60: 3.659536767
A61: 4.318356326 | B61: 4.483061216
A62: 0.1544108341 | B62: 2.022781926
A63: 7.396278952 | B63: 7.458043286
A64: 4.199974687 | B64: 4.63747205
A65: 4.508796355 | B65: 4.51909041
A66: 4.205121715 | B66: 4.436737966
A67: 1.40513859 | B67: 2.614690124
A68: -6.171286335 | B68: 3.000717209
A69: 3.947770324 | B69: 2.156604649
A70: 4.724971523 | B70: 4.014681686
A71: 2.81027718 | B71: 5.780112222
A72: 3.5360081 | B72: 3.906594102
A73: 4.179386576 | B73: 5.383791081
A74: -4.80217694 | B74: -4.688942328
A75: 3.824241657 | B75: 6.263932836
A76: 4.874235329 | B76: -7.694806565
A77: 4.272033076 | B77: 4.668354217
A78: 33.59979749 | B78: 32.28215838
A79: 3.901447074 | B79: 4.966881829
A80: 5.605113277 | B80: 5.430114332
A81: 4.014681686 | B81: 4.246297937
A82: -14.56608868 | B82: -13.01168628
A83: 2.81027718 | B83: 6.258785808
A84: 4.663207189 | B84: 6.505843142
A85: 4.776441801 | B85: 4.163945492
A86: 4.884529384 | B86: 4.529384466
A87: 8.466860735 | B87: 7.169809729
A88: 5.476437582 | B88: 5.960258195
A89: 6.41834367 | B89: -0.1647048897
A90: 3.036746403 | B90: 6.634518837
A91: 4.513943383 | B91: 4.658060161
A92: 4.956587774 | B92: 6.531578281
A93: 4.956587774 | B93: 6.531578281
A94: 5.893346834 | B94: 6.351432308
A95: 3.32497996 | B95: 4.899970468
A96: 5.224233219 | B96: 3.479390794
A97: -8.060245539 | B97: -8.075686622
A98: 3.829388685 | B98: 4.349238493
A99: 2.841159347 | B99: 4.956587774
A100: -42.12327553 | B100: -41.35122136
A101: 4.369826604 | B101: 0.5249968358
A102: 3.062481542 | B102: 1.425726701
A103: 6.099227946 | B103: 7.344808674
A104: 5.723494916 | B104: 6.366873392
A105: 4.369826604 | B105: 2.980129098
A106: 3.062481542 | B106: 4.750706662
A107: 1.822047842 | B107: 3.711007046
A108: 7.586718981 | B108: 7.380837869
A109: 4.297768215 | B109: 5.27055647
A110: -41.0423997 | B110: -39.93064169
A111: -42.57106695 | B111: 4.26173902
A112: -5.543348943 | B112: -3.273509682
A113: 3.350715099 | B113: 3.886005991
A114: 2.398514956 | B114: 1.878665148
A115: 5.162468886 | B115: 3.23233346
A116: -10.91169894 | B116: -6.747753449
A117: 4.184533603 | B117: 3.824241657
A118: 3.427920516 | B118: 4.344091465
A119: 3.458802683 | B119: 5.455849471
A120: -10.02126313 | B120: -9.594059824
A121: 5.471290554 | B121: 5.229380247
A122: 4.534531494 | B122: 4.390414715
A123: -22.42045311 | B123: -22.25060119
A124: 4.421296882 | B124: 5.841876556
A125: -11.74551745 | B125: -9.372737628
A126: -18.44180062 | B126: -16.846222
A127: 2.274986289 | B127: 3.361009155
A128: 2.655866346 | B128: 3.469096739
A129: 0.01544108341 | B129: 0.7205838923
A130: 2.419103067 | B130: 2.866894486
A131: 7.772011982 | B131: 8.1271569
A132: 1.976458676 | B132: 2.614690124
A133: 4.055857908 | B133: 6.29996203
A134: 1.976458676 | B134: 1.055140699
A135: 4.127916298 | B135: -2.383073873
A136: -1.456608868 | B136: 1.78087162
A137: 5.744083027 | B137: 1.760283508
A138: 6.727165338 | B138: -6.927899422
A139: 0.6588195587 | B139: 2.923511792
A140: 0.6588195587 | B140: 2.923511792
A141: 3.479390794 | B141: 4.750706662
A142: 4.488208244 | B142: 2.866894486
A143: 2.398514956 | B143: -0.2624984179
A144: 6.969075644 | B144: 6.469813948
A145: 2.85660043 | B145: 3.170569126
A146: 4.704383411 | B146: 4.627177994
A147: 3.741889212 | B147: 6.289667975
A148: 2.218368983 | B148: 5.651436527
A149: 3.705860018 | B149: 4.724971523
A150: 5.311732692 | B150: 3.515419989
A151: 5.769818166 | B151: 6.341138253
A152: 6.696283171 | B152: 5.347761887
A153: -80.46348563 | B153: -82.53773784
A154: 6.938193478 | B154: 6.233050669
A155: 6.325697169 | B155: 6.037463612
A156: 5.074969413 | B156: 4.045563853
A157: -27.81968527 | B157: -26.51234021
A158: 0.8955828376 | B158: 4.539678522
A159: 4.158798464 | B159: 4.277180104
A160: -0.2264692233 | B160: 4.318356326
A161: 0.07720541704 | B161: 0.4735265578
A162: 5.867611695 | B162: 2.033075982
A163: 5.049234274 | B163: 5.018352107
A164: 7.442602202 | B164: 4.030122769
A165: 4.658060161 | B165: 5.795553305
A166: 2.398514956 | B166: -1.940429482
A167: 4.359532549 | B167: 5.27055647
A168: -7.82348226 | B168: -8.677888875
A169: -4.47276716 | B169: -5.311732692
A170: -4.194827659 | B170: 4.884529384
A171: -18.19474328 | B171: -16.56313547
A172: -1.245580728 | B172: 0.2985276125
A173: 5.332320803 | B173: 5.229380247
A174: 1.930135426 | B174: 2.027928954
A175: 7.65877737 | B175: 5.682318694
A176: 6.094080918 | B176: -0.3448508628
A177: 1.49778509 | B177: 1.652195925
A178: 7.473484369 | B178: 6.974222672
A179: 4.338944437 | B179: -3.927182213
A180: -0.2161751677 | B180: 2.166898705
A181: -19.31679534 | B181: -18.41091845
A182: -8.997004599 | B182: -7.669071426
A183: 1.626460786 | B183: 0.8698476986
A184: 5.121292663 | B184: 8.049951483
A185: 3.731595157 | B185: 5.625701388
A186: 5.224233219 | B186: 2.954393959
A187: 3.129392904 | B187: 2.588954985
A188: 1.796312703 | B188: 3.86541788
A189: 4.951440746 | B189: 4.858794245
A190: 8.276420706 | B190: 5.347761887
A191: 7.694806565 | B191: 5.260262414
A192: 0.5558790027 | B192: 3.623507573
A193: -4.714677467 | B193: -4.508796355
A194: 6.727165338 | B194: 7.257309201
A195: -5.213939164 | B195: -3.886005991
A196: 5.985993334 | B196: 3.453655655
A197: 4.925705607 | B197: 2.614690124
A198: 1.461755896 | B198: 2.727924735
A199: -8.374214234 | B199: -7.725688731
A200: 5.224233219 | B200: -0.09264650044
... 1507 more rows

Sheet TAA_178950 (hidden)

Sheet TAA_175041 (hidden)

Sheet TAA_175273 (hidden)
A1: -6.720894487 | B1: 10.75509066
A2: -6.720894487 | B2: 10.75509066
A3: -13.31069004 | B3: 0.1310989295
A4: -0.3634261463 | B4: -9.971816043
A5: 7.73151788 | B5: 10.75509066
A6: 6.672769564 | B6: 13.55961206
A7: 17.20714937 | B7: 9.050804576
A8: 6.798890053 | B8: 11.17991757
A9: 13.06010855 | B9: 22.98711863
A10: 13.59280166 | B10: -22.50586939
A11: -17.23702001 | B11: 12.28513133
A12: -3.400274766 | B12: -39.45413986
A13: -4.437449842 | B13: 12.28513133
A14: -27.92407198 | B14: 1.835385013
A15: 9.473972006 | B15: 25.21248147
A16: -13.8234694 | B16: -35.72528803
A17: 6.179903968 | B17: 9.032550294
A18: -23.29744141 | B18: -18.98113362
A19: 6.535032714 | B19: 14.38437368
A20: -52.7814247 | B20: -52.96230804
A21: 6.171606567 | B21: -7.962185617
A22: -9.38767904 | B22: 1.916699539
A23: 13.78696084 | B23: 11.32097338
A24: -27.56230532 | B24: 2.839370486
A25: 1.023899234 | B25: 0.9459036685
A26: 0.2256892964 | B26: 0.9459036685
A27: 6.958200144 | B27: 13.4650217
A28: -6.435463906 | B28: 3.285770638
A29: 4.156997701 | B29: 6.702640206
A30: 2.660146633 | B30: 0.2870900608
A31: 1.289416053 | B31: 1.266183332
A32: -0.428145871 | B32: 2.839370486
A33: -65.74694288 | B33: -67.39480664
A34: -50.14451079 | B34: -40.81325408
A35: 8.378715127 | B35: 6.457037148
A36: 5.992382714 | B36: 13.75045228
A37: -1.068705197 | B37: 0.6953221704
A38: 7.03951467 | B38: 12.28845029
A39: 1.870234096 | B39: 1.876872016
A40: 1.689350762 | B40: 1.876872016
A41: 2.051117429 | B41: 1.876872016
A42: 2.593767428 | B42: 1.876872016
A43: -89.61524545 | B43: -70.3785519
A44: 8.854985922 | B44: 5.51611192
A45: -13.34056069 | B45: -11.15502537
A46: -7.059428432 | B46: -27.03293116
A47: -15.29210931 | B47: -21.70765945
A48: -24.19024171 | B48: -31.61143681
A49: -24.04254798 | B49: -31.61143681
A50: 2.275147245 | B50: -23.12485548
A51: -14.12715426 | B51: -29.82251724
A52: 10.82146986 | B52: 12.34155365
A53: 2.864262688 | B53: -0.9907096318
A54: 1.535019111 | B54: 1.350816818
A55: -5.66214617 | B55: -2.462668498
A56: 12.80620809 | B56: 12.34155365
A57: -3.733830271 | B57: -7.100915435
A58: 6.027231797 | B58: 10.95754723
A59: 9.565243413 | B59: 9.045826135
A60: 1.267842812 | B60: 9.457377205
A61: 6.0770162 | B61: 12.0959506
A62: 6.724213447 | B62: 11.97148959
A63: 1.445407185 | B63: 0.9459036685
A64: 1.445407185 | B64: 0.9459036685
A65: 9.400954881 | B65: 17.20051145
A66: -20.23570059 | B66: 13.49987078
A67: 5.992382714 | B67: 5.152685773
A68: -5.597426446 | B68: 13.4650217
A69: -1.856958255 | B69: -12.06773943
A70: 3.3139818 | B70: -17.6054246
A71: 7.884190051 | B71: 13.4650217
A72: 9.054123536 | B72: 7.801216045
A73: 9.565243413 | B73: 7.402940816
A74: -4.775983786 | B74: -14.60508454
A75: 2.704952596 | B75: 8.989403811
A76: 6.637920481 | B76: 7.406259777
A77: 1.51178639 | B77: 8.030224302
A78: -12.83773821 | B78: -34.22677748
A79: -13.71560319 | B79: -36.40235592
A80: 3.400274766 | B80: 6.699321245
A81: 5.921025069 | B81: -26.58321205
A82: 14.83907124 | B82: -3.217731953
A83: 6.460356108 | B83: -18.89815961
A84: -23.53474707 | B84: 3.86326972
A85: 20.12783438 | B85: 9.404273841
A86: 9.10390794 | B86: 9.019274454
A87: 13.25260824 | B87: 1.136743882
A88: -13.314009 | B88: -32.08936709
A89: -13.314009 | B89: -32.08936709
A90: 7.500850144 | B90: -17.42288178
A91: -13.8234694 | B91: -9.442441884
A92: -11.60806344 | B92: -9.711277664
A93: 14.17527919 | B93: 8.753757634
A94: 9.10390794 | B94: 8.441775372
A95: 7.671776596 | B95: 7.163975679
A96: 4.092277977 | B96: 9.313002435
A97: -0.6737489288 | B97: 5.041500605
A98: 7.17725152 | B98: 9.321299835
A99: 7.17725152 | B99: 9.500523688
A100: -4.601738373 | B100: -11.81383898
A101: 6.925010542 | B101: 6.040507638
A102: 6.803868493 | B102: -6.576519717
A103: 6.968157025 | B103: 11.89183454
A104: 5.710271094 | B104: 14.1155379
A105: 4.092277977 | B105: 8.685718949
A106: -0.9409252282 | B106: 9.347851517
A107: -2.817797244 | B107: 4.533699689
A108: 8.405266809 | B108: 5.599085926
A109: -11.3773957 | B109: 4.122148619
A110: 2.270168804 | B110: 6.393976903
A111: 4.067385775 | B111: 8.848348001
A112: 12.30006665 | B112: 9.332916196
A113: -8.801882558 | B113: 4.704626141
A114: 16.47863759 | B114: 16.89018866
A115: 7.253587606 | B115: 11.91008882
A116: 7.73151788 | B116: 11.91008882
A117: 8.104900907 | B117: 13.32728485
A118: 18.13645823 | B118: 9.050804576
A119: 8.97280901 | B119: 4.266523389
A120: 3.3139818 | B120: 15.07803637
A121: 2.704952596 | B121: 7.218738523
A122: -3.406912687 | B122: -1.219717888
A123: 14.48892093 | B123: 8.924684087
A124: 3.287430118 | B124: 9.180244025
A125: 3.207775072 | B125: 8.338887604
A126: 6.984751826 | B126: 9.200157787
A127: 9.742807786 | B127: 6.141735925
A128: 2.811159324 | B128: 9.25160167
A129: 3.672429506 | B129: 9.756083627
A130: -12.82114341 | B130: -0.924330427
A131: 4.409238679 | B131: 9.545329652
A132: 2.48258226 | B132: 9.404273841
A133: 18.06344111 | B133: 9.180244025
A134: 10.37672919 | B134: -15.65885441
A135: 12.6717902 | B135: -7.646884394
A136: -49.33800345 | B136: 1.526721711
A137: 17.29676129 | B137: 11.44875335
A138: 17.39135166 | B138: 11.54334372
A139: 10.82146986 | B139: 7.855978889
A140: 10.48791436 | B140: -1.115170641
A141: 2.383013453 | B141: 5.866262225
A142: 8.800223078 | B142: 9.065739897
A143: 14.83907124 | B143: 2.846008406
A144: 5.79490458 | B144: 5.434797394
A145: 13.84172368 | B145: 13.74381436
A146: 17.78132949 | B146: 8.42352109
A147: 0.8031883782 | B147: 5.396629351
A148: 7.479276902 | B148: 8.056775984
A149: 5.097922929 | B149: -1.402260702
A150: 17.30173973 | B150: 16.54169784
A151: 5.79490458 | B151: 10.50450916
A152: 15.02991145 | B152: 9.133778582
A153: 6.62630412 | B153: 2.688357795
A154: -7.846022009 | B154: 0.8015288981
A155: -1.138403362 | B155: -1.168274005
A156: 11.03222384 | B156: 6.384020023
A157: 17.98710502 | B157: 25.88291144
A158: 10.82810778 | B158: 1.352476298
A159: -34.87231525 | B159: -35.17600011
A160: 6.983092346 | B160: 2.977107336
A161: -23.69737612 | B161: 6.335895099
A162: -4.877212073 | B162: -10.64224601
A163: 6.959859624 | B163: 4.168614062
A164: 12.73650992 | B164: 6.531713753
A165: 7.534039746 | B165: 5.302038984
A166: 7.744793721 | B166: 5.569215284
A167: 15.00501925 | B167: 17.53572643
A168: 3.684045867 | B168: 5.071371247
A169: 6.62630412 | B169: 5.756736537
A170: 6.355808861 | B170: 5.424840513
A171: 7.095936994 | B171: 12.23700641
A172: 17.50087735 | B172: 16.10857353
A173: 0.8380374607 | B173: 11.12017629
A174: 13.10989295 | B174: 12.91573378
A175: 6.998027667 | B175: 2.032863147
A176: 14.23502047 | B176: 12.91573378
A177: 12.45605778 | B177: -8.544663139
A178: 9.047485616 | B178: 6.355808861
A179: -33.21449461 | B179: 11.19485289
A180: 12.34487261 | B180: 17.24365793
A181: 13.16465579 | B181: 2.977107336
A182: -1.286097093 | B182: 3.028551219
A183: 12.02293347 | B183: 10.39830243
A184: 11.96319219 | B184: 10.39830243
A185: 11.45373179 | B185: -2.953874614
A186: 10.34519907 | B186: 3.020253819
A187: -25.34855884 | B187: 5.887835467
A188: 6.843696016 | B188: 16.83210686
A189: 20.75843682 | B189: 6.047145558
A190: -44.07745147 | B190: 11.77069249
A191: 19.67811527 | B191: 9.180244025
A192: 19.67811527 | B192: 9.180244025
A193: 17.24531741 | B193: 6.194839289
A194: 19.80091679 | B194: 9.79591115
A195: 7.86593577 | B195: 6.379041582
A196: 4.541997089 | B196: 3.498184093
A197: -25.04985242 | B197: 6.090292041
A198: 17.30173973 | B198: 9.857311914
A199: -0.5509473999 | B199: -35.55602106
A200: 12.95224234 | B200: 16.72092169
... 177 more rows

Sheet TAA_175452 (hidden)

Sheet TAA_175470 (hidden)
A1: -41.65628171 | B1: 12.20880153
A2: -13.82088767 | B2: -29.35908903
A3: 6.486226465 | B3: -17.99391183
A4: 1.632530347 | B4: 1.168927806
A5: -0.6662407456 | B5: -53.14833327
A6: -1.148483596 | B6: -24.01413056
A7: 6.7471908 | B7: 4.933669059
A8: -23.68281409 | B8: -50.57597054
A9: -2.341463415 | B9: -13.71746402
A10: -17.07813146 | B10: -28.08974407
A11: -16.83881394 | B11: -40.74891954
A12: -16.63737833 | B12: -19.01251456
A13: 0.02224811154 | B13: 1.936187004
A14: 7.136232102 | B14: 1.168927806
A15: 2.62227066 | B15: 11.41147732
A16: -71.47356158 | B16: 6.480213462
A17: -27.72234958 | B17: -37.06535383
A18: -5.89875606 | B18: 12.29839528
A19: -3.020932767 | B19: -10.12950505
A20: 9.788567778 | B20: -0.9055582698
A21: -15.39749709 | B21: -15.4167387
A22: 11.78668871 | B22: 14.70419783
A23: 5.182607388 | B23: 2.384155737
A24: 12.62850915 | B24: 15.25498891
A25: 5.073170732 | B25: 5.824194821
A26: 8.535457928 | B26: 14.15340674
A27: 6.990116126 | B27: 8.515615017
A28: 7.461535571 | B28: 8.560111241
A29: 9.6376414 | B29: 11.1715585
A30: 10.41933181 | B30: 18.58078094
A31: 13.82690067 | B31: 18.58078094
A32: 11.10301026 | B32: -60.41324364
A33: 2.906685708 | B33: 8.358675636
A34: 2.681799391 | B34: 0.4978766583
A35: 7.168702319 | B35: 4.424968995
A36: 3.533240633 | B36: 2.803863355
A37: 11.80593032 | B37: 9.796384682
A38: 10.68751174 | B38: 13.31459281
A39: 14.86414371 | B39: 12.57198692
A40: 20.61137209 | B40: 13.63929498
A41: 16.91397647 | B41: 14.24540569
A42: 8.548686535 | B42: 7.232440152
A43: 11.25393664 | B43: 12.75899132
A44: 9.550452854 | B44: 11.12225187
A45: 8.816265173 | B45: 7.661768575
A46: 20.36604156 | B46: 3.75812695
A47: 9.626216694 | B47: 3.253635988
A48: 6.082152655 | B48: -14.01631027
A49: 8.813859972 | B49: 13.43485287
A50: -16.9692961 | B50: -5.831410425
A51: 15.33075275 | B51: 13.62005337
A52: 6.877672968 | B52: 8.112142508
A53: 13.18411064 | B53: 33.79668533
A54: 4.062986208 | B54: 3.261452892
A55: 3.850727198 | B55: 3.664324101
A56: -3.421398775 | B56: 7.097748882
A57: 5.481453644 | B57: 6.518095381
A58: -14.72043294 | B58: -24.1049269
A59: 6.421887331 | B59: 15.51414935
A60: 6.635950242 | B60: 5.428539216
A61: 11.08136345 | B61: 10.74463527
A62: 14.93509715 | B62: 16.71254087
A63: 5.261377729 | B63: 10.28283663
A64: 11.14389868 | B64: 12.47217107
A65: 13.41320606 | B65: 14.75651095
A66: 14.13055733 | B66: 11.79630952
A67: 7.784433838 | B67: 7.05505656
A68: 8.317185915 | B68: 7.678604983
A69: 16.71735127 | B69: 7.641324364
A70: 14.23698749 | B70: -7.013566838
A71: 11.82396933 | B71: 0.1864030967
A72: 10.08500883 | B72: 13.01093615
A73: 7.90289 | B73: 5.12788906
A74: 10.72479236 | B74: 9.223946785
A75: 2.67939419 | B75: -47.21169529
A76: -11.67544816 | B76: -45.6783795
A77: -6.761020707 | B77: -42.15475967
A78: -18.48697809 | B78: -40.74891954
A79: 8.107933406 | B79: 12.99289714
A80: -6.115224172 | B80: -9.485512421
A81: -4.403322184 | B81: -8.4819422
A82: -36.4406028 | B82: 1.011387125
A83: -36.6233981 | B83: 2.227817656
A84: -35.22417227 | B84: 2.227817656
A85: 0.1876056973 | B85: 1.770829419
A86: 9.61960239 | B86: 11.29903416
A87: -42.03630351 | B87: -44.31583299
A88: 15.85869443 | B88: 14.05779999
A89: -0.9867338119 | B89: -2.325829607
A90: 8.32680672 | B90: 13.24243677
A91: 15.4149348 | B91: 10.32853546
A92: 20.61137209 | B92: 13.53286482
A93: 18.94276373 | B93: 3.75812695
A94: 16.01142471 | B94: 6.501258973
A95: 17.21823443 | B95: 12.37836822
A96: 11.46198655 | B96: 12.37836822
A97: 16.45037393 | B97: 12.75839002
A98: 7.833139163 | B98: 13.33864482
A99: 2.265098275 | B99: 5.675072344
A100: 9.193280469 | B100: 10.62918561
A101: -68.00706528 | B101: -3.343229734
A102: 3.259648991 | B102: 4.809801195
A103: -0.6403848322 | B103: -4.774324477
A104: 0.9765117066 | B104: 0.7420045849
A105: 6.911947086 | B105: 8.744710436
A106: 15.69033034 | B106: 16.36919839
A107: -15.2219174 | B107: 5.607125409
A108: 3.402157165 | B108: -46.56589876
A109: -25.76211056 | B109: 11.60329212
A110: -63.48949604 | B110: 11.60329212
A111: 10.38325379 | B111: 8.354466534
A112: 15.73302266 | B112: 10.00984629
A113: 15.00244278 | B113: 14.74087715
A114: 16.06975084 | B114: 13.73129392
A115: 0.2176707129 | B115: 1.168927806
A116: 2.667969484 | B116: 4.764703672
A117: 14.95494006 | B117: 16.41549852
A118: 9.625615393 | B118: 13.66454959
A119: 8.392348454 | B119: 0.813559322
A120: -16.82077493 | B120: -34.17370063
A121: 11.21064302 | B121: -5.700326957
A122: 6.153707392 | B122: 8.243827276
A123: -20.07441091 | B123: -12.11680259
A124: 2.115975798 | B124: 4.787553084
A125: 0.01623510842 | B125: -2.520049607
A126: -2.670374685 | B126: -2.202563043
A127: -27.08196475 | B127: -38.5487617
A128: 6.079747454 | B128: 10.72659626
A129: 7.706866098 | B129: -10.2203014
A130: 4.388890977 | B130: 4.777932279
A131: -3.81765568 | B131: -4.137547446
A132: 4.189259273 | B132: 7.166297118
A133: 17.30963208 | B133: 12.45292946
A134: 8.21195836 | B134: 12.18775602
A135: 8.545680033 | B135: -6.011199218
A136: 15.87312563 | B136: 12.30621218
A137: 9.042955391 | B137: 12.30621218
A138: 2.802660754 | B138: -0.5008831598
A139: 2.56394453 | B139: 0.4263219212
A140: -3.480326205 | B140: -16.63316923
A141: 4.770115374 | B141: 3.035965275
A142: 20.34439475 | B142: 12.76861212
A143: 5.980532902 | B143: 3.300537412
A144: 3.093690105 | B144: -0.8111541208
A145: 10.9857567 | B145: 13.34225262
A146: -1.360141306 | B146: -11.63335713
A147: 7.043030554 | B147: 11.07114134
A148: -1.824345146 | B148: -3.357059641
A149: 13.8719982 | B149: 13.64170018
A150: 5.370213086 | B150: 13.82088767
A151: 3.696193017 | B151: 10.50832425
A152: -25.93107595 | B152: 1.993310534
A153: -26.23473261 | B153: 1.993310534
A154: 2.114773197 | B154: 7.30640009
A155: 5.866285843 | B155: 14.27727461
A156: 7.22823105 | B156: 6.542748694
A157: 1.338494494 | B157: 9.774737871
A158: 13.91889962 | B158: 11.34353038
A159: 2.115975798 | B159: 2.722086512
A160: 8.872186102 | B160: 8.571535946
A161: 20.37927017 | B161: 8.240219475
A162: 10.30388215 | B162: -6.328084483
A163: 16.22789282 | B163: 14.13837423
A164: 7.072494269 | B164: -0.8538464429
A165: 16.80694502 | B165: -2.465331279
A166: -1.350520501 | B166: 14.97418167
A167: 9.161411552 | B167: 22.561389
A168: 11.08436995 | B168: 6.044872036
A169: -6.24510504 | B169: 4.514562742
A170: 16.21225901 | B170: 13.18050284
A171: -15.57788718 | B171: 7.368935323
A172: 6.647976249 | B172: -10.10785824
A173: -3.77796986 | B173: 18.18452403
A174: -1.933180503 | B174: -1.444323349
A175: 9.395918674 | B175: 22.79589613
A176: 11.98511782 | B176: 10.70915856
A177: 13.75113683 | B177: 14.74689015
A178: 13.8719982 | B178: 12.39340073
A179: 7.539103311 | B179: 7.405614642
A180: -11.02243602 | B180: -5.711751663
A181: -6.529520087 | B181: -30.54064414
A182: 9.385095269 | B182: 7.940170619
A183: -23.04483445 | B183: -10.61415311
A184: 12.05667255 | B184: 4.26081401
A185: -18.34567252 | B185: -11.44815664
A186: -24.11635161 | B186: -7.492201887
A187: -1.802698335 | B187: 1.193581119
A188: -1.61990304 | B188: 1.193581119
A189: -0.7877034086 | B189: 0.03848321996
A190: -0.7877034086 | B190: -1.846593258
A191: 2.420835056 | B191: 14.49133752
A192: -7.076703371 | B192: -2.147243414
A193: 14.40775677 | B193: 10.28403923
A194: -9.069412605 | B194: 2.13942651
A195: -8.518621519 | B195: 3.530234131
A196: 13.91889962 | B196: 8.34725093
A197: -2.779210042 | B197: 0.1461159758
A198: 13.08609869 | B198: 11.04288023
A199: -1.227253937 | B199: 6.178360705
A200: 6.614904731 | B200: 6.178360705
... 252 more rows

Sheet TAA_175474 (hidden)

Sheet TAA_175476 (hidden)
A1: 7.153443222 | B1: 13.49781345
A2: -7.592243741 | B2: 13.96424624
A3: 13.43591715 | B3: 10.61521457
A4: 9.039069633 | B4: 16.06982556
A5: 9.309865923 | B5: 3.707145946
A6: -26.30592532 | B6: -33.53010717
A7: 1.483300495 | B7: -25.10336873
A8: 12.7683214 | B8: 25.85607189
A9: 14.39199385 | B9: 27.47974434
A10: 1.065500505 | B10: -11.84650872
A11: -5.337450142 | B11: -6.138786102
A12: 8.075255899 | B12: 15.42986208
A13: 1.483300495 | B13: 11.35465424
A14: 5.044548032 | B14: 11.67076746
A15: 9.660243164 | B15: 0.8941804027
A16: -0.2376375607 | B16: 13.44918064
A17: 9.566293431 | B17: 17.23922341
A18: 12.83132299 | B18: 18.28814455
A19: 12.52957855 | B19: 16.72305253
A20: 8.484213561 | B20: 23.65985871
A21: 11.95703782 | B21: 9.278917776
A22: 8.580373877 | B22: 9.662453746
A23: -4.407900428 | B23: -3.425296747
A24: -105.6072373 | B24: -100.577058
A25: -44.28679898 | B25: -43.34177519
A26: -30.03186121 | B26: 14.25604306
A27: 5.791724734 | B27: -0.7305973377
A28: 9.145177567 | B28: -13.14743621
A29: -0.6410687683 | B29: 2.186265558
A30: -0.6664904609 | B30: -4.460954395
A31: -47.72646451 | B31: -43.68773127
A32: -4.907491951 | B32: 11.3833918
A33: 3.931520015 | B33: 24.77509731
A34: -16.04440386 | B34: 1.773992023
A35: -40.79960594 | B35: -42.03642655
A36: -29.96112259 | B36: -40.09553559
A37: -29.31231679 | B37: -33.88490557
A38: -12.69537219 | B38: -19.52385987
A39: -2.241530107 | B39: -0.8974962756
A40: 5.044548032 | B40: 17.08558797
A41: -20.00576674 | B41: -10.97001298
A42: -137.0726609 | B42: -137.0726609
A43: -0.5924359652 | B43: 14.95016579
A44: 1.22908357 | B44: 6.622903551
A45: 8.305156423 | B45: 21.07900428
A46: -12.08746216 | B46: -19.89302706
A47: 8.7981162 | B47: 4.454322649
A48: 7.01638714 | B48: 11.68513624
A49: 9.205968571 | B49: 20.81483973
A50: 5.204815224 | B50: 10.96780239
A51: 14.94574463 | B51: 16.82916046
A52: 9.25018021 | B52: 28.74861839
A53: 11.98135422 | B53: 18.42520063
A54: -9.871353741 | B54: 13.96424624
A55: -9.137440531 | B55: 3.890624249
A56: -39.64789274 | B56: -12.04767168
A57: 0.8300735259 | B57: 2.555432745
A58: 9.938776491 | B58: 14.5080494
A59: 13.85261185 | B59: 13.42486424
A60: 9.646979672 | B60: 16.76615887
A61: -73.57811524 | B61: -68.22629631
A62: -34.41102408 | B62: -9.761929934
A63: -9.020279687 | B63: 14.79321447
A64: -3.114709981 | B64: -6.99317603
A65: 1.117449181 | B65: 9.186073334
A66: 9.30655005 | B66: -41.34783027
A67: 10.89043202 | B67: 13.96424624
A68: 14.08582825 | B68: 17.6205488
A69: 7.145706185 | B69: 15.67855255
A70: 13.30991398 | B70: 12.30520448
A71: 9.324234706 | B71: 21.65707146
A72: 13.39833726 | B72: 1.863520592
A73: 9.018069105 | B73: 10.13109712
A74: 12.26430871 | B74: 23.06742275
A75: 9.860300831 | B75: 22.71151905
A76: 10.36320823 | B76: 22.36777356
A77: 13.26238647 | B77: 16.72305253
A78: 11.39997117 | B78: 22.63414869
A79: 10.37094526 | B79: 10.3908405
A80: 3.931520015 | B80: 17.23922341
A81: 11.42760344 | B81: 15.58239223
A82: 12.58152722 | B82: 5.20039406
A83: 10.98880292 | B83: 8.865538949
A84: 12.58152722 | B84: 6.148733721
A85: 10.98880292 | B85: 14.5080494
A86: 10.00730453 | B86: 6.687010428
A87: 13.39833726 | B87: 14.66500072
A88: -6.841751165 | B88: -5.061127397
A89: 15.51939065 | B89: -2.116632226
A90: 7.145706185 | B90: 3.525878226
A91: 0.222163487 | B91: 19.60012495
A92: -14.6672113 | B92: -18.89052814
A93: 14.10572349 | B93: 26.61209092
A94: 4.137104138 | B94: 23.06742275
A95: 14.04824835 | B95: 24.55403912
A96: 7.543610938 | B96: 7.06170407
A97: -0.6974386083 | B97: -37.64952665
A98: 11.71276851 | B98: 21.56864818
A99: 2.342111586 | B99: 3.922677688
A100: -129.3267817 | B100: -137.0726609
A101: -1.647988851 | B101: -11.32923254
A102: 11.94930078 | B102: 16.72305253
A103: 6.36205488 | B103: 4.605747513
A104: 3.607669758 | B104: -10.06920083
A105: -3.281608919 | B105: 11.3833918
A106: -93.81599308 | B106: -96.79917343
A107: 4.274160219 | B107: 1.135133836
A108: -12.48426162 | B108: -76.4629247
A109: 7.723773367 | B109: -25.21058196
A110: 13.04353885 | B110: 21.62059686
A111: 14.0913547 | B111: 19.08948051
A112: 4.301792494 | B112: 11.3833918
A113: 13.51991927 | B113: 21.93007833
A114: -9.776298717 | B114: 12.11177856
A115: -26.26392426 | B115: -31.25099716
A116: 9.466817243 | B116: 11.02969869
A117: 12.01009179 | B117: 20.7087318
A118: -4.243212072 | B118: -21.43048681
A119: -20.24561488 | B119: -68.67062329
A120: -1.596040175 | B120: -7.993464366
A121: -30.48613581 | B121: -49.72925177
A122: 10.63289923 | B122: 24.5440915
A123: 10.76332356 | B123: 6.871594022
A124: 4.30952953 | B124: 16.07866788
A125: 6.36205488 | B125: 22.98010476
A126: 13.52434043 | B126: 28.77072421
A127: 10.76332356 | B127: 21.80296987
A128: 9.745350569 | B128: 11.7149791
A129: 9.406026239 | B129: -6.989860157
A130: -21.90797251 | B130: -8.446633668
A131: 3.281608919 | B131: 28.90446441
A132: 9.745350569 | B132: 19.94055457
A133: 4.287423711 | B133: 1.194819549
A134: 7.938199817 | B134: 12.16593782
A135: 7.801143736 | B135: 3.940362343
A136: 9.199336825 | B136: 12.98053727
A137: 7.065019943 | B137: -9.643663799
A138: 8.31289346 | B138: 2.36863857
A139: 11.30049498 | B139: 4.068576097
A140: -1.954154452 | B140: -9.44139555
A141: 6.3963189 | B141: 14.61968379
A142: 8.149310395 | B142: 4.244317363
A143: 0.5327502523 | B143: 0.6863856985
A144: 2.043683022 | B144: 4.665433226
A145: 9.828247393 | B145: 112.4876736

Sheet TAA_175477 (hidden)
A1: 0.4068732194 | B1: -41.53490028
A2: 92.43856838 | B2: 106.8242521
A3: 5.961538462 | B3: 21.69248575
A4: 1.637286325 | B4: 8.208689459
A5: 2.854344729 | B5: 8.208689459
A6: -43.3110755 | B6: -20.20210114
A7: 8.228276353 | B7: 23.67521368
A8: -1.98539886 | B8: 4.663461538
A9: 7.902421652 | B9: 8.208689459
A10: -12.96118234 | B10: 7.240918803
A11: -4.199608262 | B11: 13.21403134
A12: 4.78454416 | B12: 13.64405271
A13: 5.126424501 | B13: 12.28454416
A14: -32.24626068 | B14: -8.018162393
A15: 8.506944444 | B15: 21.30519943
A16: 8.098290598 | B16: 14.84864672
A17: -2.829415954 | B17: 19.60381054
A18: -1.913283476 | B18: 7.240918803
A19: 1.500178063 | B19: 7.624643875
A20: 2.840099715 | B20: 14.2423433
A21: 4.669693732 | B21: -41.31766382
A22: 3.956552707 | B22: 8.911146724
A23: -1.103098291 | B23: 8.208689459
A24: 7.635327635 | B24: 9.052706553
A25: 2.025462963 | B25: -2.620192308
A26: 15.02047721 | B26: 16.10042735
A27: 6.428952991 | B27: 22.94337607
A28: 0.223468661 | B28: -59.45868946
A29: 11.41381766 | B29: 16.10042735
A30: 9.59045584 | B30: -7.850783476
A31: 2.215990028 | B31: 1.874109687
A32: 10.21100427 | B32: 24.65990028
A33: 10.63746439 | B33: 10.97133191
A34: 0.5795940171 | B34: 12.35665954
A35: 10.56089744 | B35: 20.3792735
A36: 10.4923433 | B36: 2.370014245
A37: 1.517094017 | B37: 7.527599715
A38: 6.786858974 | B38: 13.64405271
A39: 10.97222222 | B39: -4.488960114
A40: -20.13532764 | B40: -0.5528846154
A41: 3.327991453 | B41: -38.11698718
A42: 0.5511039886 | B42: -0.4923433048
A43: -41.25 | B43: -16.96492165
A44: 12.76442308 | B44: -5.454059829
A45: -13.92450142 | B45: 10.96509972
A46: 13.11698718 | B46: 26.05235043
A47: 1.591880342 | B47: 21.30519943
A48: 8.515847578 | B48: 8.891559829
A49: 9.437321937 | B49: -39.46225071
A50: -4.36965812 | B50: -2.127849003
A51: 8.485576923 | B51: 10.98646724
A52: 11.87232906 | B52: -12.40651709
A53: 10.17004986 | B53: -70.81552707
A54: 12.01566952 | B54: 14.10701567
A55: 1.823361823 | B55: 9.89761396
A56: 4.151531339 | B56: 18.82745726
A57: 1.132478632 | B57: 10.27065527
A58: 6.65954416 | B58: 21.62838319
A59: -3.827457265 | B59: -3.061787749
A60: -14.08208689 | B60: -8.43215812
A61: -0.4033119658 | B61: -9.399928775
A62: 10.21100427 | B62: 1.479700855
A63: 8.608440171 | B63: -0.8342236467
A64: 7.1875 | B64: 11.00783476
A65: 14.05804843 | B65: -25.3988604
A66: 8.936965812 | B66: -16.48059117
A67: 4.908297721 | B67: -16.48059117
A68: 7.146545584 | B68: -5.551103989
A69: -0.8573717949 | B69: -84.03935185
A70: -20.08457977 | B70: -15.68554131
A71: 10.25017806 | B71: 18.32977208
A72: 3.615562678 | B72: 20.3125
A73: -8.331552707 | B73: -20.26709402
A74: 2.386930199 | B74: 13.42325499
A75: 2.23735755 | B75: 13.98504274
A76: 5.241274929 | B76: 23.10986467
A77: 8.236289174 | B77: 16.20815527
A78: -35.89921652 | B78: -41.95868946
A79: -56.36752137 | B79: -4.504095442
A80: -4.361645299 | B80: -7.560541311
A81: -10.98290598 | B81: 21.50373932
A82: 15.78347578 | B82: 15.84134615
A83: 8.675213675 | B83: 14.29309117
A84: -5.243055556 | B84: 3.678774929
A85: 11.54825499 | B85: 11.30430912
A86: 3.993055556 | B86: 23.97792023
A87: 0.9731125356 | B87: 22.66737892
A88: 6.792200855 | B88: 14.22364672
A89: 2.523148148 | B89: 10.90990028
A90: 5.685541311 | B90: 15.28311966
A91: 9.298433048 | B91: 4.572649573
A92: 4.2752849 | B92: 13.21403134
A93: 0.219017094 | B93: 1.581196581
A94: -0.9855769231 | B94: -1.939102564
A95: -25.0462963 | B95: -3.141915954
A96: -45.08012821 | B96: -44.59935897
A97: 8.762464387 | B97: 12.26495726
A98: 7.362001425 | B98: 8.324430199
A99: 8.675213675 | B99: 10.22435897
A100: 1.586538462 | B100: 13.95477208
A101: -22.39583333 | B101: 6.720975783
A102: 4.630519943 | B102: 13.52920228
A103: 0.7532051282 | B103: -14.17735043
A104: 4.84241453 | B104: 4.093660969
A105: 6.997863248 | B105: 2.888176638
A106: -9.300213675 | B106: -20.96866097
A107: 8.485576923 | B107: 12.6593661
A108: 8.111645299 | B108: 1.120904558
A109: 10.5519943 | B109: 9.749821937
A110: 10.5519943 | B110: 9.749821937
A111: 1.103988604 | B111: 23.96011396
A112: 2.020121083 | B112: 15.21100427
A113: -53.01994302 | B113: -52.2542735
A114: 4.959045584 | B114: -27.32905983
A115: 9.627849003 | B115: 13.52207977
A116: 13.65473647 | B116: 12.63710826
A117: 1.45477208 | B117: 17.15366809
A118: -4.437321937 | B118: 4.245904558
A119: 6.229522792 | B119: -10.41666667
A120: 17.19195157 | B120: 16.20815527
A121: 0.4923433048 | B121: -0.3116096866
A122: -27.17770655 | B122: -34.65277778
A123: 4.384793447 | B123: 14.80769231
A124: 11.09419516 | B124: 11.03365385
A125: 6.184116809 | B125: 7.830306268
A126: 9.94212963 | B126: 10.87695869
A127: 5.4122151 | B127: 14.5210114
A128: 8.758903134 | B128: -8.666310541
A129: 7.903311966 | B129: -7.608618234
A130: 5.548433048 | B130: 1.607905983
A131: 8.248753561 | B131: -2.843660969
A132: -11.72008547 | B132: 5.976673789
A133: 12.76887464 | B133: -25.51994302
A134: 9.066951567 | B134: 8.475783476
A135: 4.147970085 | B135: 1.25534188
A136: 13.2977208 | B136: 10.90990028
A137: -9.749821937 | B137: -8.309294872
A138: -2.371794872 | B138: 0.1709401709
A139: 8.323539886 | B139: 9.439992877
A140: 8.427706553 | B140: 10.10861823
A141: 9.229878917 | B141: 16.10042735
A142: 4.716880342 | B142: 9.242343305
A143: 8.401887464 | B143: 14.7738604
A144: -11.41292735 | B144: -11.71474359
A145: -12.05929487 | B145: -10.0730057
A146: 15.63212251 | B146: 16.20815527
A147: 18.0982906 | B147: 17.76798433
A148: -7.259615385 | B148: -3.824786325
A149: -0.0641025641 | B149: -3.824786325
A150: -6.903490028 | B150: -3.824786325
A151: 0.8084045584 | B151: -3.824786325
A152: 5.337428775 | B152: 9.578881766
A153: -139.627849 | B153: -139.8290598
A154: 3.052884615 | B154: 15.68287037

Sheet TAA_175478 (hidden)
A1: 11.88580084 | B1: 11.93729781
A2: -1.427916005 | B2: -3.359802365
A3: 14.51564614 | B3: 21.26274925
A4: 18.2494265 | B4: 13.84418564
A5: 3.576789601 | B5: 13.17272513
A6: 18.82189283 | B6: 11.64231516
A7: 21.56373155 | B7: 12.66525499
A8: 12.69675313 | B8: 25.37200753
A9: 9.42394565 | B9: 21.23725075
A10: -19.58984766 | B10: -13.62819834
A11: 19.90882889 | B11: 21.26274925
A12: 15.57358391 | B12: 15.12611023
A13: 13.34021528 | B13: 5.942650432
A14: 21.30824657 | B14: 13.49520616
A15: -8.954973237 | B15: -23.15713782
A16: 14.96661961 | B16: 9.700429387
A17: 3.763778601 | B17: -9.282453973
A18: -138.5293512 | B18: -136.9289454
A19: -52.91988707 | B19: -47.01223457
A20: 7.417063702 | B20: 14.89612376
A21: 21.97220752 | B21: 14.79612964
A22: 19.08437739 | B22: 25.37200753
A23: 18.81989295 | B23: -25.02752779
A24: 22.83165696 | B24: 15.0246162
A25: 7.692047527 | B25: 20.33380389
A26: 2.379360038 | B26: 11.2488383
A27: 1.826392565 | B27: -130.5193224
A28: 12.88624199 | B28: 26.97641315
A29: -15.68957708 | B29: -0.9764425622
A30: -10.91485795 | B30: -7.528057173
A31: 25.1990177 | B31: -36.50535263
A32: -0.3099817658 | B32: -6.137138992
A33: 14.52714546 | B33: 18.60040586
A34: 26.69892947 | B34: -21.24025057
A35: -118.6655197 | B35: -6.10164108
A36: 4.846214929 | B36: 18.87688959
A37: 8.174519146 | B37: 16.23904476
A38: 11.04935004 | B38: 20.35780248
A39: -27.9633551 | B39: -24.6210517
A40: 24.6415505 | B40: -52.67640139
A41: -53.47435445 | B41: -54.04932063
A42: -26.58693606 | B42: -24.61105229
A43: -66.17610729 | B43: -65.75813187
A44: 21.02026351 | B44: 17.5899653
A45: 17.11199341 | B45: 9.904917358
A46: 7.823539792 | B46: 27.37288983
A47: 0.008999470619 | B47: -1.455914358
A48: 4.815716723 | B48: 17.37147815
A49: 4.815716723 | B49: -29.64725604
A50: -42.76998412 | B50: -54.82977472
A51: 15.57658373 | B51: 3.3813011
A52: 12.62875713 | B52: 26.69792953
A53: 13.3807129 | B53: 25.37200753
A54: 15.76107288 | B54: 21.26274925
A55: -4.328745368 | B55: -25.53899771
A56: 8.462002235 | B56: -9.399947062
A57: 7.361066996 | B57: 19.4683548
A58: 16.34103876 | B58: 13.02123405
A59: 17.30798188 | B59: 4.106758426
A60: 14.53264514 | B60: 18.97588377
A61: 22.96614905 | B61: 28.60181754
A62: -1.692900418 | B62: 7.537556614
A63: 6.029645315 | B63: 19.35886124
A64: 14.6301394 | B64: 21.3282454
A65: 13.3807129 | B65: 18.5589083
A66: 14.91612258 | B66: 22.21469325
A67: 9.746926651 | B67: 10.44938533
A68: -8.33050997 | B68: -23.15713782
A69: 12.96673725 | B69: 19.59784719
A70: 5.113199224 | B70: 7.380565849
A71: 12.29827657 | B71: 22.21469325
A72: 15.40409388 | B72: 12.15378507
A73: 13.11272866 | B73: 19.08887712
A74: 17.83045115 | B74: 23.50711723
A75: 26.40644668 | B75: 24.97053115
A76: 16.35603788 | B76: 15.60458208
A77: 7.41556379 | B77: 7.972531028
A78: 20.45479678 | B78: 20.73778013
A79: -13.30021763 | B79: 3.641785777
A80: 14.44765014 | B80: 28.0193518
A81: 5.596670784 | B81: 14.25916123
A82: 18.69790012 | B82: 21.26274925
A83: 6.417122522 | B83: -2.175372037
A84: -7.671048762 | B84: 15.92456326
A85: 5.935150873 | B85: 18.88788895
A86: 5.822657491 | B86: 6.897094289
A87: 18.00494089 | B87: 25.18751838
A88: -8.223016293 | B88: 6.798600082
A89: 0.3924769131 | B89: 9.376948415
A90: -2.907328981 | B90: 8.702488089
A91: -1.003440974 | B91: 10.6063761
A92: 6.855096759 | B92: 16.96050232
A93: 1.371919299 | B93: 14.49864714
A94: 5.392682783 | B94: 6.22013411
A95: 4.668225399 | B95: 15.55958473
A96: 18.69790012 | B96: 19.08887712
A97: 8.3725075 | B97: 15.39709429
A98: -1.920887007 | B98: 4.040262338
A99: 15.86806658 | B99: 19.59784719
A100: 4.342744544 | B100: 19.14787365
A101: 2.064878537 | B101: 17.5899653
A102: -146.9718546 | B102: -145.2214576
A103: 4.768219516 | B103: 14.03417446
A104: 4.768219516 | B104: 13.76219046
A105: -1.826392565 | B105: 13.69619434
A106: 2.689341803 | B106: 13.69619434
A107: 4.768719487 | B107: 14.00567614
A108: -148.7452503 | B108: -146.9948532
A109: -25.47200165 | B109: -27.70087054
A110: -125.8770955 | B110: -130.2453385
A111: 0.916946062 | B111: 2.660343509
A112: 1.023939768 | B112: 11.9237986
A113: 9.883418622 | B113: 21.77421916
A114: 21.27224869 | B114: 5.404682078
A115: 7.417063702 | B115: 8.247514852
A116: 4.699723546 | B116: 8.23751544
A117: 11.60631728 | B117: -39.22869243
A118: 8.37300747 | B118: 8.507999529
A119: 8.408505382 | B119: -8.440003529
A120: 9.036968414 | B120: -34.59796483
A121: 7.826039645 | B121: 20.56629022
A122: 9.734427387 | B122: 12.35427328
A123: -1.180930533 | B123: 11.73830951
A124: 4.477236633 | B124: 3.612787483
A125: -68.04999706 | B125: -82.13916828
A126: 7.661549321 | B126: 16.7330157
A127: 9.496941356 | B127: -39.30518793
A128: 8.656990765 | B128: 15.18710664
A129: 4.375242633 | B129: 13.69619434
A130: 8.081024646 | B130: 1.888888889
A131: 1.066937239 | B131: 1.938885948
A132: 5.137697782 | B132: 16.7330157
A133: 6.394623846 | B133: 9.250955826
A134: 4.723722134 | B134: 19.19487089
A135: 18.32142227 | B135: 24.86453738
A136: 4.614728545 | B136: 16.96050232
A137: 11.94629728 | B137: 7.442562202
A138: 5.327186636 | B138: 13.25972002
A139: -2.045879654 | B139: -4.900711723
A140: 11.94629728 | B140: 17.77495441
A141: 3.662784542 | B141: 33.86650785
A142: 5.379683548 | B142: 13.25972002
A143: 7.925533792 | B143: 21.43673902
A144: 1.029939415 | B144: 14.15166755
A145: 6.640109405 | B145: 15.61008176
A146: 7.792041645 | B146: 12.67625434
A147: 8.665990236 | B147: 0.7869537086
A148: 5.867654844 | B148: 12.09928828
A149: -3.043820952 | B149: 10.79086524
A150: -21.90821128 | B150: 16.08905359
A151: 9.088965355 | B151: 14.00567614
A152: 7.096082583 | B152: 13.53970355
A153: 13.35671431 | B153: 11.73830951
A154: 10.61687548 | B154: 6.213634492
A155: 5.79665902 | B155: 14.00317628
A156: -13.66369625 | B156: 14.00317628
A157: 10.93985648 | B157: -0.197488383
A158: -3.043820952 | B158: 11.74280925
A159: 6.656108464 | B159: 15.21010529
A160: 4.477236633 | B160: 9.327451326
A161: -4.556731957 | B161: 14.00317628
A162: 5.802658667 | B162: 13.25972002
A163: -18.70289983 | B163: -9.700429387
A164: -17.01149932 | B164: -5.590171166
A165: 2.721339921 | B165: 10.79086524
A166: 13.35671431 | B166: 1.667901888
A167: 18.49991177 | B167: 28.1078466

Sheet TAA_175620 (hidden)

Sheet TAA_175641 (hidden)
A1: -17.72448364 | B1: 0.06660478069
A2: 2.542399629 | B2: 0
A3: 0.05899280576 | B3: 8.536829891
A4: -1.333998608 | B4: -0.4319795776
A5: -0.30067301 | B5: 9.632954282
A6: 3.472963565 | B6: 4.232258065
A7: -3.17990253 | B7: -24.52958923
A8: 5.76416802 | B8: 5.448271061
A9: -21.91487584 | B9: -25.76653516
A10: 2.449152936 | B10: -3.305500116
A11: -29.00733349 | B11: -16.04033418
A12: 3.724158738 | B12: 5.731817127
A13: -23.10805291 | B13: -24.40399165
A14: 2.656579253 | B14: 0.1769784173
A15: 2.778370852 | B15: 4.694685542
A16: -3.471060571 | B16: 5.785100951
A17: 3.939197029 | B17: -2.163703876
A18: 4.167556278 | B18: -7.006822929
A19: 5.535808772 | B19: 6.099094918
A20: 5.130471107 | B20: 0.8163843119
A21: 2.542399629 | B21: -3.305500116
A22: 4.432072407 | B22: -3.710837781
A23: -0.7821304247 | B23: -17.2506382
A24: -18.98807148 | B24: 8.447389185
A25: 3.132327686 | B25: -20.5599443
A26: 4.167556278 | B26: -5.954467394
A27: -1.870642841 | B27: -2.997215131
A28: 9.155302854 | B28: -66.83504293
A29: 3.948711998 | B29: -6.451148758
A30: 1.958180552 | B30: 1.568066837
A31: -4.093339522 | B31: 2.700348109
A32: 2.679415178 | B32: -4.511998143
A33: -10.20765839 | B33: 0.272128104
A34: 2.411093061 | B34: 3.320724066
A35: -9.077280111 | B35: 1.20269204
A36: 4.700394523 | B36: -5.058157345
A37: -1.750754235 | B37: 5.785100951
A38: -34.59642608 | B38: 1.771687166
A39: 3.804084474 | B39: 1.840194941
A40: 0.9933627292 | B40: -0.4167556278
A41: 3.821211418 | B41: 2.150382919
A42: 4.660431655 | B42: 6.418797865
A43: -8.456904154 | B43: -19.60083546
A44: -0.03805987468 | B44: -2.576653516
A45: 1.619447668 | B45: 2.641355303
A46: 4.71942446 | B46: -2.249338594
A47: 4.563378974 | B47: 3.052401949
A48: 8.276119749 | B48: -4.538640056
A49: 0.6317939197 | B49: 0.1579484799
A50: 1.269296821 | B50: 5.558644697
A51: 1.50336505 | B51: 4.532931074
A52: 9.016384312 | B52: 3.62330007
A53: 1.672731492 | B53: 0.508099327
A54: -0.4453005338 | B54: 1.118960316
A55: 0.1636574611 | B55: 4.751775354
A56: 2.957252263 | B56: 5.393084242
A57: 6.272267347 | B57: 3.998189835
A58: 7.564400093 | B58: 6.690925969
A59: 7.72615456 | B59: 1.096124391
A60: 0.08182873056 | B60: 2.064748201
A61: 4.167556278 | B61: 7.572012068
A62: 4.685170573 | B62: 4.744163379
A63: 4.593826874 | B63: 5.663309353
A64: 0.5823160826 | B64: 2.458667904
A65: 2.607101416 | B65: 6.418797865
A66: 8.276119749 | B66: -1.77359016
A67: 3.413970759 | B67: -6.95163611
A68: -0.09705268044 | B68: 1.453887213
A69: 0.6317939197 | B69: -0.7516825249
A70: -1.14179624 | B70: -2.019076352
A71: 0.8886980738 | B71: -1.181759109
A72: 5.261777675 | B72: -10.09157577
A73: 4.797447204 | B73: 7.766117429
A74: 0.5404502205 | B74: 5.984915294
A75: 0.8411232304 | B75: -5.345509399
A76: 4.245579021 | B76: 3.486284521
A77: 0.6317939197 | B77: 3.267440241
A78: 7.073427709 | B78: 5.002970527
A79: 7.703318635 | B79: 7.25230912
A80: -5.290322581 | B80: -3.313112091
A81: 12.2990485 | B81: 1.613738686
A82: -9.946948248 | B82: -20.4077048
A83: 4.167556278 | B83: 4.845022047
A84: 11.14964029 | B84: -6.327454166
A85: 1.4576932 | B85: -9.478811789
A86: -0.1941053609 | B86: 3.971547923
A87: -1.699373405 | B87: -6.403573915
A88: 0.5956370388 | B88: 5.851705732
A89: 5.271292643 | B89: 2.799303783
A90: 1.756463217 | B90: 6.591970295
A91: 9.161011836 | B91: -5.132374101
A92: 5.741332096 | B92: 0.3920167092
A93: 6.980181016 | B93: 2.805012764
A94: -6.730888837 | B94: 3.109491761
A95: 6.858389417 | B95: 2.589974472
A96: 5.250359712 | B96: 2.997215131
A97: 4.30647482 | B97: -3.524344395
A98: 9.691947087 | B98: 2.475794848
A99: 6.631933163 | B99: -3.684195869
A100: -4.283638895 | B100: -3.398746809
A101: 5.022000464 | B101: 7.785147366
A102: 4.744163379 | B102: 7.26753307
A103: -5.316964493 | B103: 2.274077512
A104: 3.069528893 | B104: 8.715711302
A105: 4.744163379 | B105: 14.50081225
A106: 6.173311673 | B106: 1.802135066
A107: -1.120863309 | B107: 4.532931074
A108: -25.02817359 | B108: -32.64585751
A109: 3.967741935 | B109: 3.421582734
A110: -49.61294964 | B110: 2.835460664
A111: -3.433000696 | B111: 4.698491529
A112: 3.509120446 | B112: -8.023021583
A113: -0.1255975864 | B113: 28.44214435
A114: 4.970619633 | B114: -3.27695521
A115: 5.619540497 | B115: 2.199860757
A116: -4.698491529 | B116: 4.207519146
A117: 3.941100023 | B117: 16.31817127
A118: 10.67008587 | B118: 3.117103736
A119: -57.33720121 | B119: -44.33594802
A120: -0.2987700162 | B120: 13.11162683
A121: -1.381573451 | B121: 0.7117196565
A122: -13.65778603 | B122: -9.098213042
A123: 8.354142492 | B123: 8.746159202
A124: -3.166581573 | B124: 4.74987236
A125: -5.042933395 | B125: -5.728011139
A126: 6.272267347 | B126: 5.261777675
A127: 2.036203295 | B127: 7.495892318
A128: 0.9629148294 | B128: 5.448271061
A129: -7.290368995 | B129: -12.14300302
A130: 4.378788582 | B130: 0.05708981202
A131: 4.310280808 | B131: 4.432072407
A132: -3.339754003 | B132: -1.920120678
A133: 2.934416338 | B133: 5.710884196
A134: 1.105639359 | B134: 5.002970527
A135: -8.003991645 | B135: -2.974379206
A136: -12.00218148 | B136: -6.009654212
A137: -4.641401717 | B137: -1.174147134
A138: -5.874541657 | B138: -1.324483639
A139: 5.600510559 | B139: 7.775632397
A140: 5.594801578 | B140: 5.689951265
A141: -14.77674634 | B141: -10.51784637
A142: 4.217034115 | B142: 4.673752611
A143: 6.097191924 | B143: 4.827895103
A144: 5.113344163 | B144: 4.245579021
A145: -1.878254816 | B145: -2.397772105
A146: 5.370248317 | B146: 2.713669065
A147: 5.931631469 | B147: -22.25360873
A148: 4.258899977 | B148: -4.850731028
A149: -2.877326526 | B149: 6.787978649
A150: 5.202784869 | B150: 5.695660246
A151: 4.272220933 | B151: 2.692736134
A152: 4.258899977 | B152: -13.29241123
A153: -16.74444187 | B153: -15.75488512
A154: 2.738407983 | B154: -5.845996751
A155: 7.482571362 | B155: 6.540589464
A156: 5.027709445 | B156: 3.014342075
A157: -51.82042237 | B157: -66.38213042
A158: 1.733627292 | B158: 1.613738686
A159: 5.257971687 | B159: -10.53497331
A160: 4.289347877 | B160: -3.236992342
A161: 3.210350429 | B161: -1.828776978
A162: 9.790902762 | B162: 8.841308888
A163: -1.996240427 | B163: -5.36644233
A164: -3.349268972 | B164: 3.627106057
A165: 2.959155256 | B165: 3.941100023
A166: -0.5823160826 | B166: 3.897331167
A167: 4.797447204 | B167: -1.906799722
A168: -1.634671618 | B168: -0.3901137155
A169: -2.05903922 | B169: 0.2797400789
A170: 3.825017405 | B170: 3.62330007
A171: -20.54852634 | B171: -26.24228359
A172: -11.89751683 | B172: 3.821211418
A173: 1.762172198 | B173: 0.5385472267
A174: 3.699419819 | B174: 7.714736598
A175: 4.928753771 | B175: 4.394012532
A176: 6.91547923 | B176: 8.257089812
A177: 11.56639592 | B177: 1.720306336
A178: -1.130378278 | B178: 4.439684382
A179: 4.816477141 | B179: -6.590067301
A180: 3.956323973 | B180: 7.197122302
A181: 10.76333256 | B181: 2.648967278
A182: 7.079136691 | B182: 4.403527501
A183: -30.2480854 | B183: -35.52889301
A184: -41.91724298 | B184: -41.13130657
A185: 3.566210258 | B185: -4.030540729
A186: -30.94267812 | B186: -36.50893479
A187: -3.225574379 | B187: -1.263587839
A188: 1.596611743 | B188: -1.39108842
A189: -0.9343699234 | B189: -0.6546298445
A190: 10.8718032 | B190: 12.96319332
A191: 9.886052448 | B191: 12.08971919
A192: -10.34467394 | B192: -5.297934556
A193: -17.42190764 | B193: -17.4009747
A194: -11.66915758 | B194: -4.753678348
A195: 4.544349037 | B195: 8.761383152
A196: -5.670921327 | B196: -2.184636807
A197: 2.909677419 | B197: 3.206544442
A198: -2.702251102 | B198: -2.820236714
A199: -4.660431655 | B199: 2.664191228
A200: -1.105639359 | B200: 6.683313994
... 139 more rows

Sheet TAA_175665 (hidden)
A1: 15.79913093 | B1: 14.36999956
A2: 24.6266974 | B2: 14.32573878
A3: 23.27428471 | B3: 15.90929109
A4: 16.47287835 | B4: 17.13580646
A5: 3.491683671 | B5: -7.50072667
A6: 3.359884907 | B6: -8.041691745
A7: 4.274607672 | B7: -6.098151764
A8: 4.59328528 | B8: -5.905371482
A9: -3.573320219 | B9: -2.060585152
A10: -3.987404395 | B10: -3.952979345
A11: -3.573320219 | B11: 16.87909394
A12: 20.22815954 | B12: -15.73814941
A13: 15.15193999 | B13: 12.05270189
A14: 4.043468049 | B14: -4.3424742
A15: -23.41985349 | B15: -40.27337454
A16: 13.9372275 | B16: -5.223755487
A17: 25.15290888 | B17: 21.62581659
A18: 0.9284927847 | B18: -6.393223623
A19: 1.622895227 | B19: -11.38485591
A20: 2.752036877 | B20: -6.414862226
A21: 3.12382742 | B21: -6.289948473
A22: 19.4285148 | B22: 18.39379615
A23: 5.205067602 | B23: -6.270277015
A24: 22.29858043 | B24: -4.011993717
A25: 5.674231859 | B25: -5.035893069
A26: 4.59328528 | B26: -9.442299505
A27: 3.357917762 | B27: -6.832880694
A28: 23.77787401 | B28: 20.3314347
A29: 22.59561943 | B29: 16.71287012
A30: 15.15193999 | B30: 11.02683539
A31: 1.244219674 | B31: -4.666069672
A32: -6.495515201 | B32: -17.37678181
A33: -3.52905944 | B33: -13.2231536
A34: 6.397157915 | B34: -4.301164139
A35: -4.683773984 | B35: -9.810155757
A36: -10.00883748 | B36: -51.18414833
A37: 12.21400784 | B37: -8.676096243
A38: 17.06498921 | B38: -3.053010173
A39: 7.814486413 | B39: -4.230346893
A40: 5.062449537 | B40: -4.809671311
A41: 3.988387968 | B41: -5.541449522
A42: 14.75752727 | B42: -3.397260676
A43: 3.691348963 | B43: -5.205067602
A44: 3.583155948 | B44: -5.205067602
A45: 3.583155948 | B45: -5.205067602
A46: 5.064416683 | B46: -4.351326355
A47: -0.2950718595 | B47: -42.22281595
A48: 27.02169732 | B48: 14.0168969
A49: 3.760199063 | B49: -0.4327720607
A50: 20.09734435 | B50: 16.85057033
A51: 20.09734435 | B51: 16.85057033
A52: 1.774365449 | B52: -3.99232226
A53: 6.441418694 | B53: -5.328997783
A54: 4.974911552 | B54: -4.295262702
A55: 5.428338643 | B55: -4.587383843
A56: 5.262114828 | B56: -3.983470104
A57: 6.335192824 | B57: -3.089402369
A58: 16.61746356 | B58: -8.757732791
A59: -106.6714279 | B59: -109.6408344
A60: 16.54271202 | B60: 2.333034836
A61: 22.71561532 | B61: -0.4426077893
A62: 6.877141473 | B62: -7.619738986
A63: 5.349652813 | B63: -5.559153834
A64: 7.666950484 | B64: -4.365096375
A65: -9.379350842 | B65: -19.9724306
A66: 6.572233885 | B66: -4.010026571
A67: 6.948942292 | B67: -4.559843803
A68: 4.104449566 | B68: -5.569973135
A69: 6.760096302 | B69: -3.988387968
A70: 0.9137391917 | B70: -26.48368297
A71: 0.9137391917 | B71: -26.48368297
A72: -4.01297729 | B72: -19.25540598
A73: -13.6362542 | B73: -24.54506085
A74: -13.6362542 | B74: -29.58292106
A75: -14.72802008 | B75: -27.192839
A76: 5.240476225 | B76: -5.260147683
A77: 4.904094306 | B77: -19.42753123
A78: 4.969993688 | B78: -11.83041442
A79: 27.78494987 | B79: 16.46304262
A80: 17.3335046 | B80: 19.32130536
A81: 24.81947768 | B81: 22.07235867
A82: 15.78536091 | B82: 18.9465641
A83: 8.023987434 | B83: 6.992219498
A84: 14.81457449 | B84: 11.32092368
A85: 11.66419061 | B85: 7.256800599
A86: 5.844389965 | B86: -5.515876628
A87: 4.063139506 | B87: -5.515876628
A88: 3.828065591 | B88: -6.254539849
A89: 16.86630749 | B89: 24.0031122
A90: 4.59328528 | B90: -6.788619915
A91: -7.896122961 | B91: -18.53051278
A92: 16.01748411 | B92: -3.053010173
A93: 14.40737533 | B93: 2.099928067
A94: 15.30439378 | B94: 8.542330334
A95: 15.44209398 | B95: 10.79864649
A96: 15.30832807 | B96: -4.202806853
A97: 16.99318839 | B97: -6.044055256
A98: 28.73901555 | B98: 14.18017
A99: 28.73901555 | B99: 4.514599451
A100: -8.321026439 | B100: 4.288377692
A101: 25.98796224 | B101: 21.01009997
A102: 16.99318839 | B102: -10.76717215
A103: 18.00528487 | B103: -17.75644093
A104: -11.15273272 | B104: -28.05543241
A105: 8.728225605 | B105: 0.2724496836
A106: 16.99318839 | B106: -15.1224328
A107: -9.533771782 | B107: -22.6693874
A108: 10.1239155 | B108: -13.71887432
A109: 15.71552724 | B109: 9.436398068
A110: 12.81398729 | B110: 18.39379615
A111: -37.15446498 | B111: -38.94161688
A112: 14.767363 | B112: 7.273521338
A113: 21.06222933 | B113: 19.20819448
A114: 17.67873868 | B114: 2.076322318
A115: 1.713383931 | B115: -11.24617214
A116: 15.89158678 | B116: 16.04207343
A117: 5.93192795 | B117: -14.83129523
A118: 16.22403441 | B118: -6.10700392
A119: -6.983367342 | B119: -36.34400094
A120: 15.78241019 | B120: 6.128642523
A121: 16.01748411 | B121: -1.572733011
A122: -18.87181256 | B122: -17.72791732
A123: -4.590334562 | B123: -42.19822663
A124: 25.30339553 | B124: 13.08151911
A125: 24.4417857 | B125: 12.65464848
A126: 14.75752727 | B126: 7.897106534
A127: 26.86235852 | B127: 14.94342254
A128: 15.0427634 | B128: -15.68306933
A129: 3.804459842 | B129: -3.770034792
A130: 14.0060776 | B130: 18.84820681
A131: 4.191987551 | B131: -10.7327471
A132: 14.26574084 | B132: -3.504470118
A133: 15.47455189 | B133: -3.293985525
A134: 6.473876598 | B134: -2.516962962
A135: -31.09959042 | B135: -53.53193676
A136: 8.981003832 | B136: -25.91812857
A137: 15.47455189 | B137: -4.705412587
A138: 0.1790102615 | B138: -4.618858175
A139: 9.266239962 | B139: 8.116443283
A140: 12.47563822 | B140: 16.82794815
A141: 14.571632 | B141: -10.54685183
A142: 14.23328293 | B142: -4.804753446
A143: -7.752521323 | B143: 20.08062361
A144: -16.71680442 | B144: -23.2526461
A145: -15.69585578 | B145: -23.2526461
A146: 15.09489276 | B146: 13.66576139
A147: 16.99318839 | B147: -13.11692773
A148: 18.0731514 | B148: 8.81576359
A149: -35.77844654 | B149: -12.69104068
A150: 2.333034836 | B150: -17.55284135
A151: 0.4976878698 | B151: 1.388804886
A152: 0.7425975132 | B152: 0.4396570707
A153: 18.5914943 | B153: 12.88087024
A154: 14.21656219 | B154: 16.86729106
A155: 18.54231565 | B155: 17.99544914
A156: 17.73086804 | B156: 20.74650244
A157: 18.5914943 | B157: 12.26121934
A158: 14.64835068 | B158: 9.269190681
A159: 25.15290888 | B159: -15.25521514
A160: 10.62160337 | B160: 5.62308607
A161: 17.62857646 | B161: 8.686915545
A162: 26.65187393 | B162: 21.62581659
A163: 27.13972607 | B163: 18.67706514
A164: 14.36311455 | B164: 9.872120847
A165: 4.152644637 | B165: 20.29405893
A166: 17.06498921 | B166: 11.39862593
A167: 15.70077365 | B167: 14.38475315
A168: 25.35257417 | B168: 16.85057033
A169: 15.1116135 | B169: 21.68188024
A170: 16.23485371 | B170: 22.80512045
A171: 3.842819184 | B171: 20.55175502
A172: 12.12155199 | B172: 17.77021095
A173: -3.629383872 | B173: 7.932515157
A174: 12.37433022 | B174: 11.34748015
A175: 4.969010115 | B175: 5.064416683
A176: -2.844492726 | B176: 5.335882793
A177: -19.55736285 | B177: -2.308445514
A178: -30.61370543 | B178: 6.957794448
A179: -30.05110175 | B179: -26.5259766
A180: -125.961259 | B180: -126.8100824
A181: -37.83608098 | B181: 18.24429308
A182: 4.175266812 | B182: 3.932324315
A183: 4.568695959 | B183: 20.43175913
A184: -131.4377927 | B184: -132.0967865
A185: 16.31845741 | B185: 19.30261748
A186: 2.811051249 | B186: 21.04452502
A187: -7.675802639 | B187: 1.63764882
A188: 9.098049002 | B188: 5.924059367
A189: -23.85951056 | B189: -19.09606718
A190: -13.97361969 | B190: 5.403749321
A191: 1.443884966 | B191: 7.652196891
A192: 2.195334635 | B192: 11.49698322
A193: 13.9372275 | B193: 16.28895022
A194: 15.60733422 | B194: 16.82794815
A195: 2.811051249 | B195: -13.56445338
A196: 19.09311646 | B196: 25.58863166
A197: 16.39419252 | B197: 25.1194674
A198: -100.7050749 | B198: -104.066927
A199: 12.65661563 | B199: 23.74836683
A200: 5.114578899 | B200: 22.8287262
... 69 more rows

Sheet TAA_175680 (hidden)

Sheet TAA_178111 (hidden)
A1: 6.635010267 | B1: -72.70277207
A2: 17.43925394 | B2: 9.307837098
A3: 3.138689254 | B3: 15.14288159
A4: 10.36661533 | B4: 6.851471595
A5: 3.642197125 | B5: 6.606776181
A6: 3.308093771 | B6: 4.108059548
A7: 6.635010267 | B7: 4.056297057
A8: 29.62696783 | B8: 7.722022587
A9: -1.519934976 | B9: 5.119780972
A10: 6.635010267 | B10: 6.19738193
A11: 4.988021903 | B11: 5.152720739
A12: 4.009240246 | B12: 4.220995893
A13: 0.6917351129 | B13: 9.505475702
A14: 0.352926078 | B14: 3.213980151
A15: -17.88629363 | B15: 4.851557153
A16: 1.566991786 | B16: -3.858658453
A17: 3.308093771 | B17: 19.00154004
A18: 4.131587953 | B18: 2.197553046
A19: 4.832734428 | B19: 4.046885695
A20: 3.543377823 | B20: 4.437457221
A21: -0.2917522245 | B21: 5.119780972
A22: 18.50273785 | B22: 12.8323922
A23: -57.92693361 | B23: -71.67693361
A24: 14.31938741 | B24: -13.5523614
A25: 5.265657084 | B25: 6.936173854
A26: 5.326830938 | B26: 4.220995893
A27: 1.181125941 | B27: -0.2117556468
A28: -8.470225873 | B28: 8.385523614
A29: 4.988021903 | B29: 5.242128679
A30: 3.204568789 | B30: 4.517453799
A31: 4.446868583 | B31: 4.517453799
A32: 2.931639288 | B32: 5.242128679
A33: 8.314938398 | B33: 10.2254449
A34: 12.08889459 | B34: 11.97595825
A35: 12.08889459 | B35: 14.04645791
A36: -0.8799623546 | B36: 5.340947981
A37: 12.89827173 | B37: 16.62517112
A38: -13.35472279 | B38: -15.54286448
A39: 2.785763176 | B39: 3.228097194
A40: 6.517368241 | B40: -3.284565366
A41: 6.917351129 | B41: 7.77849076
A42: -4.103353867 | B42: -4.484514031
A43: 6.084445585 | B43: -35.03379535
A44: 2.955167693 | B44: -3.613963039
A45: 3.882186858 | B45: 8.761978097
A46: 5.3362423 | B46: 4.799794661
A47: 5.496235455 | B47: 6.267967146
A48: 17.13338467 | B48: -2.254021218
A49: 12.78533539 | B49: 7.731433949
A50: 2.239904175 | B50: -21.19438741
A51: 7.745550992 | B51: 4.602156057
A52: -2.122262149 | B52: 5.340947981
A53: 16.62517112 | B53: 17.31220055
A54: 4.597450376 | B54: 3.369267625
A55: 1.844626968 | B55: -5.3362423
A56: 4.649212868 | B56: -17.49101643
A57: 1.952857632 | B57: -11.65126626
A58: 2.418720055 | B58: -11.65126626
A59: 18.79449008 | B59: 9.18078371
A60: 6.084445585 | B60: 14.33350445
A61: -9.340776865 | B61: 8.964322382
A62: 2.282255305 | B62: 13.08649897
A63: -11.08187885 | B63: 9.18078371
A64: -0.927019165 | B64: -19.01565708
A65: 5.6091718 | B65: 5.143309377
A66: -14.51702601 | B66: -49.1931896
A67: -12.83709788 | B67: -49.1931896
A68: 12.63945927 | B68: -10.60660507
A69: -12.83709788 | B69: -47.51326146
A70: -4.188056126 | B70: 9.510181383
A71: 12.22535934 | B71: 8.964322382
A72: -40.58179329 | B72: -66.020705
A73: -65.64895619 | B73: -56.67522245
A74: 9.383127995 | B74: 13.15237851
A75: 8.907854209 | B75: 10.98776523
A76: 4.88449692 | B76: 10.98776523
A77: 22.46962697 | B77: 19.71680356
A78: 18.31451061 | B78: 19.71680356
A79: 21.19909309 | B79: 13.58530116
A80: -2.964579055 | B80: 4.329226557
A81: 1.99050308 | B81: 3.863364134
A82: 4.164527721 | B82: 3.863364134
A83: 7.68908282 | B83: 12.10301164
A84: 6.635010267 | B84: -14.86995209
A85: -9.194900753 | B85: 6.898528405
A86: 2.724589322 | B86: 9.609000684
A87: 10.15956537 | B87: 9.020790554
A88: 11.25128337 | B88: 11.40657084
A89: 7.199691992 | B89: -14.86995209
A90: 8.757272416 | B90: 6.700889802
A91: 8.554928131 | B91: -9.778405202
A92: -9.811344969 | B92: 7.731433949
A93: 15.40169405 | B93: 15.24170089
A94: 17.43925394 | B94: 11.06305613
A95: 3.261036961 | B95: 5.185660507
A96: 21.75906913 | B96: 13.46765914
A97: -51.4754449 | B97: -33.99854552
A98: 7.331451061 | B98: 6.978524983
A99: 4.97390486 | B99: 7.105578371
A100: -1.642282683 | B100: 17.58042437
A101: 16.80869268 | B101: 9.510181383
A102: 16.58281999 | B102: 12.8323922
A103: -17.46278234 | B103: 5.533880903
A104: 8.95491102 | B104: 5.439767283
A105: 3.910420945 | B105: 2.832819986
A106: -10.9454141 | B106: -5.058607118
A107: 2.813997262 | B107: -0.7764373717
A108: 4.860968515 | B108: -3.858658453
A109: 11.82067077 | B109: 21.170859
A110: 6.507956879 | B110: 0.2541067762
A111: 15.76403149 | B111: 16.33812457
A112: 19.99914442 | B112: 15.62286105
A113: 18.19686858 | B113: 9.307837098
A114: 8.385523614 | B114: 7.787902122
A115: -12.84180356 | B115: -6.404431896
A116: 22.03199863 | B116: 9.04431896
A117: 19.90032512 | B117: 12.29123888
A118: 19.90032512 | B118: 11.68420602
A119: 19.90032512 | B119: 12.29123888
A120: 21.75906913 | B120: 9.04431896
A121: 8.710215606 | B121: 10.95482546
A122: 3.20927447 | B122: 8.169062286
A123: 7.64202601 | B123: 9.331365503
A124: -3.223391513 | B124: 0.4517453799
A125: 1.406998631 | B125: 10.69130732
A126: 11.04893908 | B126: 11.33127995
A127: 3.717488022 | B127: 6.075034223
A128: 1.76463039 | B128: 5.185660507
A129: 4.413928816 | B129: 5.656228611
A130: -6.37619781 | B130: -4.484514031
A131: -6.37619781 | B131: -4.484514031
A132: 13.06297057 | B132: 5.83504449
A133: 4.437457221 | B133: 5.185660507
A134: 4.766854894 | B134: -0.5646817248
A135: 2.790468857 | B135: 5.995037645
A136: 3.157511978 | B136: 4.517453799
A137: 2.611652977 | B137: 1.85403833
A138: 4.860968515 | B138: 4.729209446
A139: 4.418634497 | B139: 3.129277892
A140: 3.308093771 | B140: 3.919832307
A141: 1.684633812 | B141: 5.185660507
A142: 4.686858316 | B142: 2.931639288
A143: -107.7177447 | B143: -107.7177447
A144: 4.145704997 | B144: 3.919832307
A145: 4.686858316 | B145: 5.736225188
A146: 1.350530459 | B146: 3.148100616
A147: -6.395020534 | B147: -6.395020534
A148: -7.199691992 | B148: -6.936173854
A149: -7.199691992 | B149: -7.467915811
A150: 0.2729295003 | B150: 5.124486653
A151: 2.790468857 | B151: 2.536362081
A152: 2.192847365 | B152: -1.35523614
A153: 3.971594798 | B153: 1.910506502
A154: -4.672741273 | B154: -7.947895277
A155: -3.990417522 | B155: -6.884411362
A156: -1.143480493 | B156: 2.221081451
A157: 5.411533196 | B157: 4.475102669
A158: 4.475102669 | B158: 5.016255989
A159: -4.319815195 | B159: -1.778747433
A160: 4.475102669 | B160: 4.418634497
A161: 2.828114305 | B161: 3.148100616
A162: 3.971594798 | B162: 3.642197125
A163: 3.453969884 | B163: 1.576403149
A164: -4.672741273 | B164: -3.910420945
A165: 2.611652977 | B165: 3.538672142
A166: -2.630475702 | B166: -2.399897331
A167: 3.072809719 | B167: 6.235027379
A168: 4.475102669 | B168: 4.475102669
A169: 5.397416153 | B169: 5.232717317
A170: -4.997433265 | B170: -3.496321013
A171: 4.578627652 | B171: 3.811601643
A172: -97.1676078 | B172: -96.9699692
A173: 2.729295003 | B173: 4.475102669
A174: 5.947980835 | B174: 5.223305955
A175: 4.52215948 | B175: 4.983316222
A176: 4.52215948 | B176: 4.983316222
A177: 5.063312799 | B177: 4.178644764
A178: 3.453969884 | B178: 3.821013005
A179: 3.453969884 | B179: 3.623374401
A180: 2.790468857 | B180: 5.886806982
A181: 2.512833676 | B181: 2.366957563
A182: 2.512833676 | B182: -0.6070328542
A183: 2.512833676 | B183: 4.917436687
A184: 3.453969884 | B184: 5.025667351

Sheet TAA_178112 (hidden)

Sheet TAA_178120 (hidden)
A1: 5.151555365 | B1: 1.114710589
A2: 8.583271535 | B2: 6.421529214
A3: 9.323757855 | B3: -0.1393388236
A4: 4.841028844 | B4: 7.285429921
A5: 4.841028844 | B5: -7.357089887
A6: 1.05897506 | B6: 5.501892978
A7: -1.950743531 | B7: -3.300339565
A8: 7.703446392 | B8: 9.845283166
A9: 8.646969283 | B9: -1.11072948
A10: 3.029624136 | B10: 1.548651497
A11: 10.203583 | B11: 8.865930292
A12: -9.236173451 | B12: -13.59150697
A13: 5.243120877 | B13: 0.9793528746
A14: 15.55021272 | B14: 1.48097264
A15: -21.73287538 | B15: 7.755200812
A16: 7.150072206 | B16: 4.996292104
A17: -4.112485851 | B17: -8.491706022
A18: 4.22793802 | B18: 2.953983061
A19: 6.114983802 | B19: 0.6290152609
A20: 4.976386558 | B20: 2.953983061
A21: 8.069708442 | B21: 8.352367199
A22: 3.551149448 | B22: 8.352367199
A23: 4.681784474 | B23: 6.369774794
A24: 3.997033683 | B24: 3.829827095
A25: 4.661878927 | B25: 3.829827095
A26: 3.937317045 | B26: -6.795753483
A27: 7.361070996 | B27: 2.985831935
A28: 7.866671871 | B28: -1.492915967
A29: 6.103040475 | B29: 7.349127669
A30: -9.980640881 | B30: -27.96331135
A31: -8.571328207 | B31: -3.861675969
A32: 4.184145818 | B32: 2.727059834
A33: 3.280434019 | B33: -6.083134928
A34: 2.85445533 | B34: -6.684282425
A35: 4.681784474 | B35: -17.11876976
A36: 6.803715702 | B36: -17.11876976
A37: 10.7649194 | B37: -0.7842785215
A38: 8.842043636 | B38: 8.865930292
A39: 3.4874517 | B39: 6.162757113
A40: 6.011474962 | B40: 3.443659498
A41: 7.910464072 | B41: 5.848249483
A42: 4.721595566 | B42: 5.70492955
A43: -3.734280473 | B43: -1.166465009
A44: 6.210530424 | B44: 5.525779634
A45: 7.910464072 | B45: 10.5937317
A46: 4.988329886 | B46: 4.996292104
A47: 4.319503532 | B47: 4.996292104
A48: 10.06822528 | B48: 4.001014793
A49: 5.402365247 | B49: 3.9612037
A50: -3.658639397 | B50: 8.220990594
A51: 6.803715702 | B51: 6.421529214
A52: 8.388197182 | B52: 9.5586433
A53: 6.803715702 | B53: 6.421529214
A54: 8.388197182 | B54: 9.5586433
A55: -47.02884353 | B55: 3.690488271
A56: 3.586979431 | B56: 8.388197182
A57: 8.642988174 | B57: 4.001014793
A58: 4.104523633 | B58: 3.981109246
A59: 3.029624136 | B59: 3.391905078
A60: 4.080636977 | B60: 2.547909918
A61: -1.568557043 | B61: 9.530775536
A62: 2.950001952 | B62: 4.988329886
A63: 5.75668397 | B63: -7.030638929
A64: 5.067952071 | B64: 2.189610085
A65: 2.16572343 | B65: 3.80195933
A66: 8.654931502 | B66: 13.55169587
A67: 4.008977011 | B67: 2.520042153
A68: 15.55021272 | B68: 4.725576675
A69: 2.615588775 | B69: 1.48097264
A70: 3.901487061 | B70: -3.602903868
A71: 2.265251161 | B71: 2.555872136
A72: 6.509113618 | B72: 1.680028102
A73: 7.39291987 | B73: 3.427735061
A74: 6.194605987 | B74: 3.324226221
A75: 0.7325241013 | B75: 2.189610085
A76: 2.153780102 | B76: 3.80195933
A77: -26.93618516 | B77: -34.86257367
A78: -26.19569884 | B78: -34.86257367
A79: 0.4777331096 | B79: 2.189610085
A80: 3.252566254 | B80: 2.727059834
A81: 1.90297022 | B81: 3.981109246
A82: -7.010733383 | B82: 0.8599195972
A83: 5.139612037 | B83: 0.8599195972
A84: 5.111744272 | B84: 2.727059834
A85: 3.22071738 | B85: -6.349869248
A86: 3.527262792 | B86: 3.782053784
A87: 3.001756372 | B87: 2.555872136
A88: 1.926856875 | B88: 2.555872136
A89: 3.602903868 | B89: 3.129151868
A90: 0.4100542524 | B90: 2.555872136
A91: 5.872136138 | B91: 2.890285313
A92: 5.872136138 | B92: 2.890285313
A93: 3.567073885 | B93: 2.727059834
A94: 1.011201749 | B94: 2.086101245
